Workbook

Sheet Team Lead Only (hidden)
C1: Note - This page will be not be in the final template - this is for our use during testing
C2: This Sheet is used to copy data from a UWT to the Prelminary Assessment
C3: Use this to Unprotect all Sheets:
C5: Copy Data from a UWT for the purpose of comparison and error trapping
C7: Open your UWT and return here to type the name of it:
H10: Type the File Name Above i.e., GA-PIGEON BLUFF APARTMENTS-797202913014-xfer.xlsm
H11: you must type this correctly and it must include the file extension such as .xlsm
C14: Then click to Copy from UWT button:
C15: Wait (1 mins or so) for "Import Complete"
C16: Save this file with a new name
C17: Check over for omissions
C18: Correct omissions as necessary
C19: Compare results for RTO etc.
C20: Close and do not save UWT | H20: (Not all features of Rents & Operations Page enabled with this feature)

Sheet Message Board

Sheet AboutThisTemplate

Sheet Instructions
B1: Preliminary Transfer Assessment Template
B3: This Spreadsheet is a tool to assist our Partners and Agency Officials to determine the possible scenarios for structuring a transfer. It does not replace policy, regulation or good judgment. Some situations could result in a miscalculation or unanticipated result. Careful analysis of the results is necessary. Submission of this tool to the agency does not constitute approval.
L4: (You must have macros enabled - Excel Options, Trust Center Settings, Enable All Macros)
K5: 2 | L5: Upload the Rents & Operations Page with your MFIS FIN1700 Report
N6: Click "Project A" Button and Navigate to Your MFIS FIN1700 Report
N7: This Template can consolidate operations of up to 6 Projects
A8: 1 | B8: The User can enter historial data and budget directly on Rents and Operations Page. | L8: Consult with Agency Staff regarding eligibility and consolidation of properties in like markets
B9: A MFIS FIN1700 Report can also be used for each Project. Each must be saved as an | L9: (Stop at Project A if you don’t have a consolidation, or use the buttons below for
B10: Excel Workbook. This will be used populate your Rents and Operations Page. | L10: Consolidation of Additional MFIS FIN1700 Reports)
B11: The RD Field Staff must pull Report after proper authorization to release
B12: information is received.
B13: The Screen Print here gives details for obtaining the report from MFIS: | K13: 3 | L13: Upload the Reserve Sizing Page with your CNA data.
L14: A CNA in excel format is required for this feature. This should be a "Post Rehab CNA"
L15: Click "Project A" Button and Navigate to Your Excel CNA
N16: (Click Don't Update if message box appears)
L17: This Template can consolidate CNA Executive Summary pages for up to 6 Projects
L18: (Stop at Project A if you don't have a consolidation, or use the buttons below for
L19: Consolidation of Additional CNA Executive Summary Pages. View results on Reserve Sizing Page
K22: 4 | L22: Complete General Info, Sources & Uses,
L23: Rents & Operations, Reserve Sizing
L24: by typing in data as instructed in light yellow cells
L25: Look for 2 drop down boxes on Rents & Operations for
L26: LIHTC Rents and State Averages. Make your selections
K28: 5 | L28: View results on the "Dashboard Report"
L29: Save your template with a unique name. Change "Save as Type”
L30: to Excel Macro-Enabled Workbook (*.xlsm)

Sheet GeneralInfo
G4: Property State:
G5: Property Town:
A6: PROPERTY NAME | C6: Forest View Apartments | G6: Current Ownership Entity | H6: Forest View Limited Partnership
A7: APPLICANT
A8: (Legal Name): | C8: New Forest View Apartments LLLP
B9: Address: | C9: 123 Affordable Lane, Somewhere City, GA 30222
G10: Current Case Number: | H10: 10-31-012345678
B11: Principal(s): | C11: Johnny Football, GP
B12: Contact Person: | C12: Johnny Football, GP | G12: Email Address: | H12: jfootball@nfl.com
B13: Telephone Number: | C13: 555-555-5555 | G13: Cell Number:
A15: Identity of interests Buyer & Seller: | D15: TRUE | H15: Non Profit:
H16: FALSE
B17: Management Agent: | C17: ABC Management Inc
B18: HUD CBSA (Core Based Statistical Area) for AMI - Typically County | D18: Fulton County | G18: Initial Investment Per Loan Agreement | I18: 63000
B19: Property Location | D19: Somewhere City, GA | G19: As Is Market Appraised Value | I19: 1375000
B20: Compliance Status (A, B, C) Per MFIS | D20: ='MFIS ProjectA'!L2 -> A | G20: As Improved Security Value (includes ICS) | I20: 1797000
B21: Date Placed In Service | D21: 1998-07-10 | G21: Date of Appraisal | I21: 2014-05-15
B22: Existing Reserve Balance | D22: 30000 | G22: Date Current Approved Rents | I22: 2014-01-01
B23: RD Required Reserve Balance | D23: 29999 | G23: Revenue Units Current Rental & Utility Rates | I23: # Units | J23: Rent | K23: Utility
B24: Number Non Revenue Units | D24: 1 | G24: 1 Bedroom | I24: 10 | J24: 471 | K24: 128
B25: Est. Beginning General Fund | D25: 25000 | G25: 2 Bedroom | I25: 20 | J25: 511 | K25: 142
B26: Date of Capital Needs Assessment | D26: 2014-08-08 | G26: 3 Bedroom | I26: 5 | J26: 574 | K26: 153
B27: CNA Prepared As Improved? | G27: 4 Bedroom
B28: Current Authorized RTO | D28: 30000 | G28: RA Units to Be Transferred | I28: 35
B29: Balances As Of: | D29: ='Sources & Uses'!H32 -> 0 | G29: Number Vouchers or Other Subsidy | I29: 0
B30: 2014-12-31 | C30: Obligation Date Prior to 10/1/91 (Yes or No) | D30: Original Monthly Payment (Subsidized Amt) | E30: Original Amt: | F30: Balance: | G30: Outstanding RD Loan | H30: Obligation Date Prior to 10/1/91 (Yes or No) | I30: Original Monthly Payment (Subsidized Amt) | J30: Original Amt: | K30: Balance:
B31: Loan 1 | C31: Yes | D31: 2000 | E31: 1201000 | F31: 1114909 | G31: Loan 6 | J31: 0 | K31: 0
B32: Loan 2 | C32: No | D32: 22 | E32: 35000 | F32: 10000 | G32: Loan 7
B33: Loan 3 | F33: 0 | G33: Loan 8
B34: Loan 4 | F34: 0 | G34: Loan 9
B35: Loan 5 | G35: Loan 10 | K35: 0
B36: Lenders Required Reserve Unit/Year | D36: 350 | G36: Lender's Required Operating Vacancy & Bad Debt | I36: 0.07
B37: HFA's Required Reserve Unit/Year | D37: 350 | G37: HFA's Required Operating Vacancy & Bad Debt | I37: 0.07
B38: Lenders Required O & M Per Unit | D38: 3500 | G38: HFA's Required O & M Per Unit | I38: 3000
B39: % Cushion for Operations & incidental | D39: 0.01
B40: Additional Information About this Transaction: Will this involve multiple properties, is this part of a portfolio? Is this a Consolidation? What repairs are being proposed?
B52: Include information below about tenant protection and affect of the proposed rent increase on the tenant population.
B53: Proposed rents supported in the community? Document Need and Demand. Discuss issues with vacancy losses and how mitigated by this transaction
B65: Agency Loans Additional Information (Optional for Prelminary Assessment)
B66: New Rates & Terms can be offered for Assumed Agency Loans. Term can not exceed 30 years. Amortization period can be extended to the remaining | K66: Yes | L66: New
B67: useful life (per Appraisal) or 50 years which ever is less. Enter the Amortization Period in Months to use below | H67: 600 | I67: =IF(OR(H67="",H67=0),600,H67) -> 600 | J67: No entry = 600) | K67: No | L67: Same
B69: Loan Number | C69: Original Loan Amount | D69: Original Loan Term (Months) | E69: Current Note Interest Rate | F69: Original Closing Date | G69: Amt UPB | H69: Obligation Date Prior to 10/1/91 Yes or No | I69: Original Monthly Loan Payment (Subdized) | J69: Selection: New Rates & Terms OR Same Rates & Terms | K69: Installments
B72: =B31 -> Loan 1 | C72: =E31 -> 1201000 | D72: 600 | E72: 0.09 | G72: =F31 -> 1114909 | H72: =IF(C31="Yes","Yes","No") -> Yes | I72: =D31 -> 2000 | J72: New | K72: =IF(J72="New",PMT(1%/12,$I$67,-G72),I72) -> 2362.037068
B73: =B32 -> Loan 2 | C73: =E32 -> 35000 | D73: 600 | E73: 0.065 | G73: =F32 -> 10000 | H73: =IF(C32="Yes","Yes","No") -> No | I73: =IF(D32="","",D32) -> 22 | J73: New | K73: =IF(J73="New",PMT(1%/12,$I$67,-G73),I73) -> 21.18591803
B74: Loan 3 | C74: 0 | G74: 0 | H74: No | I74: =IF(D33="","",D33) ->  | J74: New | K74: 0
B75: Loan 4 | C75: 0 | G75: 0 | H75: No | I75: =IF(D34="","",D34) ->  | J75: New | K75: 0
B76: Loan 5 | C76: 0 | G76: 0 | H76: No | I76: =IF(D35="","",D35) ->  | J76: New | K76: 0
B77: =G31 -> Loan 6 | C77: =J31 -> 0 | G77: =K31 -> 0 | H77: No | I77: =IF(I31="","",I31) ->  | J77: New | K77: 0
B78: =G32 -> Loan 7 | C78: =J32 -> 0 | G78: =K32 -> 0 | H78: No | I78: =IF(I32="","",I32) ->  | J78: New | K78: 0
B79: Loan 8 | C79: 0 | G79: 0 | H79: No | I79: =IF(I33="","",I33) ->  | J79: New | K79: 0
B80: Loan 9 | C80: 0 | G80: 0 | H80: No | I80: =IF(I34="","",I34) ->  | J80: New | K80: 0
B81: Loan 10 | C81: 0 | G81: 0 | H81: No | I81: =IF(I35="","",I35) ->  | J81: New | K81: 0
B82: TOTALS | C82: =SUM(C72:C81) -> 1236000 | G82: =SUM(G72:G81) -> 1124909 | I82: =SUM(I72:I81) -> 2022 | K82: =SUM(K72:K81) -> 2383.222986

Sheet Sources & Uses
B2: =IF(GeneralInfo!C6>0,GeneralInfo!C6,"") -> Forest View Apartments
B3: Funding Sources | C3: =IF(I24>0,"Warning A Balloon Payment is Due on the 3rd Party Loan Prior to RD Term","") -> 
C4: =IF(D37=D39,"", "Warning Sources & Uses Do Not Balance") -> 
B5: Agency Loans Assumed (As Completed on "General Information") | C5: Amount | D5: See General Information Tab and Loan Detail Section by Using Link below for Lagency Loan Details | H5: Annual Debt Service
A6: =SUMIF(GeneralInfo!$H$72:$H$81,"Yes",GeneralInfo!$K$72:$K$81)*12 -> 28344.44482 | B6: Assume Existing RD 515 Loan(s) (Pre Credit Reform) | C6: =SUMIF(GeneralInfo!H72:H81,"Yes",GeneralInfo!G72:G81) -> 1114909 | D6: FALSE | H6: =IF(D6=FALSE,SUMIF(GeneralInfo!$H$72:$H$81,"Yes",GeneralInfo!$K$72:$K$81)*12,0) -> 28344.44482
A7: =SUMIF(GeneralInfo!$H$72:$H$81,"Yes",GeneralInfo!$K$72:$K$81)*12 -> 28344.44482 | B7: Assume Existing RD 515 Loan(s) | C7: =SUMIF(GeneralInfo!H72:H81,"=No",GeneralInfo!G72:G81) -> 10000 | D7: FALSE | H7: =IF(D7=FALSE,SUMIF(GeneralInfo!H72:H81,"No",GeneralInfo!K72:K81)*12,0) -> 254.2310163
B8: (Post Credit Reform) | I8: =IF(F6>F7,F6,F7) -> 0
B9: Source of New Funding | D9: Check If Non-Amortizing | E9: Rate (%) | F9: Term (Years) | G9: Amort. Period (Years) | H9: Annual Debt Service
B10: RD 538 Loan - Specify Lender: | C10: 350000 | D10: FALSE | E10: 0.048 | F10: 40 | G10: 40 | H10: =IFERROR(IF(D10=FALSE,PMT(E10/12,G10*12,-C10,0)*12,0)," ") -> 19699.10815
B11: Churchill Mortgage Investors | I11: =IF(F10<G10,IF(AND(F10>0,F10<I8),1,""),"") -> 
B12: Specify Lender: | C12: 250000 | D12: FALSE | E12: 0.05 | F12: 40 | G12: 40 | H12: =IFERROR(IF(D12=FALSE,PMT(E12/12,G12*12,-C12,0)*12,0)," ") -> 14465.89802
B13: Another Loan | I13: =IF(F12<G12,IF(AND(F12>0,F12<I8),1,""),"") -> 
B14: Specify Lender: | D14: FALSE | H14: =IFERROR(IF(D14=FALSE,PMT(E14/12,G14*12,-C14,0)*12,0)," ") -> 
I15: =IF(F14<G14,IF(AND(F14>0,F14<I8),1,""),"") -> 
B16: Specify Lender: | D16: FALSE | H16: =IFERROR(IF(D16=FALSE,PMT(E16/12,G16*12,-C16,0)*12,0)," ") -> 
I17: =IF(F16<G16,IF(AND(F16>0,F16<I8),1,""),"") -> 
B18: Specify Lender: | D18: FALSE | H18: =IFERROR(IF(D18=FALSE,PMT(E18/12,G18*12,-C18,0)*12,0)," ") -> 
I19: =IF(F18<G18,IF(AND(F18>0,F18<I8),1,""),"") -> 
B20: Specify Lender: | D20: FALSE | H20: =IFERROR(IF(D20=FALSE,PMT(E20/12,G20*12,-C20,0)*12,0)," ") -> 
I21: =IF(F20<G20,IF(AND(F20>0,F20<I8),1,""),"") -> 
B22: Reserve Funds Used for Rehab | C22: 0 | D22: ="Estimated pricing on sale of Federal Tax Credits: "&G22 -> Estimated pricing on sale of Federal Tax Credits: 0.85 | G22: 0.85
B23: Excess Reserve Funds Used for Seller Equity | C23: 0
B24: Equity: Federal 9% LIHTC | C24: 2746672 | H24: =SUM(H10:H23) -> 34165.00616 | I24: =SUM(I10:I21) -> 0
B25: Equity: Federal 4% LIHTC
B26: Equity: Historic Tax Credits
B27: Equity: State Tax Credits | C27: 1136127 | E27: Project Reserve for Replacement Account
B28: Deferred Developer Fees | C28: 11739 | E28: Existing Reserve Balance (GeneralInfo) | H28: =GeneralInfo!D22 -> 30000
B29: Owner Investment | E29: RD Required Balance (GeneralInfo) | H29: =GeneralInfo!D23 -> 29999
B30: Other Specify: | E30: Initial Up Front Reserve Deposit (IDRR) | H30: =C99 -> 230000
E31: Reserve Funds Used for Rehab | H31: =C22 -> 0
B32: Other Specify: | E32: Excess Reserve Funds Used for Seller Equity | H32: =C23 -> 0
E33: Estimated Balance at Transfer | H33: =H28+H30-H31-H32 -> 260000
B34: Total Sources: | C34: =SUM(C6:C33) -> 5619447 | E34: =IF(AND(H32>1,H28-H29>=H32),"Excess Reserve to Seller From Ahead Status",IF(H32=0,"","Excess Reserve to Seller Exceeds Allowed Amt")) -> 
B37: Funding Sources | D37: =C34 -> 5619447
B39: Development Cost and Acquisition | D39: =C109 -> 5619447
D41: =IF(D37=D39,"Sources & Uses in Balance", "Sources & Uses Do Not Balance") -> Sources & Uses in Balance
D42: =D39-D37 -> 0
B47: Development Cost and Acquisition
B49: Development Cost Element | D49: Total | E49: Comment
B50: Hard Costs
B51: 1. On site improvements | D51: =C51 -> 0
B52: 2. Rehabilitation | C52: 1737280 | D52: =C52 -> 1737280
B53: 3. Accessory Buildings | C53: 146000 | D53: =C53 -> 146000
B54: SUBTOTAL (items 1 to 3) | C54: =SUM(C51:C53) -> 1883280 | D54: =C54 -> 1883280
B55: Contractor Fees
B56: 4. General Requirements | C56: 112996 | D56: =C56 -> 112996
B57: 5. General Overhead | C57: 37665 | D57: =C57 -> 37665
B58: 6. Other Fees Paid by Contractor | D58: =C58 -> 0
B59: 7. Builders Profit | C59: 112296 | D59: =C59 -> 112296
B60: SUBTOTAL (items 4 to 7) | C60: =SUM(C56:C59) -> 262957 | D60: =C60 -> 262957
B61: Architect /Engineer / Survey
B62: 8. Architectural Fees | C62: 64800 | D62: =C62 -> 64800
B63: 9. Survey and Engineering | C63: 25000 | D63: =C63 -> 25000
B64: 10. Other | D64: =C64 -> 0
B65: SUBTOTAL (items 8 to 10) | C65: =SUM(C62:C64) -> 89800 | D65: =C65 -> 89800
B66: Financing & Interim Cost
B67: 11. Interest - Construction | C67: 98300 | D67: =C67 -> 98300
B68: 12. Loan Origination / Commit Fees | C68: 27303 | D68: 27303
B69: 13. Other Fees (comment) | C69: 93667 | D69: 93667
B70: 14. Other Fees (comment) | D70: 0
B71: 15. Other Fees (comment) | D71: 0
B72: SUBTOTAL (items 11 to 15) | C72: =SUM(C67:C71) -> 219270 | D72: 219270
B73: Soft Cost & Other Expenses
B74: 16. Legal Counsel - Real Estate (Closing Docs and Title Work) | C74: 89998 | D74: =C74 -> 89998
B75: 17. Title Insur & Recording Fees | D75: =C75 -> 0
B76: 18. Appraisals | C76: 10000 | D76: 10000
B77: 19. Market Study | C77: 7500 | D77: 7500
B78: 20. Environmental Reports and Testing | C78: 18000 | D78: 18000
B79: 21. Other (comment) | C79: 5000 | D79: 5000 | E79: C N A / PNA
B80: 22. Other (comment) | D80: 0
B81: 23. Other (comment) | D81: 0
B82: 24. Other (comment | D82: 0
B83: 25. Other (comment) | D83: 0
B84: SUBTOTAL (items 16 to 25) | C84: =SUM(C74:C83) -> 130498 | D84: =C84 -> 130498
B85: TOTAL ELIGIBLE COST (RD 515 & 538 Program) Items 1 to 25 | C85: =SUM(C54,C60,C65,C72,C84) -> 2585805 | D85: =C85 -> 2585805
B86: Entity and Syndication | D86: Total | E86: Comment
B87: 26. Developer Fee | C87: 667754 | D87: =C87 -> 667754 | E87: (Eligible for RD 538 Program)
B88: 27. Entity Organization & Legal | C88: 55367 | D88: =C88 -> 55367
B89: 28. External Legal Counsel | C89: 50000 | D89: =C89 -> 50000
B90: 29. Syndication Fees / Commissions | D90: 0
B91: 30. Tax Opinion & Entity Accounting | C91: 250000 | D91: 250000 | E91: Addedd to balance
B92: 31. Tax Credit Application Fees | C92: 49712 | D92: 49712
B93: 32. Bond Cost of Issuance | D93: =C93 -> 0
B94: 33. Construction Monitoring Fees | C94: 40500 | D94: =C94 -> 40500
B95: 34. Operating Reserves, 2% Operating | C95: 88800 | D95: 88800 | E95: (Eligible for RD 538 Program)
B96: 35. Hard Cost Contingency | C96: 150286 | D96: =C96 -> 150286 | E96: (Eligible for RD 538 Program)
B97: 36. Tenant Rent Increase Protection | D97: 0 | E97: Required must cover 2 years of increase for affected tenants
B98: 37. Relocation, Lease Up, Marketing | C98: 164314 | D98: 164314
B99: 38. Initial Up Front Reserve Deposit (IDRR) | C99: 230000 | D99: 230000
B100: 39. Other Fees (comment) | D100: 0
B101: 40. Other Fees (comment) | C101: 18000 | D101: 18000 | E101: Furniture
B102: SUBTOTAL (items 26 to 40) | C102: =SUM(C87:C101) -> 1764733 | D102: =C102 -> 1764733
B103: Acquistion of Building & Land | D103: Total | E103: Comment
B104: Not to Exceed Appraised "As Is" Market Value plus Project Reserve Account
B105: 41. Assumption of RD Loan | C105: =C6+C7 -> 1124909 | D105: =C105 -> 1124909 | E105: (equals source "Assume Existing RD Loan")
B106: 42. Seller's Equity | C106: 144000 | D106: =C106 -> 144000 | E106: (Eligible for RD 538 Program)
B107: SUBTOTAL (items 41 to 42) | C107: =SUM(C105:C106) -> 1268909 | D107: =C107 -> 1268909
B108: TOTAL USES | E108: Comment
B109: Total All Uses Above | C109: =SUM(C107,C102,C85) -> 5619447 | D109: =C109 -> 5619447

Sheet Reserve Sizing
A2: Project Information
A3: Project Name | B3: =GeneralInfo!C6 -> Forest View Apartments | J3: =IF(B4<>C4,"Warning CNA Revenue Units Do Not Match Revenue Units in this Template, Validate and Correct in Cell B4 to avoid Flag on Dashboard", "") -> 
A4: # Revenue Units Per CNA | B4: 35 | C4: ='Rents & Operations'!E18 -> 35 | D4: # Revenue Units Per General Information
A5: See Instruction page to upload your CNA's Executive Summary
A6: CNA Raw Data as Uploaded from CNA(s) Executive Summary Pages
C7: 1 | D7: =C7+1 -> 2 | E7: 3 | F7: 4 | G7: 5 | H7: 6 | I7: 7 | J7: 8 | K7: 9 | L7: 10 | M7: 11 | N7: 12 | O7: 13 | P7: 14 | Q7: 15 | R7: 16 | S7: 17 | T7: 18 | U7: 19 | V7: 20
A8: Item | B8: H & S | C8: =CNAExeSum!C8 -> 2015 | D8: =CNAExeSum!D8 -> 2016 | E8: =CNAExeSum!E8 -> 2017 | F8: =CNAExeSum!F8 -> 2018 | G8: =CNAExeSum!G8 -> 2019 | H8: =CNAExeSum!H8 -> 2020 | I8: =CNAExeSum!I8 -> 2021 | J8: =CNAExeSum!J8 -> 2022 | K8: =CNAExeSum!K8 -> 2023 | L8: =CNAExeSum!L8 -> 2024 | M8: =CNAExeSum!M8 -> 2025 | N8: =CNAExeSum!N8 -> 2026 | O8: =CNAExeSum!O8 -> 2027 | P8: =CNAExeSum!P8 -> 2028 | Q8: =CNAExeSum!Q8 -> 2029 | R8: =CNAExeSum!R8 -> 2030 | S8: =CNAExeSum!S8 -> 2031 | T8: =CNAExeSum!T8 -> 2032 | U8: =CNAExeSum!U8 -> 2033 | V8: =CNAExeSum!V8 -> 2034 | W8: Total | X8: 0
A9: Site | B9: =CNAExeSum!B9+CNAExeSum!B19+CNAExeSum!B29+CNAExeSum!B39+CNAExeSum!B49 -> 0 | C9: =CNAExeSum!C9+CNAExeSum!C19+CNAExeSum!C29+CNAExeSum!C39+CNAExeSum!C49 -> 0 | D9: =CNAExeSum!D9+CNAExeSum!D19+CNAExeSum!D29+CNAExeSum!D39+CNAExeSum!D49 -> 0 | E9: =CNAExeSum!E9+CNAExeSum!E19+CNAExeSum!E29+CNAExeSum!E39+CNAExeSum!E49 -> 0 | F9: =CNAExeSum!F9+CNAExeSum!F19+CNAExeSum!F29+CNAExeSum!F39+CNAExeSum!F49 -> 0 | G9: =CNAExeSum!G9+CNAExeSum!G19+CNAExeSum!G29+CNAExeSum!G39+CNAExeSum!G49 -> 0 | H9: =CNAExeSum!H9+CNAExeSum!H19+CNAExeSum!H29+CNAExeSum!H39+CNAExeSum!H49 -> 0 | I9: =CNAExeSum!I9+CNAExeSum!I19+CNAExeSum!I29+CNAExeSum!I39+CNAExeSum!I49 -> 3750 | J9: =CNAExeSum!J9+CNAExeSum!J19+CNAExeSum!J29+CNAExeSum!J39+CNAExeSum!J49 -> 0 | K9: =CNAExeSum!K9+CNAExeSum!K19+CNAExeSum!K29+CNAExeSum!K39+CNAExeSum!K49 -> 0 | L9: =CNAExeSum!L9+CNAExeSum!L19+CNAExeSum!L29+CNAExeSum!L39+CNAExeSum!L49 -> 0 | M9: =CNAExeSum!M9+CNAExeSum!M19+CNAExeSum!M29+CNAExeSum!M39+CNAExeSum!M49 -> 6000 | N9: =CNAExeSum!N9+CNAExeSum!N19+CNAExeSum!N29+CNAExeSum!N39+CNAExeSum!N49 -> 2000 | O9: =CNAExeSum!O9+CNAExeSum!O19+CNAExeSum!O29+CNAExeSum!O39+CNAExeSum!O49 -> 0 | P9: =CNAExeSum!P9+CNAExeSum!P19+CNAExeSum!P29+CNAExeSum!P39+CNAExeSum!P49 -> 3750 | Q9: =CNAExeSum!Q9+CNAExeSum!Q19+CNAExeSum!Q29+CNAExeSum!Q39+CNAExeSum!Q49 -> 0 | R9: =CNAExeSum!R9+CNAExeSum!R19+CNAExeSum!R29+CNAExeSum!R39+CNAExeSum!R49 -> 0 | S9: =CNAExeSum!S9+CNAExeSum!S19+CNAExeSum!S29+CNAExeSum!S39+CNAExeSum!S49 -> 0 | T9: =CNAExeSum!T9+CNAExeSum!T19+CNAExeSum!T29+CNAExeSum!T39+CNAExeSum!T49 -> 0 | U9: =CNAExeSum!U9+CNAExeSum!U19+CNAExeSum!U29+CNAExeSum!U39+CNAExeSum!U49 -> 0 | V9: =CNAExeSum!V9+CNAExeSum!V19+CNAExeSum!V29+CNAExeSum!V39+CNAExeSum!V49 -> 5000 | W9: =SUM(B9:V9) -> 20500
A10: Architecture | B10: =CNAExeSum!B10+CNAExeSum!B20+CNAExeSum!B30+CNAExeSum!B40+CNAExeSum!B50 -> 0 | C10: =CNAExeSum!C10+CNAExeSum!C20+CNAExeSum!C30+CNAExeSum!C40+CNAExeSum!C50 -> 0 | D10: =CNAExeSum!D10+CNAExeSum!D20+CNAExeSum!D30+CNAExeSum!D40+CNAExeSum!D50 -> 0 | E10: =CNAExeSum!E10+CNAExeSum!E20+CNAExeSum!E30+CNAExeSum!E40+CNAExeSum!E50 -> 0 | F10: =CNAExeSum!F10+CNAExeSum!F20+CNAExeSum!F30+CNAExeSum!F40+CNAExeSum!F50 -> 0 | G10: =CNAExeSum!G10+CNAExeSum!G20+CNAExeSum!G30+CNAExeSum!G40+CNAExeSum!G50 -> 0 | H10: =CNAExeSum!H10+CNAExeSum!H20+CNAExeSum!H30+CNAExeSum!H40+CNAExeSum!H50 -> 0 | I10: =CNAExeSum!I10+CNAExeSum!I20+CNAExeSum!I30+CNAExeSum!I40+CNAExeSum!I50 -> 0 | J10: =CNAExeSum!J10+CNAExeSum!J20+CNAExeSum!J30+CNAExeSum!J40+CNAExeSum!J50 -> 0 | K10: =CNAExeSum!K10+CNAExeSum!K20+CNAExeSum!K30+CNAExeSum!K40+CNAExeSum!K50 -> 0 | L10: =CNAExeSum!L10+CNAExeSum!L20+CNAExeSum!L30+CNAExeSum!L40+CNAExeSum!L50 -> 0 | M10: =CNAExeSum!M10+CNAExeSum!M20+CNAExeSum!M30+CNAExeSum!M40+CNAExeSum!M50 -> 0 | N10: =CNAExeSum!N10+CNAExeSum!N20+CNAExeSum!N30+CNAExeSum!N40+CNAExeSum!N50 -> 0 | O10: =CNAExeSum!O10+CNAExeSum!O20+CNAExeSum!O30+CNAExeSum!O40+CNAExeSum!O50 -> 0 | P10: =CNAExeSum!P10+CNAExeSum!P20+CNAExeSum!P30+CNAExeSum!P40+CNAExeSum!P50 -> 0 | Q10: =CNAExeSum!Q10+CNAExeSum!Q20+CNAExeSum!Q30+CNAExeSum!Q40+CNAExeSum!Q50 -> 16000 | R10: =CNAExeSum!R10+CNAExeSum!R20+CNAExeSum!R30+CNAExeSum!R40+CNAExeSum!R50 -> 0 | S10: =CNAExeSum!S10+CNAExeSum!S20+CNAExeSum!S30+CNAExeSum!S40+CNAExeSum!S50 -> 0 | T10: =CNAExeSum!T10+CNAExeSum!T20+CNAExeSum!T30+CNAExeSum!T40+CNAExeSum!T50 -> 0 | U10: =CNAExeSum!U10+CNAExeSum!U20+CNAExeSum!U30+CNAExeSum!U40+CNAExeSum!U50 -> 0 | V10: =CNAExeSum!V10+CNAExeSum!V20+CNAExeSum!V30+CNAExeSum!V40+CNAExeSum!V50 -> 0 | W10: =SUM(B10:V10) -> 16000
A11: Mech & Electric | B11: =CNAExeSum!B11+CNAExeSum!B21+CNAExeSum!B31+CNAExeSum!B41+CNAExeSum!B51 -> 0 | C11: =CNAExeSum!C11+CNAExeSum!C21+CNAExeSum!C31+CNAExeSum!C41+CNAExeSum!C51 -> 0 | D11: =CNAExeSum!D11+CNAExeSum!D21+CNAExeSum!D31+CNAExeSum!D41+CNAExeSum!D51 -> 0 | E11: =CNAExeSum!E11+CNAExeSum!E21+CNAExeSum!E31+CNAExeSum!E41+CNAExeSum!E51 -> 0 | F11: =CNAExeSum!F11+CNAExeSum!F21+CNAExeSum!F31+CNAExeSum!F41+CNAExeSum!F51 -> 0 | G11: =CNAExeSum!G11+CNAExeSum!G21+CNAExeSum!G31+CNAExeSum!G41+CNAExeSum!G51 -> 0 | H11: =CNAExeSum!H11+CNAExeSum!H21+CNAExeSum!H31+CNAExeSum!H41+CNAExeSum!H51 -> 0 | I11: =CNAExeSum!I11+CNAExeSum!I21+CNAExeSum!I31+CNAExeSum!I41+CNAExeSum!I51 -> 0 | J11: =CNAExeSum!J11+CNAExeSum!J21+CNAExeSum!J31+CNAExeSum!J41+CNAExeSum!J51 -> 0 | K11: =CNAExeSum!K11+CNAExeSum!K21+CNAExeSum!K31+CNAExeSum!K41+CNAExeSum!K51 -> 0 | L11: =CNAExeSum!L11+CNAExeSum!L21+CNAExeSum!L31+CNAExeSum!L41+CNAExeSum!L51 -> 0 | M11: =CNAExeSum!M11+CNAExeSum!M21+CNAExeSum!M31+CNAExeSum!M41+CNAExeSum!M51 -> 0 | N11: =CNAExeSum!N11+CNAExeSum!N21+CNAExeSum!N31+CNAExeSum!N41+CNAExeSum!N51 -> 0 | O11: =CNAExeSum!O11+CNAExeSum!O21+CNAExeSum!O31+CNAExeSum!O41+CNAExeSum!O51 -> 0 | P11: =CNAExeSum!P11+CNAExeSum!P21+CNAExeSum!P31+CNAExeSum!P41+CNAExeSum!P51 -> 0 | Q11: =CNAExeSum!Q11+CNAExeSum!Q21+CNAExeSum!Q31+CNAExeSum!Q41+CNAExeSum!Q51 -> 0 | R11: =CNAExeSum!R11+CNAExeSum!R21+CNAExeSum!R31+CNAExeSum!R41+CNAExeSum!R51 -> 0 | S11: =CNAExeSum!S11+CNAExeSum!S21+CNAExeSum!S31+CNAExeSum!S41+CNAExeSum!S51 -> 0 | T11: =CNAExeSum!T11+CNAExeSum!T21+CNAExeSum!T31+CNAExeSum!T41+CNAExeSum!T51 -> 0 | U11: =CNAExeSum!U11+CNAExeSum!U21+CNAExeSum!U31+CNAExeSum!U41+CNAExeSum!U51 -> 0 | V11: =CNAExeSum!V11+CNAExeSum!V21+CNAExeSum!V31+CNAExeSum!V41+CNAExeSum!V51 -> 0 | W11: 0
A12: Dwelling Units | B12: =CNAExeSum!B12+CNAExeSum!B22+CNAExeSum!B32+CNAExeSum!B42+CNAExeSum!B52 -> 0 | C12: =CNAExeSum!C12+CNAExeSum!C22+CNAExeSum!C32+CNAExeSum!C42+CNAExeSum!C52 -> 0 | D12: =CNAExeSum!D12+CNAExeSum!D22+CNAExeSum!D32+CNAExeSum!D42+CNAExeSum!D52 -> 0 | E12: =CNAExeSum!E12+CNAExeSum!E22+CNAExeSum!E32+CNAExeSum!E42+CNAExeSum!E52 -> 0 | F12: =CNAExeSum!F12+CNAExeSum!F22+CNAExeSum!F32+CNAExeSum!F42+CNAExeSum!F52 -> 0 | G12: =CNAExeSum!G12+CNAExeSum!G22+CNAExeSum!G32+CNAExeSum!G42+CNAExeSum!G52 -> 0 | H12: =CNAExeSum!H12+CNAExeSum!H22+CNAExeSum!H32+CNAExeSum!H42+CNAExeSum!H52 -> 0 | I12: =CNAExeSum!I12+CNAExeSum!I22+CNAExeSum!I32+CNAExeSum!I42+CNAExeSum!I52 -> 11400 | J12: =CNAExeSum!J12+CNAExeSum!J22+CNAExeSum!J32+CNAExeSum!J42+CNAExeSum!J52 -> 11400 | K12: =CNAExeSum!K12+CNAExeSum!K22+CNAExeSum!K32+CNAExeSum!K42+CNAExeSum!K52 -> 11400 | L12: =CNAExeSum!L12+CNAExeSum!L22+CNAExeSum!L32+CNAExeSum!L42+CNAExeSum!L52 -> 9000 | M12: =CNAExeSum!M12+CNAExeSum!M22+CNAExeSum!M32+CNAExeSum!M42+CNAExeSum!M52 -> 13800 | N12: =CNAExeSum!N12+CNAExeSum!N22+CNAExeSum!N32+CNAExeSum!N42+CNAExeSum!N52 -> 13800 | O12: =CNAExeSum!O12+CNAExeSum!O22+CNAExeSum!O32+CNAExeSum!O42+CNAExeSum!O52 -> 10200 | P12: =CNAExeSum!P12+CNAExeSum!P22+CNAExeSum!P32+CNAExeSum!P42+CNAExeSum!P52 -> 11400 | Q12: =CNAExeSum!Q12+CNAExeSum!Q22+CNAExeSum!Q32+CNAExeSum!Q42+CNAExeSum!Q52 -> 55873 | R12: =CNAExeSum!R12+CNAExeSum!R22+CNAExeSum!R32+CNAExeSum!R42+CNAExeSum!R52 -> 55873 | S12: =CNAExeSum!S12+CNAExeSum!S22+CNAExeSum!S32+CNAExeSum!S42+CNAExeSum!S52 -> 44473 | T12: =CNAExeSum!T12+CNAExeSum!T22+CNAExeSum!T32+CNAExeSum!T42+CNAExeSum!T52 -> 25200 | U12: =CNAExeSum!U12+CNAExeSum!U22+CNAExeSum!U32+CNAExeSum!U42+CNAExeSum!U52 -> 25200 | V12: =CNAExeSum!V12+CNAExeSum!V22+CNAExeSum!V32+CNAExeSum!V42+CNAExeSum!V52 -> 5400 | W12: 304419 | X12: =CNAExeSum!X12+CNAExeSum!X22+CNAExeSum!X32+CNAExeSum!X42+CNAExeSum!X52 -> 0
A13: Uninflated Totals | B13: =CNAExeSum!B13+CNAExeSum!B23+CNAExeSum!B33+CNAExeSum!B43+CNAExeSum!B53 -> 0 | C13: =CNAExeSum!C13+CNAExeSum!C23+CNAExeSum!C33+CNAExeSum!C43+CNAExeSum!C53 -> 0 | D13: =CNAExeSum!D13+CNAExeSum!D23+CNAExeSum!D33+CNAExeSum!D43+CNAExeSum!D53 -> 0 | E13: =CNAExeSum!E13+CNAExeSum!E23+CNAExeSum!E33+CNAExeSum!E43+CNAExeSum!E53 -> 0 | F13: =CNAExeSum!F13+CNAExeSum!F23+CNAExeSum!F33+CNAExeSum!F43+CNAExeSum!F53 -> 0 | G13: =CNAExeSum!G13+CNAExeSum!G23+CNAExeSum!G33+CNAExeSum!G43+CNAExeSum!G53 -> 0 | H13: =CNAExeSum!H13+CNAExeSum!H23+CNAExeSum!H33+CNAExeSum!H43+CNAExeSum!H53 -> 0 | I13: =CNAExeSum!I13+CNAExeSum!I23+CNAExeSum!I33+CNAExeSum!I43+CNAExeSum!I53 -> 15150 | J13: =CNAExeSum!J13+CNAExeSum!J23+CNAExeSum!J33+CNAExeSum!J43+CNAExeSum!J53 -> 11400 | K13: =CNAExeSum!K13+CNAExeSum!K23+CNAExeSum!K33+CNAExeSum!K43+CNAExeSum!K53 -> 11400 | L13: =CNAExeSum!L13+CNAExeSum!L23+CNAExeSum!L33+CNAExeSum!L43+CNAExeSum!L53 -> 9000 | M13: =CNAExeSum!M13+CNAExeSum!M23+CNAExeSum!M33+CNAExeSum!M43+CNAExeSum!M53 -> 19800 | N13: =CNAExeSum!N13+CNAExeSum!N23+CNAExeSum!N33+CNAExeSum!N43+CNAExeSum!N53 -> 15800 | O13: =CNAExeSum!O13+CNAExeSum!O23+CNAExeSum!O33+CNAExeSum!O43+CNAExeSum!O53 -> 10200 | P13: =CNAExeSum!P13+CNAExeSum!P23+CNAExeSum!P33+CNAExeSum!P43+CNAExeSum!P53 -> 15150 | Q13: =CNAExeSum!Q13+CNAExeSum!Q23+CNAExeSum!Q33+CNAExeSum!Q43+CNAExeSum!Q53 -> 71873 | R13: =CNAExeSum!R13+CNAExeSum!R23+CNAExeSum!R33+CNAExeSum!R43+CNAExeSum!R53 -> 55873 | S13: =CNAExeSum!S13+CNAExeSum!S23+CNAExeSum!S33+CNAExeSum!S43+CNAExeSum!S53 -> 44473 | T13: =CNAExeSum!T13+CNAExeSum!T23+CNAExeSum!T33+CNAExeSum!T43+CNAExeSum!T53 -> 25200 | U13: =CNAExeSum!U13+CNAExeSum!U23+CNAExeSum!U33+CNAExeSum!U43+CNAExeSum!U53 -> 25200 | V13: =CNAExeSum!V13+CNAExeSum!V23+CNAExeSum!V33+CNAExeSum!V43+CNAExeSum!V53 -> 10400 | W13: 340919
A14: Inflation Factor (3%) | B14: =1 -> 1 | C14: =1 -> 1 | D14: =1+3% -> 1.03 | E14: =D14*$D$14 -> 1.0609 | F14: =E14*$D$14 -> 1.092727 | G14: 1.12550881 | H14: 1.159274074 | I14: 1.194052297 | J14: 1.229873865 | K14: 1.266770081 | L14: 1.304773184 | M14: 1.343916379 | N14: 1.384233871 | O14: 1.425760887 | P14: 1.468533713 | Q14: 1.512589725 | R14: 1.557967417 | S14: 1.604706439 | T14: 1.652847632 | U14: 1.702433061 | V14: 1.753506053
A15: Inflated Totals | B15: =B13*B14 -> 0 | C15: =C13*C14 -> 0 | D15: 0 | E15: 0 | F15: 0 | G15: 0 | H15: 0 | I15: 18089.89229 | J15: 14020.56207 | K15: 14441.17893 | L15: 11742.95865 | M15: 26609.54431 | N15: 21870.89516 | O15: 14542.76105 | P15: 22248.28576 | Q15: 108714.3613 | R15: 87048.31347 | S15: 71366.10947 | T15: 41651.76033 | U15: 42901.31314 | V15: 18236.46295 | W15: =SUM(B15:V15) -> 513484.3989
A18: Underwritten Schedule - Changes Made by Underwriter on Individual CNA Pages Are Highlighted Red
C19: =C7 -> 1 | D19: 2 | E19: 3 | F19: 4 | G19: 5 | H19: 6 | I19: 7 | J19: 8 | K19: 9 | L19: 10 | M19: 11 | N19: 12 | O19: 13 | P19: 14 | Q19: 15 | R19: 16 | S19: 17 | T19: 18 | U19: 19 | V19: 20
A20: =A8 -> Item | B20: =B8 -> H & S | C20: 2015 | D20: 2016 | E20: 2017 | F20: 2018 | G20: 2019 | H20: 2020 | I20: 2021 | J20: 2022 | K20: 2023 | L20: 2024 | M20: 2025 | N20: 2026 | O20: 2027 | P20: 2028 | Q20: 2029 | R20: 2030 | S20: 2031 | T20: 2032 | U20: 2033 | V20: 2034 | W20: Total
A21: Site | B21: =IF(CNASite!N8>6,CNASite!N8,0) -> 0 | C21: =IF(CNASite!O8>6,CNASite!O8,0) -> 0 | D21: =IF(CNASite!P8>6,CNASite!P8,0) -> 0 | E21: =IF(CNASite!Q8>6,CNASite!Q8,0) -> 0 | F21: =IF(CNASite!R8>6,CNASite!R8,0) -> 0 | G21: =IF(CNASite!S8>6,CNASite!S8,0) -> 0 | H21: =IF(CNASite!T8>6,CNASite!T8,0) -> 0 | I21: =IF(CNASite!U8>6,CNASite!U8,0) -> 3750 | J21: =IF(CNASite!V8>6,CNASite!V8,0) -> 0 | K21: =IF(CNASite!W8>6,CNASite!W8,0) -> 0 | L21: =IF(CNASite!X8>6,CNASite!X8,0) -> 0 | M21: =IF(CNASite!Y8>6,CNASite!Y8,0) -> 6000 | N21: =IF(CNASite!Z8>6,CNASite!Z8,0) -> 2000 | O21: =IF(CNASite!AA8>6,CNASite!AA8,0) -> 0 | P21: =IF(CNASite!AB8>6,CNASite!AB8,0) -> 3750 | Q21: =IF(CNASite!AC8>6,CNASite!AC8,0) -> 0 | R21: =IF(CNASite!AD8>6,CNASite!AD8,0) -> 0 | S21: =IF(CNASite!AE8>6,CNASite!AE8,0) -> 0 | T21: =IF(CNASite!AF8>6,CNASite!AF8,0) -> 0 | U21: =IF(CNASite!AG8>6,CNASite!AG8,0) -> 0 | V21: =IF(CNASite!AH8>6,CNASite!AH8,0) -> 5000 | W21: =SUM(B21:V21) -> 20500
A22: Architecture | B22: =IF(CNAArchitectural!N8>6,CNAArchitectural!N8,0) -> 0 | C22: =IF(CNAArchitectural!O8>6,CNAArchitectural!O8,0) -> 10000 | D22: =IF(CNAArchitectural!P8>6,CNAArchitectural!P8,0) -> 0 | E22: =IF(CNAArchitectural!Q8>6,CNAArchitectural!Q8,0) -> 0 | F22: =IF(CNAArchitectural!R8>6,CNAArchitectural!R8,0) -> 0 | G22: =IF(CNAArchitectural!S8>6,CNAArchitectural!S8,0) -> 0 | H22: =IF(CNAArchitectural!T8>6,CNAArchitectural!T8,0) -> 0 | I22: =IF(CNAArchitectural!U8>6,CNAArchitectural!U8,0) -> 0 | J22: =IF(CNAArchitectural!V8>6,CNAArchitectural!V8,0) -> 0 | K22: =IF(CNAArchitectural!W8>6,CNAArchitectural!W8,0) -> 0 | L22: =IF(CNAArchitectural!X8>6,CNAArchitectural!X8,0) -> 0 | M22: =IF(CNAArchitectural!Y8>6,CNAArchitectural!Y8,0) -> 0 | N22: =IF(CNAArchitectural!Z8>6,CNAArchitectural!Z8,0) -> 0 | O22: =IF(CNAArchitectural!AA8>6,CNAArchitectural!AA8,0) -> 0 | P22: =IF(CNAArchitectural!AB8>6,CNAArchitectural!AB8,0) -> 0 | Q22: =IF(CNAArchitectural!AC8>6,CNAArchitectural!AC8,0) -> 16000 | R22: =IF(CNAArchitectural!AD8>6,CNAArchitectural!AD8,0) -> 0 | S22: =IF(CNAArchitectural!AE8>6,CNAArchitectural!AE8,0) -> 0 | T22: =IF(CNAArchitectural!AF8>6,CNAArchitectural!AF8,0) -> 0 | U22: =IF(CNAArchitectural!AG8>6,CNAArchitectural!AG8,0) -> 0 | V22: =IF(CNAArchitectural!AH8>6,CNAArchitectural!AH8,0) -> 0 | W22: =SUM(B22:V22) -> 26000
A23: Mech & Electric | B23: =IF('CNAMech & Electric'!N8>6,'CNAMech & Electric'!N8,0) -> 0 | C23: =IF('CNAMech & Electric'!O8>6,'CNAMech & Electric'!O8,0) -> 0 | D23: =IF('CNAMech & Electric'!P8>6,'CNAMech & Electric'!P8,0) -> 0 | E23: =IF('CNAMech & Electric'!Q8>6,'CNAMech & Electric'!Q8,0) -> 0 | F23: =IF('CNAMech & Electric'!R8>6,'CNAMech & Electric'!R8,0) -> 0 | G23: =IF('CNAMech & Electric'!S8>6,'CNAMech & Electric'!S8,0) -> 0 | H23: =IF('CNAMech & Electric'!T8>6,'CNAMech & Electric'!T8,0) -> 0 | I23: =IF('CNAMech & Electric'!U8>6,'CNAMech & Electric'!U8,0) -> 0 | J23: =IF('CNAMech & Electric'!V8>6,'CNAMech & Electric'!V8,0) -> 0 | K23: =IF('CNAMech & Electric'!W8>6,'CNAMech & Electric'!W8,0) -> 0 | L23: =IF('CNAMech & Electric'!X8>6,'CNAMech & Electric'!X8,0) -> 0 | M23: =IF('CNAMech & Electric'!Y8>6,'CNAMech & Electric'!Y8,0) -> 0 | N23: =IF('CNAMech & Electric'!Z8>6,'CNAMech & Electric'!Z8,0) -> 0 | O23: =IF('CNAMech & Electric'!AA8>6,'CNAMech & Electric'!AA8,0) -> 0 | P23: =IF('CNAMech & Electric'!AB8>6,'CNAMech & Electric'!AB8,0) -> 0 | Q23: =IF('CNAMech & Electric'!AC8>6,'CNAMech & Electric'!AC8,0) -> 0 | R23: =IF('CNAMech & Electric'!AD8>6,'CNAMech & Electric'!AD8,0) -> 0 | S23: =IF('CNAMech & Electric'!AE8>6,'CNAMech & Electric'!AE8,0) -> 0 | T23: =IF('CNAMech & Electric'!AF8>6,'CNAMech & Electric'!AF8,0) -> 0 | U23: =IF('CNAMech & Electric'!AG8>6,'CNAMech & Electric'!AG8,0) -> 0 | V23: =IF('CNAMech & Electric'!AH8>6,'CNAMech & Electric'!AH8,0) -> 0 | W23: 0
A24: Dwelling Units | B24: =IF('CNADwelling Units'!N8>6,'CNADwelling Units'!N8,0) -> 0 | C24: =IF('CNADwelling Units'!O8>6,'CNADwelling Units'!O8,0) -> 0 | D24: =IF('CNADwelling Units'!P8>6,'CNADwelling Units'!P8,0) -> 0 | E24: =IF('CNADwelling Units'!Q8>6,'CNADwelling Units'!Q8,0) -> 0 | F24: =IF('CNADwelling Units'!R8>6,'CNADwelling Units'!R8,0) -> 0 | G24: =IF('CNADwelling Units'!S8>6,'CNADwelling Units'!S8,0) -> 0 | H24: =IF('CNADwelling Units'!T8>6,'CNADwelling Units'!T8,0) -> 0 | I24: =IF('CNADwelling Units'!U8>6,'CNADwelling Units'!U8,0) -> 11400 | J24: =IF('CNADwelling Units'!V8>6,'CNADwelling Units'!V8,0) -> 11400 | K24: =IF('CNADwelling Units'!W8>6,'CNADwelling Units'!W8,0) -> 11400 | L24: =IF('CNADwelling Units'!X8>6,'CNADwelling Units'!X8,0) -> 9000 | M24: =IF('CNADwelling Units'!Y8>6,'CNADwelling Units'!Y8,0) -> 13800 | N24: =IF('CNADwelling Units'!Z8>6,'CNADwelling Units'!Z8,0) -> 13800 | O24: =IF('CNADwelling Units'!AA8>6,'CNADwelling Units'!AA8,0) -> 10200 | P24: =IF('CNADwelling Units'!AB8>6,'CNADwelling Units'!AB8,0) -> 11400 | Q24: =IF('CNADwelling Units'!AC8>6,'CNADwelling Units'!AC8,0) -> 55873 | R24: =IF('CNADwelling Units'!AD8>6,'CNADwelling Units'!AD8,0) -> 55873 | S24: =IF('CNADwelling Units'!AE8>6,'CNADwelling Units'!AE8,0) -> 44473 | T24: =IF('CNADwelling Units'!AF8>6,'CNADwelling Units'!AF8,0) -> 25200 | U24: =IF('CNADwelling Units'!AG8>6,'CNADwelling Units'!AG8,0) -> 25200 | V24: =IF('CNADwelling Units'!AH8>6,'CNADwelling Units'!AH8,0) -> 5400 | W24: 304419 | X24: ='CNADwelling Units'!AJ8 -> 0
A25: Uninflated Totals | B25: =SUM(B21:B24) -> 0 | C25: =SUM(C21:C24) -> 10000 | D25: 0 | E25: 0 | F25: 0 | G25: 0 | H25: 0 | I25: 15150 | J25: 11400 | K25: 11400 | L25: 9000 | M25: 19800 | N25: 15800 | O25: 10200 | P25: 15150 | Q25: 71873 | R25: 55873 | S25: 44473 | T25: 25200 | U25: 25200 | V25: 10400 | W25: 350919
A26: Inflation Factor (3%) | B26: =B14 -> 1 | C26: =C14 -> 1 | D26: 1.03 | E26: 1.0609 | F26: 1.092727 | G26: 1.12550881 | H26: 1.159274074 | I26: 1.194052297 | J26: 1.229873865 | K26: 1.266770081 | L26: 1.304773184 | M26: 1.343916379 | N26: 1.384233871 | O26: 1.425760887 | P26: 1.468533713 | Q26: 1.512589725 | R26: 1.557967417 | S26: 1.604706439 | T26: 1.652847632 | U26: 1.702433061 | V26: 1.753506053
A27: Inflated Totals | B27: =B25*B26 -> 0 | C27: =C25*C26 -> 10000 | D27: 0 | E27: 0 | F27: 0 | G27: 0 | H27: 0 | I27: 18089.89229 | J27: 14020.56207 | K27: 14441.17893 | L27: 11742.95865 | M27: 26609.54431 | N27: 21870.89516 | O27: 14542.76105 | P27: 22248.28576 | Q27: 108714.3613 | R27: 87048.31347 | S27: 71366.10947 | T27: 41651.76033 | U27: 42901.31314 | V27: 18236.46295 | W27: =SUM(B27:V27) -> 523484.3989
X29: PROBLEM: Minimum Balance Violation
X30: Balance is Adequate in All Years
A31: Conclusions Regarding Reserve Funding Levels | L31: Lenders Required Reserve Unit/Year | Q31: =GeneralInfo!D36 -> 350 | R31: / unit / year
A32: Estimated Beginning Reserve Balance | G32: ='Sources & Uses'!H33 -> 260000 | I32: =IF($C$4=0,0,G32/$C$4) -> 7428.571429 | J32: / unit / year | L32: HFA's Requried Reserve Unit/Year | Q32: =GeneralInfo!D37 -> 350 | R32: / unit / year
F33: Current Annual Deposit: | G33: ='Rents & Operations'!G54 -> 11970 | I33: =IF($C$4=0,0,G33/$C$4) -> 342 | J33: / unit / year | L33: Per Reserve Sizing Tool | Q33: =I34 -> 357.1428571 | R33: / unit / year
F34: New Annual R4R Deposit (ADRR) After CNA: | G34: 12500 | I34: =IF($C$4=0,0,G34/$C$4) -> 357.1428571 | J34: / unit / year | L34: Minimum Required Deposit : | Q34: =MAX(Q31,Q32) -> 350 | R34: /unit/ year
F35: Initial Upfront Deposit (IDRR) at Closing: | G35: ='Sources & Uses'!H30 -> 230000 | I35: =IF($C$4=0,0,G35/$C$4) -> 6571.428571 | J35: / unit | L35: Minimum Annual Deposit: | Q35: =Q34*C4 -> 12250
K36: =IF(Q35>G34,"Warning Minimum Requirement Not Met","Minimum Requirement Met") -> Minimum Requirement Met
A46: Year | B46: 0 | C46: 1 | D46: 2 | E46: 3 | F46: 4 | G46: 5 | H46: 6 | I46: 7 | J46: 8 | K46: 9 | L46: 10 | M46: 11 | N46: 12 | O46: 13 | P46: 14 | Q46: 15 | R46: 16 | S46: 17 | T46: 18 | U46: 19 | V46: 20 | W46: Average
A47: Reserve | B47: H&S | C47: =C8 -> 2015 | D47: =D8 -> 2016 | E47: 2017 | F47: 2018 | G47: 2019 | H47: 2020 | I47: 2021 | J47: 2022 | K47: 2023 | L47: 2024 | M47: 2025 | N47: 2026 | O47: 2027 | P47: 2028 | Q47: 2029 | R47: 2030 | S47: 2031 | T47: 2032 | U47: 2033 | V47: 2034 | W47: Yrs 1-20
A48: Beginning balance | B48: =G32 -> 260000 | C48: =+B53 -> 260000 | D48: =+C53 -> 265100 | E48: 280626 | F48: 296693 | G48: 313319 | H48: 330521 | I48: 348317 | J48: 348605.1077 | K48: 353444.5456 | L48: 358372.3667 | M48: 366523.4081 | N48: 360279.8637 | O48: 359268.9686 | P48: 366141.2075 | Q48: 365871.9218 | R48: 278826.5605 | S48: 213366.247 | T48: 163680.1376 | U48: 144116.3772 | V48: 123721.0641 | W48: =AVERAGE(C48:V48) -> 294839.6888
A50: Plus annual deposit | C50: =G34 -> 12500 | D50: =ROUND(C50*(1+$A$59),0) -> 12875 | E50: =ROUND(D50*(1+$A$59),0) -> 13261 | F50: 13659 | G50: 14069 | H50: 14491 | I50: 14926 | J50: 15374 | K50: 15835 | L50: 16310 | M50: 16799 | N50: 17303 | O50: 17822 | P50: 18357 | Q50: 18908 | R50: 19475 | S50: 20059 | T50: 20661 | U50: 21281 | V50: 21919 | W50: =AVERAGE(C50:V50) -> 16794.2
A51: Minus needs (inflated) | B51: =-B27 -> 0 | C51: =-C27 -> -10000 | D51: 0 | E51: 0 | F51: 0 | G51: 0 | H51: 0 | I51: -18089.89229 | J51: -14020.56207 | K51: -14441.17893 | L51: -11742.95865 | M51: -26609.54431 | N51: -21870.89516 | O51: -14542.76105 | P51: -22248.28576 | Q51: -108714.3613 | R51: -87048.31347 | S51: -71366.10947 | T51: -41651.76033 | U51: -42901.31314 | V51: -18236.46295 | W51: =AVERAGE(C51:V51) -> -26174.21994
A52: Plus interest | C52: =ROUND(MIN(C48,SUM(C48:C51))*$F$59,0) -> 2600 | D52: =ROUND(MIN(D48,SUM(D48:D51))*$F$59,0) -> 2651 | E52: 2806 | F52: 2967 | G52: 3133 | H52: 3305 | I52: 3452 | J52: 3486 | K52: 3534 | L52: 3584 | M52: 3567 | N52: 3557 | O52: 3593 | P52: 3622 | Q52: 2761 | R52: 2113 | S52: 1621 | T52: 1427 | U52: 1225 | V52: 1237 | W52: =AVERAGE(C52:V52) -> 2812.05
A53: Ending balance | B53: =SUM(B48:B52) -> 260000 | C53: =SUM(C48:C52) -> 265100 | D53: =SUM(D48:D52) -> 280626 | E53: 296693 | F53: 313319 | G53: 330521 | H53: 348317 | I53: 348605.1077 | J53: 353444.5456 | K53: 358372.3667 | L53: 366523.4081 | M53: 360279.8637 | N53: 359268.9686 | O53: 366141.2075 | P53: 365871.9218 | Q53: 278826.5605 | R53: 213366.247 | S53: 163680.1376 | T53: 144116.3772 | U53: 123721.0641 | V53: 128640.6011 | W53: =AVERAGE(C53:V53) -> 288271.7189
C54: =IF(C53<0,1,0) -> 0 | D54: =IF(D53<0,1,0) -> 0 | E54: 0 | F54: 0 | G54: 0 | H54: 0 | I54: 0 | J54: 0 | K54: 0 | L54: 0 | M54: 0 | N54: 0 | O54: 0 | P54: 0 | Q54: 0 | R54: 0 | S54: 0 | T54: 0 | U54: 0 | V54: 0 | W54: =IFERROR("Yr 20 Ending Balance is "&TEXT(V53/(W15/20),"0.0")&" years of AAIN","Upload CNA") -> Yr 20 Ending Balance is 5.0 years of AAIN
A55: Ending balance per unit | C55: =IF(W15>1,IF(MIN(C56:V56)<$M$59,$X$29,$X$30),"Edit Link to CNA for Results") -> Balance is Adequate in All Years | V55: AAIN = Average Annual Inflated Needs
A56: (in future dollars) | C56: =C53/$C$4 -> 7574.285714 | D56: 8017.885714 | E56: 8476.942857 | F56: 8951.971429 | G56: 9443.457143 | H56: 9951.914286 | I56: 9960.145935 | J56: 10098.41559 | K56: 10239.21048 | L56: 10472.09737 | M56: 10293.71039 | N56: 10264.82767 | O56: 10461.17736 | P56: 10453.48348 | Q56: 7966.473157 | R56: 6096.178486 | S56: 4676.575359 | T56: 4117.610778 | U56: 3534.887545 | V56: 3675.445747 | W56: =AVERAGE(C56:V56) -> 8236.334825
A57: Low Balance? | C57: =IF(C56<$M$59,"LOW","") ->  | D57: =IF(D56<$M$59,"LOW","") -> 
A59: 0.03 | B59: Trending for Reserve Deposits | F59: 0.01 | G59: interest earned on beginning balance | M59: 1 | N59: Must be Positive Ending Balance All Years

Sheet Rents & Operations
E2: Select The State and County / Town from List to Display LIHTC Limits
A3: 609 | E3: ="(Currently Displaying Calculations Based Upon "&LIHTC!C1&")" -> (Currently Displaying Calculations Based Upon 2014 HUD Data LIHTC) | J3: Utility Allowance | L3: 1 BR | M3: 2 BR | N3: 3 BR | O3: 4 BR
K4: Per Unit | L4: 128 | M4: 142 | N4: 153
O5: Enter AMI % for below if applicable | S5: Enter AMI % for below if applicable
E6: =INDEX(LIHTC,A3,1) -> GEORGIA | F6: =INDEX(LIHTC,$A$3,2) -> Fulton County | H6: =INDEX(LIHTC,$A$3,3) -> Fulton County | J6: (Validate All with Local HFA) | N6: (Enter values for Additional Target AMI Levels)
E7: HUD Median Income (AMI) | F7: 50% AMI 1BR | G7: 50% AMI 2BR | H7: 50% AMI 3BR | I7: 50% AMI 4BR | J7: 60% AMI 1BR | K7: 60% AMI 2BR | L7: 60% AMI 3BR | M7: 60% AMI 4BR | N7: =TEXT(N5,"0%")&" AMI 1BR" -> 0% AMI 1BR | O7: =TEXT(N5,"0%")&" AMI 2BR" -> 0% AMI 2BR | P7: =TEXT(N5,"0%")&" AMI 3BR" -> 0% AMI 3BR | Q7: =TEXT(N5,"0%")&" AMI 4BR" -> 0% AMI 4BR | R7: =TEXT(R5,"0%")&" AMI 1BR" -> 0% AMI 1BR | S7: =TEXT(R5,"0%")&" AMI 2BR" -> 0% AMI 2BR | T7: =TEXT(R5,"0%")&" AMI 3BR" -> 0% AMI 3BR | U7: =TEXT(R5,"0%")&" AMI 4BR" -> 0% AMI 4BR
E8: =INDEX(LIHTC,$A$3,4) -> 64400 | F8: =INDEX(LIHTC,$A$3,5) -> 604 | G8: =INDEX(LIHTC,$A$3,6) -> 725 | H8: =INDEX(LIHTC,$A$3,7) -> 837 | I8: =INDEX(LIHTC,$A$3,8) -> 935 | J8: =INDEX(LIHTC,$A$3,9) -> 725 | K8: =INDEX(LIHTC,$A$3,10) -> 870 | L8: =INDEX(LIHTC,$A$3,11) -> 1005 | M8: =INDEX(LIHTC,$A$3,12) -> 1122
E9: Total Utility Allowance | F9: =L4 -> 128 | G9: =M4 -> 142 | H9: =N4 -> 153 | I9: =O4 -> 0 | J9: =L4 -> 128 | K9: =M4 -> 142 | L9: =N4 -> 153 | M9: =O4 -> 0 | N9: =IF(N8>0,L4,"") -> 
E10: Net LIHTC Rents | F10: =F8-F9 -> 476 | G10: =G8-G9 -> 583 | H10: 684 | I10: 935 | J10: 597 | K10: 728 | L10: 852 | M10: 1122 | N10: =IF(N8>0,N8-N9,"") -> 
E11: Total Revenue Units Per AMI % | F11: 6 | G11: 0 | H11: 0 | I11: 0 | J11: 4 | K11: 20 | L11: 5 | M11: 0 | N11: 0 | O11: 0 | P11: 0 | Q11: 0 | R11: 0 | S11: 0 | T11: 0 | U11: 0
C13: Summary | E13: Post Transfer Rev Units | F13: Pre Transfer Rev Units | G13: Pre Transfer Rents | H13: Weighted Avg LIHTC Rents Elected | I13: CRCU "As Prospective Appraisal" | J13: Post Transfer Rents | K13: LIHTC Rents | L13: 0.5 | N13: 0.6 | P13: =N5 -> 0 | R13: =R5 -> 0 | X13: Rents Reduced for Debt Deferral: | Y13: TRUE | Z13: Pre- Debt Deferral Rents
C14: 1 Br Units | E14: =IF(F11+J11+N11+R11>0,F11+J11+N11+R11,"") -> 10 | F14: =IF(GeneralInfo!I24>0,GeneralInfo!I24,"") -> 10 | G14: =GeneralInfo!J24 -> 471 | H14: =IF(E14<>"",(PRODUCT(F10,F11)+PRODUCT(J10,J11)+PRODUCT(N10,N11)+PRODUCT(R10,R11))/E14,"") -> 524.4 | I14: 500 | J14: 500 | K14: 1 Br Units | L14: =IF(F11>0,"$"&F10&" - "&F11&" units","") -> $476 - 6 units | N14: =IF(J$11>0,"$"&J$10&" - "&J$11&" units","") -> $597 - 4 units | P14: =IF(N$11>0,"$"&N$10&" - "&N$11&" units","") ->  | R14: =IF(R$11>0,"$"&R$10&" - "&R$11&" units","") ->  | W14: =J14 -> 500 | X14: =DashData!$G$21 -> 0 | Y14: =IF(W14>0,W14+X14,0) -> 500 | Z14: 500
C15: 2 Br Units | E15: =IF(G11+K11+O11+S11>0,G11+K11+O11+S11,"") -> 20 | F15: =IF(GeneralInfo!I25>0,GeneralInfo!I25,"") -> 20 | G15: =IF(GeneralInfo!J25>0,GeneralInfo!J25,"") -> 511 | H15: =IF(E15<>"",(PRODUCT(G10,G11)+PRODUCT(K10,K11)+PRODUCT(O10,O11)+PRODUCT(S10,S11))/E15,"") -> 728 | I15: 575 | J15: 575 | K15: 2 Br Units | L15: =IF(G11>0,"$"&G10&" - "&G11&" units","") ->  | N15: =IF(K$11>0,"$"&K$10&" - "&K$11&" units","") -> $728 - 20 units | P15: =IF(O$11>0,"$"&O$10&" - "&O$11&" units","") ->  | R15: =IF(S$11>0,"$"&S$10&" - "&S$11&" units","") ->  | W15: =J15 -> 575 | X15: =DashData!$G$21 -> 0 | Y15: =IF(W15>0,W15+X15,0) -> 575 | Z15: 575
C16: 3 Br Units | E16: =IF(H11+L11+P11+T11>0,H11+L11+P11+T11,"") -> 5 | F16: =IF(GeneralInfo!I26>0,GeneralInfo!I26,"") -> 5 | G16: =IF(GeneralInfo!J26>0,GeneralInfo!J26,"") -> 574 | H16: =IF(E16<>"",(PRODUCT(H10,H11)+PRODUCT(L10,L11)+PRODUCT(P10,P11)+PRODUCT(T10,T11))/E16,"") -> 852 | I16: 675 | J16: 676 | K16: 3 Br Units | L16: =IF(H$11>0,"$"&H$10&" - "&H$11&" units","") ->  | N16: =IF(L$11>0,"$"&L$10&" - "&L$11&" units","") -> $852 - 5 units | P16: =IF(P$11>0,"$"&P$10&" - "&P$11&" units","") ->  | R16: =IF(T$11>0,"$"&T$10&" - "&T$11&" units","") ->  | W16: =J16 -> 676 | X16: =DashData!$G$21 -> 0 | Y16: =IF(W16>0,W16+X16,0) -> 676 | Z16: 675
C17: 4 Br Units | E17: =IF(I11+M11+Q11+U11>0,I11+M11+Q11+U11,"") ->  | F17: =IF(GeneralInfo!I27>0,GeneralInfo!I27,"") ->  | G17: =IF(GeneralInfo!J27>0,GeneralInfo!J27,"") ->  | H17: =IF(E17<>"",(PRODUCT(I10,I11)+PRODUCT(M10,M11)+PRODUCT(Q10,Q11)+PRODUCT(U10,U11))/E17,"") ->  | J17: 0 | K17: 4 Br Units | L17: =IF(I$11>0,"$"&I$10&" - "&I$11&" units","") ->  | N17: =IF(M$11>0,"$"&M$10&" - "&M$11&" units","") ->  | P17: =IF(Q$11>0,"$"&Q$10&" - "&Q$11&" units","") ->  | R17: =IF(U$11>0,"$"&U$10&" - "&U$11&" units","") ->  | W17: =J17 -> 0 | X17: =-DashData!$G$21 -> 0 | Y17: =IF(W17>0,W17+X17,0) -> 0 | Z17: 0
A18: =IF(E18>15,10%,15%) -> 0.1 | C18: TOTAL | E18: =SUM(E14:E17) -> 35 | F18: =SUM(F14:F17) -> 35 | G18: =(PRODUCT(F14,G14)+PRODUCT(F15,G15)+PRODUCT(F16,G16)+PRODUCT(F17,G17))/F18 -> 508.5714286 | H18: =ROUND((PRODUCT(E14,H14)+PRODUCT(E15,H15)+PRODUCT(E16,H16)+PRODUCT(E17,H17))/E18,0) -> 688 | I18: =ROUND((PRODUCT(E14,I14)+PRODUCT(E15,I15)+PRODUCT(E16,I16)+PRODUCT(E17,I17))/E18,0) -> 568 | J18: =ROUND((PRODUCT(E14,J14)+PRODUCT(E15,J15)+PRODUCT(E16,J16)+PRODUCT(E17,J17))/E18,0) -> 568 | K18: =IF($J$18>$I$18,"Warning Rents Exceed CRCU",IF($J$18>$H$18,"Warning Rents Exceed LIHTC","")) ->  | O18: TRUE | Y18: 5767.28 | Z18: 568
A19: =MIN(G20,H20,I20) -> 0.0557 | C19: ="Maximum Vacancy Loss & Bad Debt "&TEXT(A18,"00.0%") &" Minimum Vacancy Loss & Bad Debt "&TEXT(A19,"00.0%") -> Maximum Vacancy Loss & Bad Debt 10.0% Minimum Vacancy Loss & Bad Debt 05.6% | G19: (Avg Vacancy last 3 yrs plus 2%) | H19: Lenders Required Vacancy | I19: HFA's Required Vacancy | J19: Underwritten Vacancy & Bad Debt | K19: =DashData!C30 -> Rents Higher than Needed for Cash Flow by $0
G20: =-ROUND(('Rents & Operations'!$H$30+'Rents & Operations'!$H$31-'Rents & Operations'!$H$50-'Rents & Operations'!$H$53)/(AVERAGE(MFIS!$T$2,MFIS!$W$2,MFIS!$Z$2))-1,4)+2% -> 0.0557 | H20: =GeneralInfo!I36 -> 0.07 | I20: =GeneralInfo!I37 -> 0.07 | J20: 0.0564 | K20: =IF(J20>A18,"Warning Vacancy Exceeds Maximum Threshold",IF(J20<A19,"Warning Vacancy Lower Than Minimum Threshold","")) ->  | N20: =TEXT(GeneralInfo!I28/'Rents & Operations'!E18,"0.00%")&" RA" -> 100.00% RA | O20: =GeneralInfo!I28&" Number RA Units" -> 35 Number RA Units
C21: From Form RD 3560-7 | M21: PART II - OPERATING AND MAINETNANCE EXPENSE SCHEDULE | V21: 12
M22: =C23 -> Project(s) Below FOREST VIEW APTS | Q22: =MFIS!Q2 -> 2015 | R22: =IF(U2<1,"Avg Last 2 yrs ACTUAL","Avg Last 3 yrs ACTUAL") -> Avg Last 2 yrs ACTUAL | S22: PROPOSED | T22: COMMENTS | V22: Select State To Display
C23: ="Project(s) Below "&'MFIS ProjectA'!G2 &" "&'MFIS ProjectB'!G2&" "&'MFIS ProjectC'!G2& " "&'MFIS ProjectD'!G2&" "&'MFIS ProjectD'!G2&" "&'MFIS ProjectF'!G2 -> Project(s) Below FOREST VIEW APTS | Q23: CURRENT BUDGET | T23: or (YTD) | V23: ="Select State Average To Display "&'FY Comparisons FY12_FY13'!C2&" Actuals for Project & State" -> Select State Average To Display 2013 Actuals for Project & State
C24: PART I - CASH FLOW STATEMENT | V24: ="Project Actuals "&MFIS!S2 -> Project Actuals 2014 | W24: Project Underwritten | X24: State Avg
G25: CURRENT | I25: PROPOSED | J25: COMMENTS | M25: 1 | N25: MAINTENANCE & REPAIRS PAYROLL | Q25: 20050 | R25: 18778.5 | S25: 19450 | V25: =IF($E$18=0,"",IF(MFIS!U35>1,MFIS!U35/$E$18,MFIS!X35/$E$18)) -> 549.9142857 | W25: =IF(E18=0,"",S25/$E$18) -> 555.7142857
G26: BUDGET | H26: ACTUAL | I26: BUDGET | J26: or YTD | M26: 2 | N26: MAINTENANCE & REPAIRS SUPPLY | Q26: 5500 | R26: 12389 | S26: 5500 | V26: =IF($E$18=0,"",IF(MFIS!U36>1,MFIS!U36/$E$18,MFIS!X36/$E$18)) -> 329.0857143 | W26: =IF(E18=0,"",S26/$E$18) -> 157.1428571
G27: =MFIS!Q2 -> 2015 | H27: =IF('MFIS ProjectA'!U2<1,"Avg Last 2","Avg Last 3") -> Avg Last 2 | I27: Underwritten | J27: ( - - ) | M27: 3 | N27: MAINTENANCE & REPAIRS CONTRACT | Q27: 3000 | R27: 3451.5 | S27: 3000 | V27: =IF($E$18=0,"",IF(MFIS!U37>1,MFIS!U37/$E$18,MFIS!X37/$E$18)) -> 126.3142857 | W27: =IF(E18=0,"",S27/$E$18) -> 85.71428571
H28: Yrs | J28: ( - - ) | M28: 4 | N28: PAINTING AND DECORATING …….. | Q28: 4000 | R28: 1870 | S28: 2000 | V28: =IF($E$18=0,"",IF(MFIS!U38>1,MFIS!U38/$E$18,MFIS!X38/$E$18)) -> 13.57142857 | W28: =IF(E18=0,"",S28/$E$18) -> 57.14285714
C29: OPERATIONAL CASH SOURCES | I29: (12 Month Budget) | M29: 5 | N29: SNOW REMOVAL . . . . . . . . . . . . . . . . | Q29: 0 | R29: 0 | V29: =IF($E$18=0,"",IF(MFIS!U39>1,MFIS!U39/$E$18,MFIS!X39/$E$18)) -> 0 | W29: =IF(E18=0,"",S29/$E$18) -> 0
C30: 1 | D30: RENTAL INCOME . . . . . . . | G30: 215700 | H30: 129305.5 | I30: =(PRODUCT(E14,J14)+PRODUCT(E15,J15)+PRODUCT(E16,J16)+PRODUCT(E17,J17))*12 -> 238560 | J30: COMMENTS | M30: 6 | N30: ELEVATOR MAINT/CONTRACT…….. | Q30: 0 | R30: 0 | V30: =IF($E$18=0,"",IF(MFIS!U40>1,MFIS!U40/$E$18,MFIS!X40/$E$18)) -> 0 | W30: =IF(E18=0,"",S30/$E$18) -> 0
C31: 2 | D31: RHS RENTAL ASSISTANCE RECEIVED . . | H31: 77229.5 | M31: 7 | N31: GROUNDS . . . . . . . . . . . . . . . . . . | Q31: 7500 | R31: 8145 | S31: 7500 | V31: =IF($E$18=0,"",IF(MFIS!U41>1,MFIS!U41/$E$18,MFIS!X41/$E$18)) -> 238.3428571 | W31: =IF(E18=0,"",S31/$E$18) -> 214.2857143
C32: 3 | D32: APPLICATION FEES RECEIVED . . . . . . | G32: 0 | H32: 247.5 | M32: 8 | N32: SERVICES . . . . . . . . . . . . . | Q32: 1665 | R32: 1669 | S32: 1632 | V32: =IF($E$18=0,"",IF(MFIS!U42>1,MFIS!U42/$E$18,MFIS!X42/$E$18)) -> 46.62857143 | W32: =IF(E18=0,"",S32/$E$18) -> 46.62857143
C33: 4 | D33: LAUNDRY AND VENDING . . . . . . . . . | G33: 180 | H33: 80 | M33: 9 | N33: CAPITAL BUDGET (Part V operating) | Q33: 0 | R33: 0 | V33: =IF($E$18=0,"",IF(MFIS!U43>1,MFIS!U43/$E$18,MFIS!X43/$E$18)) -> 0 | W33: =IF(E18=0,"",S33/$E$18) -> 0
C34: 5 | D34: INTEREST INCOME . . . . . . . . | G34: 218 | H34: 82 | M34: 10 | N34: OTHER OPERATING EXPENSES (Itemize) | Q34: 1090 | R34: 1290.5 | S34: =ROUND(SUM(S25,S26,S27,S28,S29,S30,S31,S32,S43,S59,S67)*GeneralInfo!D39,0) -> 1387 | T34: =TEXT(GeneralInfo!D39,"0.0%")&" operations & incidentals" -> 1.0% operations & incidentals | V34: =IF($E$18=0,"",IF(MFIS!U44>1,MFIS!U44/$E$18,MFIS!X44/$E$18)) -> 30.62857143 | W34: =IF(E18=0,"",S34/$E$18) -> 39.62857143
C35: 6 | D35: TENANT CHARGES . . . . . . . . . . . . . . | G35: 1042 | H35: 2438.5 | M35: 11 | N35: SUB-TOTAL MAINT. & OPERATING (1 thru 10) . . . . . . . . . | Q35: =SUM(Q25:Q34) -> 42805 | R35: =SUM(R25:R34) -> 47593.5 | S35: =SUM(S25:S34) -> 40469 | V35: =IF($E$18=0,"",IF(MFIS!U45>1,MFIS!U45/$E$18,MFIS!X45/$E$18)) -> 1334.485714 | W35: =IF(E18=0,"",S35/$E$18) -> 1156.257143 | X35: =INDEX(StateAvg,$V$21,3) -> 968.0862712
C36: 7 | D36: OTHER - PROJECT SOURCES . . . . . . . . . . . | G36: 0 | H36: 91.5
C37: 8 | D37: LESS (Vacancy and Contingency Allowance) . | G37: -10785 | I37: =-I30*J37 -> -13454.784 | J37: =J20 -> 0.0564 | K37: Vacancy | M37: 12 | N37: ELECTRICITY . . . . . . . . | Q37: 10061 | R37: 9447.5 | S37: 9500 | V37: =IF($E$18=0,"",IF(MFIS!U46>1,MFIS!U46/$E$18,MFIS!X46/$E$18)) -> 270.8285714 | W37: =IF($E$18=0,"",S37/$E$18) -> 271.4285714
C38: 9 | D38: LESS (Agency Approved Incentive Allowances) | G38: 0 | M38: 13 | N38: WATER . . . . . . . . . . | Q38: 979 | R38: 907 | S38: 970 | V38: =IF($E$18=0,"",IF(MFIS!U47>1,MFIS!U47/$E$18,MFIS!X47/$E$18)) -> 25.82857143 | W38: 27.71428571
C39: 10 | D39: SUB-TOTAL [(1 thru 7) - (8 & 9)] . . . . . . . . . . . . . . . . . . . . . . . . . | G39: =SUM(G30:G38) -> 206355 | H39: =SUM(H30:H38) -> 209474.5 | I39: =SUM(I30:I38) -> 225105.216 | M39: 14 | N39: SEWER . . . . . . . . . . . . . . . . | Q39: 878 | R39: 835.5 | S39: 880 | V39: =IF($E$18=0,"",IF(MFIS!U48>1,MFIS!U48/$E$18,MFIS!X48/$E$18)) -> 23.11428571 | W39: 25.14285714
C40: NON-OPERATIONAL CASH SOURCES | M40: 15 | N40: FUEL (Oil/Coal/Gas) . . . . . . | Q40: 0 | R40: 0 | V40: =IF($E$18=0,"",IF(MFIS!U49>1,MFIS!U49/$E$18,MFIS!X49/$E$18)) -> 0 | W40: 0
C41: 11 | D41: CASH - NON PROJECT . . . . . . . . . . | G41: 0 | H41: 0 | M41: 16 | N41: GARBAGE & TRASH REMOVAL . | Q41: 2734 | R41: 2531 | S41: 2520 | V41: =IF($E$18=0,"",IF(MFIS!U50>1,MFIS!U50/$E$18,MFIS!X50/$E$18)) -> 73 | W41: 72
C42: 12 | D42: AUTHORIZED LOAN (Non-RHS). . . . . . . . | G42: 0 | H42: 0 | M42: 17 | N42: OTHER UTILITIES . . . . | Q42: 0 | R42: 0 | V42: =IF($E$18=0,"",IF(MFIS!U51>1,MFIS!U51/$E$18,MFIS!X51/$E$18)) -> 0 | W42: 0
C43: 13 | D43: TRANSFER FROM RESERVE . . . . . . . . | G43: 41200 | H43: 34897 | M43: 18 | N43: SUB-TOTAL UTILITIES (12 thru 17) . . . . . . . . . . . . . . . . . . | Q43: =SUM(Q37:Q42) -> 14652 | R43: =SUM(R37:R42) -> 13721 | S43: =SUM(S37:S42) -> 13870 | V43: =IF($E$18=0,"",IF(MFIS!U52>1,MFIS!U52/$E$18,MFIS!X52/$E$18)) -> 392.7714286 | W43: 396.2857143 | X43: =INDEX(StateAvg,$V$21,6) -> 455.9621687
C44: 14 | D44: SUB-TOTAL (11 thru 13) . . . . | G44: =SUM(G41:G43) -> 41200 | H44: =SUM(H41:H43) -> 34897 | I44: =SUM(I41:I43) -> 0
M45: 19 | N45: SITE MANAGEMENT PAYROLL . | Q45: 20080 | R45: 18046 | S45: 7000 | V45: =IF($E$18=0,"",IF(MFIS!U53>1,MFIS!U53/$E$18,MFIS!X53/$E$18)) -> 512.6857143 | W45: =IF($E$18=0,"",S45/$E$18) -> 200
C46: 15 | D46: TOTAL CASH SOURCES (10 + 14) . . . . . . . . . . . . . . . . . . . . . . . | G46: =G39+G44 -> 247555 | H46: =H39+H44 -> 244371.5 | I46: =I39+I44 -> 225105.216 | M46: 20 | N46: MANAGEMENT FEE | Q46: 19320 | R46: 18312 | S46: =T46*$E$18*12 -> 23100 | T46: 55 | U46: PUMP | V46: =IF($E$18=0,"",IF(MFIS!U54>1,MFIS!U54/$E$18,MFIS!X54/$E$18)) -> 521.2857143 | W46: 660
C47: OPERATIONAL CASH USES | M47: 21 | N47: PROJECT AUDITING EXPENSE . . . . . . . | Q47: 4374 | R47: 4374 | S47: 4375 | V47: =IF($E$18=0,"",IF(MFIS!U55>1,MFIS!U55/$E$18,MFIS!X55/$E$18)) -> 124.9714286 | W47: 125
C48: 16 | D48: TOTAL O&M EXPENSES (From Part II) . . . . . . . . . . . . . . . . . . . . | G48: =Q69 -> 157877 | H48: =R69 -> 153583 | I48: =S69 -> 140051 | M48: 22 | N48: COMPUTER EXPENSE & UPDATES | Q48: 0 | R48: 0 | V48: =IF($E$18=0,"",IF(MFIS!U56>1,MFIS!U56/$E$18,MFIS!X56/$E$18)) -> 0 | W48: 0
C49: 17 | D49: RHS DEBT PAYMENT . . . . . . . . . . . . . . | G49: 30584 | H49: 30584 | I49: ='Sources & Uses'!H6+'Sources & Uses'!H7 -> 28598.67584 | M49: 23 | N49: LEGAL EXPENSES . . . . . . . . . . . . . . | Q49: 500 | R49: 176 | S49: 300 | V49: =IF($E$18=0,"",IF(MFIS!U57>1,MFIS!U57/$E$18,MFIS!X57/$E$18)) -> 1.457142857 | W49: 8.571428571
C50: 18 | D50: RHS PAYMENT (Overage) . . . . . . . | H50: 32.5 | M50: 24 | N50: ADVERTISING . . . . . . . . . . . | Q50: 500 | R50: 202.5 | S50: 300 | V50: =IF($E$18=0,"",IF(MFIS!U58>1,MFIS!U58/$E$18,MFIS!X58/$E$18)) -> 5.8 | W50: 8.571428571
C51: 19 | D51: RHS PAYMENT (Late Fee) . . . . . . . . . | H51: 0 | M51: 25 | N51: TELEPHONE & ANSWERING SERVICE | Q51: 2300 | R51: 2322.5 | S51: 2300 | V51: =IF($E$18=0,"",IF(MFIS!U59>1,MFIS!U59/$E$18,MFIS!X59/$E$18)) -> 62.91428571 | W51: 65.71428571
C52: 20 | D52: REDUCTION IN PRIOR YEAR PAYABLES . . | H52: 0 | M52: 26 | N52: OFFICE SUPPLIES . . . | Q52: 2000 | R52: 1901 | S52: 2000 | V52: =IF($E$18=0,"",IF(MFIS!U60>1,MFIS!U60/$E$18,MFIS!X60/$E$18)) -> 53.45714286 | W52: 57.14285714
C53: 21 | D53: TENANT UTILITY PAYMENTS . . | H53: 3233.5 | M53: 27 | N53: OFFICE FURNITURE & EQUIPMENT | Q53: 0 | R53: 0 | V53: =IF($E$18=0,"",IF(MFIS!U61>1,MFIS!U61/$E$18,MFIS!X61/$E$18)) -> 0 | W53: 0
C54: 22 | D54: TRANSFER TO RESERVE . . . . . . . . | G54: 11970 | H54: 22273.5 | I54: ='Reserve Sizing'!C50 -> 12500 | M54: 28 | N54: TRAINING EXPENSE . . . | Q54: 2000 | R54: 1898 | S54: 1800 | V54: =IF($E$18=0,"",IF(MFIS!U62>1,MFIS!U62/$E$18,MFIS!X62/$E$18)) -> 55.22857143 | W54: 51.42857143
C55: 23 | D55: RETURN TO OWNER . . . . . . . . . . . . . . . | G55: 5040 | H55: 5040 | I55: =K55 -> 5767.28 | J55: Calculated: | K55: =DashData!D27 -> 5767.28 | M55: 29 | N55: HEALTH INS & OTHER EMP. BENEFITS | Q55: 12336 | R55: 12019.5 | S55: 11500 | V55: =IF($E$18=0,"",IF(MFIS!U63>1,MFIS!U63/$E$18,MFIS!X63/$E$18)) -> 373.0571429 | W55: 328.5714286
C56: 24 | D56: SUB-TOTAL (16 thru 23) . . . . . . . . . | G56: =SUM(G48:G55) -> 205471 | H56: =SUM(H48:H55) -> 214746.5 | I56: =SUM(I48:I55) -> 186916.9558 | M56: 30 | N56: PAYROLL TAXES . . . | Q56: 3612 | R56: 3117.5 | S56: 3080 | V56: =IF($E$18=0,"",IF(MFIS!U64>1,MFIS!U64/$E$18,MFIS!X64/$E$18)) -> 89 | W56: 88
C57: NON-OPERATIONAL CASH USES | M57: 31 | N57: WORKER'S COMPENSATION . . | Q57: 1283 | R57: 1632 | S57: 1357 | V57: =IF($E$18=0,"",IF(MFIS!U65>1,MFIS!U65/$E$18,MFIS!X65/$E$18)) -> 60.74285714 | W57: 38.77142857
C58: 25 | D58: AUTHORIZED DEBT PAYMENT (Non-RHS) | G58: 0 | H58: 0 | I58: ='Sources & Uses'!H24 -> 34165.00616 | M58: 32 | N58: OTHER ADMIN EXPENSES (Itemize) | Q58: 1113 | R58: 908.5 | S58: 950 | V58: =IF($E$18=0,"",IF(MFIS!U66>1,MFIS!U66/$E$18,MFIS!X66/$E$18)) -> 29.22857143 | W58: 27.14285714
C59: 26 | D59: LONG-TERM IMPROVEMENTS . . . . | G59: 41200 | H59: 34897 | M59: 33 | N59: SUB-TOTAL ADMNSTRATVE (19 thru 32) . . . . . . . . . . . . . | Q59: =SUM(Q45:Q58) -> 69418 | R59: =SUM(R45:R58) -> 64909.5 | S59: =SUM(S45:S58) -> 58062 | V59: =IF($E$18=0,"",IF(MFIS!U67>1,MFIS!U67/$E$18,MFIS!X67/$E$18)) -> 1889.828571 | W59: 1658.914286 | X59: =INDEX(StateAvg,$V$21,9) -> 1146.789251
C60: 27 | D60: MISCELLANEOUS . . . . | G60: 0 | H60: 0
C61: 28 | D61: SUB-TOTAL (25 thru 27) . . . . . . . . . . . . . . . . . . . . . . . . . . . . . . . . | G61: =SUM(G58:G60) -> 41200 | H61: =SUM(H58:H60) -> 34897 | I61: =SUM(I58:I60) -> 34165.00616 | M61: 34 | N61: REAL ESTATE TAXES . . . . | Q61: 20310 | R61: 18459.5 | S61: 18500 | V61: =IF($E$18=0,"",IF(MFIS!U68>1,MFIS!U68/$E$18,MFIS!X68/$E$18)) -> 507.5714286 | W61: =IF($E$18=0,"",S61/$E$18) -> 528.5714286
M62: 35 | N62: SPECIAL ASSESSMENTS . . . . . . . . . . . . | Q62: 300 | R62: 225 | S62: 250 | V62: =IF($E$18=0,"",IF(MFIS!U69>1,MFIS!U69/$E$18,MFIS!X69/$E$18)) -> 7.142857143 | W62: 7.142857143
C63: 29 | D63: TOTAL CASH USES (24 + 28) . . . . . . . . . . . . . . . . . . . . . . | G63: =G56+G61 -> 246671 | H63: =H56+H61 -> 249643.5 | I63: =I56+I61 -> 221081.962 | M63: 36 | N63: OTHER TAXES, LICENSES & PERMITS | Q63: 0 | R63: 0 | V63: =IF($E$18=0,"",IF(MFIS!U70>1,MFIS!U70/$E$18,MFIS!X70/$E$18)) -> 0 | W63: 0
M64: 37 | N64: PROPERTY & LIABILITY INSURANCE | Q64: 10201 | R64: 8674.5 | S64: 8800 | V64: =IF($E$18=0,"",IF(MFIS!U71>1,MFIS!U71/$E$18,MFIS!X71/$E$18)) -> 284.3428571 | W64: 251.4285714
C65: 30 | D65: NET CASH (DEFICIT) (15 - 29) . . . . . . . . . . . . . . . . . . . . . . . . . . | G65: =G46-G63 -> 884 | H65: =H46-H63 -> -5272 | I65: =I46-I63 -> 4023.254002 | J65: =I65/I48 -> 0.02872706373 | M65: 38 | N65: FIDELITY COVERAGE INSURANCE | Q65: 191 | R65: 0 | S65: 100 | V65: =IF($E$18=0,"",IF(MFIS!U72>1,MFIS!U72/$E$18,MFIS!X72/$E$18)) -> 0 | W65: 2.857142857
C66: CASH BALANCE | M66: 39 | N66: OTHER INSURANCE . . . . | Q66: 0 | R66: 0 | V66: =IF($E$18=0,"",IF(MFIS!U73>1,MFIS!U73/$E$18,MFIS!X73/$E$18)) -> 0 | W66: 0
C67: 31 | D67: BEGINNING CASH BALANCE . . . . . . | M67: 40 | N67: SUB-TOTAL TAXES & INSURANCE (34 thru 39) . . . . . . . . | Q67: =SUM(Q61:Q66) -> 31002 | R67: =SUM(R61:R66) -> 27359 | S67: =SUM(S61:S66) -> 27650 | V67: =IF($E$18=0,"",IF(MFIS!U74>1,MFIS!U74/$E$18,MFIS!X74/$E$18)) -> 799.0571429 | W67: 790 | X67: =INDEX(StateAvg,$V$21,12) -> 551.5625301
C68: 32 | D68: ACCRUAL TO CASH ADJUSTMENT . . .
C69: 33 | D69: ENDING CASH BALANCE (30+31+32) . . . | M69: 41 | N69: TOTAL O & M EXPENSES (11+18+33+40) . . . . . . . . . | Q69: =SUM(Q35,Q43,Q59,Q67) -> 157877 | R69: =SUM(R35,R43,R59,R67) -> 153583 | S69: =SUM(S35,S43,S59,S67) -> 140051 | V69: =IF($E$18=0,"",IF(MFIS!U75>1,MFIS!U75/$E$18,MFIS!X75/$E$18)) -> 4416.142857 | W69: =IF(E18=0,"",S69/$E$18) -> 4001.457143 | X69: =INDEX(StateAvg,$V$21,15) -> 3041.516514

Sheet Dashboard Report
B1: =IF(GeneralInfo!C6>0,GeneralInfo!C6,"") -> Forest View Apartments
B40: =IF(GeneralInfo!C6>0,GeneralInfo!C6,"") -> Forest View Apartments
A41: Click Below to
A42: Document Threshold Items
B79: =IF(GeneralInfo!C6>0,GeneralInfo!C6,"") -> Forest View Apartments

Sheet DashData (hidden)
C4: Net Operating Income
C5: Operational Cash Sources (3560-7 Part 1 line 10) | D5: ='Rents & Operations'!I39 -> 225105.216
C6: Less Total Operating & Maintenance Expenses 3560-7 Part 1 line 16) | D6: =-'Rents & Operations'!I48 -> -140051
C7: Less Reserve Deposit 3560-7 Part 1 line 22) | D7: =-'Rents & Operations'!I54 -> -12500
C8: Less Misc. Expense 3560-7 Part 1 line 27) | D8: =-'Rents & Operations'!I60 -> 0
C9: = Net Operating Income: | D9: =SUM(D5:D8) -> 72554.216
F10: Rents Needed Calculation
C11: Debt Service Coverage Ratio | F11: Debt Service | G11: ='Rents & Operations'!I49+'Rents & Operations'!I61 -> 62763.682
C12: Net Operating Income / Total Debt Service = DSCR | F12: O&M | G12: ='Rents & Operations'!I48 -> 140051
C13: Net Operating Income | D13: =D9 -> 72554.216 | F13: Reserve | G13: ='Rents & Operations'!I54 -> 12500
C14: Total Debt Service 3560-7 Part 1 line 17 and 25 | D14: ='Rents & Operations'!I49+'Rents & Operations'!I58 -> 62763.682 | F14: RTO | G14: ='Rents & Operations'!I55 -> 5767.28
C15: Debt Service Coverage Ratio | D15: =ROUND(D13/D14,2) -> 1.16 | F15: Balance for 1.15 DSCR | G15: =IF(G11*15%-G14>0,G11*15%-G14,0) -> 3647.2723
C16: =IF($D$15<1,"Deal Not Feasible - Can't Cover Proposed Debt", "Adequate Revenue for Debt Service") -> Adequate Revenue for Debt Service | F16: Sum | G16: =SUM(G11:G15) -> 224729.2343
C17: =IF('Sources & Uses'!C3<>"",'Sources & Uses'!C3,"") ->  | F17: Less Other Inc | G17: =-SUM('Rents & Operations'!I32:I36) -> 0
F18: Total | G18: =SUM(G16:G17) -> 224729.2343
C19: Allowed Return To Owner (RTO) | F19: With Vacancy | G19: =-G18/H19 -> 238161.5455 | H19: ='Rents & Operations'!J37-1 -> -0.9436 | I19: (don't delete H19 )
C20: Cash Flow after Debt Service | D20: =IF('Rents & Operations'!Y13,D9-D14+E20,D9-D14) -> 9790.534002 | E20: =IF('Sources & Uses'!D6,'Sources & Uses'!A6,0) -> 0 | F20: Amt on UW Bud | G20: ='Rents & Operations'!I30 -> 238560
C21: Less Addition Cushion Required (Agency test for vacancy & cushion) | D21: =IF(D53>0, -D53,"") ->  | F21: (+) inc (-) dec Rents Per unit | G21: =ROUNDDOWN((G19-G20)/'Rents & Operations'!E18/12,0) -> 0
C22: Less Budget Above Minimum of CRCU, LIHTC | D22: =IF(G28<0,0,-G28) -> 0
C23: Less Debt Service for Any Non-Amortizing RD Loan | D23: =-IF('Sources & Uses'!D6,'Sources & Uses'!A6,0)+-IF('Sources & Uses'!D7,'Sources & Uses'!A7,0) -> 0
C24: Net Cash Flow | D24: =SUM(D20:D23) -> 9790.534002 | F24: Underwritten v/s Min CRCU LIHTC
C25: =IFERROR(IF(D27>GeneralInfo!D28,"Increase","Existing RTO"),"not calculating") -> Existing RTO | D25: =IF(C25="Increase","Tenant Protection Required","") ->  | F25: Rents CRCU | G25: ='Rents & Operations'!I18*12*'Rents & Operations'!E18 -> 238560
C26: New RTO for Underwritten Transfer (Minimum afforded from Cash Flow or Allowed from Contribution) | D26: =IF(D24<0,0,IF(D24>D75,D75,(MIN(D24,D75)))) -> 5767.28 | E26: =D26 -> 5767.28 | F26: Rents LIHTC | G26: ='Rents & Operations'!H18*'Rents & Operations'!E18*12 -> 288960
C27: Total Allowed RTO for This Transaction | D27: =IF(GeneralInfo!H16,0,D26) -> 5767.28 | F27: Rents UW | G27: ='Rents & Operations'!I30 -> 238560
C28: =IF('Rents & Operations'!J18>'Rents & Operations'!H18,"Warning This Calculation is Based Upon Rents that Exceed LIHTC",IF('Rents & Operations'!J18>'Rents & Operations'!I18,"Warning this Calculation is Based Upon Rents Exceed CRUC","Rents Are Within CRCU and LIHTC Rates")) -> Rents Are Within CRCU and LIHTC Rates | G28: =G27-MIN(G25,G26) -> 0
C29: Owner Contribution Recognized For Loan Agreement | D29: =ROUND(D27/0.08,0) -> 72091
C30: =IF(G21>0,"Rents Lower than Needed for Cash Flow by"&TEXT(G21,"$0"),"Rents Higher than Needed for Cash Flow by "&TEXT(-G21,"$0")) -> Rents Higher than Needed for Cash Flow by $0
C31: ="Estimated annual amount required to pay off DFF over 15 yrs $"&TEXT('Sources & Uses'!C28/15,0) -> Estimated annual amount required to pay off DFF over 15 yrs $783
C32: Sellers Equity
C33: Current RD Debt | D33: ='Sources & Uses'!C6+'Sources & Uses'!C7 -> 1124909 | F33: Loan to Value
C34: Sellers Equity | D34: ='Sources & Uses'!C106 -> 144000 | F34: Agency Security Value from Appraisal | H34: =GeneralInfo!I20 -> 1797000
C35: Debt & Sellers Equity | D35: =SUM(D33:D34) -> 1268909 | F35: RD Assumed Loan | H35: ='Sources & Uses'!C6+'Sources & Uses'!C7 -> 1124909 | I35: =IF($D$69<=0,"New Loan(s) Must be Reduced, Exceeds Eligible Purposes", "") -> 
C36: Reserve Funds (less any withdrawn for Equity) | D36: =GeneralInfo!D22-'Sources & Uses'!H32 -> 30000 | F36: Other Proposed Loans | H36: =SUM('Sources & Uses'!C10:C20) -> 600000
C37: Market Value As Is | D37: =GeneralInfo!I19 -> 1375000 | F37: Total Loans | H37: =SUM(H35:H36) -> 1724909 | I37: =H34-H37 -> 72091 | J37: (amt above Security Value)
C38: Total Reserve Plus Market Value As Is | D38: =SUM(D36:D37) -> 1405000 | F38: Loan to Value | H38: =H37/H34 -> 0.9598825821
C39: Sellers Equity Allowed Per Appraisal | D39: =D38-D33 -> 280091
C40: =IF(AND($D$39<=0,('Rents & Operations'!$I$58>0)),"No Seller Equity Allowed with New Loans on Property",IF(AND($D$39<=0,('Rents & Operations'!$I$58<0)),"Sellers Equity Paid with no New Loans on the Property","")) -> 
C41: =IF(C40="No Seller Equity Allowed with New Loans on Property", "Transferor Incentive", "") -> 
C42: =IF(AND(D160=1,D163=1,D166=1,D171=1,D175=1,D178=1,D181=1,D185=1,D188=1,D192=1,D195=1,D198=1),"All Thresholds Met","Thresholds Not Met") -> All Thresholds Met | D42: =IF(C42="All Thresholds Met",D34,"") -> 144000
C43: =IF(C42="All Thresholds Met",IF(AND(D62>=0,D69>=0),"4 Test Met: 1. All Thresholds Met. 2. Transfer Incentive available from Tax Credits, 3. New Loan for 515 Eligible Purposes 4. All Loans Secured"),"No Transferor Incentive Allowed") -> 4 Test Met: 1. All Thresholds Met. 2. Transfer Incentive available from Tax Credits, 3. New Loan for 515 Eligible Purposes 4. All Loans Secured
C46: Vacancy Loss Comparison of Industry Standard with Agency Requirement for Vacancy & Cushion | F46: (Cap)
C47: Vacancy Loss as Underwritten | D47: =-'Rents & Operations'!$I$37 -> 13454.784 | E47: ='Rents & Operations'!$J$37 -> 0.0564 | F47: =IF('Rents & Operations'!E18>15,10%,15%) -> 0.1
C48: Vacancy Loss 3 yr Avg Actual | D48: =IF((AVERAGE(MFIS!$T$2,MFIS!$W$2,MFIS!$Z$2))-('Rents & Operations'!$H$30+'Rents & Operations'!$H$31-'Rents & Operations'!$H$50-'Rents & Operations'!$H$53)>0,(AVERAGE(MFIS!$T$2,MFIS!$W$2,MFIS!$Z$2))-('Rents & Operations'!$H$30+'Rents & Operations'!$H$31-'Rents & Operations'!$H$50-'Rents & Operations'!$H$53),0) -> 7531 | E48: =-ROUND(('Rents & Operations'!$H$30+'Rents & Operations'!$H$31-'Rents & Operations'!$H$50-'Rents & Operations'!$H$53)/(AVERAGE(MFIS!$T$2,MFIS!$W$2,MFIS!$Z$2))-1,4) -> 0.0357 | F48: =E48+2% -> 0.0557
C49: Vacancy Loss Agency Standard (Actual plus 2%) not to exceed 10% for 16 or more units and or 15% for less than 16 units | D49: ='Rents & Operations'!I30*E49 -> 13287.792 | E49: =MIN(F47,F48) -> 0.0557
C50: ="5% O&M for Cushion & Turn Over in Budget (line 10)" -> 5% O&M for Cushion & Turn Over in Budget (line 10) | D50: =('Rents & Operations'!S69-'Rents & Operations'!S34)*5% -> 6933.2 | F50: ='Rents & Operations'!S34 -> 1387
C51: Total Allowances = Vacancy & Cushion (agency test) | D51: =SUM($D$49,$D$50) -> 20220.992
C52: Less Industry Standard (of 5%) | D52: ='Rents & Operations'!I30*5% -> 11928
C53: Mimimum of Agency Test or Industry Standard, Less Actual Budgeted Amount If positive Reduce Net Cash for RTO. | D53: =MIN(D52,D51)-D47-F50 -> -2913.784 | E53: =$D$53/'Rents & Operations'!$I$30 -> -0.01221405097 | F53: (minimum of "total allowance, or industry standard" Less actual budgeted amount
C54: =IF(E48-2%>E47,"Underwritten Vacancy not Supported by Historical Actual", "") -> 
C58: Contribution Above New Loans & Within Security Value
C60: Security Value (As Improved with added Value of Interest Credit) | D60: =GeneralInfo!I20 -> 1797000
C61: Less All Loans on the Property | D61: =-SUM('Sources & Uses'!C6:C21) -> -1724909
C62: (1) Security Value in Excess of Loans | D62: =SUM(D60:D61) -> 72091
C67: Total Tax Credits Deferred Developers Fee | D67: =SUM('Sources & Uses'!C24:C29) -> 3894538
C68: Less Sellers Equity & Ineligible Expenses for 515 | D68: =-SUM('Sources & Uses'!C106+'Sources & Uses'!C102) -> -1908733
C69: (2) Contribution Provided for All 515 Eligible Cost | D69: =SUM($D$67:$D$68) -> 1985805
C70: (3) Hard Cost of Construction (Sources & Uses) | D70: ='Sources & Uses'!C54 -> 1883280
C72: Contribution not in excess of Security Value or Hard Cost of Construction | D72: =MIN($D$62,$D$69,D70) -> 72091
C74: Maximum Possible Contribution Recognized for Additional RTO | D74: =$D$72 -> 72091
C75: =IF(GeneralInfo!H16,"Non-Profit - RTO Not Applicable",8%) -> 0.08 | D75: =IF(GeneralInfo!H16,0,IF($D$74>0,$D$74*8%,0)) -> 5767.28
C76: =IF('Sources & Uses'!$D$42<>0,"Sources and Uses Are Out of Balance", "Sources & Uses Balanced") -> Sources & Uses Balanced
C79: Operating Expenses | D79: Current Budget | E79: Average 3 Yr History | F79: Underwritten | G79: State Avg
C80: MAINTENANCE & OPERATING | D80: ='Rents & Operations'!Q35/'Rents & Operations'!E18 -> 1223 | E80: ='Rents & Operations'!R35/'Rents & Operations'!E18 -> 1359.814286 | F80: ='Rents & Operations'!S35/'Rents & Operations'!E18 -> 1156.257143 | G80: ='Rents & Operations'!X35 -> 968.0862712
C81: TOTAL UTILITIES | D81: ='Rents & Operations'!Q43/'Rents & Operations'!E18 -> 418.6285714 | E81: ='Rents & Operations'!R43/'Rents & Operations'!E18 -> 392.0285714 | F81: ='Rents & Operations'!S43/'Rents & Operations'!E18 -> 396.2857143 | G81: ='Rents & Operations'!X43 -> 455.9621687
C82: ADMNSTRATVE | D82: ='Rents & Operations'!Q59/'Rents & Operations'!E18 -> 1983.371429 | E82: ='Rents & Operations'!R59/'Rents & Operations'!E18 -> 1854.557143 | F82: ='Rents & Operations'!S59/'Rents & Operations'!E18 -> 1658.914286 | G82: ='Rents & Operations'!X59 -> 1146.789251
C83: TAXES & INSURANCE | D83: ='Rents & Operations'!Q67/'Rents & Operations'!E18 -> 885.7714286 | E83: ='Rents & Operations'!R67/'Rents & Operations'!E18 -> 781.6857143 | F83: ='Rents & Operations'!S67/'Rents & Operations'!E18 -> 790 | G83: ='Rents & Operations'!X67 -> 551.5625301
C84: TOTAL O & M EXPENSES | D84: ='Rents & Operations'!Q69/'Rents & Operations'!E18 -> 4510.771429 | E84: ='Rents & Operations'!R69/'Rents & Operations'!E18 -> 4388.085714 | F84: ='Rents & Operations'!S69/'Rents & Operations'!E18 -> 4001.457143 | G84: ='Rents & Operations'!X69 -> 3041.516514
C86: =C79 -> Operating Expenses | D86: =D79 -> Current Budget | E86: =E79 -> Average 3 Yr History | F86: =F79 -> Underwritten | G86: =G79 -> State Avg
C87: =C84 -> TOTAL O & M EXPENSES | D87: =D84 -> 4510.771429 | E87: =E84 -> 4388.085714 | F87: =F84 -> 4001.457143 | G87: =G84 -> 3041.516514
C94: Transaction Cost Comparison | D94: ='Sources & Uses'!D49 -> Total
C95: ='Sources & Uses'!B50&" For Repair / Rehab" -> Hard Costs For Repair / Rehab | D95: ='Sources & Uses'!C54 -> 1883280
C96: ='Sources & Uses'!B55 -> Contractor Fees | D96: ='Sources & Uses'!C60 -> 262957
C97: ='Sources & Uses'!B61 -> Architect /Engineer / Survey | D97: ='Sources & Uses'!C65 -> 89800
C98: ='Sources & Uses'!B66 -> Financing & Interim Cost | D98: ='Sources & Uses'!C72 -> 219270
C99: ='Sources & Uses'!B73 -> Soft Cost & Other Expenses | D99: ='Sources & Uses'!C84 -> 130498
C100: ='Sources & Uses'!B86 -> Entity and Syndication | D100: ='Sources & Uses'!C102 -> 1764733
C101: Sellers Equity | D101: ='Sources & Uses'!C106 -> 144000
C102: Assumption of RD Loan | D102: ='Sources & Uses'!C105 -> 1124909
C104: Total Development Cost | D104: =SUM(D95:D103) -> 5619447
C107: Sources | D107: Total
C108: Assume Existing RD Loans | D108: ='Sources & Uses'!C6+'Sources & Uses'!C7 -> 1124909
C109: 3rd Party Loans | D109: =SUM('Sources & Uses'!C10:C20) -> 600000
C110: Federal Tax Credit Equity | D110: =SUM('Sources & Uses'!C24:C26) -> 2746672
C111: State Tax Credits | D111: ='Sources & Uses'!C27 -> 1136127
C112: Deferred Developer Fees | D112: ='Sources & Uses'!C28 -> 11739
C113: =IF('Sources & Uses'!C29>0,'Sources & Uses'!B29,"") ->  | D113: =IF('Sources & Uses'!C29<>0,'Sources & Uses'!C29,"") -> 
C114: =IF(D114<>"","Reserve","") ->  | D114: =IF('Sources & Uses'!C22+'Sources & Uses'!C23>0,'Sources & Uses'!C22+'Sources & Uses'!C23,"") -> 
C115: =IF(D115<>"","Other","") -> 
C116: Total Sources | D116: =SUM(D108:D115) -> 5619447
Q134: O & M Expense Changes
Q135: Underwritten v/s Historical Avg - %Change
Q136: Maintenance & Operating (Excludes line 9 & 10) | S136: =$Z$145-$AC$145 -> -7221 | T136: =AA145 -> -0.1559510183
R137: Utilities | S137: =$Z$146-$AC$146 -> 149 | T137: 0.01085926682
R138: Total Administrative | S138: =$Z$147-$AC$147 -> -6847.5 | T138: -0.1054930326
R139: Total Tax & Insurance | S139: =$Z$148-$AC$148 -> 291 | T139: 0.01063635367
R140: Total O & M | S140: =$Z$149-$AC$149 -> -13628.5 | T140: -0.0894889768
R141: Reserve Deposit | S141: =$Z$150-$AC$150 -> -9773.5 | T141: -0.4387949806
Q144: O&M Expense Changes (Transfer UW minus 3 Yr Average Actuals) Change of 10% Flagged | Z144: UW | AC144: 3 yr Avg Actual
R145: Maintenance & Operating | S145: =$Z$145-$AC$145 -> -7221 | T145: =TEXT(AC145,"$0")&" versus "&TEXT(Z145,"$0")&" underwritten "&"("&TEXT(AA145,"0.0%")& " change)" -> $46303 versus $39082 underwritten (-15.6% change) | Z145: =ROUND('Rents & Operations'!S35-'Rents & Operations'!S34-'Rents & Operations'!S33,0) -> 39082 | AA145: =S145/AC145 -> -0.1559510183 | AC145: ='Rents & Operations'!R35-'Rents & Operations'!R34-'Rents & Operations'!R33 -> 46303
C146: Rents & Tenant Impact | R146: Utilities | S146: =$Z$146-$AC$146 -> 149 | T146: $13721 versus $13870 underwritten (1.1% change) | Z146: ='Rents & Operations'!S43 -> 13870 | AA146: 0.01085926682 | AC146: ='Rents & Operations'!R43 -> 13721
C147: Rent Increase Proposed | D147: ='Rents & Operations'!J18-'Rents & Operations'!G18 -> 59.42857143 | R147: Total Administrative | S147: =$Z$147-$AC$147 -> -6847.5 | T147: $64910 versus $58062 underwritten (-10.5% change) | Z147: ='Rents & Operations'!S59 -> 58062 | AA147: -0.1054930326 | AC147: ='Rents & Operations'!R59 -> 64909.5
C148: Number RA Units | D148: =GeneralInfo!I28 -> 35 | R148: Total Tax & Insurance | S148: =$Z$148-$AC$148 -> 291 | T148: $27359 versus $27650 underwritten (1.1% change) | Z148: ='Rents & Operations'!S67 -> 27650 | AA148: 0.01063635367 | AC148: ='Rents & Operations'!R67 -> 27359
C149: Vouchers or Other Tenant Subsidy | D149: =GeneralInfo!I29 -> 0 | R149: Total O & M | S149: =$Z$149-$AC$149 -> -13628.5 | T149: $152293 versus $138664 underwritten (-8.9% change) | Z149: ='Rents & Operations'!S69-'Rents & Operations'!S34-'Rents & Operations'!S33 -> 138664 | AA149: -0.0894889768 | AC149: ='Rents & Operations'!R69-'Rents & Operations'!R34-'Rents & Operations'!R33 -> 152292.5
C150: Total Project Units | D150: ='Rents & Operations'!E18 -> 35 | R150: Reserve Deposit | S150: =$Z$150-$AC$150 -> -9773.5 | T150: $22274 versus $12500 underwritten (-43.9% change) | Z150: ='Rents & Operations'!I54 -> 12500 | AA150: -0.4387949806 | AC150: ='Rents & Operations'!H54 -> 22273.5
C151: Potential Tenant Impact | D151: =D150-D149-D148 -> 0
C159: Thresholds
C160: Post Transfer Rents | D160: =IF(F162>F161,2,1) -> 1 | E160: This Transaction
C161: Maximum allowed by HFA not to exceed CRCU | E161: Max Allowed | F161: =IFERROR(IF('Rents & Operations'!H18<'Rents & Operations'!I18,'Rents & Operations'!H18,'Rents & Operations'!I18),"not calculating") -> 568
E162: Underwritten | F162: =IFERROR('Rents & Operations'!J18,"not calculating") -> 568
C163: Rents Cash Flow Proposed Operations | D163: =IF(OR(G21>1,G21<0),2,1) -> 1 | E163: This Transaction
C164: Expenses met within underwritten Rents | E164: Cushion | F164: 0.05
C165: =IFERROR(C30," not calculating") -> Rents Higher than Needed for Cash Flow by $0 | E165: Underwritten | F165: =GeneralInfo!D39 -> 0.01
C166: Vacancy Loss | D166: =IF(OR(F169<F168,F169>F167,C170="Underwritten Vacancy not Supported by Historical Actual"),2,1) -> 1 | E166: This Transaction
C167: Maximum allowance 10% (16 or more units) 15% (Less than 16 units) | E167: Max Allowed | F167: =IF('Rents & Operations'!E18>15,10%,15%) -> 0.1
C168: Minimum allowance: Lesser of Historical average of collected rents for | E168: Min Allowed | F168: =IFERROR(MIN('Rents & Operations'!G20:I20),"not caculating") -> 0.0557
C169: most recent 3 yrs plus 2%, or HFA / Lender Requirement | D169: = | E169: Underwritten | F169: ='Rents & Operations'!J20 -> 0.0564
C170: =IFERROR(IF(C54<>"",C54,""),"Not Calculating") -> 
C171: Operating Expenses | D171: =IF(OR(F174<F172,F173="Yes"),2,1) -> 1 | E171: This Transaction
C172: Minimum required per unit cost is greater of HFA or Lender must be budgeted | E172: Min Allowed | F172: =MAX(GeneralInfo!I38,GeneralInfo!D38) -> 3500
C173: No more than 10% change from historical actual without justification | E173: Changed 10% | F173: =IFERROR(IF(OR(T140<-10%,T140>10%),"Yes","No"),"not calculating") -> No
E174: Underwritten | F174: =IFERROR('Rents & Operations'!I48/'Rents & Operations'!E18,0) -> 4001.457143
C175: GOA Minimum Requirement | D175: =IF(F177<F176,2,1) -> 1 | E175: This Transaction
C176: General Operating Account must be equal to 20% | E176: Min Required | F176: =('Rents & Operations'!I48-'Rents & Operations'!S67)*20% -> 22480.2
C177: total operating expense as underwritten at time of transfer | E177: GOA | F177: =GeneralInfo!D25 -> 25000
C178: Tenant Protection | D178: =IF(AND(F179>F180,C25="Increase"),2,1) -> 1 | E178: This Transaction
C179: Protect tenants for full 2 year increase for affected tenants if RTO increased | E179: Min Funding | F179: =IFERROR((IF(D27>GeneralInfo!D28,(D151*('Rents & Operations'!J18-'Rents & Operations'!G18)*2*12),0)),"Not Calculating") -> 0
C180: Tenant Protection item 36 of Sources & Uses | F180: ='Sources & Uses'!C97 -> 0
C181: CNA Funding & Reserve Deposit | D181: =IF(AND(F184>=F182,F183="Yes",C184="CNA Unit Count & Post Transfer the Same"),1,2) -> 1 | E181: This Transaction
C182: Minimum Requirement Per Unit is greater of HFA or Lender | E182: Min Allowed | F182: =MIN('Reserve Sizing'!Q34) -> 350
C183: Reserve ending balance forecast positive all 20 yrs of CNA forecast | E183: CNA Positive $ | F183: =IF(SUM('Reserve Sizing'!C54:V54)>1,"Not Met", "Yes") -> Yes
C184: =IF('Reserve Sizing'!C4='Reserve Sizing'!B4,"CNA Unit Count & Post Transfer the Same","CNA Unit Count & Post Transfer Not the Same") -> CNA Unit Count & Post Transfer the Same | E184: Underwritten | F184: =IFERROR('Reserve Sizing'!C50/'Reserve Sizing'!C4,0) -> 357.1428571
C185: New Loans for RD 515 Eligible Purposes | D185: =IF(F187>F186,2,1) -> 1 | E185: This Transaction
C186: New Loans must be for 515 Eligible Purposes | E186: Max Allowed | F186: =DashData!D67 -> 3894538
C187: See Sources & Uses (total eligible cost) | E187: Underwritten | F187: =-D68 -> 1908733
C188: DSCR | D188: =IF(AND(F190>=F189,F191="Yes"),1,2) -> 1 | E188: This Transaction
C189: Minimum Requirement 1.15 | E189: Min Allowed | F189: 1.15
C190: Underwritten Yr 1 must be 1.15 | E190: Yr 1 | F190: =IFERROR(D15,0) -> 1.16
C191: Trending Revenue 2%, Expenses 3% (including reserve) 1.15 to yr 3 1.1 to yr 5 and 1.0 to yr 15 | E191: 1.15 | F191: =IFERROR(IF('Trending 15 years'!U26>1,"No","Yes"),0) -> Yes
C192: Loan to Value | D192: =IF(F194>1,2,1) -> 1 | E192: This Transaction
C193: All Debts must be secured within Prospective (As Improved) Appraised Value | E193: Min LVT | F193: 1
E194: Underwritten | F194: =IFERROR(H38,"not calculating") -> 0.9598825821
C195: Loan Terms of 3rd Party Debt | D195: =IF(C197<>"",2,1) -> 1 | E195: This Transaction
C196: No Balloon Payment of 3rd Party Debt Prior to RD Loan Term | E196: Max Allowed | F196: =IF('Sources & Uses'!F6>'Sources & Uses'!F7,'Sources & Uses'!F6,'Sources & Uses'!F7) -> 0
C197: ='Sources & Uses'!C3 -> 
C198: Sources & Uses Balance | D198: =IF('Sources & Uses'!D42=0,1,2) -> 1 | E198: This Transaction
C199: Adequate funds for Proposed Rehab & Acquisition | E199: Sources | F199: ='Sources & Uses'!D37 -> 5619447
C200: Sources & Uses must Balance | E200: Uses | F200: ='Sources & Uses'!D39 -> 5619447
C204: Allocation of Credits and DDF for Return To Owner (RTO)
C206: Tax Credits and Deferred Developer Fee | D206: =SUM('Sources & Uses'!$C$24:$C$28) -> 3894538
C207: Less Sellers Equity | D207: =-'Sources & Uses'!$C$106 -> -144000
C208: Less Other Cost Not Eligible for 515 Program | D208: =-'Sources & Uses'!$C$102 -> -1764733
C209: Contribution Available for Hard Cost | D209: =SUM(D206:D208) -> 1985805
C210: Total Hard Cost | D210: ='Sources & Uses'!$C$54 -> 1883280
C211: Lower of Contribution or Total Hard Cost | D211: =MIN(D209,D210) -> 1883280
C213: Cost Eligible for 515 Program: | D213: ='Sources & Uses'!$C$85 -> 2585805
C214: New Loans | D214: =-SUM('Sources & Uses'!$C$8:$C$23) -> -600000
C215: Equity Provided above New Loans | D215: =SUM(D213:D214) -> 1985805
C216: Amount Not to Exceed Security Value | D216: =IF(D215<=I37,D215,I37) -> 72091
C218: Lower of Contribution v/s New Loan Test | D218: =MIN(D211,D216) -> 72091
C220: Maximum Possible Contribution Recognized for Additional RTO | D220: =D218 -> 72091
C221: =IF(GeneralInfo!H161,"Non-Profit - RTO Not Applicable",8%) -> 0.08 | D221: =IF(GeneralInfo!H16,0,IF($D$220>0,$D$220*8%,0)) -> 5767.28
C222: =IF('Sources & Uses'!$D$42<>0,"Sources and Uses Are Out of Balance", "Sources & Uses Balanced") -> Sources & Uses Balanced

Sheet Documentation
L6: Return to Dashboard Report
C7: Respond below with Documentation as appropriate:

Sheet Trending 15 years
B1: =GeneralInfo!C6 -> Forest View Apartments | G1: Income Escalator | I1: 0.02 | K1: Expense Escalator | M1: 0.03
B2: =IF(SUM(F26:T26)>1,"Debt Coverage Ratio of Threshold Not Achieved in All 30 Years","Debt Coverage Ratio Thresdhold Achieved ") -> Debt Coverage Ratio Thresdhold Achieved
B3: Year number | F3: =1 -> 1 | G3: =F3+1 -> 2 | H3: =G3+1 -> 3 | I3: 4 | J3: 5 | K3: 6 | L3: 7 | M3: 8 | N3: 9 | O3: 10 | P3: 11 | Q3: 12 | R3: 13 | S3: 14 | T3: 15
B4: Calendar Year | F4: =YEAR(TODAY()) -> 2015 | G4: =F4+1 -> 2016 | H4: =G4+1 -> 2017 | I4: 2018 | J4: 2019 | K4: 2020 | L4: 2021 | M4: 2022 | N4: 2023 | O4: 2024 | P4: 2025 | Q4: 2026 | R4: 2027 | S4: 2028 | T4: 2029
A6: Gross Rental Income | F6: ='Rents & Operations'!I30 -> 238560 | G6: =F6*$I$1+F6 -> 243331.2 | H6: =G6*$I$1+G6 -> 248197.824 | I6: 253161.7805 | J6: 258225.0161 | K6: 263389.5164 | L6: 268657.3067 | M6: 274030.4529 | N6: 279511.0619 | O6: 285101.2832 | P6: 290803.3088 | Q6: 296619.375 | R6: 302551.7625 | S6: 308602.7978 | T6: 314774.8537
A7: Other Income - Apartments | F7: =SUM('Rents & Operations'!I32:I36) -> 0 | G7: =F7*$I$1+F7 -> 0 | H7: =G7*$I$1+G7 -> 0 | I7: 0 | J7: 0 | K7: 0 | L7: 0 | M7: 0 | N7: 0 | O7: 0 | P7: 0 | Q7: 0 | R7: 0 | S7: 0 | T7: 0
A8: Other Income - not from Apartments | F8: ='Rents & Operations'!I41 -> 0 | G8: =F8*$I$1+F8 -> 0 | H8: =G8*$I$1+G8 -> 0 | I8: 0 | J8: 0 | K8: 0 | L8: 0 | M8: 0 | N8: 0 | O8: 0 | P8: 0 | Q8: 0 | R8: 0 | S8: 0 | T8: 0
B9: Maximum Gross Income | F9: =SUM(F6:F8) -> 238560 | G9: =SUM(G6:G8) -> 243331.2 | H9: 248197.824 | I9: 253161.7805 | J9: 258225.0161 | K9: 263389.5164 | L9: 268657.3067 | M9: 274030.4529 | N9: 279511.0619 | O9: 285101.2832 | P9: 290803.3088 | Q9: 296619.375 | R9: 302551.7625 | S9: 308602.7978 | T9: 314774.8537
A11: less vacancy | E11: =F11/F6 -> -0.0564 | F11: ='Rents & Operations'!I37 -> -13454.784 | G11: =G6*$E$11 -> -13723.87968 | H11: =H6*$E$11 -> -13998.35727 | I11: -14278.32442 | J11: -14563.89091 | K11: -14855.16873 | L11: -15152.2721 | M11: -15455.31754 | N11: -15764.42389 | O11: -16079.71237 | P11: -16401.30662 | Q11: -16729.33275 | R11: -17063.91941 | S11: -17405.19779 | T11: -17753.30175
B12: Net Collected Income and Cash | F12: =SUM(F9,F11) -> 225105.216 | G12: =SUM(G9,G11) -> 229607.3203 | H12: 234199.4667 | I12: 238883.4561 | J12: 243661.1252 | K12: 248534.3477 | L12: 253505.0346 | M12: 258575.1353 | N12: 263746.638 | O12: 269021.5708 | P12: 274402.0022 | Q12: 279890.0423 | R12: 285487.8431 | S12: 291197.6 | T12: 297021.552
B13: (Less) Operating Expenses | F13: =-'Rents & Operations'!I48 -> -140051 | G13: =F13*$M$1+F13 -> -144252.53 | H13: =G13*$M$1+G13 -> -148580.1059 | I13: -153037.5091 | J13: -157628.6343 | K13: -162357.4934 | L13: -167228.2182 | M13: -172245.0647 | N13: -177412.4167 | O13: -182734.7892 | P13: -188216.8328 | Q13: -193863.3378 | R13: -199679.238 | S13: -205669.6151 | T13: -211839.7036
B14: Cash from Operations | F14: =SUM(F12:F13) -> 85054.216 | G14: =SUM(G12:G13) -> 85354.79032 | H14: 85619.36083 | I14: 85845.94698 | J14: 86032.49083 | K14: 86176.85431 | L14: 86276.81646 | M14: 86330.07061 | N14: 86334.22137 | O14: 86286.78163 | P14: 86185.16937 | Q14: 86026.70443 | R14: 85808.60514 | S14: 85527.98486 | T14: 85181.84841
B15: (Less) Transfer to Replacement Reserves | F15: =-'Rents & Operations'!I54 -> -12500 | G15: =F15*$M$1+F15 -> -12875 | H15: =G15*$M$1+G15 -> -13261.25 | I15: -13659.0875 | J15: -14068.86012 | K15: -14490.92593 | L15: -14925.65371 | M15: -15373.42332 | N15: -15834.62602 | O15: -16309.6648 | P15: -16798.95474 | Q15: -17302.92338 | R15: -17822.01109 | S15: -18356.67142 | T15: -18907.37156
B16: Net Operating Income after Reserves | F16: =SUM(F14:F15) -> 72554.216 | G16: =SUM(G14:G15) -> 72479.79032 | H16: 72358.11083 | I16: 72186.85948 | J16: 71963.63071 | K16: 71685.92838 | L16: 71351.16275 | M16: 70956.64729 | N16: 70499.59535 | O16: 69977.11683 | P16: 69386.21463 | Q16: 68723.78105 | R16: 67986.59406 | S16: 67171.31345 | T16: 66274.47685
A17: Debt Service
B18: RD | F18: =-'Rents & Operations'!$I$49 -> -28598.67584 | G18: =-'Rents & Operations'!$I$49 -> -28598.67584 | H18: =-'Rents & Operations'!$I$49 -> -28598.67584 | I18: =-'Rents & Operations'!$I$49 -> -28598.67584 | J18: =-'Rents & Operations'!$I$49 -> -28598.67584 | K18: =-'Rents & Operations'!$I$49 -> -28598.67584 | L18: =-'Rents & Operations'!$I$49 -> -28598.67584 | M18: =-'Rents & Operations'!$I$49 -> -28598.67584 | N18: =-'Rents & Operations'!$I$49 -> -28598.67584 | O18: =-'Rents & Operations'!$I$49 -> -28598.67584 | P18: =-'Rents & Operations'!$I$49 -> -28598.67584 | Q18: =-'Rents & Operations'!$I$49 -> -28598.67584 | R18: =-'Rents & Operations'!$I$49 -> -28598.67584 | S18: =-'Rents & Operations'!$I$49 -> -28598.67584 | T18: =-'Rents & Operations'!$I$49 -> -28598.67584
B19: Other Authorized Loans | F19: =-'Rents & Operations'!$I$58 -> -34165.00616 | G19: =-'Rents & Operations'!$I$58 -> -34165.00616 | H19: =-'Rents & Operations'!$I$58 -> -34165.00616 | I19: =-'Rents & Operations'!$I$58 -> -34165.00616 | J19: =-'Rents & Operations'!$I$58 -> -34165.00616 | K19: =-'Rents & Operations'!$I$58 -> -34165.00616 | L19: =-'Rents & Operations'!$I$58 -> -34165.00616 | M19: =-'Rents & Operations'!$I$58 -> -34165.00616 | N19: =-'Rents & Operations'!$I$58 -> -34165.00616 | O19: =-'Rents & Operations'!$I$58 -> -34165.00616 | P19: =-'Rents & Operations'!$I$58 -> -34165.00616 | Q19: =-'Rents & Operations'!$I$58 -> -34165.00616 | R19: =-'Rents & Operations'!$I$58 -> -34165.00616 | S19: =-'Rents & Operations'!$I$58 -> -34165.00616 | T19: =-'Rents & Operations'!$I$58 -> -34165.00616
A21: Remaining Cash Flow | F21: =SUM(F16:F19) -> 9790.534002 | G21: =SUM(G16:G19) -> 9716.108322 | H21: 9594.428828 | I21: 9423.177486 | J21: 9199.94871 | K21: 8922.246379 | L21: 8587.480753 | M21: 8192.96529 | N21: 7735.913355 | O21: 7213.434835 | P21: 6622.532632 | Q21: 5960.099049 | R21: 5222.912058 | S21: 4407.631448 | T21: 3510.794852
B22: RTO | F22: =-'Rents & Operations'!$I$55 -> -5767.28 | G22: =-'Rents & Operations'!$I$55 -> -5767.28 | H22: =-'Rents & Operations'!$I$55 -> -5767.28 | I22: =-'Rents & Operations'!$I$55 -> -5767.28 | J22: =-'Rents & Operations'!$I$55 -> -5767.28 | K22: =-'Rents & Operations'!$I$55 -> -5767.28 | L22: =-'Rents & Operations'!$I$55 -> -5767.28 | M22: =-'Rents & Operations'!$I$55 -> -5767.28 | N22: =-'Rents & Operations'!$I$55 -> -5767.28 | O22: =-'Rents & Operations'!$I$55 -> -5767.28 | P22: =-'Rents & Operations'!$I$55 -> -5767.28 | Q22: =-'Rents & Operations'!$I$55 -> -5767.28 | R22: =-'Rents & Operations'!$I$55 -> -5767.28 | S22: =-'Rents & Operations'!$I$55 -> -5767.28 | T22: =-'Rents & Operations'!$I$55 -> -5767.28
B23: Cushion | F23: =SUM(F21:F22) -> 4023.254002 | G23: =SUM(G21:G22) -> 3948.828322 | H23: 3827.148828 | I23: 3655.897486 | J23: 3432.66871 | K23: 3154.966379 | L23: 2820.200753 | M23: 2425.68529 | N23: 1968.633355 | O23: 1446.154835 | P23: 855.2526322 | Q23: 192.8190489 | R23: -544.3679423 | S23: -1359.648552 | T23: -2256.485148
B25: Debt Coverage. Ratio | F25: =ROUND(F16/(-F18+-F19),2) -> 1.16 | G25: =ROUND(G16/(-G18+-G19),2) -> 1.15 | H25: 1.15 | I25: 1.15 | J25: 1.15 | K25: 1.14 | L25: 1.14 | M25: 1.13 | N25: 1.12 | O25: 1.11 | P25: 1.11 | Q25: 1.09 | R25: 1.08 | S25: 1.07 | T25: 1.06
F26: =IF(F25<1.15,1,"") ->  | G26: =IF(G25<1.15,1,"") ->  | H26: =IF(H25<1.15,1,"") ->  | I26: =IF(I25<1.1,1,"") ->  | J26: =IF(J25<1.1,1,"") ->  | K26: =IF(K25<1,1,"") ->  | U26: =SUM(F26:T26) -> 0
B30: Year number | F30: =T3+1 -> 16 | G30: =F30+1 -> 17 | H30: 18 | I30: 19 | J30: 20 | K30: 21 | L30: 22 | M30: 23 | N30: 24 | O30: 25 | P30: 26 | Q30: 27 | R30: 28 | S30: 29 | T30: 30
B31: Calendar Year | F31: =T4+1 -> 2030 | G31: =F31+1 -> 2031 | H31: 2032 | I31: 2033 | J31: 2034 | K31: 2035 | L31: 2036 | M31: 2037 | N31: 2038 | O31: 2039 | P31: 2040 | Q31: 2041 | R31: 2042 | S31: 2043 | T31: 2044
A33: Gross Rental Income | F33: =T6*$I$1+T6 -> 321070.3508 | G33: =F33*$I$1+F33 -> 327491.7578 | H33: 334041.593 | I33: 340722.4248 | J33: 347536.8733 | K33: 354487.6108 | L33: 361577.363 | M33: 368808.9103 | N33: 376185.0885 | O33: 383708.7902 | P33: 391382.966 | Q33: 399210.6254 | R33: 407194.8379 | S33: 415338.7346 | T33: 423645.5093
A34: Other Income - Apartments | F34: =T7*$I$1+T7 -> 0 | G34: =F34*$I$1+F34 -> 0 | H34: 0 | I34: 0 | J34: 0 | K34: 0 | L34: 0 | M34: 0 | N34: 0 | O34: 0 | P34: 0 | Q34: 0 | R34: 0 | S34: 0 | T34: 0
A35: Other Income - not from Apartments | F35: =T8*$I$1+T8 -> 0 | G35: =F35*$I$1+F35 -> 0 | H35: 0 | I35: 0 | J35: 0 | K35: 0 | L35: 0 | M35: 0 | N35: 0 | O35: 0 | P35: 0 | Q35: 0 | R35: 0 | S35: 0 | T35: 0
B36: Maximum Gross Income | F36: =SUM(F33:F35) -> 321070.3508 | G36: 327491.7578 | H36: 334041.593 | I36: 340722.4248 | J36: 347536.8733 | K36: 354487.6108 | L36: 361577.363 | M36: 368808.9103 | N36: 376185.0885 | O36: 383708.7902 | P36: 391382.966 | Q36: 399210.6254 | R36: 407194.8379 | S36: 415338.7346 | T36: 423645.5093
A38: less vacancy | F38: =F33*$E$11 -> -18108.36778 | G38: -18470.53514 | H38: -18839.94584 | I38: -19216.74476 | J38: -19601.07966 | K38: -19993.10125 | L38: -20392.96327 | M38: -20800.82254 | N38: -21216.83899 | O38: -21641.17577 | P38: -22073.99928 | Q38: -22515.47927 | R38: -22965.78886 | S38: -23425.10463 | T38: -23893.60673
B39: Net Collected Income and Cash | F39: =SUM(F36,F38) -> 302961.983 | G39: 309021.2227 | H39: 315201.6471 | I39: 321505.6801 | J39: 327935.7937 | K39: 334494.5095 | L39: 341184.3997 | M39: 348008.0877 | N39: 354968.2495 | O39: 362067.6145 | P39: 369308.9668 | Q39: 376695.1461 | R39: 384229.049 | S39: 391913.63 | T39: 399751.9026
B40: (Less) Operating Expenses | F40: =T13*$M$1+T13 -> -218194.8947 | G40: =F40*$M$1+F40 -> -224740.7415 | H40: -231482.9637 | I40: -238427.4527 | J40: -245580.2762 | K40: -252947.6845 | L40: -260536.1151 | M40: -268352.1985 | N40: -276402.7645 | O40: -284694.8474 | P40: -293235.6928 | Q40: -302032.7636 | R40: -311093.7465 | S40: -320426.5589 | T40: -330039.3557
B41: Cash from Operations | F41: =SUM(F39:F40) -> 84767.08834 | G41: 84280.48116 | H41: 83718.68337 | I41: 83078.2274 | J41: 82355.51742 | K41: 81546.82501 | L41: 80648.28466 | M41: 79655.88921 | N41: 78565.48501 | O41: 77372.76706 | P41: 76073.27393 | Q41: 74662.38248 | R41: 73135.30249 | S41: 71487.07108 | T41: 69712.54691
B42: (Less) Transfer to Replacement Reserves | F42: =T15*$M$1+T15 -> -19474.59271 | G42: =F42*$M$1+F42 -> -20058.83049 | H42: -20660.5954 | I42: -21280.41327 | J42: -21918.82566 | K42: -22576.39043 | L42: -23253.68215 | M42: -23951.29261 | N42: -24669.83139 | O42: -25409.92633 | P42: -26172.22412 | Q42: -26957.39084 | R42: -27766.11257 | S42: -28599.09595 | T42: -29457.06883
B43: Net Operating Income after Reserves | F43: =SUM(F41:F42) -> 65292.49564 | G43: 64221.65068 | H43: 63058.08797 | I43: 61797.81414 | J43: 60436.69176 | K43: 58970.43458 | L43: 57394.60252 | M43: 55704.5966 | N43: 53895.65362 | O43: 51962.84073 | P43: 49901.04981 | Q43: 47704.99163 | R43: 45369.18992 | S43: 42887.97513 | T43: 40255.47808
A44: Debt Service
B45: RD | F45: =-'Rents & Operations'!$I$49 -> -28598.67584 | G45: =-'Rents & Operations'!$I$49 -> -28598.67584 | H45: =-'Rents & Operations'!$I$49 -> -28598.67584 | I45: =-'Rents & Operations'!$I$49 -> -28598.67584 | J45: =-'Rents & Operations'!$I$49 -> -28598.67584 | K45: =-'Rents & Operations'!$I$49 -> -28598.67584 | L45: =-'Rents & Operations'!$I$49 -> -28598.67584 | M45: =-'Rents & Operations'!$I$49 -> -28598.67584 | N45: =-'Rents & Operations'!$I$49 -> -28598.67584 | O45: =-'Rents & Operations'!$I$49 -> -28598.67584 | P45: =-'Rents & Operations'!$I$49 -> -28598.67584 | Q45: =-'Rents & Operations'!$I$49 -> -28598.67584 | R45: =-'Rents & Operations'!$I$49 -> -28598.67584 | S45: =-'Rents & Operations'!$I$49 -> -28598.67584 | T45: =-'Rents & Operations'!$I$49 -> -28598.67584
B46: Other Authorized Loans | F46: =-'Rents & Operations'!$I$58 -> -34165.00616 | G46: =-'Rents & Operations'!$I$58 -> -34165.00616 | H46: =-'Rents & Operations'!$I$58 -> -34165.00616 | I46: =-'Rents & Operations'!$I$58 -> -34165.00616 | J46: =-'Rents & Operations'!$I$58 -> -34165.00616 | K46: =-'Rents & Operations'!$I$58 -> -34165.00616 | L46: =-'Rents & Operations'!$I$58 -> -34165.00616 | M46: =-'Rents & Operations'!$I$58 -> -34165.00616 | N46: =-'Rents & Operations'!$I$58 -> -34165.00616 | O46: =-'Rents & Operations'!$I$58 -> -34165.00616 | P46: =-'Rents & Operations'!$I$58 -> -34165.00616 | Q46: =-'Rents & Operations'!$I$58 -> -34165.00616 | R46: =-'Rents & Operations'!$I$58 -> -34165.00616 | S46: =-'Rents & Operations'!$I$58 -> -34165.00616 | T46: =-'Rents & Operations'!$I$58 -> -34165.00616
A48: Remaining Cash Flow | F48: =SUM(F43:F46) -> 2528.813638 | G48: 1457.968677 | H48: 294.4059705 | I48: -965.8678616 | J48: -2326.990238 | K48: -3793.247422 | L48: -5369.07948 | M48: -7059.085402 | N48: -8868.028381 | O48: -10800.84127 | P48: -12862.63219 | Q48: -15058.69036 | R48: -17394.49208 | S48: -19875.70687 | T48: -22508.20391
B49: RTO | F49: =-'Rents & Operations'!$I$55 -> -5767.28 | G49: =-'Rents & Operations'!$I$55 -> -5767.28 | H49: =-'Rents & Operations'!$I$55 -> -5767.28 | I49: =-'Rents & Operations'!$I$55 -> -5767.28 | J49: =-'Rents & Operations'!$I$55 -> -5767.28 | K49: =-'Rents & Operations'!$I$55 -> -5767.28 | L49: =-'Rents & Operations'!$I$55 -> -5767.28 | M49: =-'Rents & Operations'!$I$55 -> -5767.28 | N49: =-'Rents & Operations'!$I$55 -> -5767.28 | O49: =-'Rents & Operations'!$I$55 -> -5767.28 | P49: =-'Rents & Operations'!$I$55 -> -5767.28 | Q49: =-'Rents & Operations'!$I$55 -> -5767.28 | R49: =-'Rents & Operations'!$I$55 -> -5767.28 | S49: =-'Rents & Operations'!$I$55 -> -5767.28 | T49: =-'Rents & Operations'!$I$55 -> -5767.28
B50: Cushion | F50: =SUM(F48:F49) -> -3238.466362 | G50: -4309.311323 | H50: -5472.874029 | I50: -6733.147862 | J50: -8094.270238 | K50: -9560.527422 | L50: -11136.35948 | M50: -12826.3654 | N50: -14635.30838 | O50: -16568.12127 | P50: -18629.91219 | Q50: -20825.97036 | R50: -23161.77208 | S50: -25642.98687 | T50: -28275.48391
B52: Debt Coverage. Ratio | F52: =ROUND(F43/(-F45+-F46),2) -> 1.04 | G52: =ROUND(G43/(-G45+-G46),2) -> 1.02 | H52: 1 | I52: 0.98 | J52: 0.96 | K52: 0.94 | L52: 0.91 | M52: 0.89 | N52: 0.86 | O52: 0.83 | P52: 0.8 | Q52: 0.76 | R52: 0.72 | S52: 0.68 | T52: 0.64
F53: =IF(F52<1.15,1,"") -> 1 | G53: 1 | H53: 1 | I53: 1 | J53: 1 | K53: 1 | L53: 1 | M53: 1 | N53: 1 | O53: 1 | P53: 1 | Q53: 1 | R53: 1 | S53: 1 | T53: 1

Sheet AgencyReviewPortal
J2: Portal Page for Agency Underwriting Template | AA2: Re-Hides Admin Pages
G3: UnHide Agency Review Features | L3: ReHide Agency Review Features
J4: Additonal Features are availble for Agency Review and Underwriting
J5: Pages and brief descritpion and how used are listed below
Y6: Unhides Admin Pages
G9: Page | J9: Description | L9: How Used
G10: XferArchivePreMPR | J10: This Page will Archive the Rents & Operations when the MPR debt Deferral Option is Used Stores information to allow reporting of how the Agency's Debt Deferral was used for the Transaction | L10: For Review of How MPR Deferral was Used. Reduced Rents, Increased Rehab / Loans
G11: CNA Site | J11: These Pages contain Raw Data from the CNA Pages. imports all pages of the CNA for up to 6 properties with buttons on the "Instructions" page. Individual sheets of the CNAs can be edited by staff to move repair schedule for underwriting. Added table on "Reserve Sizing Page" to show Underwriters changes to CNA schedule which are made on CNA sheet pages. | L11: Review to assure all necessary repairs have been captued with the rehab. If to the advantage of the Gov and Tenants, alter the schedule within good judgement.
G12: CNA Architectural
G13: CNA Mech & Electric
G14: CNA Dwelling Units
G15: CNA Archive | J15: The Page will Archive up to 6 CNAs upon import. | L15: Reference should the CNA be altered for underwriting. Provides Conditional format of cells changed on each page
G16: MPR Staff Only | J16: MPR Selection Under 2014 NOFA: Contains Tool Box of Agency Loans | L16: If funds available and in the best interest of the Government; make selection for rehab loans from the tool box.
G17: QA | J17: QA Sheet has list of Questions about the Transaction for the State to Complete along with comments for known issues | L17: State to fill this sheet for Review Underwriter's Review.
G18: QA Analysis | J18: QA Analysis Page will provide Data for reporting out to Committee and making Portfolio and Annual Reports | L18: Review for Accuracy of the template and deal

Sheet CNAExeSum (hidden)
E3: Executive Summary
B5: Project: | C5: Forest View Apartments | J5: 36
C7: 1 | D7: 2 | E7: 3 | F7: 4 | G7: 5 | H7: 6 | I7: 7 | J7: 8 | K7: 9 | L7: 10 | M7: 11 | N7: 12 | O7: 13 | P7: 14 | Q7: 15 | R7: 16 | S7: 17 | T7: 18 | U7: 19 | V7: 20
A8: Item | B8: H & S | C8: 2015 | D8: 2016 | E8: 2017 | F8: 2018 | G8: 2019 | H8: 2020 | I8: 2021 | J8: 2022 | K8: 2023 | L8: 2024 | M8: 2025 | N8: 2026 | O8: 2027 | P8: 2028 | Q8: 2029 | R8: 2030 | S8: 2031 | T8: 2032 | U8: 2033 | V8: 2034 | W8: Total
A9: Site | B9: 0 | C9: 0 | D9: 0 | E9: 0 | F9: 0 | G9: 0 | H9: 0 | I9: 3750 | J9: 0 | K9: 0 | L9: 0 | M9: 6000 | N9: 2000 | O9: 0 | P9: 3750 | Q9: 0 | R9: 0 | S9: 0 | T9: 0 | U9: 0 | V9: 5000 | W9: 20500
A10: Architecture | B10: 0 | C10: 0 | D10: 0 | E10: 0 | F10: 0 | G10: 0 | H10: 0 | I10: 0 | J10: 0 | K10: 0 | L10: 0 | M10: 0 | N10: 0 | O10: 0 | P10: 0 | Q10: 16000 | R10: 0 | S10: 0 | T10: 0 | U10: 0 | V10: 0 | W10: 16000
A11: Mech & Electric | B11: 0 | C11: 0 | D11: 0 | E11: 0 | F11: 0 | G11: 0 | H11: 0 | I11: 0 | J11: 0 | K11: 0 | L11: 0 | M11: 0 | N11: 0 | O11: 0 | P11: 0 | Q11: 0 | R11: 0 | S11: 0 | T11: 0 | U11: 0 | V11: 0 | W11: 0
A12: Dwelling Units | B12: 0 | C12: 0 | D12: 0 | E12: 0 | F12: 0 | G12: 0 | H12: 0 | I12: 11400 | J12: 11400 | K12: 11400 | L12: 9000 | M12: 13800 | N12: 13800 | O12: 10200 | P12: 11400 | Q12: 55873 | R12: 55873 | S12: 44473 | T12: 25200 | U12: 25200 | V12: 5400 | W12: 304419
A13: Uninflated Totals | B13: 0 | C13: 0 | D13: 0 | E13: 0 | F13: 0 | G13: 0 | H13: 0 | I13: 15150 | J13: 11400 | K13: 11400 | L13: 9000 | M13: 19800 | N13: 15800 | O13: 10200 | P13: 15150 | Q13: 71873 | R13: 55873 | S13: 44473 | T13: 25200 | U13: 25200 | V13: 10400 | W13: 340919
A14: Inflation Factor (3%) | B14: 1 | C14: 1 | D14: 1.03 | E14: 1.0609 | F14: 1.092727 | G14: 1.12550881 | H14: 1.159274074 | I14: 1.194052297 | J14: 1.229873865 | K14: 1.266770081 | L14: 1.304773184 | M14: 1.343916379 | N14: 1.384233871 | O14: 1.425760887 | P14: 1.468533713 | Q14: 1.512589725 | R14: 1.557967417 | S14: 1.604706439 | T14: 1.652847632 | U14: 1.702433061 | V14: 1.753506053
A15: Inflated Totals | B15: 0 | C15: 0 | D15: 0 | E15: 0 | F15: 0 | G15: 0 | H15: 0 | I15: 18089.89229 | J15: 14020.56207 | K15: 14441.17893 | L15: 11742.95865 | M15: 26609.54431 | N15: 21870.89516 | O15: 14542.76105 | P15: 22248.28576 | Q15: 108714.3613 | R15: 87048.31347 | S15: 71366.10947 | T15: 41651.76033 | U15: 42901.31314 | V15: 18236.46295 | W15: 513484.4

Sheet CNASite (hidden)
M5: Site - Sum of all CNAs with Changes by Underwriter - Site
M6: Year | N6: 0 | O6: 1 | P6: 2 | Q6: 3 | R6: 4 | S6: 5 | T6: 6 | U6: 7 | V6: 8 | W6: 9 | X6: 10 | Y6: 11 | Z6: 12 | AA6: 13 | AB6: 14 | AC6: 15 | AD6: 16 | AE6: 17 | AF6: 18 | AG6: 19 | AH6: 20
M7: Item | N7: =N12 -> H & S | O7: =O12 -> 2015 | P7: 2016 | Q7: 2017 | R7: 2018 | S7: 2019 | T7: 2020 | U7: 2021 | V7: 2022 | W7: 2023 | X7: 2024 | Y7: 2025 | Z7: 2026 | AA7: 2027 | AB7: 2028 | AC7: 2029 | AD7: 2030 | AE7: 2031 | AF7: 2032 | AG7: 2033 | AH7: 2034 | AI7: Total
M8: Uninflated Totals | N8: =SUM(N13:N500) -> 0 | O8: =SUM(O13:O500) -> 0 | P8: 0 | Q8: 0 | R8: 0 | S8: 0 | T8: 0 | U8: 3750 | V8: 0 | W8: 0 | X8: 0 | Y8: 6000 | Z8: 2000 | AA8: 0 | AB8: 3750 | AC8: 0 | AD8: 0 | AE8: 0 | AF8: 0 | AG8: 0 | AH8: 5000 | AI8: =SUM(N8:AH8) -> 20500
M9: Inflation Factor (3%) | N9: 1 | O9: 1 | P9: 1.03 | Q9: 1.0609 | R9: 1.092727 | S9: 1.12550881 | T9: 1.159274074 | U9: 1.194052297 | V9: 1.229873865 | W9: 1.266770081 | X9: 1.304773184 | Y9: 1.343916379 | Z9: 1.384233871 | AA9: 1.425760887 | AB9: 1.468533713 | AC9: 1.512589725 | AD9: 1.557967417 | AE9: 1.604706439 | AF9: 1.652847632 | AG9: 1.702433061 | AH9: 1.753506053
M10: Inflated Totals | N10: =N8*N9 -> 0 | O10: =O8*O9 -> 0 | P10: 0 | Q10: 0 | R10: 0 | S10: 0 | T10: 0 | U10: 4477.696112 | V10: 0 | W10: 0 | X10: 0 | Y10: 8063.498276 | Z10: 2768.467741 | AA10: 0 | AB10: 5507.001425 | AC10: 0 | AD10: 0 | AE10: 0 | AF10: 0 | AG10: 0 | AH10: 8767.530265 | AI10: =SUM(N10:AH10) -> 29584.19382
A11: Forest View Apartments
A12: Item | B12: EUL | C12: AGE | D12: RUL | E12: Cond | F12: Action | G12: DUR | H12: QTY | I12: Unit | J12: Cost | K12: Cost | L12: Comments | M12: Item | N12: H & S | O12: 2015 | P12: 2016 | Q12: 2017 | R12: 2018 | S12: 2019 | T12: 2020 | U12: 2021 | V12: 2022 | W12: 2023 | X12: 2024 | Y12: 2025 | Z12: 2026 | AA12: 2027 | AB12: 2028 | AC12: 2029 | AD12: 2030 | AE12: 2031 | AF12: 2032 | AG12: 2033 | AH12: 2034
A13: Mail Facilities | B13: 20 | C13: 0 | D13: 20 | E13: Good | F13: Maintain | G13: 0 | H13: 1 | I13: ea | J13: 5000 | K13: 5000 | L13: No issues with the mail center were noted | M13: Mail Facilities | N13: 0 | P13: 0 | Q13: 0 | R13: 0 | S13: 0 | T13: 0 | U13: 0 | V13: 0 | W13: 0 | Y13: 0 | Z13: 0 | AA13: 0 | AB13: 0 | AC13: 0 | AD13: 0 | AE13: 0 | AF13: 0 | AG13: 0 | AH13: 0 | AI13: =SUM(N13:AH13) -> 0
A14: Roadways: Asphalt (Sealing) | B14: 5 | C14: 0 | D14: 5 | E14: Good | F14: Repair | G14: 1 | H14: 2500 | I14: sy | J14: 1.5 | K14: 3750 | L14: Seal, stripe | M14: Roadways: Asphalt (Sealing) | N14: 0 | P14: 0 | Q14: 0 | R14: 0 | S14: 0 | U14: 3750 | V14: 0 | W14: 0 | X14: 0 | Z14: 0 | AA14: 0 | AB14: 3750 | AC14: 0 | AF14: 0 | AG14: 0 | AH14: 0 | AI14: 7500
A15: Parking: Asphalt | B15: 25 | C15: 0 | D15: 25 | E15: Good | F15: Maintain | G15: 0 | H15: 2500 | I15: sy | J15: 23 | K15: 57500 | L15: Overlay is a part of the planned renovation | M15: Parking: Asphalt | N15: 0 | P15: 0 | Q15: 0 | R15: 0 | S15: 0 | T15: 0 | U15: 0 | V15: 0 | X15: 0 | Y15: 0 | Z15: 0 | AA15: 0 | AB15: 0 | AC15: 0 | AD15: 0 | AE15: 0 | AF15: 0 | AG15: 0 | AH15: 0 | AI15: 0
A16: HC Parking | B16: 25 | C16: 0 | D16: 25 | E16: Good | F16: Maintain | G16: 0 | H16: 6 | I16: ea | K16: 0 | L16: Handicapped parking was a part of the planned renovation | M16: HC Parking | N16: 0 | P16: 0 | Q16: 0 | R16: 0 | S16: 0 | T16: 0 | U16: 0 | V16: 0 | W16: 0 | X16: 0 | Y16: 0 | Z16: 0 | AA16: 0 | AB16: 0 | AC16: 0 | AD16: 0 | AE16: 0 | AF16: 0 | AG16: 0 | AH16: 0 | AI16: 0
A17: Curb Ramps | B17: 30 | C17: 0 | D17: 30 | E17: Good | F17: Maintain | G17: 0 | H17: 4 | I17: ea | K17: 0 | L17: Re-working of ramps is a part of the planned renovation | M17: Curb Ramps | N17: 0 | P17: 0 | Q17: 0 | R17: 0 | S17: 0 | T17: 0 | U17: 0 | V17: 0 | W17: 0 | X17: 0 | Y17: 0 | Z17: 0 | AA17: 0 | AB17: 0 | AC17: 0 | AD17: 0 | AE17: 0 | AF17: 0 | AG17: 0 | AH17: 0 | AI17: 0
A18: Pedestrian Paving: Concrete | B18: 30 | C18: 16 | D18: 20 | E18: Good | F18: Maintain | G18: 0 | I18: sf | K18: 0 | L18: Concrete sidewalks are in good overall condition. Grinding activities have been completed at previous trip hazard areas. We included some costs during the term for future repairs | M18: Pedestrian Paving: Concrete | N18: 0 | P18: 0 | Q18: 0 | R18: 0 | S18: 0 | T18: 0 | U18: 0 | V18: 0 | W18: 0 | X18: 0 | Y18: 0 | Z18: 2000 | AA18: 0 | AB18: 0 | AC18: 0 | AD18: 0 | AE18: 0 | AF18: 0 | AG18: 0 | AH18: 0 | AI18: 2000
A19: Dumpster Enclosure | B19: 10 | C19: 0 | D19: 10 | E19: Good | F19: Maintain | G19: 0 | H19: 1 | J19: 1000 | K19: 1000 | L19: Repair dumpster enclosures | M19: Dumpster Enclosure | N19: 0 | P19: 0 | Q19: 0 | R19: 0 | S19: 0 | T19: 0 | U19: 0 | V19: 0 | W19: 0 | X19: 0 | Y19: 1000 | Z19: 0 | AA19: 0 | AB19: 0 | AC19: 0 | AD19: 0 | AE19: 0 | AF19: 0 | AG19: 0 | AH19: 0 | AI19: 1000
A20: Earthwork | B20: 50 | C20: 16 | D20: 34 | E20: Good | F20: Maintain | G20: 0 | H20: 1 | I20: ea | K20: 0 | L20: No drainage or erosion problems were noted | M20: Earthwork | N20: 0 | P20: 0 | Q20: 0 | R20: 0 | S20: 0 | T20: 0 | U20: 0 | V20: 0 | W20: 0 | X20: 0 | Y20: 0 | Z20: 0 | AA20: 0 | AB20: 0 | AC20: 0 | AD20: 0 | AE20: 0 | AF20: 0 | AG20: 0 | AH20: 0 | AI20: 0
A21: Landscaping | B21: 50 | C21: 16 | D21: 34 | E21: Good | F21: Repair | G21: 0 | H21: 1 | I21: ea | J21: 5000 | K21: 5000 | L21: Prune trees & cover bare yard areas | M21: Landscaping | N21: 0 | P21: 0 | Q21: 0 | R21: 0 | T21: 0 | U21: 0 | V21: 0 | W21: 0 | X21: 0 | Y21: 5000 | Z21: 0 | AA21: 0 | AB21: 0 | AC21: 0 | AD21: 0 | AE21: 0 | AF21: 0 | AG21: 0 | AH21: 5000 | AI21: 10000
A22: Site Lighting | B22: 25 | C22: 0 | D22: 25 | E22: Good | F22: Maintain | G22: 0 | H22: 5 | I22: ea | J22: 600 | K22: 3000 | L22: Replace existing lighting fixtures | M22: Site Lighting | N22: 0 | O22: 0 | P22: 0 | Q22: 0 | R22: 0 | S22: 0 | T22: 0 | U22: 0 | V22: 0 | W22: 0 | X22: 0 | Y22: 0 | Z22: 0 | AA22: 0 | AB22: 0 | AC22: 0 | AD22: 0 | AE22: 0 | AF22: 0 | AG22: 0 | AH22: 0 | AI22: 0

Sheet CNAArchitectural (hidden)
M5: Architectural - Sum of all CNAs with Changes by Underwriter - Architectural
M6: Year | N6: 0 | O6: 1 | P6: 2 | Q6: 3 | R6: 4 | S6: 5 | T6: 6 | U6: 7 | V6: 8 | W6: 9 | X6: 10 | Y6: 11 | Z6: 12 | AA6: 13 | AB6: 14 | AC6: 15 | AD6: 16 | AE6: 17 | AF6: 18 | AG6: 19 | AH6: 20
M7: Item | N7: =N12 -> H & S | O7: =O12 -> 2015 | P7: 2016 | Q7: 2017 | R7: 2018 | S7: 2019 | T7: 2020 | U7: 2021 | V7: 2022 | W7: 2023 | X7: 2024 | Y7: 2025 | Z7: 2026 | AA7: 2027 | AB7: 2028 | AC7: 2029 | AD7: 2030 | AE7: 2031 | AF7: 2032 | AG7: 2033 | AH7: 2034 | AI7: =AI12 -> 0
M8: Uninflated Totals | N8: =SUM(N13:N500) -> 0 | O8: =SUM(O13:O500) -> 10000 | P8: 0 | Q8: 0 | R8: 0 | S8: 0 | T8: 0 | U8: 0 | V8: 0 | W8: 0 | X8: 0 | Y8: 0 | Z8: 0 | AA8: 0 | AB8: 0 | AC8: 16000 | AD8: 0 | AE8: 0 | AF8: 0 | AG8: 0 | AH8: 0 | AI8: =SUM(N8:AH8) -> 26000 | AJ8: =SUM(N11:AH488) -> 66490
M9: Inflation Factor (3%) | N9: 1 | O9: 1 | P9: 1.03 | Q9: 1.0609 | R9: 1.092727 | S9: 1.12550881 | T9: 1.159274074 | U9: 1.194052297 | V9: 1.229873865 | W9: 1.266770081 | X9: 1.304773184 | Y9: 1.343916379 | Z9: 1.384233871 | AA9: 1.425760887 | AB9: 1.468533713 | AC9: 1.512589725 | AD9: 1.557967417 | AE9: 1.604706439 | AF9: 1.652847632 | AG9: 1.702433061 | AH9: 1.753506053
M10: Inflated Totals | N10: =N8*N9 -> 0 | O10: =O8*O9 -> 10000 | P10: 0 | Q10: 0 | R10: 0 | S10: 0 | T10: 0 | U10: 0 | V10: 0 | W10: 0 | X10: 0 | Y10: 0 | Z10: 0 | AA10: 0 | AB10: 0 | AC10: 24201.4356 | AD10: 0 | AE10: 0 | AF10: 0 | AG10: 0 | AH10: 0 | AI10: =SUM(N10:AH10) -> 34201.4356
A11: Forest View Apartments
A12: Item | B12: EUL | C12: AGE | D12: RUL | E12: Cond | F12: Action | G12: DUR | H12: QTY | I12: Unit | J12: Cost | K12: Cost | L12: Comments | M12: Item | N12: H & S | O12: 2015 | P12: 2016 | Q12: 2017 | R12: 2018 | S12: 2019 | T12: 2020 | U12: 2021 | V12: 2022 | W12: 2023 | X12: 2024 | Y12: 2025 | Z12: 2026 | AA12: 2027 | AB12: 2028 | AC12: 2029 | AD12: 2030 | AE12: 2031 | AF12: 2032 | AG12: 2033 | AH12: 2034
A13: Roof Covering: Asphalt Shingles | B13: 25 | C13: 1 | D13: 24 | E13: Excellent | F13: No Action | G13: 0 | H13: 0 | I13: 0 | J13: 0 | K13: 0 | L13: Roofing shingles were reportedly replaced 1 year prior to our site visit | M13: Roof Covering: Asphalt Shingles | N13: 0 | O13: 10000 | P13: 0 | Q13: 0 | R13: 0 | S13: 0 | T13: 0 | U13: 0 | V13: 0 | W13: 0 | X13: 0 | Y13: 0 | Z13: 0 | AA13: 0 | AB13: 0 | AC13: 0 | AD13: 0 | AE13: 0 | AF13: 0 | AG13: 0 | AH13: 0 | AI13: =SUM(N13:AH13) -> 10000
A14: Roof Drainage Exterior (gutter and downspout) | B14: 25 | C14: 0 | D14: 25 | E14: Good | F14: Construct | G14: 0 | H14: 3500 | I14: lf | J14: 8 | K14: 28000 | L14: Installation of gutters and downspouts are a part of the planned renovation | M14: Roof Drainage Exterior (gutter and downspout) | N14: 0 | P14: 0 | Q14: 0 | R14: 0 | S14: 0 | T14: 0 | U14: 0 | V14: 0 | W14: 0 | X14: 0 | Y14: 0 | Z14: 0 | AA14: 0 | AB14: 0 | AC14: 0 | AD14: 0 | AE14: 0 | AF14: 0 | AG14: 0 | AH14: 0 | AI14: 0
A15: Soffits: Aluminum or Vinyl | B15: 25 | C15: 0 | D15: 25 | E15: Good | F15: Maintain | G15: 0 | H15: 2200 | I15: sf | J15: 4 | K15: 8800 | L15: Soffits and fascia replaclement are a part of the planned renovation | M15: Soffits: Aluminum or Vinyl | N15: 0 | P15: 0 | Q15: 0 | R15: 0 | S15: 0 | T15: 0 | U15: 0 | V15: 0 | X15: 0 | Y15: 0 | Z15: 0 | AA15: 0 | AB15: 0 | AC15: 0 | AD15: 0 | AE15: 0 | AF15: 0 | AG15: 0 | AH15: 0 | AI15: 0
A16: Exterior Walls: Brick or Block | B16: 40 | C16: 16 | D16: 24 | E16: Good | F16: Maintain | G16: 0 | I16: sf | J16: 4 | K16: 0 | L16: The masonry/brick is in good overall condition and will exceed the EUL - no required repairs noted | M16: Exterior Walls: Brick or Block | N16: 0 | P16: 0 | Q16: 0 | R16: 0 | S16: 0 | T16: 0 | U16: 0 | V16: 0 | W16: 0 | X16: 0 | Y16: 0 | Z16: 0 | AA16: 0 | AB16: 0 | AC16: 0 | AD16: 0 | AE16: 0 | AF16: 0 | AG16: 0 | AH16: 0 | AI16: 0
A17: Exterior Walls: Cementious Siding | B17: 20 | C17: 0 | D17: 20 | E17: Good | F17: Maintain | G17: 0 | H17: 10000 | I17: sf | J17: 1 | K17: 10000 | L17: Cementious siding was installation is a part of the planned renovation. Painting will be required throughout the term | M17: Exterior Walls: Cementious Siding | N17: 0 | P17: 0 | Q17: 0 | R17: 0 | S17: 0 | T17: 0 | U17: 0 | V17: 0 | W17: 0 | Y17: 0 | Z17: 0 | AA17: 0 | AB17: 0 | AC17: 10000 | AE17: 0 | AF17: 0 | AG17: 0 | AH17: 0 | AI17: 10000
A18: Exterior Unit Doors | B18: 25 | C18: 0 | D18: 25 | E18: Good | F18: Maintain | G18: 0 | H18: 70 | I18: ea | J18: 350 | K18: 24500 | L18: Wholesale replacement of all exterior doors including Leasing Office is a part of the planned renovation | M18: Exterior Unit Doors | N18: 0 | R18: 0 | S18: 0 | T18: 0 | U18: 0 | V18: 0 | Z18: 0 | AA18: 0 | AB18: 0 | AC18: 0 | AD18: 0 | AE18: 0 | AF18: 0 | AG18: 0 | AH18: 0 | AI18: 0
A19: Windows (Frames and Glazing) | B19: 30 | C19: 0 | D19: 30 | E19: Good | F19: Maintain | G19: 0 | H19: 96 | I19: ea | J19: 290 | K19: 27840 | L19: Window replacement is a part of the planned renovation | M19: Windows (Frames and Glazing) | N19: 0 | R19: 0 | S19: 0 | T19: 0 | U19: 0 | Y19: 0 | Z19: 0 | AA19: 0 | AE19: 0 | AF19: 0 | AG19: 0 | AH19: 0 | AI19: 0
A20: Stair Structure | B20: 50 | C20: 0 | D20: 50 | E20: Good | F20: Maintain | G20: 0 | H20: 5 | I20: ea | K20: 0 | L20: Metal stairs are in good condition - additions to current code are a part of the planned renovation | M20: Stair Structure | N20: 0 | P20: 0 | Q20: 0 | R20: 0 | S20: 0 | T20: 0 | U20: 0 | V20: 0 | W20: 0 | X20: 0 | Y20: 0 | Z20: 0 | AA20: 0 | AB20: 0 | AC20: 0 | AD20: 0 | AE20: 0 | AF20: 0 | AG20: 0 | AH20: 0 | AI20: 0
A21: Building Mounted Exterior Lighting | B21: 15 | C21: 0 | D21: 15 | E21: Good | F21: Maintain | G21: 0 | H21: 12 | I21: ea | J21: 500 | K21: 6000 | L21: Lighting upgrade and replacement is a part of the planned renovation | M21: Building Mounted Exterior Lighting | N21: 0 | P21: 0 | Q21: 0 | R21: 0 | S21: 0 | T21: 0 | U21: 0 | V21: 0 | W21: 0 | X21: 0 | Y21: 0 | Z21: 0 | AA21: 0 | AB21: 0 | AC21: 6000 | AD21: 0 | AE21: 0 | AF21: 0 | AG21: 0 | AH21: 0 | AI21: 6000

Sheet CNAMech & Electric (hidden)
M5: Mech & Electric - Sum of all CNAs with Changes by Underwriter - Mech & Electric
M6: Year | N6: 0 | O6: 1 | P6: 2 | Q6: 3 | R6: 4 | S6: 5 | T6: 6 | U6: 7 | V6: 8 | W6: 9 | X6: 10 | Y6: 11 | Z6: 12 | AA6: 13 | AB6: 14 | AC6: 15 | AD6: 16 | AE6: 17 | AF6: 18 | AG6: 19 | AH6: 20
M7: Item | N7: =N12 -> H & S | O7: =O12 -> 2015 | P7: 2016 | Q7: 2017 | R7: 2018 | S7: 2019 | T7: 2020 | U7: 2021 | V7: 2022 | W7: 2023 | X7: 2024 | Y7: 2025 | Z7: 2026 | AA7: 2027 | AB7: 2028 | AC7: 2029 | AD7: 2030 | AE7: 2031 | AF7: 2032 | AG7: 2033 | AH7: 2034 | AI7: 0
M8: Uninflated Totals | N8: =SUM(N13:N500) -> 1 | O8: =SUM(O13:O500) -> 1 | P8: 1.03 | Q8: 1.0609 | R8: 1.092727 | S8: 1.12550881 | T8: 1.159274074 | U8: 1.194052297 | V8: 1.229873865 | W8: 1.266770081 | X8: 1.304773184 | Y8: 1.343916379 | Z8: 1.384233871 | AA8: 1.425760887 | AB8: 1.468533713 | AC8: 1.512589725 | AD8: 1.557967417 | AE8: 1.604706439 | AF8: 1.652847632 | AG8: 1.702433061 | AH8: 1.753506053 | AI8: =SUM(N8:AH8) -> 27.87037449
M9: Inflation Factor (3%) | N9: 1 | O9: 1 | P9: 1.03 | Q9: 1.0609 | R9: 1.092727 | S9: 1.12550881 | T9: 1.159274074 | U9: 1.194052297 | V9: 1.229873865 | W9: 1.266770081 | X9: 1.304773184 | Y9: 1.343916379 | Z9: 1.384233871 | AA9: 1.425760887 | AB9: 1.468533713 | AC9: 1.512589725 | AD9: 1.557967417 | AE9: 1.604706439 | AF9: 1.652847632 | AG9: 1.702433061 | AH9: 1.753506053
M10: Inflated Totals | N10: =N8*N9 -> 1 | O10: =O8*O9 -> 1 | P10: 1.0609 | Q10: 1.12550881 | R10: 1.194052297 | S10: 1.266770081 | T10: 1.343916379 | U10: 1.425760887 | V10: 1.512589725 | W10: 1.604706439 | X10: 1.702433061 | Y10: 1.806111235 | Z10: 1.916103409 | AA10: 2.032794106 | AB10: 2.156591268 | AC10: 2.287927676 | AD10: 2.427262471 | AE10: 2.575082756 | AF10: 2.731905296 | AG10: 2.898278328 | AH10: 3.074783478 | AI10: =SUM(N10:AH10) -> 38.1434777
A11: Forest View Apartments
A12: Item | B12: EUL | C12: AGE | D12: RUL | E12: Cond | F12: Action | G12: DUR | H12: QTY | I12: Unit | J12: Cost | K12: Cost | L12: Comments | M12: Item | N12: H & S | O12: 2015 | P12: 2016 | Q12: 2017 | R12: 2018 | S12: 2019 | T12: 2020 | U12: 2021 | V12: 2022 | W12: 2023 | X12: 2024 | Y12: 2025 | Z12: 2026 | AA12: 2027 | AB12: 2028 | AC12: 2029 | AD12: 2030 | AE12: 2031 | AF12: 2032 | AG12: 2033 | AH12: 2034 | AI12: =SUM(N13:AH13) -> 0
B13: 0 | C13: 0 | D13: 0 | G13: 0 | H13: 0 | I13: ea | J13: 0 | K13: 0 | N13: 0 | O13: 0 | P13: 0 | Q13: 0 | R13: 0 | S13: 0 | T13: 0 | U13: 0 | V13: 0 | W13: 0 | X13: 0 | Y13: 0 | Z13: 0 | AA13: 0 | AB13: 0 | AC13: 0 | AD13: 0 | AE13: 0 | AF13: 0 | AG13: 0 | AH13: 0 | AI13: 0
B14: 0 | C14: 0 | D14: 0 | G14: 0 | H14: 0 | I14: ea | J14: 0 | K14: 0 | N14: 0 | O14: 0 | P14: 0 | Q14: 0 | R14: 0 | S14: 0 | T14: 0 | U14: 0 | V14: 0 | W14: 0 | X14: 0 | Y14: 0 | Z14: 0 | AA14: 0 | AB14: 0 | AC14: 0 | AD14: 0 | AE14: 0 | AF14: 0 | AG14: 0 | AH14: 0
M15: Uninflated Totals | N15: 0 | O15: 0 | P15: 0 | Q15: 0 | R15: 0 | S15: 0 | T15: 0 | U15: 0 | V15: 0 | W15: 0 | X15: 0 | Y15: 0 | Z15: 0 | AA15: 0 | AB15: 0 | AC15: 0 | AD15: 0 | AE15: 0 | AF15: 0 | AG15: 0 | AH15: 0
M16: Inflation Factor (3%) | N16: 1 | O16: 1 | P16: 1.03 | Q16: 1.0609 | R16: 1.092727 | S16: 1.12550881 | T16: 1.159274074 | U16: 1.194052297 | V16: 1.229873865 | W16: 1.266770081 | X16: 1.304773184 | Y16: 1.343916379 | Z16: 1.384233871 | AA16: 1.425760887 | AB16: 1.468533713 | AC16: 1.512589725 | AD16: 1.557967417 | AE16: 1.604706439 | AF16: 1.652847632 | AG16: 1.702433061 | AH16: 1.753506053
M17: Inflated Totals | N17: 0 | O17: 0 | P17: 0 | Q17: 0 | R17: 0 | S17: 0 | T17: 0 | U17: 0 | V17: 0 | W17: 0 | X17: 0 | Y17: 0 | Z17: 0 | AA17: 0 | AB17: 0 | AC17: 0 | AD17: 0 | AE17: 0 | AF17: 0 | AG17: 0 | AH17: 0

Sheet CNADwelling Units (hidden)
M5: Dwelling - Sum of all CNAs with Changes by Underwriter - Dwelling
M6: Year | N6: 0 | O6: 1 | P6: 2 | Q6: 3 | R6: 4 | S6: 5 | T6: 6 | U6: 7 | V6: 8 | W6: 9 | X6: 10 | Y6: 11 | Z6: 12 | AA6: 13 | AB6: 14 | AC6: 15 | AD6: 16 | AE6: 17 | AF6: 18 | AG6: 19 | AH6: 20
M7: Item | N7: H & S | O7: 2013 | P7: 2014 | Q7: 2015 | R7: 2016 | S7: 2017 | T7: 2018 | U7: 2019 | V7: 2020 | W7: 2021 | X7: 2022 | Y7: 2023 | Z7: 2024 | AA7: 2025 | AB7: 2026 | AC7: 2027 | AD7: 2028 | AE7: 2029 | AF7: 2030 | AG7: 2031 | AH7: 2032 | AI7: Total
M8: Uninflated Totals | N8: =SUM(N13:N500) -> 0 | O8: =SUM(O13:O500) -> 0 | P8: 0 | Q8: 0 | R8: 0 | S8: 0 | T8: 0 | U8: 11400 | V8: 11400 | W8: 11400 | X8: 9000 | Y8: 13800 | Z8: 13800 | AA8: 10200 | AB8: 11400 | AC8: 55873 | AD8: 55873 | AE8: 44473 | AF8: 25200 | AG8: 25200 | AH8: 5400 | AI8: =SUM(N8:AH8) -> 304419
M9: Inflation Factor (3%) | N9: 1 | O9: 1 | P9: 1.03 | Q9: 1.0609 | R9: 1.092727 | S9: 1.12550881 | T9: 1.159274074 | U9: 1.194052297 | V9: 1.229873865 | W9: 1.266770081 | X9: 1.304773184 | Y9: 1.343916379 | Z9: 1.384233871 | AA9: 1.425760887 | AB9: 1.468533713 | AC9: 1.512589725 | AD9: 1.557967417 | AE9: 1.604706439 | AF9: 1.652847632 | AG9: 1.702433061 | AH9: 1.753506053
M10: Inflated Totals | N10: =N8*N9 -> 0 | O10: =O8*O9 -> 0 | P10: 0 | Q10: 0 | R10: 0 | S10: 0 | T10: 0 | U10: 13612.19618 | V10: 14020.56207 | W10: 14441.17893 | X10: 11742.95865 | Y10: 18546.04603 | Z10: 19102.42742 | AA10: 14542.76105 | AB10: 16741.28433 | AC10: 84512.9257 | AD10: 87048.31347 | AE10: 71366.10947 | AF10: 41651.76033 | AG10: 42901.31314 | AH10: 9468.932687 | AI10: =SUM(N10:AH10) -> 459698.7695
A11: Forest View Apartments
A12: Item | B12: EUL | C12: AGE | D12: RUL | E12: Cond | F12: Action | G12: DUR | H12: QTY | I12: Unit | J12: Cost | K12: Cost | L12: Comments | M12: Item | N12: H & S | O12: 2015 | P12: 2016 | Q12: 2017 | R12: 2018 | S12: 2019 | T12: 2020 | U12: 2021 | V12: 2022 | W12: 2023 | X12: 2024 | Y12: 2025 | Z12: 2026 | AA12: 2027 | AB12: 2028 | AC12: 2029 | AD12: 2030 | AE12: 2031 | AF12: 2032 | AG12: 2033 | AH12: 2034
A13: Bath Accessories | B13: 10 | C13: 0 | D13: 10 | E13: Good | F13: Maintain | G13: 10 | H13: 36 | I13: ea | J13: 275 | K13: 9900 | L13: Bath accessories replacement is a part of the planned renovation | M13: Bath Accessories | N13: 0 | R13: 0 | S13: 0 | T13: 0 | U13: 0 | V13: 0 | W13: 0 | Y13: 3300 | Z13: 3300 | AA13: 3300 | AB13: 0 | AC13: 0 | AD13: 0 | AE13: 0 | AF13: 0 | AG13: 0 | AH13: 0 | AI13: =SUM(N13:AH13) -> 9900
A14: Bath Fixtures (sink, toilet, tub) | B14: 20 | C14: 0 | D14: 20 | E14: Good | F14: Maintain | G14: 20 | H14: 36 | I14: ea | J14: 850 | K14: 30600 | L14: Replacement of fixtures including tubs are a part of the planned renovation | M14: Bath Fixtures (sink, toilet, tub) | N14: 0 | R14: 0 | S14: 0 | T14: 0 | U14: 0 | V14: 0 | W14: 0 | X14: 0 | Y14: 0 | Z14: 0 | AA14: 0 | AB14: 0 | AC14: 0 | AD14: 0 | AE14: 0 | AF14: 0 | AG14: 0 | AH14: 0 | AI14: 0
A15: Countertop and Sink | B15: 25 | C15: 0 | D15: 25 | E15: Good | F15: Maintain | G15: 10 | H15: 36 | I15: ea | J15: 600 | K15: 21600 | L15: Countertop replacment is a part of the planned renovation - age related replacement will occur during the term | M15: Countertop and Sink | N15: 0 | R15: 0 | S15: 0 | T15: 0 | U15: 0 | V15: 0 | W15: 0 | X15: 0 | Y15: 0 | Z15: 0 | AA15: 0 | AB15: 0 | AC15: 0 | AD15: 0 | AE15: 0 | AF15: 0 | AG15: 0 | AH15: 0 | AI15: 0
A16: Electric Fixtures | B16: 20 | C16: 0 | D16: 20 | E16: Good | F16: Maintain | G16: 0 | H16: 36 | I16: ea | J16: 450 | K16: 16200 | L16: Fixture replacement is a part of the planned renovation | M16: Electric Fixtures | N16: 0 | R16: 0 | S16: 0 | T16: 0 | U16: 0 | V16: 0 | W16: 0 | X16: 0 | Y16: 0 | Z16: 0 | AA16: 0 | AB16: 0 | AC16: 0 | AD16: 0 | AE16: 0 | AF16: 0 | AG16: 0 | AH16: 0 | AI16: 0
A17: GFI | B17: 20 | C17: 0 | D17: 20 | E17: Good | F17: Maintain | G17: 0 | H17: 36 | I17: ea | J17: 75 | K17: 2700 | L17: GFI outlets are in place in the kitchen and bath areas | M17: GFI | N17: 0 | P17: 0 | Q17: 0 | R17: 0 | S17: 0 | T17: 0 | U17: 0 | V17: 0 | W17: 0 | X17: 0 | Y17: 0 | Z17: 0 | AA17: 0 | AB17: 0 | AC17: 0 | AD17: 0 | AE17: 0 | AF17: 0 | AG17: 0 | AH17: 0 | AI17: 0
A18: Smoke/Fire Detectors | B18: 10 | C18: 0 | D18: 10 | E18: Good | F18: Maintain | G18: 0 | H18: 36 | I18: ea | J18: 150 | K18: 5400 | L18: Replacement of smoke detectors are a part of the planned renovation - additional replacment will occur during the term | M18: Smoke/Fire Detectors | N18: 0 | P18: 0 | Q18: 0 | R18: 0 | S18: 0 | T18: 0 | U18: 0 | V18: 0 | W18: 0 | X18: 5400 | Z18: 0 | AA18: 0 | AB18: 0 | AC18: 0 | AD18: 0 | AE18: 0 | AF18: 0 | AG18: 0 | AH18: 5400 | AI18: 10800
N19: 0 | Q19: 0 | R19: 0 | S19: 0 | T19: 0 | U19: 0 | V19: 0 | W19: 0 | X19: 0 | Z19: 0 | AA19: 0 | AB19: 0 | AC19: 0 | AD19: 0 | AE19: 0 | AF19: 0 | AG19: 0 | AH19: 0 | AI19: 0
A20: Interior Door | B20: 30 | C20: 0 | D20: 30 | E20: Good | F20: Maintain | G20: 0 | H20: 192 | I20: ea | J20: 150 | K20: 28800 | L20: Replacement of interior doors is a part of the planned renovation | M20: Interior Door | N20: 0 | P20: 0 | Q20: 0 | R20: 0 | S20: 0 | T20: 0 | U20: 0 | V20: 0 | W20: 0 | X20: 0 | Y20: 0 | Z20: 0 | AA20: 0 | AE20: 0 | AF20: 0 | AG20: 0 | AH20: 0 | AI20: 0
A21: Kitchen Cabinets | B21: 25 | C21: 0 | D21: 25 | E21: Good | F21: Maintain | G21: 0 | H21: 36 | I21: ea | J21: 2000 | K21: 72000 | L21: Replacement of all kitchen and bath cabinets are a part of the proposed renovation | M21: Kitchen Cabinets | N21: 0 | R21: 0 | S21: 0 | T21: 0 | U21: 0 | V21: 0 | W21: 0 | X21: 0 | Y21: 0 | Z21: 0 | AA21: 0 | AB21: 0 | AC21: 0 | AD21: 0 | AE21: 0 | AF21: 0 | AG21: 0 | AH21: 0 | AI21: 0
A22: Living Area Floors: Carpet | B22: 7 | C22: 0 | D22: 7 | E22: Good | F22: Maintain | G22: 7 | H22: 36 | I22: ea | J22: 950 | K22: 34200 | L22: Carpets have exceeded the EUL and will be replaced as a part of the planned renovation with additional replacments over the term | M22: Living Area Floors: Carpet | N22: 0 | R22: 0 | S22: 0 | T22: 0 | U22: 11400 | V22: 11400 | W22: 11400 | AA22: 0 | AB22: 11400 | AC22: 11400 | AD22: 11400 | AE22: 0 | AF22: 0 | AG22: 0 | AH22: 0 | AI22: 68400
B23: 0 | C23: 0 | D23: 0 | N23: 0 | O23: 0 | P23: 0 | Q23: 0 | R23: 0 | S23: 0 | T23: 0 | AI23: 0
N24: 0 | P24: 0 | Q24: 0 | R24: 0 | S24: 0 | T24: 0 | U24: 0 | V24: 0 | W24: 0 | X24: 0 | Y24: 0 | Z24: 0 | AA24: 0 | AB24: 0 | AC24: 0 | AD24: 0 | AE24: 0 | AF24: 0 | AG24: 0 | AH24: 0 | AI24: 0
A25: Living Area Floors: Resilient Flooring (tile or sheet) | B25: 15 | C25: 0 | D25: 15 | E25: Good | F25: Maintain | G25: 15 | H25: 36 | I25: ea | J25: 500 | K25: 18000 | L25: Anticipated replacements spread over the term following initial replacement | M25: Living Area Floors: Resilient Flooring (tile or sheet) | N25: 0 | R25: 0 | S25: 0 | T25: 0 | U25: 0 | V25: 0 | W25: 0 | AA25: 0 | AB25: 0 | AC25: 6000 | AD25: 6000 | AE25: 6000 | AI25: 18000
A26: Local HVAC: Heat Pump w/ Supplementary Electric | B26: 15 | C26: 0 | D26: 15 | E26: Good | F26: Maintain | G26: 0 | H26: 36 | I26: ea | J26: 3500 | K26: 126000 | L26: Replacement of HVAC systems are a part of the planned renovation | M26: Local HVAC: Heat Pump w/ Supplementary Electric | N26: 0 | R26: 0 | S26: 0 | T26: 0 | U26: 0 | V26: 0 | W26: 0 | X26: 0 | Y26: 0 | Z26: 0 | AA26: 0 | AB26: 0 | AC26: 25200 | AD26: 25200 | AE26: 25200 | AF26: 25200 | AG26: 25200 | AH26: 0 | AI26: 126000
N27: 0 | O27: 0 | P27: 0 | Q27: 0 | R27: 0 | S27: 0 | T27: 0 | U27: 0 | V27: 0 | W27: 0 | AC27: 0 | AD27: 0 | AE27: 0 | AF27: 0 | AG27: 0 | AH27: 0 | AI27: 0
A28: Range | B28: 15 | C28: 0 | D28: 15 | E28: Good | F28: Maintain | G28: 15 | H28: 36 | I28: ea | J28: 400 | K28: 14400 | L28: Replacment of all ranges are a part of the planned renovation | M28: Range | N28: 0 | R28: 0 | S28: 0 | T28: 0 | U28: 0 | V28: 0 | W28: 0 | X28: 0 | Y28: 0 | Z28: 0 | AA28: 0 | AB28: 0 | AC28: 4813 | AD28: 4813 | AE28: 4813 | AF28: 0 | AG28: 0 | AH28: 0 | AI28: 14439
A29: Rangehood | B29: 15 | C29: 0 | D29: 15 | E29: Good | F29: Maintain | G29: 15 | H29: 36 | I29: ea | J29: 120 | K29: 4320 | L29: Most range hoods are original and replacment is a part of the planned renovation | M29: Rangehood | N29: 0 | R29: 0 | S29: 0 | T29: 0 | U29: 0 | V29: 0 | W29: 0 | X29: 0 | Y29: 0 | Z29: 0 | AA29: 0 | AB29: 0 | AC29: 1440 | AD29: 1440 | AE29: 1440 | AF29: 0 | AG29: 0 | AH29: 0 | AI29: 4320
A30: Refrigerator | B30: 15 | C30: 0 | D30: 15 | E30: Good | F30: Maintain | G30: 15 | H30: 36 | I30: ea | J30: 585 | K30: 21060 | L30: Most refrigerators are estimated to have exceeded the EUL with replacement being a part of the proposed renovation | M30: Refrigerator | N30: 0 | R30: 0 | S30: 0 | T30: 0 | U30: 0 | V30: 0 | W30: 0 | X30: 0 | Y30: 0 | Z30: 0 | AA30: 0 | AB30: 0 | AC30: 7020 | AD30: 7020 | AE30: 7020 | AF30: 0 | AG30: 0 | AH30: 0 | AI30: 21060
A31: Dishwasher | B31: 10 | C31: 0 | D31: 10 | E31: Good | F31: Maintain | G31: 10 | H31: 36 | I31: ea | J31: 300 | K31: 10800 | L31: Addition of dishwashers are a part of the planned renovation | M31: Dishwasher | N31: 0 | O31: 0 | P31: 0 | Q31: 0 | R31: 0 | S31: 0 | T31: 0 | X31: 3600 | Y31: 3600 | Z31: 3600 | AA31: 0 | AB31: 0 | AC31: 0 | AD31: 0 | AE31: 0 | AF31: 0 | AG31: 0 | AH31: 0 | AI31: 10800
A32: Unit Level DHW | B32: 10 | C32: 0 | D32: 10 | E32: Good | F32: Maintain | G32: 10 | H32: 36 | I32: ea | J32: 500 | K32: 18000 | L32: Most water heaters are estimated to have exceeded the EUL and will be replaced as a part of the planned renovation | M32: Unit Level DHW | N32: 0 | R32: 0 | S32: 0 | T32: 0 | U32: 0 | V32: 0 | W32: 0 | X32: 0 | Y32: 6000 | Z32: 6000 | AA32: 6000 | AB32: 0 | AC32: 0 | AD32: 0 | AE32: 0 | AF32: 0 | AG32: 0 | AH32: 0 | AI32: 18000
A33: Window Covering | B33: 10 | C33: 0 | D33: 10 | E33: Good | F33: Maintain | G33: 10 | H33: 36 | I33: ea | J33: 75 | K33: 2700 | L33: Replacement is a part of the planned renovation | M33: Window Covering | N33: 0 | R33: 0 | S33: 0 | T33: 0 | U33: 0 | V33: 0 | W33: 0 | X33: 0 | Y33: 900 | Z33: 900 | AA33: 900 | AB33: 0 | AC33: 0 | AD33: 0 | AE33: 0 | AF33: 0 | AG33: 0 | AH33: 0 | AI33: 2700
A34: Living Area Walls | B34: 50 | C34: 0 | D34: 50 | E34: Good | F34: Maintain | G34: 0 | H34: 36 | I34: ea | J34: 250 | K34: 9000 | L34: Repair drywall as needed in the units prior to repaint is a part of the planned renovation | M34: Living Area Walls | N34: 0 | R34: 0 | S34: 0 | T34: 0 | U34: 0 | V34: 0 | W34: 0 | X34: 0 | Y34: 0 | Z34: 0 | AA34: 0 | AB34: 0 | AC34: 0 | AD34: 0 | AE34: 0 | AF34: 0 | AG34: 0 | AH34: 0 | AI34: 0
A35: HC Units | B35: 30 | C35: 0 | D35: 30 | E35: Good | F35: Maintain | G35: 0 | H35: 4 | I35: ea | J35: 4000 | K35: 16000 | L35: Modifications to existing units (roll-in shower, etc.) is a part of the planned renovation | M35: HC Units | N35: 0 | P35: 0 | Q35: 0 | R35: 0 | S35: 0 | T35: 0 | U35: 0 | V35: 0 | W35: 0 | X35: 0 | Y35: 0 | Z35: 0 | AA35: 0 | AB35: 0 | AC35: 0 | AD35: 0 | AE35: 0 | AF35: 0 | AG35: 0 | AH35: 0 | AI35: 0
A36: AV Units | B36: 30 | C36: 0 | D36: 30 | E36: Good | F36: Maintain | G36: 0 | H36: 1 | I36: ea | J36: 2500 | K36: 2500 | L36: Modify unit for audiovisual impaired is a part of the planned renovation | M36: AV Units | N36: 0 | P36: 0 | Q36: 0 | R36: 0 | S36: 0 | T36: 0 | U36: 0 | V36: 0 | W36: 0 | X36: 0 | Y36: 0 | Z36: 0 | AA36: 0 | AB36: 0 | AC36: 0 | AD36: 0 | AE36: 0 | AF36: 0 | AG36: 0 | AH36: 0 | AI36: 0

Sheet MFIS ProjectA (hidden)
A1: St | B1: St Name | C1: Srv Off | D1: Cnty | E1: Borrower ID | F1: Proj Number | G1: Prj Name | H1: Borr Name | I1: Mgmt Name | J1: Pay Desc | K1: Labor Hsg Typ | L1: Class | M1: Oprtn Date | N1: Part | O1: Section | P1: Item | Q1: Curr FY | R1: Prp Bdgt | S1: FY1 | T1: Prp Bdgt 1 | U1: Actl Bdgt 1 | V1: FY2 | W1: Prp Bdgt 2 | X1: Actl Bdgt 2 | Y1: FY3 | Z1: Prp Bdgt 3 | AA1: Actl Bdgt 3 | AB1: Total Units | AC1: 504 Rehabilitation Act of 1973 | AD1: Fair Housing Amendment | AE1: American w/ Disabilities | AF1: Operation DT | AG1: Fully Paid DT | AH1: Paid CD | AI1: Prj Note CD | AJ1: RUP Flag | AK1: RUP Exp DT | AL1: Revit Ind | AM1: Ad Cnt | AN1: RTO Flg | AO1: RTO Amt | AP1: Tax Credit Flag | AQ1: Tax Credit Exp DT | AR1: Tax Exempt | AS1: Tax Inst Jan | AT1: Tax Inst Feb | AU1: Tax Inst Mar | AV1: Tax Inst Apr | AW1: Tax Inst May | AX1: Tax Inst Jun | AY1: Tax Inst Jul | AZ1: Tax Inst Aug | BA1: Tax Inst Sep | BB1: Tax Inst Oct | BC1: Tax Inst Nov | BD1: Tax Inst Dec | BE1: DUNS Nbr | BF1: Proj Status | BG1: Pmt Status | BH1: Install Typ | BI1: Pmt Amount | BJ1: Other Pmt Amt | BK1: Delinquent DT | BL1: Delinquent Amt | BM1: Current Class | BN1: Current Start Date | BO1: Current End Date | BP1: Current Class Comment | BQ1: Prev Class | BR1: Prev Start Date | BS1: Prev End Date | BT1: Prev Class Comment | BU1: Curr FY | BV1: Curr FY Effective Date | BW1: Curr FY End Date | BX1: Next FY | BY1: NEXT FY Effective Date | BZ1: Next FY End Date | CA1: Prev FY | CB1: Prev FY Effective Date | CC1: Prev FY End Date | CD1: Curr PB Rate | CE1: Curr PB Effective Date | CF1: Prev PB Rate | CG1: Prev PB Effective Date | CH1: Addr Type | CI1: Addr Ref | CJ1: Address | CK1: City | CL1: State | CM1: Zip | CN1: Directions | CO1: Contact Name | CP1: Contact Phone | CQ1: Contact Ext | CR1: Contact Fax | CS1: Contact Email | CT1: Addr Type | CU1: Addr Ref | CV1: Address | CW1: City | CX1: State | CY1: Zip | CZ1: Directions | DA1: Addr Type | DB1: Addr Ref | DC1: Address | DD1: City | DE1: State | DF1: Zip | DG1: Directions | DH1: Consolidated Eff DT | DI1: Consolidated Borr ID | DJ1: Consolidated Name | DK1: Consolidated Proj ID | DL1: Transfered Eff DT | DM1: Transfered Borr ID | DN1: Transfered Name | DO1: Transfered Proj ID | DP1: Special Servicing Code | DQ1: Spec Eff Date | DR1: Spec End Date | DS1: Declaration Num
A2: ="10" -> 10 | B2: GEORGIA | C2: ="604" -> 604 | D2: ="81" -> 81 | E2: ="747432507" -> 747432507 | F2: ="01-0" -> 01-0 | G2: FOREST VIEW APTS | H2: WADLEY HOUSING L.P. | I2: MORROW REALTY COMPANY, INC | J2: Active | K2: NA | L2: A | M2: 1998-07-10 | N2: PART I - CASH FLOW STATEMENT | O2: Operational Cash Sources | P2: 1. Rental Income | Q2: 2015 | R2: 215700 | S2: 2014 | T2: 213600 | V2: 2013 | W2: 209400 | X2: 49109 | Y2: 2012 | Z2: 209400 | AA2: 209502 | AB2: 48 | AC2: Y | AD2: Y2 | AE2: Y | AF2: 1977-10-13 | AH2: Active | AI2: 10-PASS Monthly | AJ2: Y | AK2: 2040-12-15 | AL2: Y | AM2: 240 | AN2: Y | AO2: 7286 | AP2: Y | AQ2: 2030-12-15 | AR2: N | BD2: X | BE2: 966843091 | BF2: Normal | BG2: Delinquent | BH2: MONTHLY OTHER | BI2: 3533.14 | BJ2: 3533.14 | BK2: 2015-01-01 | BL2: 1777.27 | BM2: C | BN2: 2015-01-02 | BO2: 9999-12-31 | BP2: Classify for Automatic Finding. | BQ2: A | BR2: 2014-04-04 | BS2: 2015-01-02 | BT2: Classify for Automatic Finding. | BU2: 2015 | BV2: 2015-01-01 | BW2: 2015-12-31 | BX2: 2016 | BY2: 2016-01-01 | BZ2: 2016-12-31 | CA2: 2014 | CB2: 2014-01-01 | CC2: 2014-12-31 | CD2: 2 | CE2: 2005-05-01 | CH2: SITE | CI2: MAIN | CJ2: 100 SUSAN TART ROAD | CK2: DUNN | CL2: NC | CM2: ="28334 " -> 28334 | CY2: ="" ->  | DF2: ="" ->  | DL2: 2010-12-15 | DM2: 532984217 | DN2: AMITY PLACE APTS | DO2: 02 2
A3: 10 | B3: GEORGIA | C3: 604 | D3: 81 | E3: 747432507 | F3: 01-0 | G3: FOREST VIEW APTS | H3: WADLEY HOUSING L.P. | I3: MORROW REALTY COMPANY, INC | J3: Active | K3: NA | L3: A | M3: 1998-07-10 | N3: PART I - CASH FLOW STATEMENT | O3: Operational Cash Sources | P3: 2. RHS Rental Assist. Received | Q3: 2015 | S3: 2014 | T3: 0 | V3: 2013 | W3: 0 | X3: 154459 | Y3: 2012 | Z3: 0 | AA3: 0
A4: 10 | B4: GEORGIA | C4: 604 | D4: 81 | E4: 747432507 | F4: 01-0 | G4: FOREST VIEW APTS | H4: WADLEY HOUSING L.P. | I4: MORROW REALTY COMPANY, INC | J4: Active | K4: NA | L4: A | M4: 1998-07-10 | N4: PART I - CASH FLOW STATEMENT | O4: Operational Cash Sources | P4: 3. Application Fee Received | Q4: 2015 | S4: 2014 | T4: 0 | V4: 2013 | W4: 0 | X4: 465 | Y4: 2012 | Z4: 0 | AA4: 30
A5: 10 | B5: GEORGIA | C5: 604 | D5: 81 | E5: 747432507 | F5: 01-0 | G5: FOREST VIEW APTS | H5: WADLEY HOUSING L.P. | I5: MORROW REALTY COMPANY, INC | J5: Active | K5: NA | L5: A | M5: 1998-07-10 | N5: PART I - CASH FLOW STATEMENT | O5: Operational Cash Sources | P5: 4. Laundry And Vending | Q5: 2015 | R5: 180 | S5: 2014 | T5: 180 | V5: 2013 | W5: 40 | X5: 120 | Y5: 2012 | Z5: 120 | AA5: 40
A6: 10 | B6: GEORGIA | C6: 604 | D6: 81 | E6: 747432507 | F6: 01-0 | G6: FOREST VIEW APTS | H6: WADLEY HOUSING L.P. | I6: MORROW REALTY COMPANY, INC | J6: Active | K6: NA | L6: A | M6: 1998-07-10 | N6: PART I - CASH FLOW STATEMENT | O6: Operational Cash Sources | P6: 5. Interest Income | Q6: 2015 | R6: 218 | S6: 2014 | T6: 218 | V6: 2013 | W6: 26 | X6: 129 | Y6: 2012 | Z6: 30 | AA6: 35
A7: 10 | B7: GEORGIA | C7: 604 | D7: 81 | E7: 747432507 | F7: 01-0 | G7: FOREST VIEW APTS | H7: WADLEY HOUSING L.P. | I7: MORROW REALTY COMPANY, INC | J7: Active | K7: NA | L7: A | M7: 1998-07-10 | N7: PART I - CASH FLOW STATEMENT | O7: Operational Cash Sources | P7: 6. Tenant Charges | Q7: 2015 | R7: 1042 | S7: 2014 | T7: 500 | V7: 2013 | W7: 500 | X7: 1521 | Y7: 2012 | Z7: 500 | AA7: 3356
A8: 10 | B8: GEORGIA | C8: 604 | D8: 81 | E8: 747432507 | F8: 01-0 | G8: FOREST VIEW APTS | H8: WADLEY HOUSING L.P. | I8: MORROW REALTY COMPANY, INC | J8: Active | K8: NA | L8: A | M8: 1998-07-10 | N8: PART I - CASH FLOW STATEMENT | O8: Operational Cash Sources | P8: 7. Other - Project Sources | Q8: 2015 | R8: 0 | S8: 2014 | T8: 0 | V8: 2013 | W8: 0 | X8: 89 | Y8: 2012 | Z8: 3 | AA8: 94
A9: 10 | B9: GEORGIA | C9: 604 | D9: 81 | E9: 747432507 | F9: 01-0 | G9: FOREST VIEW APTS | H9: WADLEY HOUSING L.P. | I9: MORROW REALTY COMPANY, INC | J9: Active | K9: NA | L9: A | M9: 1998-07-10 | N9: PART I - CASH FLOW STATEMENT | O9: Operational Cash Sources | P9: 8. Less (Vcncy @ Cntgncy Allw) | Q9: 2015 | R9: -10785 | S9: 2014 | T9: -10680 | V9: 2013 | W9: -10470 | Y9: 2012 | Z9: -10470
A10: 10 | B10: GEORGIA | C10: 604 | D10: 81 | E10: 747432507 | F10: 01-0 | G10: FOREST VIEW APTS | H10: WADLEY HOUSING L.P. | I10: MORROW REALTY COMPANY, INC | J10: Active | K10: NA | L10: A | M10: 1998-07-10 | N10: PART I - CASH FLOW STATEMENT | O10: Operational Cash Sources | P10: 9. Less (Agncy Aprvd Incentv) | Q10: 2015 | R10: 0 | S10: 2014 | T10: 0 | V10: 2013 | W10: 0 | Y10: 2012 | Z10: 0
A11: 10 | B11: GEORGIA | C11: 604 | D11: 81 | E11: 747432507 | F11: 01-0 | G11: FOREST VIEW APTS | H11: WADLEY HOUSING L.P. | I11: MORROW REALTY COMPANY, INC | J11: Active | K11: NA | L11: A | M11: 1998-07-10 | N11: PART I - CASH FLOW STATEMENT | O11: Operational Cash Sources | P11: 10. Sub-Ttl [(1 thru 7)-(8@9)] | Q11: 2015 | R11: 206355 | S11: 2014 | T11: 203818 | V11: 2013 | W11: 199496 | X11: 205892 | Y11: 2012 | Z11: 199583 | AA11: 213057
A12: 10 | B12: GEORGIA | C12: 604 | D12: 81 | E12: 747432507 | F12: 01-0 | G12: FOREST VIEW APTS | H12: WADLEY HOUSING L.P. | I12: MORROW REALTY COMPANY, INC | J12: Active | K12: NA | L12: A | M12: 1998-07-10 | N12: PART I - CASH FLOW STATEMENT | O12: Non-Operational Cash Sources | P12: 11. Cash - Non Project | Q12: 2015 | R12: 0 | S12: 2014 | T12: 0 | V12: 2013 | W12: 0 | X12: 0 | Y12: 2012 | Z12: 0 | AA12: 0
A13: 10 | B13: GEORGIA | C13: 604 | D13: 81 | E13: 747432507 | F13: 01-0 | G13: FOREST VIEW APTS | H13: WADLEY HOUSING L.P. | I13: MORROW REALTY COMPANY, INC | J13: Active | K13: NA | L13: A | M13: 1998-07-10 | N13: PART I - CASH FLOW STATEMENT | O13: Non-Operational Cash Sources | P13: 12. Authorized Loan (Non-RHS) | Q13: 2015 | R13: 0 | S13: 2014 | T13: 0 | V13: 2013 | W13: 0 | X13: 0 | Y13: 2012 | Z13: 0 | AA13: 0
A14: 10 | B14: GEORGIA | C14: 604 | D14: 81 | E14: 747432507 | F14: 01-0 | G14: FOREST VIEW APTS | H14: WADLEY HOUSING L.P. | I14: MORROW REALTY COMPANY, INC | J14: Active | K14: NA | L14: A | M14: 1998-07-10 | N14: PART I - CASH FLOW STATEMENT | O14: Non-Operational Cash Sources | P14: 13. Transfer From Reserve | Q14: 2015 | R14: 41200 | S14: 2014 | T14: 58950 | V14: 2013 | W14: 51900 | X14: 44693 | Y14: 2012 | Z14: 30250 | AA14: 25101
A15: 10 | B15: GEORGIA | C15: 604 | D15: 81 | E15: 747432507 | F15: 01-0 | G15: FOREST VIEW APTS | H15: WADLEY HOUSING L.P. | I15: MORROW REALTY COMPANY, INC | J15: Active | K15: NA | L15: A | M15: 1998-07-10 | N15: PART I - CASH FLOW STATEMENT | O15: Non-Operational Cash Sources | P15: 14. Sub-Total (11 thru 13) | Q15: 2015 | R15: 41200 | S15: 2014 | T15: 58950 | V15: 2013 | W15: 51900 | X15: 44693 | Y15: 2012 | Z15: 30250 | AA15: 25101
A16: 10 | B16: GEORGIA | C16: 604 | D16: 81 | E16: 747432507 | F16: 01-0 | G16: FOREST VIEW APTS | H16: WADLEY HOUSING L.P. | I16: MORROW REALTY COMPANY, INC | J16: Active | K16: NA | L16: A | M16: 1998-07-10 | N16: PART I - CASH FLOW STATEMENT | O16: Non-Operational Cash Sources | P16: 15. Total Cash Sources (10+14) | Q16: 2015 | R16: 247555 | S16: 2014 | T16: 262768 | V16: 2013 | W16: 251396 | X16: 250585 | Y16: 2012 | Z16: 229833 | AA16: 238158
A17: 10 | B17: GEORGIA | C17: 604 | D17: 81 | E17: 747432507 | F17: 01-0 | G17: FOREST VIEW APTS | H17: WADLEY HOUSING L.P. | I17: MORROW REALTY COMPANY, INC | J17: Active | K17: NA | L17: A | M17: 1998-07-10 | N17: PART I - CASH FLOW STATEMENT | O17: Operational Cash Uses | P17: 16. Ttl O@M Exp (From Part II) | Q17: 2015 | R17: 157877 | S17: 2014 | T17: 156018 | V17: 2013 | W17: 150900 | X17: 154565 | Y17: 2012 | Z17: 151585 | AA17: 152601
A18: 10 | B18: GEORGIA | C18: 604 | D18: 81 | E18: 747432507 | F18: 01-0 | G18: FOREST VIEW APTS | H18: WADLEY HOUSING L.P. | I18: MORROW REALTY COMPANY, INC | J18: Active | K18: NA | L18: A | M18: 1998-07-10 | N18: PART I - CASH FLOW STATEMENT | O18: Operational Cash Uses | P18: 17. RHS Debt Payment | Q18: 2015 | R18: 30584 | S18: 2014 | T18: 30584 | V18: 2013 | W18: 30584 | X18: 30584 | Y18: 2012 | Z18: 30584 | AA18: 30584
A19: 10 | B19: GEORGIA | C19: 604 | D19: 81 | E19: 747432507 | F19: 01-0 | G19: FOREST VIEW APTS | H19: WADLEY HOUSING L.P. | I19: MORROW REALTY COMPANY, INC | J19: Active | K19: NA | L19: A | M19: 1998-07-10 | N19: PART I - CASH FLOW STATEMENT | O19: Operational Cash Uses | P19: 18. RHS Payment (Overage) | Q19: 2015 | S19: 2014 | T19: 0 | V19: 2013 | W19: 0 | X19: 65 | Y19: 2012 | Z19: 0 | AA19: 0
A20: 10 | B20: GEORGIA | C20: 604 | D20: 81 | E20: 747432507 | F20: 01-0 | G20: FOREST VIEW APTS | H20: WADLEY HOUSING L.P. | I20: MORROW REALTY COMPANY, INC | J20: Active | K20: NA | L20: A | M20: 1998-07-10 | N20: PART I - CASH FLOW STATEMENT | O20: Operational Cash Uses | P20: 19. RHS Payment (Late Fee) | Q20: 2015 | S20: 2014 | T20: 0 | V20: 2013 | W20: 0 | X20: 0 | Y20: 2012 | Z20: 0 | AA20: 0
A21: 10 | B21: GEORGIA | C21: 604 | D21: 81 | E21: 747432507 | F21: 01-0 | G21: FOREST VIEW APTS | H21: WADLEY HOUSING L.P. | I21: MORROW REALTY COMPANY, INC | J21: Active | K21: NA | L21: A | M21: 1998-07-10 | N21: PART I - CASH FLOW STATEMENT | O21: Operational Cash Uses | P21: 20. Reductn In Prior Yr Pybles | Q21: 2015 | S21: 2014 | T21: 0 | V21: 2013 | W21: 0 | X21: 0 | Y21: 2012 | Z21: 0 | AA21: 0
A22: 10 | B22: GEORGIA | C22: 604 | D22: 81 | E22: 747432507 | F22: 01-0 | G22: FOREST VIEW APTS | H22: WADLEY HOUSING L.P. | I22: MORROW REALTY COMPANY, INC | J22: Active | K22: NA | L22: A | M22: 1998-07-10 | N22: PART I - CASH FLOW STATEMENT | O22: Operational Cash Uses | P22: 21. Tenant Utility Payments | Q22: 2015 | S22: 2014 | T22: 0 | V22: 2013 | W22: 0 | X22: 1982 | Y22: 2012 | Z22: 0 | AA22: 4485
A23: 10 | B23: GEORGIA | C23: 604 | D23: 81 | E23: 747432507 | F23: 01-0 | G23: FOREST VIEW APTS | H23: WADLEY HOUSING L.P. | I23: MORROW REALTY COMPANY, INC | J23: Active | K23: NA | L23: A | M23: 1998-07-10 | N23: PART I - CASH FLOW STATEMENT | O23: Operational Cash Uses | P23: 22. Transfer to Reserve | Q23: 2015 | R23: 11970 | S23: 2014 | T23: 11970 | V23: 2013 | W23: 11970 | X23: 12008 | Y23: 2012 | Z23: 11970 | AA23: 32539
A24: 10 | B24: GEORGIA | C24: 604 | D24: 81 | E24: 747432507 | F24: 01-0 | G24: FOREST VIEW APTS | H24: WADLEY HOUSING L.P. | I24: MORROW REALTY COMPANY, INC | J24: Active | K24: NA | L24: A | M24: 1998-07-10 | N24: PART I - CASH FLOW STATEMENT | O24: Operational Cash Uses | P24: 23. RTN Owner/NP Asset Mgt Fee | Q24: 2015 | R24: 5040 | S24: 2014 | T24: 5040 | V24: 2013 | W24: 5040 | X24: 5040 | Y24: 2012 | Z24: 5040 | AA24: 5040
A25: 10 | B25: GEORGIA | C25: 604 | D25: 81 | E25: 747432507 | F25: 01-0 | G25: FOREST VIEW APTS | H25: WADLEY HOUSING L.P. | I25: MORROW REALTY COMPANY, INC | J25: Active | K25: NA | L25: A | M25: 1998-07-10 | N25: PART I - CASH FLOW STATEMENT | O25: Operational Cash Uses | P25: 24. Sub-Total (16 thru 23) | Q25: 2015 | R25: 205471 | S25: 2014 | T25: 203612 | V25: 2013 | W25: 198494 | X25: 204244 | Y25: 2012 | Z25: 199179 | AA25: 225249
A26: 10 | B26: GEORGIA | C26: 604 | D26: 81 | E26: 747432507 | F26: 01-0 | G26: FOREST VIEW APTS | H26: WADLEY HOUSING L.P. | I26: MORROW REALTY COMPANY, INC | J26: Active | K26: NA | L26: A | M26: 1998-07-10 | N26: PART I - CASH FLOW STATEMENT | O26: Non-Operational Cash Uses | P26: 25. Authzd Debt Pymnt (NonRHS) | Q26: 2015 | R26: 0 | S26: 2014 | T26: 0 | V26: 2013 | W26: 0 | X26: 0 | Y26: 2012 | Z26: 0 | AA26: 0
A27: 10 | B27: GEORGIA | C27: 604 | D27: 81 | E27: 747432507 | F27: 01-0 | G27: FOREST VIEW APTS | H27: WADLEY HOUSING L.P. | I27: MORROW REALTY COMPANY, INC | J27: Active | K27: NA | L27: A | M27: 1998-07-10 | N27: PART I - CASH FLOW STATEMENT | O27: Non-Operational Cash Uses | P27: 26. Capital Budget (III 4-6) | Q27: 2015 | R27: 41200 | S27: 2014 | T27: 58950 | V27: 2013 | W27: 51900 | X27: 44693 | Y27: 2012 | Z27: 30250 | AA27: 25101
A28: 10 | B28: GEORGIA | C28: 604 | D28: 81 | E28: 747432507 | F28: 01-0 | G28: FOREST VIEW APTS | H28: WADLEY HOUSING L.P. | I28: MORROW REALTY COMPANY, INC | J28: Active | K28: NA | L28: A | M28: 1998-07-10 | N28: PART I - CASH FLOW STATEMENT | O28: Non-Operational Cash Uses | P28: 27. Miscellaneous | Q28: 2015 | R28: 0 | S28: 2014 | T28: 0 | V28: 2013 | W28: 0 | X28: 0 | Y28: 2012 | Z28: 0 | AA28: 0
A29: 10 | B29: GEORGIA | C29: 604 | D29: 81 | E29: 747432507 | F29: 01-0 | G29: FOREST VIEW APTS | H29: WADLEY HOUSING L.P. | I29: MORROW REALTY COMPANY, INC | J29: Active | K29: NA | L29: A | M29: 1998-07-10 | N29: PART I - CASH FLOW STATEMENT | O29: Non-Operational Cash Uses | P29: 28. Sub-Total (25 thru 27) | Q29: 2015 | R29: 41200 | S29: 2014 | T29: 58950 | V29: 2013 | W29: 51900 | X29: 44693 | Y29: 2012 | Z29: 30250 | AA29: 25101
A30: 10 | B30: GEORGIA | C30: 604 | D30: 81 | E30: 747432507 | F30: 01-0 | G30: FOREST VIEW APTS | H30: WADLEY HOUSING L.P. | I30: MORROW REALTY COMPANY, INC | J30: Active | K30: NA | L30: A | M30: 1998-07-10 | N30: PART I - CASH FLOW STATEMENT | O30: Non-Operational Cash Uses | P30: 29. Total Cash Uses (24+28) | Q30: 2015 | R30: 246671 | S30: 2014 | T30: 262562 | V30: 2013 | W30: 250394 | X30: 248937 | Y30: 2012 | Z30: 229429 | AA30: 250350
A31: 10 | B31: GEORGIA | C31: 604 | D31: 81 | E31: 747432507 | F31: 01-0 | G31: FOREST VIEW APTS | H31: WADLEY HOUSING L.P. | I31: MORROW REALTY COMPANY, INC | J31: Active | K31: NA | L31: A | M31: 1998-07-10 | N31: PART I - CASH FLOW STATEMENT | O31: Non-Operational Cash Uses | P31: 30. Net (Deficit) (15-29) | Q31: 2015 | R31: 884 | S31: 2014 | T31: 206 | V31: 2013 | W31: 1002 | X31: 1648 | Y31: 2012 | Z31: 404 | AA31: -12192
A32: 10 | B32: GEORGIA | C32: 604 | D32: 81 | E32: 747432507 | F32: 01-0 | G32: FOREST VIEW APTS | H32: WADLEY HOUSING L.P. | I32: MORROW REALTY COMPANY, INC | J32: Active | K32: NA | L32: A | M32: 1998-07-10 | N32: PART I - CASH FLOW STATEMENT | O32: Cash Balance | P32: 31. Beginning Cash Balance | Q32: 2015 | R32: 25372 | S32: 2014 | T32: 23096 | V32: 2013 | W32: 27397 | X32: 20932 | Y32: 2012 | Z32: 24440 | AA32: 46521
A33: 10 | B33: GEORGIA | C33: 604 | D33: 81 | E33: 747432507 | F33: 01-0 | G33: FOREST VIEW APTS | H33: WADLEY HOUSING L.P. | I33: MORROW REALTY COMPANY, INC | J33: Active | K33: NA | L33: A | M33: 1998-07-10 | N33: PART I - CASH FLOW STATEMENT | O33: Cash Balance | P33: 32. Accrual To Cash Adjustment | Q33: 2015 | S33: 2014 | T33: 0 | V33: 2013 | W33: 0 | X33: 48 | Y33: 2012 | Z33: 0 | AA33: -13397
A34: 10 | B34: GEORGIA | C34: 604 | D34: 81 | E34: 747432507 | F34: 01-0 | G34: FOREST VIEW APTS | H34: WADLEY HOUSING L.P. | I34: MORROW REALTY COMPANY, INC | J34: Active | K34: NA | L34: A | M34: 1998-07-10 | N34: PART I - CASH FLOW STATEMENT | O34: Cash Balance | P34: 33. Ending Cash Bal (30+31+32) | Q34: 2015 | R34: 26256 | S34: 2014 | T34: 23302 | V34: 2013 | W34: 28399 | X34: 22628 | Y34: 2012 | Z34: 24844 | AA34: 20932
A35: 10 | B35: GEORGIA | C35: 604 | D35: 81 | E35: 747432507 | F35: 01-0 | G35: FOREST VIEW APTS | H35: WADLEY HOUSING L.P. | I35: MORROW REALTY COMPANY, INC | J35: Active | K35: NA | L35: A | M35: 1998-07-10 | N35: PART II - O@M EXPENSE SCHEDULE | P35: 1. Maint. @ Repairs Payroll | Q35: 2015 | R35: 20050 | S35: 2014 | T35: 19450 | V35: 2013 | W35: 19450 | X35: 19247 | Y35: 2012 | Z35: 19450 | AA35: 18310
A36: 10 | B36: GEORGIA | C36: 604 | D36: 81 | E36: 747432507 | F36: 01-0 | G36: FOREST VIEW APTS | H36: WADLEY HOUSING L.P. | I36: MORROW REALTY COMPANY, INC | J36: Active | K36: NA | L36: A | M36: 1998-07-10 | N36: PART II - O@M EXPENSE SCHEDULE | P36: 2. Maint. @ Repairs Supply | Q36: 2015 | R36: 5500 | S36: 2014 | T36: 5500 | V36: 2013 | W36: 5000 | X36: 11518 | Y36: 2012 | Z36: 5000 | AA36: 13260
A37: 10 | B37: GEORGIA | C37: 604 | D37: 81 | E37: 747432507 | F37: 01-0 | G37: FOREST VIEW APTS | H37: WADLEY HOUSING L.P. | I37: MORROW REALTY COMPANY, INC | J37: Active | K37: NA | L37: A | M37: 1998-07-10 | N37: PART II - O@M EXPENSE SCHEDULE | P37: 3. Maint. @ Repairs Contract | Q37: 2015 | R37: 3000 | S37: 2014 | T37: 3000 | V37: 2013 | W37: 4000 | X37: 4421 | Y37: 2012 | Z37: 4000 | AA37: 2482
A38: 10 | B38: GEORGIA | C38: 604 | D38: 81 | E38: 747432507 | F38: 01-0 | G38: FOREST VIEW APTS | H38: WADLEY HOUSING L.P. | I38: MORROW REALTY COMPANY, INC | J38: Active | K38: NA | L38: A | M38: 1998-07-10 | N38: PART II - O@M EXPENSE SCHEDULE | P38: 4. Painting | Q38: 2015 | R38: 4000 | S38: 2014 | T38: 2000 | V38: 2013 | W38: 2000 | X38: 475 | Y38: 2012 | Z38: 2000 | AA38: 3265
A39: 10 | B39: GEORGIA | C39: 604 | D39: 81 | E39: 747432507 | F39: 01-0 | G39: FOREST VIEW APTS | H39: WADLEY HOUSING L.P. | I39: MORROW REALTY COMPANY, INC | J39: Active | K39: NA | L39: A | M39: 1998-07-10 | N39: PART II - O@M EXPENSE SCHEDULE | P39: 5. Snow Removal | Q39: 2015 | R39: 0 | S39: 2014 | T39: 0 | V39: 2013 | W39: 0 | X39: 0 | Y39: 2012 | Z39: 0 | AA39: 0
A40: 10 | B40: GEORGIA | C40: 604 | D40: 81 | E40: 747432507 | F40: 01-0 | G40: FOREST VIEW APTS | H40: WADLEY HOUSING L.P. | I40: MORROW REALTY COMPANY, INC | J40: Active | K40: NA | L40: A | M40: 1998-07-10 | N40: PART II - O@M EXPENSE SCHEDULE | P40: 6. Elevator Maint./Contract | Q40: 2015 | R40: 0 | S40: 2014 | T40: 0 | V40: 2013 | W40: 0 | X40: 0 | Y40: 2012 | Z40: 0 | AA40: 0
A41: 10 | B41: GEORGIA | C41: 604 | D41: 81 | E41: 747432507 | F41: 01-0 | G41: FOREST VIEW APTS | H41: WADLEY HOUSING L.P. | I41: MORROW REALTY COMPANY, INC | J41: Active | K41: NA | L41: A | M41: 1998-07-10 | N41: PART II - O@M EXPENSE SCHEDULE | P41: 7. Grounds | Q41: 2015 | R41: 7500 | S41: 2014 | T41: 7500 | V41: 2013 | W41: 7500 | X41: 8342 | Y41: 2012 | Z41: 7500 | AA41: 7948
A42: 10 | B42: GEORGIA | C42: 604 | D42: 81 | E42: 747432507 | F42: 01-0 | G42: FOREST VIEW APTS | H42: WADLEY HOUSING L.P. | I42: MORROW REALTY COMPANY, INC | J42: Active | K42: NA | L42: A | M42: 1998-07-10 | N42: PART II - O@M EXPENSE SCHEDULE | P42: 8. Services | Q42: 2015 | R42: 1665 | S42: 2014 | T42: 1665 | V42: 2013 | W42: 1665 | X42: 1632 | Y42: 2012 | Z42: 1693 | AA42: 1706
A43: 10 | B43: GEORGIA | C43: 604 | D43: 81 | E43: 747432507 | F43: 01-0 | G43: FOREST VIEW APTS | H43: WADLEY HOUSING L.P. | I43: MORROW REALTY COMPANY, INC | J43: Active | K43: NA | L43: A | M43: 1998-07-10 | N43: PART II - O@M EXPENSE SCHEDULE | P43: 9. Cptl Bgt(Part V operating) | Q43: 2015 | R43: 0 | S43: 2014 | T43: 0 | V43: 2013 | W43: 0 | X43: 0 | Y43: 2012 | Z43: 2230 | AA43: 0
A44: 10 | B44: GEORGIA | C44: 604 | D44: 81 | E44: 747432507 | F44: 01-0 | G44: FOREST VIEW APTS | H44: WADLEY HOUSING L.P. | I44: MORROW REALTY COMPANY, INC | J44: Active | K44: NA | L44: A | M44: 1998-07-10 | N44: PART II - O@M EXPENSE SCHEDULE | P44: 10. Other Operating Expenses | Q44: 2015 | R44: 1090 | S44: 2014 | T44: 1090 | V44: 2013 | W44: 1041 | X44: 1072 | Y44: 2012 | Z44: 1329 | AA44: 1509
A45: 10 | B45: GEORGIA | C45: 604 | D45: 81 | E45: 747432507 | F45: 01-0 | G45: FOREST VIEW APTS | H45: WADLEY HOUSING L.P. | I45: MORROW REALTY COMPANY, INC | J45: Active | K45: NA | L45: A | M45: 1998-07-10 | N45: PART II - O@M EXPENSE SCHEDULE | P45: 11. Sub-Ttl O@M (1 thru 10) | Q45: 2015 | R45: 42805 | S45: 2014 | T45: 40205 | V45: 2013 | W45: 40656 | X45: 46707 | Y45: 2012 | Z45: 43202 | AA45: 48480
A46: 10 | B46: GEORGIA | C46: 604 | D46: 81 | E46: 747432507 | F46: 01-0 | G46: FOREST VIEW APTS | H46: WADLEY HOUSING L.P. | I46: MORROW REALTY COMPANY, INC | J46: Active | K46: NA | L46: A | M46: 1998-07-10 | N46: PART II - O@M EXPENSE SCHEDULE | P46: 12. Electricity | Q46: 2015 | R46: 10061 | S46: 2014 | T46: 10061 | V46: 2013 | W46: 10061 | X46: 9479 | Y46: 2012 | Z46: 10061 | AA46: 9416
A47: 10 | B47: GEORGIA | C47: 604 | D47: 81 | E47: 747432507 | F47: 01-0 | G47: FOREST VIEW APTS | H47: WADLEY HOUSING L.P. | I47: MORROW REALTY COMPANY, INC | J47: Active | K47: NA | L47: A | M47: 1998-07-10 | N47: PART II - O@M EXPENSE SCHEDULE | P47: 13. Water | Q47: 2015 | R47: 979 | S47: 2014 | T47: 979 | V47: 2013 | W47: 957 | X47: 904 | Y47: 2012 | Z47: 888 | AA47: 910
A48: 10 | B48: GEORGIA | C48: 604 | D48: 81 | E48: 747432507 | F48: 01-0 | G48: FOREST VIEW APTS | H48: WADLEY HOUSING L.P. | I48: MORROW REALTY COMPANY, INC | J48: Active | K48: NA | L48: A | M48: 1998-07-10 | N48: PART II - O@M EXPENSE SCHEDULE | P48: 14. Sewer | Q48: 2015 | R48: 878 | S48: 2014 | T48: 878 | V48: 2013 | W48: 840 | X48: 809 | Y48: 2012 | Z48: 826 | AA48: 862
A49: 10 | B49: GEORGIA | C49: 604 | D49: 81 | E49: 747432507 | F49: 01-0 | G49: FOREST VIEW APTS | H49: WADLEY HOUSING L.P. | I49: MORROW REALTY COMPANY, INC | J49: Active | K49: NA | L49: A | M49: 1998-07-10 | N49: PART II - O@M EXPENSE SCHEDULE | P49: 15. Fuel (Oil/Coal/Gas) | Q49: 2015 | R49: 0 | S49: 2014 | T49: 0 | V49: 2013 | W49: 0 | X49: 0 | Y49: 2012 | Z49: 0 | AA49: 0
A50: 10 | B50: GEORGIA | C50: 604 | D50: 81 | E50: 747432507 | F50: 01-0 | G50: FOREST VIEW APTS | H50: WADLEY HOUSING L.P. | I50: MORROW REALTY COMPANY, INC | J50: Active | K50: NA | L50: A | M50: 1998-07-10 | N50: PART II - O@M EXPENSE SCHEDULE | P50: 16. Garbage @ Trash Removal | Q50: 2015 | R50: 2734 | S50: 2014 | T50: 2673 | V50: 2013 | W50: 2621 | X50: 2555 | Y50: 2012 | Z50: 2621 | AA50: 2507
A51: 10 | B51: GEORGIA | C51: 604 | D51: 81 | E51: 747432507 | F51: 01-0 | G51: FOREST VIEW APTS | H51: WADLEY HOUSING L.P. | I51: MORROW REALTY COMPANY, INC | J51: Active | K51: NA | L51: A | M51: 1998-07-10 | N51: PART II - O@M EXPENSE SCHEDULE | P51: 17. Other Utilities | Q51: 2015 | R51: 0 | S51: 2014 | T51: 0 | V51: 2013 | W51: 0 | X51: 0 | Y51: 2012 | Z51: 0 | AA51: 0
A52: 10 | B52: GEORGIA | C52: 604 | D52: 81 | E52: 747432507 | F52: 01-0 | G52: FOREST VIEW APTS | H52: WADLEY HOUSING L.P. | I52: MORROW REALTY COMPANY, INC | J52: Active | K52: NA | L52: A | M52: 1998-07-10 | N52: PART II - O@M EXPENSE SCHEDULE | P52: 18. Sub-Ttl Util. (12 thru 17) | Q52: 2015 | R52: 14652 | S52: 2014 | T52: 14591 | V52: 2013 | W52: 14479 | X52: 13747 | Y52: 2012 | Z52: 14396 | AA52: 13695
A53: 10 | B53: GEORGIA | C53: 604 | D53: 81 | E53: 747432507 | F53: 01-0 | G53: FOREST VIEW APTS | H53: WADLEY HOUSING L.P. | I53: MORROW REALTY COMPANY, INC | J53: Active | K53: NA | L53: A | M53: 1998-07-10 | N53: PART II - O@M EXPENSE SCHEDULE | P53: 19. Site Management Payroll | Q53: 2015 | R53: 20080 | S53: 2014 | T53: 20080 | V53: 2013 | W53: 20080 | X53: 17944 | Y53: 2012 | Z53: 20410 | AA53: 18148
A54: 10 | B54: GEORGIA | C54: 604 | D54: 81 | E54: 747432507 | F54: 01-0 | G54: FOREST VIEW APTS | H54: WADLEY HOUSING L.P. | I54: MORROW REALTY COMPANY, INC | J54: Active | K54: NA | L54: A | M54: 1998-07-10 | N54: PART II - O@M EXPENSE SCHEDULE | P54: 20. Management Fee | Q54: 2015 | R54: 19320 | S54: 2014 | T54: 18690 | V54: 2013 | W54: 18690 | X54: 18245 | Y54: 2012 | Z54: 18690 | AA54: 18379
A55: 10 | B55: GEORGIA | C55: 604 | D55: 81 | E55: 747432507 | F55: 01-0 | G55: FOREST VIEW APTS | H55: WADLEY HOUSING L.P. | I55: MORROW REALTY COMPANY, INC | J55: Active | K55: NA | L55: A | M55: 1998-07-10 | N55: PART II - O@M EXPENSE SCHEDULE | P55: 21. Project Auditing Expense | Q55: 2015 | R55: 4374 | S55: 2014 | T55: 4374 | V55: 2013 | W55: 4374 | X55: 4374 | Y55: 2012 | Z55: 4374 | AA55: 4374
A56: 10 | B56: GEORGIA | C56: 604 | D56: 81 | E56: 747432507 | F56: 01-0 | G56: FOREST VIEW APTS | H56: WADLEY HOUSING L.P. | I56: MORROW REALTY COMPANY, INC | J56: Active | K56: NA | L56: A | M56: 1998-07-10 | N56: PART II - O@M EXPENSE SCHEDULE | P56: 22. Proj. Bookkeeping/Accnting | Q56: 2015 | R56: 0 | S56: 2014 | T56: 0 | V56: 2013 | W56: 0 | X56: 0 | Y56: 2012 | Z56: 0 | AA56: 0
A57: 10 | B57: GEORGIA | C57: 604 | D57: 81 | E57: 747432507 | F57: 01-0 | G57: FOREST VIEW APTS | H57: WADLEY HOUSING L.P. | I57: MORROW REALTY COMPANY, INC | J57: Active | K57: NA | L57: A | M57: 1998-07-10 | N57: PART II - O@M EXPENSE SCHEDULE | P57: 23. Legal Expenses | Q57: 2015 | R57: 500 | S57: 2014 | T57: 500 | V57: 2013 | W57: 500 | X57: 51 | Y57: 2012 | Z57: 500 | AA57: 301
A58: 10 | B58: GEORGIA | C58: 604 | D58: 81 | E58: 747432507 | F58: 01-0 | G58: FOREST VIEW APTS | H58: WADLEY HOUSING L.P. | I58: MORROW REALTY COMPANY, INC | J58: Active | K58: NA | L58: A | M58: 1998-07-10 | N58: PART II - O@M EXPENSE SCHEDULE | P58: 24. Advertising | Q58: 2015 | R58: 500 | S58: 2014 | T58: 500 | V58: 2013 | W58: 500 | X58: 203 | Y58: 2012 | Z58: 250 | AA58: 202
A59: 10 | B59: GEORGIA | C59: 604 | D59: 81 | E59: 747432507 | F59: 01-0 | G59: FOREST VIEW APTS | H59: WADLEY HOUSING L.P. | I59: MORROW REALTY COMPANY, INC | J59: Active | K59: NA | L59: A | M59: 1998-07-10 | N59: PART II - O@M EXPENSE SCHEDULE | P59: 25. Phone @ Answering Service | Q59: 2015 | R59: 2300 | S59: 2014 | T59: 2300 | V59: 2013 | W59: 2300 | X59: 2202 | Y59: 2012 | Z59: 2300 | AA59: 2443
A60: 10 | B60: GEORGIA | C60: 604 | D60: 81 | E60: 747432507 | F60: 01-0 | G60: FOREST VIEW APTS | H60: WADLEY HOUSING L.P. | I60: MORROW REALTY COMPANY, INC | J60: Active | K60: NA | L60: A | M60: 1998-07-10 | N60: PART II - O@M EXPENSE SCHEDULE | P60: 26. Office Supplies | Q60: 2015 | R60: 2000 | S60: 2014 | T60: 2000 | V60: 2013 | W60: 2000 | X60: 1871 | Y60: 2012 | Z60: 2000 | AA60: 1931
A61: 10 | B61: GEORGIA | C61: 604 | D61: 81 | E61: 747432507 | F61: 01-0 | G61: FOREST VIEW APTS | H61: WADLEY HOUSING L.P. | I61: MORROW REALTY COMPANY, INC | J61: Active | K61: NA | L61: A | M61: 1998-07-10 | N61: PART II - O@M EXPENSE SCHEDULE | P61: 27. Office Furniture @ Equip. | Q61: 2015 | R61: 0 | S61: 2014 | T61: 0 | V61: 2013 | W61: 0 | X61: 0 | Y61: 2012 | Z61: 0 | AA61: 0
A62: 10 | B62: GEORGIA | C62: 604 | D62: 81 | E62: 747432507 | F62: 01-0 | G62: FOREST VIEW APTS | H62: WADLEY HOUSING L.P. | I62: MORROW REALTY COMPANY, INC | J62: Active | K62: NA | L62: A | M62: 1998-07-10 | N62: PART II - O@M EXPENSE SCHEDULE | P62: 28. Training Expense | Q62: 2015 | R62: 2000 | S62: 2014 | T62: 1800 | V62: 2013 | W62: 1800 | X62: 1933 | Y62: 2012 | Z62: 1800 | AA62: 1863
A63: 10 | B63: GEORGIA | C63: 604 | D63: 81 | E63: 747432507 | F63: 01-0 | G63: FOREST VIEW APTS | H63: WADLEY HOUSING L.P. | I63: MORROW REALTY COMPANY, INC | J63: Active | K63: NA | L63: A | M63: 1998-07-10 | N63: PART II - O@M EXPENSE SCHEDULE | P63: 29. Hlth Ins. @ Other Benefits | Q63: 2015 | R63: 12336 | S63: 2014 | T63: 12336 | V63: 2013 | W63: 11976 | X63: 13057 | Y63: 2012 | Z63: 11976 | AA63: 10982
A64: 10 | B64: GEORGIA | C64: 604 | D64: 81 | E64: 747432507 | F64: 01-0 | G64: FOREST VIEW APTS | H64: WADLEY HOUSING L.P. | I64: MORROW REALTY COMPANY, INC | J64: Active | K64: NA | L64: A | M64: 1998-07-10 | N64: PART II - O@M EXPENSE SCHEDULE | P64: 30. Payroll Taxes | Q64: 2015 | R64: 3612 | S64: 2014 | T64: 3558 | V64: 2013 | W64: 3337 | X64: 3115 | Y64: 2012 | Z64: 3587 | AA64: 3120
A65: 10 | B65: GEORGIA | C65: 604 | D65: 81 | E65: 747432507 | F65: 01-0 | G65: FOREST VIEW APTS | H65: WADLEY HOUSING L.P. | I65: MORROW REALTY COMPANY, INC | J65: Active | K65: NA | L65: A | M65: 1998-07-10 | N65: PART II - O@M EXPENSE SCHEDULE | P65: 31. Workmans Compensation | Q65: 2015 | R65: 1283 | S65: 2014 | T65: 2085 | V65: 2013 | W65: 1240 | X65: 2126 | Y65: 2012 | Z65: 1975 | AA65: 1138
A66: ="10" -> 10 | B66: GEORGIA | C66: ="604" -> 604 | D66: ="81" -> 81 | E66: ="747432507" -> 747432507 | F66: ="01-0" -> 01-0 | G66: FOREST VIEW APTS | H66: WADLEY HOUSING L.P. | I66: MORROW REALTY COMPANY, INC | J66: Active | K66: NA | L66: A | M66: 1998-07-10 | N66: PART II - O@M EXPENSE SCHEDULE | P66: 32. Other Admin.Expenses | Q66: 2015 | R66: 1113 | S66: 2014 | T66: 1045 | V66: 2013 | W66: 604 | X66: 1023 | Y66: 2012 | Z66: 499 | AA66: 794
A67: 10 | B67: GEORGIA | C67: 604 | D67: 81 | E67: 747432507 | F67: 01-0 | G67: FOREST VIEW APTS | H67: WADLEY HOUSING L.P. | I67: MORROW REALTY COMPANY, INC | J67: Active | K67: NA | L67: A | M67: 1998-07-10 | N67: PART II - O@M EXPENSE SCHEDULE | P67: 33. Sub-Ttl Admin (19 thru 32) | Q67: 2015 | R67: 69418 | S67: 2014 | T67: 69268 | V67: 2013 | W67: 67401 | X67: 66144 | Y67: 2012 | Z67: 68361 | AA67: 63675
A68: 10 | B68: GEORGIA | C68: 604 | D68: 81 | E68: 747432507 | F68: 01-0 | G68: FOREST VIEW APTS | H68: WADLEY HOUSING L.P. | I68: MORROW REALTY COMPANY, INC | J68: Active | K68: NA | L68: A | M68: 1998-07-10 | N68: PART II - O@M EXPENSE SCHEDULE | P68: 34. Real Estate Taxes | Q68: 2015 | R68: 20310 | S68: 2014 | T68: 19257 | V68: 2013 | W68: 19257 | X68: 17765 | Y68: 2012 | Z68: 18274 | AA68: 19154
A69: 10 | B69: GEORGIA | C69: 604 | D69: 81 | E69: 747432507 | F69: 01-0 | G69: FOREST VIEW APTS | H69: WADLEY HOUSING L.P. | I69: MORROW REALTY COMPANY, INC | J69: Active | K69: NA | L69: A | M69: 1998-07-10 | N69: PART II - O@M EXPENSE SCHEDULE | P69: 35. Special Assessments | Q69: 2015 | R69: 300 | S69: 2014 | T69: 250 | V69: 2013 | W69: 100 | X69: 250 | Y69: 2012 | Z69: 200 | AA69: 200
A70: 10 | B70: GEORGIA | C70: 604 | D70: 81 | E70: 747432507 | F70: 01-0 | G70: FOREST VIEW APTS | H70: WADLEY HOUSING L.P. | I70: MORROW REALTY COMPANY, INC | J70: Active | K70: NA | L70: A | M70: 1998-07-10 | N70: PART II - O@M EXPENSE SCHEDULE | P70: 36. Othr Taxes, Lcnses, Permts | Q70: 2015 | R70: 0 | S70: 2014 | T70: 0 | V70: 2013 | W70: 0 | X70: 0 | Y70: 2012 | Z70: 0 | AA70: 0
A71: 10 | B71: GEORGIA | C71: 604 | D71: 81 | E71: 747432507 | F71: 01-0 | G71: FOREST VIEW APTS | H71: WADLEY HOUSING L.P. | I71: MORROW REALTY COMPANY, INC | J71: Active | K71: NA | L71: A | M71: 1998-07-10 | N71: PART II - O@M EXPENSE SCHEDULE | P71: 37. Property @ Liability Ins. | Q71: 2015 | R71: 10201 | S71: 2014 | T71: 12256 | V71: 2013 | W71: 8816 | X71: 9952 | Y71: 2012 | Z71: 6961 | AA71: 7397
A72: 10 | B72: GEORGIA | C72: 604 | D72: 81 | E72: 747432507 | F72: 01-0 | G72: FOREST VIEW APTS | H72: WADLEY HOUSING L.P. | I72: MORROW REALTY COMPANY, INC | J72: Active | K72: NA | L72: A | M72: 1998-07-10 | N72: PART II - O@M EXPENSE SCHEDULE | P72: 38. Fidelity Coverage Ins. | Q72: 2015 | R72: 191 | S72: 2014 | T72: 191 | V72: 2013 | W72: 191 | X72: 0 | Y72: 2012 | Z72: 191 | AA72: 0
A73: 10 | B73: GEORGIA | C73: 604 | D73: 81 | E73: 747432507 | F73: 01-0 | G73: FOREST VIEW APTS | H73: WADLEY HOUSING L.P. | I73: MORROW REALTY COMPANY, INC | J73: Active | K73: NA | L73: A | M73: 1998-07-10 | N73: PART II - O@M EXPENSE SCHEDULE | P73: 39. Other Insurance | Q73: 2015 | R73: 0 | S73: 2014 | T73: 0 | V73: 2013 | W73: 0 | X73: 0 | Y73: 2012 | Z73: 0 | AA73: 0
A74: 10 | B74: GEORGIA | C74: 604 | D74: 81 | E74: 747432507 | F74: 01-0 | G74: FOREST VIEW APTS | H74: WADLEY HOUSING L.P. | I74: MORROW REALTY COMPANY, INC | J74: Active | K74: NA | L74: A | M74: 1998-07-10 | N74: PART II - O@M EXPENSE SCHEDULE | P74: 40. Sub-Ttl Tx/In (34 thru 39) | Q74: 2015 | R74: 31002 | S74: 2014 | T74: 31954 | V74: 2013 | W74: 28364 | X74: 27967 | Y74: 2012 | Z74: 25626 | AA74: 26751
A75: 10 | B75: GEORGIA | C75: 604 | D75: 81 | E75: 747432507 | F75: 01-0 | G75: FOREST VIEW APTS | H75: WADLEY HOUSING L.P. | I75: MORROW REALTY COMPANY, INC | J75: Active | K75: NA | L75: A | M75: 1998-07-10 | N75: PART II - O@M EXPENSE SCHEDULE | P75: 41. Ttl O@M Exps (11+18+33+40) | Q75: 2015 | R75: 157877 | S75: 2014 | T75: 156018 | V75: 2013 | W75: 150900 | X75: 154565 | Y75: 2012 | Z75: 151585 | AA75: 152601
A76: 10 | B76: GEORGIA | C76: 604 | D76: 81 | E76: 747432507 | F76: 01-0 | G76: FOREST VIEW APTS | H76: WADLEY HOUSING L.P. | I76: MORROW REALTY COMPANY, INC | J76: Active | K76: NA | L76: A | M76: 1998-07-10 | N76: PART III - ACCT BUDGET/STATUS | O76: Reserve Account | P76: 1.Beginning Balance | Q76: 2015 | R76: 44204 | S76: 2014 | T76: 57116 | V76: 2013 | W76: 95048 | X76: 68419 | Y76: 2012 | Z76: 72102 | AA76: 60981
A77: 10 | B77: GEORGIA | C77: 604 | D77: 81 | E77: 747432507 | F77: 01-0 | G77: FOREST VIEW APTS | H77: WADLEY HOUSING L.P. | I77: MORROW REALTY COMPANY, INC | J77: Active | K77: NA | L77: A | M77: 1998-07-10 | N77: PART III - ACCT BUDGET/STATUS | O77: Reserve Account | P77: 2. Transfer to Reserve | Q77: 2015 | R77: 11970 | S77: 2014 | T77: 11970 | V77: 2013 | W77: 11970 | X77: 12008 | Y77: 2012 | Z77: 11970 | AA77: 32539
A78: 10 | B78: GEORGIA | C78: 604 | D78: 81 | E78: 747432507 | F78: 01-0 | G78: FOREST VIEW APTS | H78: WADLEY HOUSING L.P. | I78: MORROW REALTY COMPANY, INC | J78: Active | K78: NA | L78: A | M78: 1998-07-10 | N78: PART III - ACCT BUDGET/STATUS | O78: Transfer From Reserve | P78: 3. Operating Deficit | Q78: 2015 | R78: 0 | S78: 2014 | T78: 0 | V78: 2013 | W78: 0 | X78: 0 | Y78: 2012 | Z78: 0 | AA78: 0
A79: 10 | B79: GEORGIA | C79: 604 | D79: 81 | E79: 747432507 | F79: 01-0 | G79: FOREST VIEW APTS | H79: WADLEY HOUSING L.P. | I79: MORROW REALTY COMPANY, INC | J79: Active | K79: NA | L79: A | M79: 1998-07-10 | N79: PART III - ACCT BUDGET/STATUS | O79: Transfer From Reserve | P79: 4. Cptl Bgt (Part V reserve) | Q79: 2015 | R79: 41200 | S79: 2014 | T79: 58950 | V79: 2013 | W79: 51900 | X79: 0 | Y79: 2012 | Z79: 30250 | AA79: 0
A80: 10 | B80: GEORGIA | C80: 604 | D80: 81 | E80: 747432507 | F80: 01-0 | G80: FOREST VIEW APTS | H80: WADLEY HOUSING L.P. | I80: MORROW REALTY COMPANY, INC | J80: Active | K80: NA | L80: A | M80: 1998-07-10 | N80: PART III - ACCT BUDGET/STATUS | O80: Transfer From Reserve | P80: 5. Building @ Equip Repair | Q80: 2015 | R80: 0 | S80: 2014 | T80: 0 | V80: 2013 | W80: 0 | X80: 44693 | Y80: 2012 | Z80: 0 | AA80: 25101
A81: 10 | B81: GEORGIA | C81: 604 | D81: 81 | E81: 747432507 | F81: 01-0 | G81: FOREST VIEW APTS | H81: WADLEY HOUSING L.P. | I81: MORROW REALTY COMPANY, INC | J81: Active | K81: NA | L81: A | M81: 1998-07-10 | N81: PART III - ACCT BUDGET/STATUS | O81: Transfer From Reserve | P81: 6. Othr Non-Operating Expenses | Q81: 2015 | R81: 0 | S81: 2014 | T81: 0 | V81: 2013 | W81: 0 | X81: 0 | Y81: 2012 | Z81: 0 | AA81: 0
A82: 10 | B82: GEORGIA | C82: 604 | D82: 81 | E82: 747432507 | F82: 01-0 | G82: FOREST VIEW APTS | H82: WADLEY HOUSING L.P. | I82: MORROW REALTY COMPANY, INC | J82: Active | K82: NA | L82: A | M82: 1998-07-10 | N82: PART III - ACCT BUDGET/STATUS | O82: Transfer From Reserve | P82: 7. Total (3 thru 6) | Q82: 2015 | R82: 41200 | S82: 2014 | T82: 58950 | V82: 2013 | W82: 51900 | X82: 44693 | Y82: 2012 | Z82: 30250 | AA82: 25101
A83: 10 | B83: GEORGIA | C83: 604 | D83: 81 | E83: 747432507 | F83: 01-0 | G83: FOREST VIEW APTS | H83: WADLEY HOUSING L.P. | I83: MORROW REALTY COMPANY, INC | J83: Active | K83: NA | L83: A | M83: 1998-07-10 | N83: PART III - ACCT BUDGET/STATUS | O83: Transfer From Reserve | P83: 8. Ending Balance [(1+2)-7)] | Q83: 2015 | R83: 14974 | S83: 2014 | T83: 10136 | V83: 2013 | W83: 55118 | X83: 35734 | Y83: 2012 | Z83: 53822 | AA83: 68419
A84: 10 | B84: GEORGIA | C84: 604 | D84: 81 | E84: 747432507 | F84: 01-0 | G84: FOREST VIEW APTS | H84: WADLEY HOUSING L.P. | I84: MORROW REALTY COMPANY, INC | J84: Active | K84: NA | L84: A | M84: 1998-07-10 | N84: PART III - ACCT BUDGET/STATUS | O84: General Operating Account | P84: Beginning Balance | Q84: 2015 | S84: 2014 | T84: 0 | V84: 2013 | W84: 0 | X84: 15533 | Y84: 2012 | Z84: 0 | AA84: 42317
A85: 10 | B85: GEORGIA | C85: 604 | D85: 81 | E85: 747432507 | F85: 01-0 | G85: FOREST VIEW APTS | H85: WADLEY HOUSING L.P. | I85: MORROW REALTY COMPANY, INC | J85: Active | K85: NA | L85: A | M85: 1998-07-10 | N85: PART III - ACCT BUDGET/STATUS | O85: General Operating Account | P85: Ending Balance | Q85: 2015 | S85: 2014 | T85: 0 | V85: 2013 | W85: 0 | X85: 14086 | Y85: 2012 | Z85: 0 | AA85: 20932
A86: 10 | B86: GEORGIA | C86: 604 | D86: 81 | E86: 747432507 | F86: 01-0 | G86: FOREST VIEW APTS | H86: WADLEY HOUSING L.P. | I86: MORROW REALTY COMPANY, INC | J86: Active | K86: NA | L86: A | M86: 1998-07-10 | N86: PART III - ACCT BUDGET/STATUS | O86: Real Estate Tax And Ins Escrow | P86: Beginning Balance | Q86: 2015 | S86: 2014 | T86: 0 | V86: 2013 | W86: 0 | X86: 5399 | Y86: 2012 | Z86: 0 | AA86: 4204
A87: 10 | B87: GEORGIA | C87: 604 | D87: 81 | E87: 747432507 | F87: 01-0 | G87: FOREST VIEW APTS | H87: WADLEY HOUSING L.P. | I87: MORROW REALTY COMPANY, INC | J87: Active | K87: NA | L87: A | M87: 1998-07-10 | N87: PART III - ACCT BUDGET/STATUS | O87: Real Estate Tax And Ins Escrow | P87: Ending Balance | Q87: 2015 | S87: 2014 | T87: 0 | V87: 2013 | W87: 0 | X87: 8542 | Y87: 2012 | Z87: 0 | AA87: 0
A88: 10 | B88: GEORGIA | C88: 604 | D88: 81 | E88: 747432507 | F88: 01-0 | G88: FOREST VIEW APTS | H88: WADLEY HOUSING L.P. | I88: MORROW REALTY COMPANY, INC | J88: Active | K88: NA | L88: A | M88: 1998-07-10 | N88: PART III - ACCT BUDGET/STATUS | O88: Tenant Security Deposit Acct | P88: Beginning Balance | Q88: 2015 | S88: 2014 | T88: 0 | V88: 2013 | W88: 0 | X88: 6600 | Y88: 2012 | Z88: 0 | AA88: 5800
A89: 10 | B89: GEORGIA | C89: 604 | D89: 81 | E89: 747432507 | F89: 01-0 | G89: FOREST VIEW APTS | H89: WADLEY HOUSING L.P. | I89: MORROW REALTY COMPANY, INC | J89: Active | K89: NA | L89: A | M89: 1998-07-10 | N89: PART III - ACCT BUDGET/STATUS | O89: Tenant Security Deposit Acct | P89: Ending Balance | Q89: 2015 | S89: 2014 | T89: 0 | V89: 2013 | W89: 0 | X89: 7550 | Y89: 2012 | Z89: 0 | AA89: 6600
A90: 10 | B90: GEORGIA | C90: 604 | D90: 81 | E90: 747432507 | F90: 01-0 | G90: FOREST VIEW APTS | H90: WADLEY HOUSING L.P. | I90: MORROW REALTY COMPANY, INC | J90: Active | K90: NA | L90: A | M90: 1998-07-10 | N90: ANNUAL CAPITAL BUDGET | O90: Appliances | P90: Appliances - Range | Q90: 2015 | R90: 900 | S90: 2014 | T90: 900 | V90: 2013 | W90: 650 | X90: 0 | Y90: 2012 | Z90: 650 | AA90: 0
A91: 10 | B91: GEORGIA | C91: 604 | D91: 81 | E91: 747432507 | F91: 01-0 | G91: FOREST VIEW APTS | H91: WADLEY HOUSING L.P. | I91: MORROW REALTY COMPANY, INC | J91: Active | K91: NA | L91: A | M91: 1998-07-10 | N91: ANNUAL CAPITAL BUDGET | O91: Appliances | P91: Appliances - Refrigerator | Q91: 2015 | R91: 1100 | S91: 2014 | T91: 1100 | V91: 2013 | W91: 1100 | X91: 0 | Y91: 2012 | Z91: 1000 | AA91: 0
A92: 10 | B92: GEORGIA | C92: 604 | D92: 81 | E92: 747432507 | F92: 01-0 | G92: FOREST VIEW APTS | H92: WADLEY HOUSING L.P. | I92: MORROW REALTY COMPANY, INC | J92: Active | K92: NA | L92: A | M92: 1998-07-10 | N92: ANNUAL CAPITAL BUDGET | O92: Appliances | P92: Appliances - Range Hood | Q92: 2015 | R92: 0 | S92: 2014 | T92: 0 | V92: 2013 | W92: 0 | X92: 0 | Y92: 2012 | Z92: 0 | AA92: 0
A93: 10 | B93: GEORGIA | C93: 604 | D93: 81 | E93: 747432507 | F93: 01-0 | G93: FOREST VIEW APTS | H93: WADLEY HOUSING L.P. | I93: MORROW REALTY COMPANY, INC | J93: Active | K93: NA | L93: A | M93: 1998-07-10 | N93: ANNUAL CAPITAL BUDGET | O93: Appliances | P93: Appliances - Washers @ Dryers | Q93: 2015 | R93: 0 | S93: 2014 | T93: 0 | V93: 2013 | W93: 0 | X93: 0 | Y93: 2012 | Z93: 0 | AA93: 0
A94: 10 | B94: GEORGIA | C94: 604 | D94: 81 | E94: 747432507 | F94: 01-0 | G94: FOREST VIEW APTS | H94: WADLEY HOUSING L.P. | I94: MORROW REALTY COMPANY, INC | J94: Active | K94: NA | L94: A | M94: 1998-07-10 | N94: ANNUAL CAPITAL BUDGET | O94: Appliances | P94: Appliances - Other | Q94: 2015 | R94: 0 | S94: 2014 | T94: 0 | V94: 2013 | W94: 0 | X94: 0 | Y94: 2012 | Z94: 0 | AA94: 0
A95: 10 | B95: GEORGIA | C95: 604 | D95: 81 | E95: 747432507 | F95: 01-0 | G95: FOREST VIEW APTS | H95: WADLEY HOUSING L.P. | I95: MORROW REALTY COMPANY, INC | J95: Active | K95: NA | L95: A | M95: 1998-07-10 | N95: ANNUAL CAPITAL BUDGET | O95: Carpet and Vinyl | P95: Carpet @ Vinyl - 1 Br. | Q95: 2015 | R95: 1400 | S95: 2014 | T95: 2800 | V95: 2013 | W95: 2800 | X95: 0 | Y95: 2012 | Z95: 1400 | AA95: 0
A96: 10 | B96: GEORGIA | C96: 604 | D96: 81 | E96: 747432507 | F96: 01-0 | G96: FOREST VIEW APTS | H96: WADLEY HOUSING L.P. | I96: MORROW REALTY COMPANY, INC | J96: Active | K96: NA | L96: A | M96: 1998-07-10 | N96: ANNUAL CAPITAL BUDGET | O96: Carpet and Vinyl | P96: Carpet @ Vinyl - 2 Br. | Q96: 2015 | R96: 3200 | S96: 2014 | T96: 3100 | V96: 2013 | W96: 3100 | X96: 0 | Y96: 2012 | Z96: 4650 | AA96: 0
A97: 10 | B97: GEORGIA | C97: 604 | D97: 81 | E97: 747432507 | F97: 01-0 | G97: FOREST VIEW APTS | H97: WADLEY HOUSING L.P. | I97: MORROW REALTY COMPANY, INC | J97: Active | K97: NA | L97: A | M97: 1998-07-10 | N97: ANNUAL CAPITAL BUDGET | O97: Carpet and Vinyl | P97: Carpet @ Vinyl - 3 Br. | Q97: 2015 | R97: 4800 | S97: 2014 | T97: 4400 | V97: 2013 | W97: 4400 | X97: 0 | Y97: 2012 | Z97: 4400 | AA97: 0
A98: 10 | B98: GEORGIA | C98: 604 | D98: 81 | E98: 747432507 | F98: 01-0 | G98: FOREST VIEW APTS | H98: WADLEY HOUSING L.P. | I98: MORROW REALTY COMPANY, INC | J98: Active | K98: NA | L98: A | M98: 1998-07-10 | N98: ANNUAL CAPITAL BUDGET | O98: Carpet and Vinyl | P98: Carpet @ Vinyl - 4 Br. | Q98: 2015 | R98: 0 | S98: 2014 | T98: 0 | V98: 2013 | W98: 0 | X98: 0 | Y98: 2012 | Z98: 0 | AA98: 0
A99: 10 | B99: GEORGIA | C99: 604 | D99: 81 | E99: 747432507 | F99: 01-0 | G99: FOREST VIEW APTS | H99: WADLEY HOUSING L.P. | I99: MORROW REALTY COMPANY, INC | J99: Active | K99: NA | L99: A | M99: 1998-07-10 | N99: ANNUAL CAPITAL BUDGET | O99: Carpet and Vinyl | P99: Carpet @ Vinyl - Other | Q99: 2015 | R99: 0 | S99: 2014 | T99: 0 | V99: 2013 | W99: 0 | X99: 0 | Y99: 2012 | Z99: 0 | AA99: 0
A100: 10 | B100: GEORGIA | C100: 604 | D100: 81 | E100: 747432507 | F100: 01-0 | G100: FOREST VIEW APTS | H100: WADLEY HOUSING L.P. | I100: MORROW REALTY COMPANY, INC | J100: Active | K100: NA | L100: A | M100: 1998-07-10 | N100: ANNUAL CAPITAL BUDGET | O100: Cabinets | P100: Cabinets - Kitchens | Q100: 2015 | R100: 8800 | S100: 2014 | T100: 17600 | V100: 2013 | W100: 17600 | X100: 0 | Y100: 2012 | Z100: 4400 | AA100: 0
A101: 10 | B101: GEORGIA | C101: 604 | D101: 81 | E101: 747432507 | F101: 01-0 | G101: FOREST VIEW APTS | H101: WADLEY HOUSING L.P. | I101: MORROW REALTY COMPANY, INC | J101: Active | K101: NA | L101: A | M101: 1998-07-10 | N101: ANNUAL CAPITAL BUDGET | O101: Cabinets | P101: Cabinets - Bathroom | Q101: 2015 | R101: 2500 | S101: 2014 | T101: 0 | V101: 2013 | W101: 4000 | X101: 0 | Y101: 2012 | Z101: 2000 | AA101: 0
A102: 10 | B102: GEORGIA | C102: 604 | D102: 81 | E102: 747432507 | F102: 01-0 | G102: FOREST VIEW APTS | H102: WADLEY HOUSING L.P. | I102: MORROW REALTY COMPANY, INC | J102: Active | K102: NA | L102: A | M102: 1998-07-10 | N102: ANNUAL CAPITAL BUDGET | O102: Cabinets | P102: Cabinets - Other | Q102: 2015 | R102: 0 | S102: 2014 | T102: 2800 | V102: 2013 | W102: 0 | X102: 0 | Y102: 2012 | Z102: 0 | AA102: 0
A103: 10 | B103: GEORGIA | C103: 604 | D103: 81 | E103: 747432507 | F103: 01-0 | G103: FOREST VIEW APTS | H103: WADLEY HOUSING L.P. | I103: MORROW REALTY COMPANY, INC | J103: Active | K103: NA | L103: A | M103: 1998-07-10 | N103: ANNUAL CAPITAL BUDGET | O103: Doors | P103: Doors - Exterior | Q103: 2015 | R103: 0 | S103: 2014 | T103: 0 | V103: 2013 | W103: 0 | X103: 0 | Y103: 2012 | Z103: 0 | AA103: 0
A104: 10 | B104: GEORGIA | C104: 604 | D104: 81 | E104: 747432507 | F104: 01-0 | G104: FOREST VIEW APTS | H104: WADLEY HOUSING L.P. | I104: MORROW REALTY COMPANY, INC | J104: Active | K104: NA | L104: A | M104: 1998-07-10 | N104: ANNUAL CAPITAL BUDGET | O104: Doors | P104: Doors - Interior | Q104: 2015 | R104: 0 | S104: 2014 | T104: 0 | V104: 2013 | W104: 0 | X104: 0 | Y104: 2012 | Z104: 0 | AA104: 0
A105: 10 | B105: GEORGIA | C105: 604 | D105: 81 | E105: 747432507 | F105: 01-0 | G105: FOREST VIEW APTS | H105: WADLEY HOUSING L.P. | I105: MORROW REALTY COMPANY, INC | J105: Active | K105: NA | L105: A | M105: 1998-07-10 | N105: ANNUAL CAPITAL BUDGET | O105: Doors | P105: Doors - Other | Q105: 2015 | R105: 0 | S105: 2014 | T105: 0 | V105: 2013 | W105: 0 | X105: 0 | Y105: 2012 | Z105: 0 | AA105: 0
A106: 10 | B106: GEORGIA | C106: 604 | D106: 81 | E106: 747432507 | F106: 01-0 | G106: FOREST VIEW APTS | H106: WADLEY HOUSING L.P. | I106: MORROW REALTY COMPANY, INC | J106: Active | K106: NA | L106: A | M106: 1998-07-10 | N106: ANNUAL CAPITAL BUDGET | O106: Window Coverings | P106: Window Coverings - Detail | Q106: 2015 | R106: 0 | S106: 2014 | T106: 0 | V106: 2013 | W106: 0 | X106: 0 | Y106: 2012 | Z106: 0 | AA106: 0
A107: 10 | B107: GEORGIA | C107: 604 | D107: 81 | E107: 747432507 | F107: 01-0 | G107: FOREST VIEW APTS | H107: WADLEY HOUSING L.P. | I107: MORROW REALTY COMPANY, INC | J107: Active | K107: NA | L107: A | M107: 1998-07-10 | N107: ANNUAL CAPITAL BUDGET | O107: Window Coverings | P107: Window Coverings - Other | Q107: 2015 | R107: 0 | S107: 2014 | T107: 0 | V107: 2013 | W107: 0 | X107: 0 | Y107: 2012 | Z107: 0 | AA107: 0
A108: 10 | B108: GEORGIA | C108: 604 | D108: 81 | E108: 747432507 | F108: 01-0 | G108: FOREST VIEW APTS | H108: WADLEY HOUSING L.P. | I108: MORROW REALTY COMPANY, INC | J108: Active | K108: NA | L108: A | M108: 1998-07-10 | N108: ANNUAL CAPITAL BUDGET | O108: Heat and Air Conditioning | P108: Heat @ Air - Heating | Q108: 2015 | R108: 0 | S108: 2014 | T108: 0 | V108: 2013 | W108: 0 | X108: 0 | Y108: 2012 | Z108: 0 | AA108: 0
A109: 10 | B109: GEORGIA | C109: 604 | D109: 81 | E109: 747432507 | F109: 01-0 | G109: FOREST VIEW APTS | H109: WADLEY HOUSING L.P. | I109: MORROW REALTY COMPANY, INC | J109: Active | K109: NA | L109: A | M109: 1998-07-10 | N109: ANNUAL CAPITAL BUDGET | O109: Heat and Air Conditioning | P109: Heat @ Air - Air Conditioning | Q109: 2015 | R109: 16800 | S109: 2014 | T109: 7200 | V109: 2013 | W109: 7200 | X109: 0 | Y109: 2012 | Z109: 7200 | AA109: 0
A110: 10 | B110: GEORGIA | C110: 604 | D110: 81 | E110: 747432507 | F110: 01-0 | G110: FOREST VIEW APTS | H110: WADLEY HOUSING L.P. | I110: MORROW REALTY COMPANY, INC | J110: Active | K110: NA | L110: A | M110: 1998-07-10 | N110: ANNUAL CAPITAL BUDGET | O110: Heat and Air Conditioning | P110: Heat @ Air - Other | Q110: 2015 | R110: 0 | S110: 2014 | T110: 0 | V110: 2013 | W110: 0 | X110: 0 | Y110: 2012 | Z110: 0 | AA110: 0
A111: 10 | B111: GEORGIA | C111: 604 | D111: 81 | E111: 747432507 | F111: 01-0 | G111: FOREST VIEW APTS | H111: WADLEY HOUSING L.P. | I111: MORROW REALTY COMPANY, INC | J111: Active | K111: NA | L111: A | M111: 1998-07-10 | N111: ANNUAL CAPITAL BUDGET | O111: Plumbing | P111: Plumbing - Water Heater | Q111: 2015 | R111: 1200 | S111: 2014 | T111: 1050 | V111: 2013 | W111: 1050 | X111: 0 | Y111: 2012 | Z111: 780 | AA111: 0
A112: 10 | B112: GEORGIA | C112: 604 | D112: 81 | E112: 747432507 | F112: 01-0 | G112: FOREST VIEW APTS | H112: WADLEY HOUSING L.P. | I112: MORROW REALTY COMPANY, INC | J112: Active | K112: NA | L112: A | M112: 1998-07-10 | N112: ANNUAL CAPITAL BUDGET | O112: Plumbing | P112: Plumbing - Bath Sinks | Q112: 2015 | R112: 0 | S112: 2014 | T112: 0 | V112: 2013 | W112: 0 | X112: 0 | Y112: 2012 | Z112: 0 | AA112: 0
A113: 10 | B113: GEORGIA | C113: 604 | D113: 81 | E113: 747432507 | F113: 01-0 | G113: FOREST VIEW APTS | H113: WADLEY HOUSING L.P. | I113: MORROW REALTY COMPANY, INC | J113: Active | K113: NA | L113: A | M113: 1998-07-10 | N113: ANNUAL CAPITAL BUDGET | O113: Plumbing | P113: Plumbing - Kitchen Sinks | Q113: 2015 | R113: 0 | S113: 2014 | T113: 0 | V113: 2013 | W113: 0 | X113: 0 | Y113: 2012 | Z113: 0 | AA113: 0
A114: 10 | B114: GEORGIA | C114: 604 | D114: 81 | E114: 747432507 | F114: 01-0 | G114: FOREST VIEW APTS | H114: WADLEY HOUSING L.P. | I114: MORROW REALTY COMPANY, INC | J114: Active | K114: NA | L114: A | M114: 1998-07-10 | N114: ANNUAL CAPITAL BUDGET | O114: Plumbing | P114: Plumbing - Faucets | Q114: 2015 | R114: 0 | S114: 2014 | T114: 0 | V114: 2013 | W114: 0 | X114: 0 | Y114: 2012 | Z114: 0 | AA114: 0
A115: 10 | B115: GEORGIA | C115: 604 | D115: 81 | E115: 747432507 | F115: 01-0 | G115: FOREST VIEW APTS | H115: WADLEY HOUSING L.P. | I115: MORROW REALTY COMPANY, INC | J115: Active | K115: NA | L115: A | M115: 1998-07-10 | N115: ANNUAL CAPITAL BUDGET | O115: Plumbing | P115: Plumbing - Toilets | Q115: 2015 | R115: 0 | S115: 2014 | T115: 0 | V115: 2013 | W115: 0 | X115: 0 | Y115: 2012 | Z115: 0 | AA115: 0
A116: 10 | B116: GEORGIA | C116: 604 | D116: 81 | E116: 747432507 | F116: 01-0 | G116: FOREST VIEW APTS | H116: WADLEY HOUSING L.P. | I116: MORROW REALTY COMPANY, INC | J116: Active | K116: NA | L116: A | M116: 1998-07-10 | N116: ANNUAL CAPITAL BUDGET | O116: Plumbing | P116: Plumbing - Other | Q116: 2015 | R116: 0 | S116: 2014 | T116: 0 | V116: 2013 | W116: 0 | X116: 0 | Y116: 2012 | Z116: 0 | AA116: 0
A117: 10 | B117: GEORGIA | C117: 604 | D117: 81 | E117: 747432507 | F117: 01-0 | G117: FOREST VIEW APTS | H117: WADLEY HOUSING L.P. | I117: MORROW REALTY COMPANY, INC | J117: Active | K117: NA | L117: A | M117: 1998-07-10 | N117: ANNUAL CAPITAL BUDGET | O117: Major Electrical | P117: Major Electrical - Detail | Q117: 2015 | R117: 0 | S117: 2014 | T117: 0 | V117: 2013 | W117: 0 | X117: 0 | Y117: 2012 | Z117: 0 | AA117: 0
A118: 10 | B118: GEORGIA | C118: 604 | D118: 81 | E118: 747432507 | F118: 01-0 | G118: FOREST VIEW APTS | H118: WADLEY HOUSING L.P. | I118: MORROW REALTY COMPANY, INC | J118: Active | K118: NA | L118: A | M118: 1998-07-10 | N118: ANNUAL CAPITAL BUDGET | O118: Major Electrical | P118: Major Electrical - Other | Q118: 2015 | R118: 0 | S118: 2014 | T118: 0 | V118: 2013 | W118: 0 | X118: 0 | Y118: 2012 | Z118: 0 | AA118: 0
A119: 10 | B119: GEORGIA | C119: 604 | D119: 81 | E119: 747432507 | F119: 01-0 | G119: FOREST VIEW APTS | H119: WADLEY HOUSING L.P. | I119: MORROW REALTY COMPANY, INC | J119: Active | K119: NA | L119: A | M119: 1998-07-10 | N119: ANNUAL CAPITAL BUDGET | O119: Structures | P119: Structures - Windows | Q119: 2015 | R119: 0 | S119: 2014 | T119: 0 | V119: 2013 | W119: 2000 | X119: 0 | Y119: 2012 | Z119: 800 | AA119: 0
A120: 10 | B120: GEORGIA | C120: 604 | D120: 81 | E120: 747432507 | F120: 01-0 | G120: FOREST VIEW APTS | H120: WADLEY HOUSING L.P. | I120: MORROW REALTY COMPANY, INC | J120: Active | K120: NA | L120: A | M120: 1998-07-10 | N120: ANNUAL CAPITAL BUDGET | O120: Structures | P120: Structures - Screens | Q120: 2015 | R120: 0 | S120: 2014 | T120: 0 | V120: 2013 | W120: 0 | X120: 0 | Y120: 2012 | Z120: 0 | AA120: 0
A121: 10 | B121: GEORGIA | C121: 604 | D121: 81 | E121: 747432507 | F121: 01-0 | G121: FOREST VIEW APTS | H121: WADLEY HOUSING L.P. | I121: MORROW REALTY COMPANY, INC | J121: Active | K121: NA | L121: A | M121: 1998-07-10 | N121: ANNUAL CAPITAL BUDGET | O121: Structures | P121: Structures - Walls | Q121: 2015 | R121: 0 | S121: 2014 | T121: 0 | V121: 2013 | W121: 0 | X121: 0 | Y121: 2012 | Z121: 0 | AA121: 0
A122: 10 | B122: GEORGIA | C122: 604 | D122: 81 | E122: 747432507 | F122: 01-0 | G122: FOREST VIEW APTS | H122: WADLEY HOUSING L.P. | I122: MORROW REALTY COMPANY, INC | J122: Active | K122: NA | L122: A | M122: 1998-07-10 | N122: ANNUAL CAPITAL BUDGET | O122: Structures | P122: Structures - Roofing | Q122: 2015 | R122: 0 | S122: 2014 | T122: 0 | V122: 2013 | W122: 0 | X122: 0 | Y122: 2012 | Z122: 0 | AA122: 0
A123: 10 | B123: GEORGIA | C123: 604 | D123: 81 | E123: 747432507 | F123: 01-0 | G123: FOREST VIEW APTS | H123: WADLEY HOUSING L.P. | I123: MORROW REALTY COMPANY, INC | J123: Active | K123: NA | L123: A | M123: 1998-07-10 | N123: ANNUAL CAPITAL BUDGET | O123: Structures | P123: Structures - Siding | Q123: 2015 | R123: 0 | S123: 2014 | T123: 0 | V123: 2013 | W123: 0 | X123: 0 | Y123: 2012 | Z123: 0 | AA123: 0
A124: 10 | B124: GEORGIA | C124: 604 | D124: 81 | E124: 747432507 | F124: 01-0 | G124: FOREST VIEW APTS | H124: WADLEY HOUSING L.P. | I124: MORROW REALTY COMPANY, INC | J124: Active | K124: NA | L124: A | M124: 1998-07-10 | N124: ANNUAL CAPITAL BUDGET | O124: Structures | P124: Structures - Exterior Painting | Q124: 2015 | R124: 0 | S124: 2014 | T124: 0 | V124: 2013 | W124: 8000 | X124: 0 | Y124: 2012 | Z124: 0 | AA124: 0
A125: 10 | B125: GEORGIA | C125: 604 | D125: 81 | E125: 747432507 | F125: 01-0 | G125: FOREST VIEW APTS | H125: WADLEY HOUSING L.P. | I125: MORROW REALTY COMPANY, INC | J125: Active | K125: NA | L125: A | M125: 1998-07-10 | N125: ANNUAL CAPITAL BUDGET | O125: Structures | P125: Structures - Other | Q125: 2015 | R125: 0 | S125: 2014 | T125: 0 | V125: 2013 | W125: 0 | X125: 0 | Y125: 2012 | Z125: 0 | AA125: 0
A126: 10 | B126: GEORGIA | C126: 604 | D126: 81 | E126: 747432507 | F126: 01-0 | G126: FOREST VIEW APTS | H126: WADLEY HOUSING L.P. | I126: MORROW REALTY COMPANY, INC | J126: Active | K126: NA | L126: A | M126: 1998-07-10 | N126: ANNUAL CAPITAL BUDGET | O126: Paving | P126: Paving - Asphalt | Q126: 2015 | R126: 0 | S126: 2014 | T126: 15000 | V126: 2013 | W126: 0 | X126: 0 | Y126: 2012 | Z126: 0 | AA126: 0
A127: 10 | B127: GEORGIA | C127: 604 | D127: 81 | E127: 747432507 | F127: 01-0 | G127: FOREST VIEW APTS | H127: WADLEY HOUSING L.P. | I127: MORROW REALTY COMPANY, INC | J127: Active | K127: NA | L127: A | M127: 1998-07-10 | N127: ANNUAL CAPITAL BUDGET | O127: Paving | P127: Paving - Concrete | Q127: 2015 | R127: 0 | S127: 2014 | T127: 0 | V127: 2013 | W127: 0 | X127: 0 | Y127: 2012 | Z127: 0 | AA127: 0
A128: 10 | B128: GEORGIA | C128: 604 | D128: 81 | E128: 747432507 | F128: 01-0 | G128: FOREST VIEW APTS | H128: WADLEY HOUSING L.P. | I128: MORROW REALTY COMPANY, INC | J128: Active | K128: NA | L128: A | M128: 1998-07-10 | N128: ANNUAL CAPITAL BUDGET | O128: Paving | P128: Paving - Seal and Stripe | Q128: 2015 | R128: 0 | S128: 2014 | T128: 0 | V128: 2013 | W128: 0 | X128: 0 | Y128: 2012 | Z128: 0 | AA128: 0
A129: 10 | B129: GEORGIA | C129: 604 | D129: 81 | E129: 747432507 | F129: 01-0 | G129: FOREST VIEW APTS | H129: WADLEY HOUSING L.P. | I129: MORROW REALTY COMPANY, INC | J129: Active | K129: NA | L129: A | M129: 1998-07-10 | N129: ANNUAL CAPITAL BUDGET | O129: Paving | P129: Paving - Other | Q129: 2015 | R129: 0 | S129: 2014 | T129: 0 | V129: 2013 | W129: 0 | X129: 0 | Y129: 2012 | Z129: 0 | AA129: 0
A130: ="10" -> 10 | B130: GEORGIA | C130: ="604" -> 604 | D130: ="81" -> 81 | E130: ="747432507" -> 747432507 | F130: ="01-0" -> 01-0 | G130: FOREST VIEW APTS | H130: WADLEY HOUSING L.P. | I130: MORROW REALTY COMPANY, INC | J130: Active | K130: NA | L130: A | M130: 1998-07-10 | N130: ANNUAL CAPITAL BUDGET | O130: Landscape and Grounds | P130: Lndscp@Grnds - Landscaping | Q130: 2015 | R130: 0 | S130: 2014 | T130: 0 | V130: 2013 | W130: 0 | X130: 0 | Y130: 2012 | Z130: 3000 | AA130: 0
A131: 10 | B131: GEORGIA | C131: 604 | D131: 81 | E131: 747432507 | F131: 01-0 | G131: FOREST VIEW APTS | H131: WADLEY HOUSING L.P. | I131: MORROW REALTY COMPANY, INC | J131: Active | K131: NA | L131: A | M131: 1998-07-10 | N131: ANNUAL CAPITAL BUDGET | O131: Landscape and Grounds | P131: Lndscp@Grnds - Lawn Equipment | Q131: 2015 | R131: 0 | S131: 2014 | T131: 0 | V131: 2013 | W131: 0 | X131: 0 | Y131: 2012 | Z131: 0 | AA131: 0
A132: 10 | B132: GEORGIA | C132: 604 | D132: 81 | E132: 747432507 | F132: 01-0 | G132: FOREST VIEW APTS | H132: WADLEY HOUSING L.P. | I132: MORROW REALTY COMPANY, INC | J132: Active | K132: NA | L132: A | M132: 1998-07-10 | N132: ANNUAL CAPITAL BUDGET | O132: Landscape and Grounds | P132: Lndscp@Grnds - Fencin | Q132: 2015 | R132: 0 | S132: 2014 | T132: 0 | V132: 2013 | W132: 0 | X132: 0 | Y132: 2012 | Z132: 0 | AA132: 0
A133: 10 | B133: GEORGIA | C133: 604 | D133: 81 | E133: 747432507 | F133: 01-0 | G133: FOREST VIEW APTS | H133: WADLEY HOUSING L.P. | I133: MORROW REALTY COMPANY, INC | J133: Active | K133: NA | L133: A | M133: 1998-07-10 | N133: ANNUAL CAPITAL BUDGET | O133: Landscape and Grounds | P133: Lndscp@Grnds - Recreation Area | Q133: 2015 | R133: 0 | S133: 2014 | T133: 0 | V133: 2013 | W133: 0 | X133: 0 | Y133: 2012 | Z133: 0 | AA133: 0
A134: 10 | B134: GEORGIA | C134: 604 | D134: 81 | E134: 747432507 | F134: 01-0 | G134: FOREST VIEW APTS | H134: WADLEY HOUSING L.P. | I134: MORROW REALTY COMPANY, INC | J134: Active | K134: NA | L134: A | M134: 1998-07-10 | N134: ANNUAL CAPITAL BUDGET | O134: Landscape and Grounds | P134: Lndscp@Grnds - Signs | Q134: 2015 | R134: 0 | S134: 2014 | T134: 0 | V134: 2013 | W134: 0 | X134: 0 | Y134: 2012 | Z134: 0 | AA134: 0
A135: 10 | B135: GEORGIA | C135: 604 | D135: 81 | E135: 747432507 | F135: 01-0 | G135: FOREST VIEW APTS | H135: WADLEY HOUSING L.P. | I135: MORROW REALTY COMPANY, INC | J135: Active | K135: NA | L135: A | M135: 1998-07-10 | N135: ANNUAL CAPITAL BUDGET | O135: Landscape and Grounds | P135: Lndscp@Grnds - Other | Q135: 2015 | R135: 0 | S135: 2014 | T135: 0 | V135: 2013 | W135: 0 | X135: 0 | Y135: 2012 | Z135: 0 | AA135: 0
A136: 10 | B136: GEORGIA | C136: 604 | D136: 81 | E136: 747432507 | F136: 01-0 | G136: FOREST VIEW APTS | H136: WADLEY HOUSING L.P. | I136: MORROW REALTY COMPANY, INC | J136: Active | K136: NA | L136: A | M136: 1998-07-10 | N136: ANNUAL CAPITAL BUDGET | O136: Accessibility Features | P136: Accessibility Features -Detail | Q136: 2015 | R136: 0 | S136: 2014 | T136: 0 | V136: 2013 | W136: 0 | X136: 0 | Y136: 2012 | Z136: 0 | AA136: 0
A137: 10 | B137: GEORGIA | C137: 604 | D137: 81 | E137: 747432507 | F137: 01-0 | G137: FOREST VIEW APTS | H137: WADLEY HOUSING L.P. | I137: MORROW REALTY COMPANY, INC | J137: Active | K137: NA | L137: A | M137: 1998-07-10 | N137: ANNUAL CAPITAL BUDGET | O137: Accessibility Features | P137: Accessibility Features -Other | Q137: 2015 | R137: 500 | S137: 2014 | T137: 3000 | V137: 2013 | W137: 0 | X137: 0 | Y137: 2012 | Z137: 0 | AA137: 0
A138: 10 | B138: GEORGIA | C138: 604 | D138: 81 | E138: 747432507 | F138: 01-0 | G138: FOREST VIEW APTS | H138: WADLEY HOUSING L.P. | I138: MORROW REALTY COMPANY, INC | J138: Active | K138: NA | L138: A | M138: 1998-07-10 | N138: ANNUAL CAPITAL BUDGET | O138: Automation Equipment | P138: Automation Equip. -Site Mngt. | Q138: 2015 | R138: 0 | S138: 2014 | T138: 0 | V138: 2013 | W138: 0 | X138: 0 | Y138: 2012 | Z138: 0 | AA138: 0
A139: 10 | B139: GEORGIA | C139: 604 | D139: 81 | E139: 747432507 | F139: 01-0 | G139: FOREST VIEW APTS | H139: WADLEY HOUSING L.P. | I139: MORROW REALTY COMPANY, INC | J139: Active | K139: NA | L139: A | M139: 1998-07-10 | N139: ANNUAL CAPITAL BUDGET | O139: Automation Equipment | P139: Automation Equip. -Common Area | Q139: 2015 | R139: 0 | S139: 2014 | T139: 0 | V139: 2013 | W139: 0 | X139: 0 | Y139: 2012 | Z139: 0 | AA139: 0
A140: 10 | B140: GEORGIA | C140: 604 | D140: 81 | E140: 747432507 | F140: 01-0 | G140: FOREST VIEW APTS | H140: WADLEY HOUSING L.P. | I140: MORROW REALTY COMPANY, INC | J140: Active | K140: NA | L140: A | M140: 1998-07-10 | N140: ANNUAL CAPITAL BUDGET | O140: Automation Equipment | P140: Automation Equip. -Other | Q140: 2015 | R140: 0 | S140: 2014 | T140: 0 | V140: 2013 | W140: 0 | X140: 0 | Y140: 2012 | Z140: 0 | AA140: 0
A141: 10 | B141: GEORGIA | C141: 604 | D141: 81 | E141: 747432507 | F141: 01-0 | G141: FOREST VIEW APTS | H141: WADLEY HOUSING L.P. | I141: MORROW REALTY COMPANY, INC | J141: Active | K141: NA | L141: A | M141: 1998-07-10 | N141: ANNUAL CAPITAL BUDGET | O141: Other | P141: List: ? | Q141: 2015 | R141: 0 | S141: 2014 | T141: 0 | V141: 2013 | W141: 0 | X141: 0 | Y141: 2012 | Z141: 2200 | AA141: 0
A142: 10 | B142: GEORGIA | C142: 604 | D142: 81 | E142: 747432507 | F142: 01-0 | G142: FOREST VIEW APTS | H142: WADLEY HOUSING L.P. | I142: MORROW REALTY COMPANY, INC | J142: Active | K142: NA | L142: A | M142: 1998-07-10 | N142: ANNUAL CAPITAL BUDGET | O142: Other | P142: List: ? | Q142: 2015 | R142: 0 | S142: 2014 | T142: 0 | V142: 2013 | W142: 0 | X142: 0 | Y142: 2012 | Z142: 0 | AA142: 0
A143: 10 | B143: GEORGIA | C143: 604 | D143: 81 | E143: 747432507 | F143: 01-0 | G143: FOREST VIEW APTS | H143: WADLEY HOUSING L.P. | I143: MORROW REALTY COMPANY, INC | J143: Active | K143: NA | L143: A | M143: 1998-07-10 | N143: ANNUAL CAPITAL BUDGET | O143: Other | P143: List: ? | Q143: 2015 | R143: 0 | S143: 2014 | T143: 0 | V143: 2013 | W143: 0 | X143: 0 | Y143: 2012 | Z143: 0 | AA143: 0
A144: 10 | B144: GEORGIA | C144: 604 | D144: 81 | E144: 747432507 | F144: 01-0 | G144: FOREST VIEW APTS | H144: WADLEY HOUSING L.P. | I144: MORROW REALTY COMPANY, INC | J144: Active | K144: NA | L144: A | M144: 1998-07-10 | N144: ANNUAL CAPITAL BUDGET | O144: Other | P144: Total Capital Expenses | Q144: 2015 | R144: 41200 | S144: 2014 | T144: 58950 | V144: 2013 | W144: 51900 | X144: 0 | Y144: 2012 | Z144: 32480 | AA144: 0

Sheet MFIS ProjectB (hidden)

Sheet MFIS ProjectC (hidden)

Sheet MFIS ProjectD (hidden)

Sheet MFIS ProjectE (hidden)

Sheet MFIS ProjectF (hidden)

Sheet MFIS (hidden)
P1: Item | Q1: Curr FY | R1: Prp Bdgt | S1: FY1 | T1: Prp Bdgt 1 | U1: Actl Bdgt 1 | V1: FY2 | W1: Prp Bdgt 2 | X1: Actl Bdgt 2 | Y1: FY3 | Z1: Prp Bdgt 3 | AA1: Actl Bdgt 3 | AE1: =MFIS!Q2 -> 2015 | AF1: =IF('MFIS ProjectA'!U2<1,"Avg Last 2","Avg Last 3") -> Avg Last 2 | AG1: PART II Budget | AH1: PART II Actual
P2: 1. Rental Income | Q2: ='MFIS ProjectA'!Q2 -> 2015 | R2: =SUM('MFIS ProjectA:MFIS ProjectF'!R2) -> 215700 | S2: ='MFIS ProjectA'!S2 -> 2014 | T2: =SUM('MFIS ProjectA:MFIS ProjectF'!T2) -> 213600 | U2: =SUM('MFIS ProjectA:MFIS ProjectF'!U2) -> 0 | V2: ='MFIS ProjectA'!V2 -> 2013 | W2: =SUM('MFIS ProjectA:MFIS ProjectF'!W2) -> 209400 | X2: =SUM('MFIS ProjectA:MFIS ProjectF'!X2) -> 49109 | Y2: ='MFIS ProjectA'!Y2 -> 2012 | Z2: =SUM('MFIS ProjectA:MFIS ProjectF'!Z2) -> 209400 | AA2: =SUM('MFIS ProjectA:MFIS ProjectF'!AA2) -> 209502 | AE2: =R2 -> 215700 | AF2: =IF(U2<1, AVERAGE(X2,AA2),AVERAGE(U2,X2,AA2)) -> 129305.5 | AG2: =R35 -> 20050 | AH2: =IF(U35<1,AVERAGE(X35,AA35),AVERAGE(U35,X35,AA35)) -> 18778.5
P3: 2. RHS Rental Assist. Received | Q3: ='MFIS ProjectA'!Q3 -> 2015 | R3: =SUM('MFIS ProjectA:MFIS ProjectF'!R3) -> 0 | S3: ='MFIS ProjectA'!S3 -> 2014 | T3: =SUM('MFIS ProjectA:MFIS ProjectF'!T3) -> 0 | U3: =SUM('MFIS ProjectA:MFIS ProjectF'!U3) -> 0 | V3: ='MFIS ProjectA'!V3 -> 2013 | W3: =SUM('MFIS ProjectA:MFIS ProjectF'!W3) -> 0 | X3: =SUM('MFIS ProjectA:MFIS ProjectF'!X3) -> 154459 | Y3: ='MFIS ProjectA'!Y3 -> 2012 | Z3: =SUM('MFIS ProjectA:MFIS ProjectF'!Z3) -> 0 | AA3: =SUM('MFIS ProjectA:MFIS ProjectF'!AA3) -> 0 | AF3: 77229.5 | AG3: 5500 | AH3: 12389
P4: 3. Application Fee Received | Q4: ='MFIS ProjectA'!Q4 -> 2015 | R4: =SUM('MFIS ProjectA:MFIS ProjectF'!R4) -> 0 | S4: ='MFIS ProjectA'!S4 -> 2014 | T4: =SUM('MFIS ProjectA:MFIS ProjectF'!T4) -> 0 | U4: =SUM('MFIS ProjectA:MFIS ProjectF'!U4) -> 0 | V4: ='MFIS ProjectA'!V4 -> 2013 | W4: =SUM('MFIS ProjectA:MFIS ProjectF'!W4) -> 0 | X4: =SUM('MFIS ProjectA:MFIS ProjectF'!X4) -> 465 | Y4: ='MFIS ProjectA'!Y4 -> 2012 | Z4: =SUM('MFIS ProjectA:MFIS ProjectF'!Z4) -> 0 | AA4: =SUM('MFIS ProjectA:MFIS ProjectF'!AA4) -> 30 | AE4: =R4 -> 0 | AF4: 247.5 | AG4: 3000 | AH4: 3451.5
P5: 4. Laundry And Vending | Q5: ='MFIS ProjectA'!Q5 -> 2015 | R5: =SUM('MFIS ProjectA:MFIS ProjectF'!R5) -> 180 | S5: ='MFIS ProjectA'!S5 -> 2014 | T5: =SUM('MFIS ProjectA:MFIS ProjectF'!T5) -> 180 | U5: =SUM('MFIS ProjectA:MFIS ProjectF'!U5) -> 0 | V5: ='MFIS ProjectA'!V5 -> 2013 | W5: =SUM('MFIS ProjectA:MFIS ProjectF'!W5) -> 40 | X5: =SUM('MFIS ProjectA:MFIS ProjectF'!X5) -> 120 | Y5: ='MFIS ProjectA'!Y5 -> 2012 | Z5: =SUM('MFIS ProjectA:MFIS ProjectF'!Z5) -> 120 | AA5: =SUM('MFIS ProjectA:MFIS ProjectF'!AA5) -> 40 | AE5: 180 | AF5: 80 | AG5: 4000 | AH5: 1870
P6: 5. Interest Income | Q6: ='MFIS ProjectA'!Q6 -> 2015 | R6: =SUM('MFIS ProjectA:MFIS ProjectF'!R6) -> 218 | S6: ='MFIS ProjectA'!S6 -> 2014 | T6: =SUM('MFIS ProjectA:MFIS ProjectF'!T6) -> 218 | U6: =SUM('MFIS ProjectA:MFIS ProjectF'!U6) -> 0 | V6: ='MFIS ProjectA'!V6 -> 2013 | W6: =SUM('MFIS ProjectA:MFIS ProjectF'!W6) -> 26 | X6: =SUM('MFIS ProjectA:MFIS ProjectF'!X6) -> 129 | Y6: ='MFIS ProjectA'!Y6 -> 2012 | Z6: =SUM('MFIS ProjectA:MFIS ProjectF'!Z6) -> 30 | AA6: =SUM('MFIS ProjectA:MFIS ProjectF'!AA6) -> 35 | AE6: 218 | AF6: 82 | AG6: 0 | AH6: 0
P7: 6. Tenant Charges | Q7: ='MFIS ProjectA'!Q7 -> 2015 | R7: =SUM('MFIS ProjectA:MFIS ProjectF'!R7) -> 1042 | S7: ='MFIS ProjectA'!S7 -> 2014 | T7: =SUM('MFIS ProjectA:MFIS ProjectF'!T7) -> 500 | U7: =SUM('MFIS ProjectA:MFIS ProjectF'!U7) -> 0 | V7: ='MFIS ProjectA'!V7 -> 2013 | W7: =SUM('MFIS ProjectA:MFIS ProjectF'!W7) -> 500 | X7: =SUM('MFIS ProjectA:MFIS ProjectF'!X7) -> 1521 | Y7: ='MFIS ProjectA'!Y7 -> 2012 | Z7: =SUM('MFIS ProjectA:MFIS ProjectF'!Z7) -> 500 | AA7: =SUM('MFIS ProjectA:MFIS ProjectF'!AA7) -> 3356 | AE7: 1042 | AF7: 2438.5 | AG7: 0 | AH7: 0
P8: 7. Other - Project Sources | Q8: ='MFIS ProjectA'!Q8 -> 2015 | R8: =SUM('MFIS ProjectA:MFIS ProjectF'!R8) -> 0 | S8: ='MFIS ProjectA'!S8 -> 2014 | T8: =SUM('MFIS ProjectA:MFIS ProjectF'!T8) -> 0 | U8: =SUM('MFIS ProjectA:MFIS ProjectF'!U8) -> 0 | V8: ='MFIS ProjectA'!V8 -> 2013 | W8: =SUM('MFIS ProjectA:MFIS ProjectF'!W8) -> 0 | X8: =SUM('MFIS ProjectA:MFIS ProjectF'!X8) -> 89 | Y8: ='MFIS ProjectA'!Y8 -> 2012 | Z8: =SUM('MFIS ProjectA:MFIS ProjectF'!Z8) -> 3 | AA8: =SUM('MFIS ProjectA:MFIS ProjectF'!AA8) -> 94 | AE8: 0 | AF8: 91.5 | AG8: 7500 | AH8: 8145
P9: 8. Less (Vcncy @ Cntgncy Allw) | Q9: ='MFIS ProjectA'!Q9 -> 2015 | R9: =SUM('MFIS ProjectA:MFIS ProjectF'!R9) -> -10785 | S9: ='MFIS ProjectA'!S9 -> 2014 | T9: =SUM('MFIS ProjectA:MFIS ProjectF'!T9) -> -10680 | U9: =SUM('MFIS ProjectA:MFIS ProjectF'!U9) -> 0 | V9: ='MFIS ProjectA'!V9 -> 2013 | W9: =SUM('MFIS ProjectA:MFIS ProjectF'!W9) -> -10470 | X9: =SUM('MFIS ProjectA:MFIS ProjectF'!X9) -> 0 | Y9: ='MFIS ProjectA'!Y9 -> 2012 | Z9: =SUM('MFIS ProjectA:MFIS ProjectF'!Z9) -> -10470 | AA9: =SUM('MFIS ProjectA:MFIS ProjectF'!AA9) -> 0 | AE9: -10785 | AG9: 1665 | AH9: 1669
P10: 9. Less (Agncy Aprvd Incentv) | Q10: ='MFIS ProjectA'!Q10 -> 2015 | R10: =SUM('MFIS ProjectA:MFIS ProjectF'!R10) -> 0 | S10: ='MFIS ProjectA'!S10 -> 2014 | T10: =SUM('MFIS ProjectA:MFIS ProjectF'!T10) -> 0 | U10: =SUM('MFIS ProjectA:MFIS ProjectF'!U10) -> 0 | V10: ='MFIS ProjectA'!V10 -> 2013 | W10: =SUM('MFIS ProjectA:MFIS ProjectF'!W10) -> 0 | X10: =SUM('MFIS ProjectA:MFIS ProjectF'!X10) -> 0 | Y10: ='MFIS ProjectA'!Y10 -> 2012 | Z10: =SUM('MFIS ProjectA:MFIS ProjectF'!Z10) -> 0 | AA10: =SUM('MFIS ProjectA:MFIS ProjectF'!AA10) -> 0 | AE10: 0 | AG10: 0 | AH10: 0
P11: 10. Sub-Ttl [(1 thru 7)-(8@9)] | Q11: ='MFIS ProjectA'!Q11 -> 2015 | R11: =SUM('MFIS ProjectA:MFIS ProjectF'!R11) -> 206355 | S11: ='MFIS ProjectA'!S11 -> 2014 | T11: =SUM('MFIS ProjectA:MFIS ProjectF'!T11) -> 203818 | U11: =SUM('MFIS ProjectA:MFIS ProjectF'!U11) -> 0 | V11: ='MFIS ProjectA'!V11 -> 2013 | W11: =SUM('MFIS ProjectA:MFIS ProjectF'!W11) -> 199496 | X11: =SUM('MFIS ProjectA:MFIS ProjectF'!X11) -> 205892 | Y11: ='MFIS ProjectA'!Y11 -> 2012 | Z11: =SUM('MFIS ProjectA:MFIS ProjectF'!Z11) -> 199583 | AA11: =SUM('MFIS ProjectA:MFIS ProjectF'!AA11) -> 213057 | AE11: =SUM(AE2:AE10) -> 206355 | AF11: =SUM(AF2:AF10) -> 209474.5 | AG11: 1090 | AH11: 1290.5
P12: 11. Cash - Non Project | Q12: ='MFIS ProjectA'!Q12 -> 2015 | R12: =SUM('MFIS ProjectA:MFIS ProjectF'!R12) -> 0 | S12: ='MFIS ProjectA'!S12 -> 2014 | T12: =SUM('MFIS ProjectA:MFIS ProjectF'!T12) -> 0 | U12: =SUM('MFIS ProjectA:MFIS ProjectF'!U12) -> 0 | V12: ='MFIS ProjectA'!V12 -> 2013 | W12: =SUM('MFIS ProjectA:MFIS ProjectF'!W12) -> 0 | X12: =SUM('MFIS ProjectA:MFIS ProjectF'!X12) -> 0 | Y12: ='MFIS ProjectA'!Y12 -> 2012 | Z12: =SUM('MFIS ProjectA:MFIS ProjectF'!Z12) -> 0 | AA12: =SUM('MFIS ProjectA:MFIS ProjectF'!AA12) -> 0 | AG12: =SUM(AG2:AG11) -> 42805 | AH12: =SUM(AH2:AH11) -> 47593.5
P13: 12. Authorized Loan (Non-RHS) | Q13: ='MFIS ProjectA'!Q13 -> 2015 | R13: =SUM('MFIS ProjectA:MFIS ProjectF'!R13) -> 0 | S13: ='MFIS ProjectA'!S13 -> 2014 | T13: =SUM('MFIS ProjectA:MFIS ProjectF'!T13) -> 0 | U13: =SUM('MFIS ProjectA:MFIS ProjectF'!U13) -> 0 | V13: ='MFIS ProjectA'!V13 -> 2013 | W13: =SUM('MFIS ProjectA:MFIS ProjectF'!W13) -> 0 | X13: =SUM('MFIS ProjectA:MFIS ProjectF'!X13) -> 0 | Y13: ='MFIS ProjectA'!Y13 -> 2012 | Z13: =SUM('MFIS ProjectA:MFIS ProjectF'!Z13) -> 0 | AA13: =SUM('MFIS ProjectA:MFIS ProjectF'!AA13) -> 0 | AE13: =R12 -> 0 | AF13: =IF(U12<1, AVERAGE(X12,AA12),AVERAGE(U12,X12,AA12)) -> 0
P14: 13. Transfer From Reserve | Q14: ='MFIS ProjectA'!Q14 -> 2015 | R14: =SUM('MFIS ProjectA:MFIS ProjectF'!R14) -> 41200 | S14: ='MFIS ProjectA'!S14 -> 2014 | T14: =SUM('MFIS ProjectA:MFIS ProjectF'!T14) -> 58950 | U14: =SUM('MFIS ProjectA:MFIS ProjectF'!U14) -> 0 | V14: ='MFIS ProjectA'!V14 -> 2013 | W14: =SUM('MFIS ProjectA:MFIS ProjectF'!W14) -> 51900 | X14: =SUM('MFIS ProjectA:MFIS ProjectF'!X14) -> 44693 | Y14: ='MFIS ProjectA'!Y14 -> 2012 | Z14: =SUM('MFIS ProjectA:MFIS ProjectF'!Z14) -> 30250 | AA14: =SUM('MFIS ProjectA:MFIS ProjectF'!AA14) -> 25101 | AE14: =R13 -> 0 | AF14: =IF(U13<1, AVERAGE(X13,AA13),AVERAGE(U13,X13,AA13)) -> 0 | AG14: =R46 -> 10061 | AH14: =IF(U46<1,AVERAGE(X46,AA46),AVERAGE(U46,X46,AA46)) -> 9447.5
P15: 14. Sub-Total (11 thru 13) | Q15: ='MFIS ProjectA'!Q15 -> 2015 | R15: =SUM('MFIS ProjectA:MFIS ProjectF'!R15) -> 41200 | S15: ='MFIS ProjectA'!S15 -> 2014 | T15: =SUM('MFIS ProjectA:MFIS ProjectF'!T15) -> 58950 | U15: =SUM('MFIS ProjectA:MFIS ProjectF'!U15) -> 0 | V15: ='MFIS ProjectA'!V15 -> 2013 | W15: =SUM('MFIS ProjectA:MFIS ProjectF'!W15) -> 51900 | X15: =SUM('MFIS ProjectA:MFIS ProjectF'!X15) -> 44693 | Y15: ='MFIS ProjectA'!Y15 -> 2012 | Z15: =SUM('MFIS ProjectA:MFIS ProjectF'!Z15) -> 30250 | AA15: =SUM('MFIS ProjectA:MFIS ProjectF'!AA15) -> 25101 | AE15: =R14 -> 41200 | AF15: =IF(U14<1, AVERAGE(X14,AA14),AVERAGE(U14,X14,AA14)) -> 34897 | AG15: 979 | AH15: 907
P16: 15. Total Cash Sources (10+14) | Q16: ='MFIS ProjectA'!Q16 -> 2015 | R16: =SUM('MFIS ProjectA:MFIS ProjectF'!R16) -> 247555 | S16: ='MFIS ProjectA'!S16 -> 2014 | T16: =SUM('MFIS ProjectA:MFIS ProjectF'!T16) -> 262768 | U16: =SUM('MFIS ProjectA:MFIS ProjectF'!U16) -> 0 | V16: ='MFIS ProjectA'!V16 -> 2013 | W16: =SUM('MFIS ProjectA:MFIS ProjectF'!W16) -> 251396 | X16: =SUM('MFIS ProjectA:MFIS ProjectF'!X16) -> 250585 | Y16: ='MFIS ProjectA'!Y16 -> 2012 | Z16: =SUM('MFIS ProjectA:MFIS ProjectF'!Z16) -> 229833 | AA16: =SUM('MFIS ProjectA:MFIS ProjectF'!AA16) -> 238158 | AE16: =SUM(AE13:AE15) -> 41200 | AF16: =SUM(AF13:AF15) -> 34897 | AG16: 878 | AH16: 835.5
P17: 16. Ttl O@M Exp (From Part II) | Q17: ='MFIS ProjectA'!Q17 -> 2015 | R17: =SUM('MFIS ProjectA:MFIS ProjectF'!R17) -> 157877 | S17: ='MFIS ProjectA'!S17 -> 2014 | T17: =SUM('MFIS ProjectA:MFIS ProjectF'!T17) -> 156018 | U17: =SUM('MFIS ProjectA:MFIS ProjectF'!U17) -> 0 | V17: ='MFIS ProjectA'!V17 -> 2013 | W17: =SUM('MFIS ProjectA:MFIS ProjectF'!W17) -> 150900 | X17: =SUM('MFIS ProjectA:MFIS ProjectF'!X17) -> 154565 | Y17: ='MFIS ProjectA'!Y17 -> 2012 | Z17: =SUM('MFIS ProjectA:MFIS ProjectF'!Z17) -> 151585 | AA17: =SUM('MFIS ProjectA:MFIS ProjectF'!AA17) -> 152601 | AG17: 0 | AH17: 0
P18: 17. RHS Debt Payment | Q18: ='MFIS ProjectA'!Q18 -> 2015 | R18: =SUM('MFIS ProjectA:MFIS ProjectF'!R18) -> 30584 | S18: ='MFIS ProjectA'!S18 -> 2014 | T18: =SUM('MFIS ProjectA:MFIS ProjectF'!T18) -> 30584 | U18: =SUM('MFIS ProjectA:MFIS ProjectF'!U18) -> 0 | V18: ='MFIS ProjectA'!V18 -> 2013 | W18: =SUM('MFIS ProjectA:MFIS ProjectF'!W18) -> 30584 | X18: =SUM('MFIS ProjectA:MFIS ProjectF'!X18) -> 30584 | Y18: ='MFIS ProjectA'!Y18 -> 2012 | Z18: =SUM('MFIS ProjectA:MFIS ProjectF'!Z18) -> 30584 | AA18: =SUM('MFIS ProjectA:MFIS ProjectF'!AA18) -> 30584 | AE18: =AE11+AE16 -> 247555 | AF18: =AF11+AF16 -> 244371.5 | AG18: 2734 | AH18: 2531
P19: 18. RHS Payment (Overage) | Q19: ='MFIS ProjectA'!Q19 -> 2015 | R19: =SUM('MFIS ProjectA:MFIS ProjectF'!R19) -> 0 | S19: ='MFIS ProjectA'!S19 -> 2014 | T19: =SUM('MFIS ProjectA:MFIS ProjectF'!T19) -> 0 | U19: =SUM('MFIS ProjectA:MFIS ProjectF'!U19) -> 0 | V19: ='MFIS ProjectA'!V19 -> 2013 | W19: =SUM('MFIS ProjectA:MFIS ProjectF'!W19) -> 0 | X19: =SUM('MFIS ProjectA:MFIS ProjectF'!X19) -> 65 | Y19: ='MFIS ProjectA'!Y19 -> 2012 | Z19: =SUM('MFIS ProjectA:MFIS ProjectF'!Z19) -> 0 | AA19: =SUM('MFIS ProjectA:MFIS ProjectF'!AA19) -> 0 | AG19: 0 | AH19: 0
P20: 19. RHS Payment (Late Fee) | Q20: ='MFIS ProjectA'!Q20 -> 2015 | R20: =SUM('MFIS ProjectA:MFIS ProjectF'!R20) -> 0 | S20: ='MFIS ProjectA'!S20 -> 2014 | T20: =SUM('MFIS ProjectA:MFIS ProjectF'!T20) -> 0 | U20: =SUM('MFIS ProjectA:MFIS ProjectF'!U20) -> 0 | V20: ='MFIS ProjectA'!V20 -> 2013 | W20: =SUM('MFIS ProjectA:MFIS ProjectF'!W20) -> 0 | X20: =SUM('MFIS ProjectA:MFIS ProjectF'!X20) -> 0 | Y20: ='MFIS ProjectA'!Y20 -> 2012 | Z20: =SUM('MFIS ProjectA:MFIS ProjectF'!Z20) -> 0 | AA20: =SUM('MFIS ProjectA:MFIS ProjectF'!AA20) -> 0 | AE20: =R17 -> 157877 | AF20: =IF(U17<1, AVERAGE(X17,AA17),AVERAGE(U17,X17,AA17)) -> 153583 | AG20: =SUM(AG14:AG19) -> 14652 | AH20: =SUM(AH14:AH19) -> 13721
P21: 20. Reductn In Prior Yr Pybles | Q21: ='MFIS ProjectA'!Q21 -> 2015 | R21: =SUM('MFIS ProjectA:MFIS ProjectF'!R21) -> 0 | S21: ='MFIS ProjectA'!S21 -> 2014 | T21: =SUM('MFIS ProjectA:MFIS ProjectF'!T21) -> 0 | U21: =SUM('MFIS ProjectA:MFIS ProjectF'!U21) -> 0 | V21: ='MFIS ProjectA'!V21 -> 2013 | W21: =SUM('MFIS ProjectA:MFIS ProjectF'!W21) -> 0 | X21: =SUM('MFIS ProjectA:MFIS ProjectF'!X21) -> 0 | Y21: ='MFIS ProjectA'!Y21 -> 2012 | Z21: =SUM('MFIS ProjectA:MFIS ProjectF'!Z21) -> 0 | AA21: =SUM('MFIS ProjectA:MFIS ProjectF'!AA21) -> 0 | AE21: =R18 -> 30584 | AF21: 30584
P22: 21. Tenant Utility Payments | Q22: ='MFIS ProjectA'!Q22 -> 2015 | R22: =SUM('MFIS ProjectA:MFIS ProjectF'!R22) -> 0 | S22: ='MFIS ProjectA'!S22 -> 2014 | T22: =SUM('MFIS ProjectA:MFIS ProjectF'!T22) -> 0 | U22: =SUM('MFIS ProjectA:MFIS ProjectF'!U22) -> 0 | V22: ='MFIS ProjectA'!V22 -> 2013 | W22: =SUM('MFIS ProjectA:MFIS ProjectF'!W22) -> 0 | X22: =SUM('MFIS ProjectA:MFIS ProjectF'!X22) -> 1982 | Y22: ='MFIS ProjectA'!Y22 -> 2012 | Z22: =SUM('MFIS ProjectA:MFIS ProjectF'!Z22) -> 0 | AA22: =SUM('MFIS ProjectA:MFIS ProjectF'!AA22) -> 4485 | AF22: 32.5 | AG22: =R53 -> 20080 | AH22: =IF(U53<1,AVERAGE(X53,AA53),AVERAGE(U53,X53,AA53)) -> 18046
P23: 22. Transfer to Reserve | Q23: ='MFIS ProjectA'!Q23 -> 2015 | R23: =SUM('MFIS ProjectA:MFIS ProjectF'!R23) -> 11970 | S23: ='MFIS ProjectA'!S23 -> 2014 | T23: =SUM('MFIS ProjectA:MFIS ProjectF'!T23) -> 11970 | U23: =SUM('MFIS ProjectA:MFIS ProjectF'!U23) -> 0 | V23: ='MFIS ProjectA'!V23 -> 2013 | W23: =SUM('MFIS ProjectA:MFIS ProjectF'!W23) -> 11970 | X23: =SUM('MFIS ProjectA:MFIS ProjectF'!X23) -> 12008 | Y23: ='MFIS ProjectA'!Y23 -> 2012 | Z23: =SUM('MFIS ProjectA:MFIS ProjectF'!Z23) -> 11970 | AA23: =SUM('MFIS ProjectA:MFIS ProjectF'!AA23) -> 32539 | AF23: 0 | AG23: 19320 | AH23: 18312
P24: 23. RTN Owner/NP Asset Mgt Fee | Q24: ='MFIS ProjectA'!Q24 -> 2015 | R24: =SUM('MFIS ProjectA:MFIS ProjectF'!R24) -> 5040 | S24: ='MFIS ProjectA'!S24 -> 2014 | T24: =SUM('MFIS ProjectA:MFIS ProjectF'!T24) -> 5040 | U24: =SUM('MFIS ProjectA:MFIS ProjectF'!U24) -> 0 | V24: ='MFIS ProjectA'!V24 -> 2013 | W24: =SUM('MFIS ProjectA:MFIS ProjectF'!W24) -> 5040 | X24: =SUM('MFIS ProjectA:MFIS ProjectF'!X24) -> 5040 | Y24: ='MFIS ProjectA'!Y24 -> 2012 | Z24: =SUM('MFIS ProjectA:MFIS ProjectF'!Z24) -> 5040 | AA24: =SUM('MFIS ProjectA:MFIS ProjectF'!AA24) -> 5040 | AF24: 0 | AG24: 4374 | AH24: 4374
P25: 24. Sub-Total (16 thru 23) | Q25: ='MFIS ProjectA'!Q25 -> 2015 | R25: =SUM('MFIS ProjectA:MFIS ProjectF'!R25) -> 205471 | S25: ='MFIS ProjectA'!S25 -> 2014 | T25: =SUM('MFIS ProjectA:MFIS ProjectF'!T25) -> 203612 | U25: =SUM('MFIS ProjectA:MFIS ProjectF'!U25) -> 0 | V25: ='MFIS ProjectA'!V25 -> 2013 | W25: =SUM('MFIS ProjectA:MFIS ProjectF'!W25) -> 198494 | X25: =SUM('MFIS ProjectA:MFIS ProjectF'!X25) -> 204244 | Y25: ='MFIS ProjectA'!Y25 -> 2012 | Z25: =SUM('MFIS ProjectA:MFIS ProjectF'!Z25) -> 199179 | AA25: =SUM('MFIS ProjectA:MFIS ProjectF'!AA25) -> 225249 | AF25: 3233.5 | AG25: 0 | AH25: 0
P26: 25. Authzd Debt Pymnt (NonRHS) | Q26: ='MFIS ProjectA'!Q26 -> 2015 | R26: =SUM('MFIS ProjectA:MFIS ProjectF'!R26) -> 0 | S26: ='MFIS ProjectA'!S26 -> 2014 | T26: =SUM('MFIS ProjectA:MFIS ProjectF'!T26) -> 0 | U26: =SUM('MFIS ProjectA:MFIS ProjectF'!U26) -> 0 | V26: ='MFIS ProjectA'!V26 -> 2013 | W26: =SUM('MFIS ProjectA:MFIS ProjectF'!W26) -> 0 | X26: =SUM('MFIS ProjectA:MFIS ProjectF'!X26) -> 0 | Y26: ='MFIS ProjectA'!Y26 -> 2012 | Z26: =SUM('MFIS ProjectA:MFIS ProjectF'!Z26) -> 0 | AA26: =SUM('MFIS ProjectA:MFIS ProjectF'!AA26) -> 0 | AE26: =R23 -> 11970 | AF26: 22273.5 | AG26: 500 | AH26: 176
P27: 26. Capital Budget (III 4-6) | Q27: ='MFIS ProjectA'!Q27 -> 2015 | R27: =SUM('MFIS ProjectA:MFIS ProjectF'!R27) -> 41200 | S27: ='MFIS ProjectA'!S27 -> 2014 | T27: =SUM('MFIS ProjectA:MFIS ProjectF'!T27) -> 58950 | U27: =SUM('MFIS ProjectA:MFIS ProjectF'!U27) -> 0 | V27: ='MFIS ProjectA'!V27 -> 2013 | W27: =SUM('MFIS ProjectA:MFIS ProjectF'!W27) -> 51900 | X27: =SUM('MFIS ProjectA:MFIS ProjectF'!X27) -> 44693 | Y27: ='MFIS ProjectA'!Y27 -> 2012 | Z27: =SUM('MFIS ProjectA:MFIS ProjectF'!Z27) -> 30250 | AA27: =SUM('MFIS ProjectA:MFIS ProjectF'!AA27) -> 25101 | AE27: =R24 -> 5040 | AF27: 5040 | AG27: 500 | AH27: 202.5
P28: 27. Miscellaneous | Q28: ='MFIS ProjectA'!Q28 -> 2015 | R28: =SUM('MFIS ProjectA:MFIS ProjectF'!R28) -> 0 | S28: ='MFIS ProjectA'!S28 -> 2014 | T28: =SUM('MFIS ProjectA:MFIS ProjectF'!T28) -> 0 | U28: =SUM('MFIS ProjectA:MFIS ProjectF'!U28) -> 0 | V28: ='MFIS ProjectA'!V28 -> 2013 | W28: =SUM('MFIS ProjectA:MFIS ProjectF'!W28) -> 0 | X28: =SUM('MFIS ProjectA:MFIS ProjectF'!X28) -> 0 | Y28: ='MFIS ProjectA'!Y28 -> 2012 | Z28: =SUM('MFIS ProjectA:MFIS ProjectF'!Z28) -> 0 | AA28: =SUM('MFIS ProjectA:MFIS ProjectF'!AA28) -> 0 | AE28: =SUM(AE20:AE27) -> 205471 | AF28: =SUM(AF20:AF27) -> 214746.5 | AG28: 2300 | AH28: 2322.5
P29: 28. Sub-Total (25 thru 27) | Q29: ='MFIS ProjectA'!Q29 -> 2015 | R29: =SUM('MFIS ProjectA:MFIS ProjectF'!R29) -> 41200 | S29: ='MFIS ProjectA'!S29 -> 2014 | T29: =SUM('MFIS ProjectA:MFIS ProjectF'!T29) -> 58950 | U29: =SUM('MFIS ProjectA:MFIS ProjectF'!U29) -> 0 | V29: ='MFIS ProjectA'!V29 -> 2013 | W29: =SUM('MFIS ProjectA:MFIS ProjectF'!W29) -> 51900 | X29: =SUM('MFIS ProjectA:MFIS ProjectF'!X29) -> 44693 | Y29: ='MFIS ProjectA'!Y29 -> 2012 | Z29: =SUM('MFIS ProjectA:MFIS ProjectF'!Z29) -> 30250 | AA29: =SUM('MFIS ProjectA:MFIS ProjectF'!AA29) -> 25101 | AG29: 2000 | AH29: 1901
P30: 29. Total Cash Uses (24+28) | Q30: ='MFIS ProjectA'!Q30 -> 2015 | R30: =SUM('MFIS ProjectA:MFIS ProjectF'!R30) -> 246671 | S30: ='MFIS ProjectA'!S30 -> 2014 | T30: =SUM('MFIS ProjectA:MFIS ProjectF'!T30) -> 262562 | U30: =SUM('MFIS ProjectA:MFIS ProjectF'!U30) -> 0 | V30: ='MFIS ProjectA'!V30 -> 2013 | W30: =SUM('MFIS ProjectA:MFIS ProjectF'!W30) -> 250394 | X30: =SUM('MFIS ProjectA:MFIS ProjectF'!X30) -> 248937 | Y30: ='MFIS ProjectA'!Y30 -> 2012 | Z30: =SUM('MFIS ProjectA:MFIS ProjectF'!Z30) -> 229429 | AA30: =SUM('MFIS ProjectA:MFIS ProjectF'!AA30) -> 250350 | AE30: =R26 -> 0 | AF30: =IF(U26<1, AVERAGE(X26,AA26),AVERAGE(U26,X26,AA26)) -> 0 | AG30: 0 | AH30: 0
P31: 30. Net (Deficit) (15-29) | Q31: ='MFIS ProjectA'!Q31 -> 2015 | R31: =SUM('MFIS ProjectA:MFIS ProjectF'!R31) -> 884 | S31: ='MFIS ProjectA'!S31 -> 2014 | T31: =SUM('MFIS ProjectA:MFIS ProjectF'!T31) -> 206 | U31: =SUM('MFIS ProjectA:MFIS ProjectF'!U31) -> 0 | V31: ='MFIS ProjectA'!V31 -> 2013 | W31: =SUM('MFIS ProjectA:MFIS ProjectF'!W31) -> 1002 | X31: =SUM('MFIS ProjectA:MFIS ProjectF'!X31) -> 1648 | Y31: ='MFIS ProjectA'!Y31 -> 2012 | Z31: =SUM('MFIS ProjectA:MFIS ProjectF'!Z31) -> 404 | AA31: =SUM('MFIS ProjectA:MFIS ProjectF'!AA31) -> -12192 | AE31: =R27 -> 41200 | AF31: =IF(U27<1, AVERAGE(X27,AA27),AVERAGE(U27,X27,AA27)) -> 34897 | AG31: 2000 | AH31: 1898
P32: 31. Beginning Cash Balance | Q32: ='MFIS ProjectA'!Q32 -> 2015 | R32: =SUM('MFIS ProjectA:MFIS ProjectF'!R32) -> 25372 | S32: ='MFIS ProjectA'!S32 -> 2014 | T32: =SUM('MFIS ProjectA:MFIS ProjectF'!T32) -> 23096 | U32: =SUM('MFIS ProjectA:MFIS ProjectF'!U32) -> 0 | V32: ='MFIS ProjectA'!V32 -> 2013 | W32: =SUM('MFIS ProjectA:MFIS ProjectF'!W32) -> 27397 | X32: =SUM('MFIS ProjectA:MFIS ProjectF'!X32) -> 20932 | Y32: ='MFIS ProjectA'!Y32 -> 2012 | Z32: =SUM('MFIS ProjectA:MFIS ProjectF'!Z32) -> 24440 | AA32: =SUM('MFIS ProjectA:MFIS ProjectF'!AA32) -> 46521 | AE32: =R28 -> 0 | AF32: =IF(U28<1, AVERAGE(X28,AA28),AVERAGE(U28,X28,AA28)) -> 0 | AG32: 12336 | AH32: 12019.5
P33: 32. Accrual To Cash Adjustment | Q33: ='MFIS ProjectA'!Q33 -> 2015 | R33: =SUM('MFIS ProjectA:MFIS ProjectF'!R33) -> 0 | S33: ='MFIS ProjectA'!S33 -> 2014 | T33: =SUM('MFIS ProjectA:MFIS ProjectF'!T33) -> 0 | U33: =SUM('MFIS ProjectA:MFIS ProjectF'!U33) -> 0 | V33: ='MFIS ProjectA'!V33 -> 2013 | W33: =SUM('MFIS ProjectA:MFIS ProjectF'!W33) -> 0 | X33: =SUM('MFIS ProjectA:MFIS ProjectF'!X33) -> 48 | Y33: ='MFIS ProjectA'!Y33 -> 2012 | Z33: =SUM('MFIS ProjectA:MFIS ProjectF'!Z33) -> 0 | AA33: =SUM('MFIS ProjectA:MFIS ProjectF'!AA33) -> -13397 | AE33: =SUM(AE30:AE32) -> 41200 | AF33: =SUM(AF30:AF32) -> 34897 | AG33: 3612 | AH33: 3117.5
P34: 33. Ending Cash Bal (30+31+32) | Q34: ='MFIS ProjectA'!Q34 -> 2015 | R34: =SUM('MFIS ProjectA:MFIS ProjectF'!R34) -> 26256 | S34: ='MFIS ProjectA'!S34 -> 2014 | T34: =SUM('MFIS ProjectA:MFIS ProjectF'!T34) -> 23302 | U34: =SUM('MFIS ProjectA:MFIS ProjectF'!U34) -> 0 | V34: ='MFIS ProjectA'!V34 -> 2013 | W34: =SUM('MFIS ProjectA:MFIS ProjectF'!W34) -> 28399 | X34: =SUM('MFIS ProjectA:MFIS ProjectF'!X34) -> 22628 | Y34: ='MFIS ProjectA'!Y34 -> 2012 | Z34: =SUM('MFIS ProjectA:MFIS ProjectF'!Z34) -> 24844 | AA34: =SUM('MFIS ProjectA:MFIS ProjectF'!AA34) -> 20932 | AG34: 1283 | AH34: 1632
P35: 1. Maint. @ Repairs Payroll | Q35: ='MFIS ProjectA'!Q35 -> 2015 | R35: =SUM('MFIS ProjectA:MFIS ProjectF'!R35) -> 20050 | S35: ='MFIS ProjectA'!S35 -> 2014 | T35: =SUM('MFIS ProjectA:MFIS ProjectF'!T35) -> 19450 | U35: =SUM('MFIS ProjectA:MFIS ProjectF'!U35) -> 0 | V35: ='MFIS ProjectA'!V35 -> 2013 | W35: =SUM('MFIS ProjectA:MFIS ProjectF'!W35) -> 19450 | X35: =SUM('MFIS ProjectA:MFIS ProjectF'!X35) -> 19247 | Y35: ='MFIS ProjectA'!Y35 -> 2012 | Z35: =SUM('MFIS ProjectA:MFIS ProjectF'!Z35) -> 19450 | AA35: =SUM('MFIS ProjectA:MFIS ProjectF'!AA35) -> 18310 | AE35: =AE28+AE33 -> 246671 | AF35: =AF28+AF33 -> 249643.5 | AG35: 1113 | AH35: 908.5
P36: 2. Maint. @ Repairs Supply | Q36: ='MFIS ProjectA'!Q36 -> 2015 | R36: =SUM('MFIS ProjectA:MFIS ProjectF'!R36) -> 5500 | S36: ='MFIS ProjectA'!S36 -> 2014 | T36: =SUM('MFIS ProjectA:MFIS ProjectF'!T36) -> 5500 | U36: =SUM('MFIS ProjectA:MFIS ProjectF'!U36) -> 0 | V36: ='MFIS ProjectA'!V36 -> 2013 | W36: =SUM('MFIS ProjectA:MFIS ProjectF'!W36) -> 5000 | X36: =SUM('MFIS ProjectA:MFIS ProjectF'!X36) -> 11518 | Y36: ='MFIS ProjectA'!Y36 -> 2012 | Z36: =SUM('MFIS ProjectA:MFIS ProjectF'!Z36) -> 5000 | AA36: =SUM('MFIS ProjectA:MFIS ProjectF'!AA36) -> 13260 | AG36: =SUM(AG22:AG35) -> 69418 | AH36: =SUM(AH22:AH35) -> 64909.5
P37: 3. Maint. @ Repairs Contract | Q37: ='MFIS ProjectA'!Q37 -> 2015 | R37: =SUM('MFIS ProjectA:MFIS ProjectF'!R37) -> 3000 | S37: ='MFIS ProjectA'!S37 -> 2014 | T37: =SUM('MFIS ProjectA:MFIS ProjectF'!T37) -> 3000 | U37: =SUM('MFIS ProjectA:MFIS ProjectF'!U37) -> 0 | V37: ='MFIS ProjectA'!V37 -> 2013 | W37: =SUM('MFIS ProjectA:MFIS ProjectF'!W37) -> 4000 | X37: =SUM('MFIS ProjectA:MFIS ProjectF'!X37) -> 4421 | Y37: ='MFIS ProjectA'!Y37 -> 2012 | Z37: =SUM('MFIS ProjectA:MFIS ProjectF'!Z37) -> 4000 | AA37: =SUM('MFIS ProjectA:MFIS ProjectF'!AA37) -> 2482 | AE37: =AE18-AE35 -> 884 | AF37: =AF18-AF35 -> -5272
P38: 4. Painting | Q38: ='MFIS ProjectA'!Q38 -> 2015 | R38: =SUM('MFIS ProjectA:MFIS ProjectF'!R38) -> 4000 | S38: ='MFIS ProjectA'!S38 -> 2014 | T38: =SUM('MFIS ProjectA:MFIS ProjectF'!T38) -> 2000 | U38: =SUM('MFIS ProjectA:MFIS ProjectF'!U38) -> 0 | V38: ='MFIS ProjectA'!V38 -> 2013 | W38: =SUM('MFIS ProjectA:MFIS ProjectF'!W38) -> 2000 | X38: =SUM('MFIS ProjectA:MFIS ProjectF'!X38) -> 475 | Y38: ='MFIS ProjectA'!Y38 -> 2012 | Z38: =SUM('MFIS ProjectA:MFIS ProjectF'!Z38) -> 2000 | AA38: =SUM('MFIS ProjectA:MFIS ProjectF'!AA38) -> 3265 | AG38: =R68 -> 20310 | AH38: =IF(U68<1,AVERAGE(X68,AA68),AVERAGE(U68,X68,AA68)) -> 18459.5
P39: 5. Snow Removal | Q39: ='MFIS ProjectA'!Q39 -> 2015 | R39: =SUM('MFIS ProjectA:MFIS ProjectF'!R39) -> 0 | S39: ='MFIS ProjectA'!S39 -> 2014 | T39: =SUM('MFIS ProjectA:MFIS ProjectF'!T39) -> 0 | U39: =SUM('MFIS ProjectA:MFIS ProjectF'!U39) -> 0 | V39: ='MFIS ProjectA'!V39 -> 2013 | W39: =SUM('MFIS ProjectA:MFIS ProjectF'!W39) -> 0 | X39: =SUM('MFIS ProjectA:MFIS ProjectF'!X39) -> 0 | Y39: ='MFIS ProjectA'!Y39 -> 2012 | Z39: =SUM('MFIS ProjectA:MFIS ProjectF'!Z39) -> 0 | AA39: =SUM('MFIS ProjectA:MFIS ProjectF'!AA39) -> 0 | AE39: =R32 -> 25372 | AF39: =IF(U32<1, AVERAGE(X32,AA32),AVERAGE(U32,X32,AA32)) -> 33726.5 | AG39: 300 | AH39: 225
P40: 6. Elevator Maint./Contract | Q40: ='MFIS ProjectA'!Q40 -> 2015 | R40: =SUM('MFIS ProjectA:MFIS ProjectF'!R40) -> 0 | S40: ='MFIS ProjectA'!S40 -> 2014 | T40: =SUM('MFIS ProjectA:MFIS ProjectF'!T40) -> 0 | U40: =SUM('MFIS ProjectA:MFIS ProjectF'!U40) -> 0 | V40: ='MFIS ProjectA'!V40 -> 2013 | W40: =SUM('MFIS ProjectA:MFIS ProjectF'!W40) -> 0 | X40: =SUM('MFIS ProjectA:MFIS ProjectF'!X40) -> 0 | Y40: ='MFIS ProjectA'!Y40 -> 2012 | Z40: =SUM('MFIS ProjectA:MFIS ProjectF'!Z40) -> 0 | AA40: =SUM('MFIS ProjectA:MFIS ProjectF'!AA40) -> 0 | AF40: =IF(U33<1, AVERAGE(X33,AA33),AVERAGE(U33,X33,AA33)) -> -6674.5 | AG40: 0 | AH40: 0
P41: 7. Grounds | Q41: ='MFIS ProjectA'!Q41 -> 2015 | R41: =SUM('MFIS ProjectA:MFIS ProjectF'!R41) -> 7500 | S41: ='MFIS ProjectA'!S41 -> 2014 | T41: =SUM('MFIS ProjectA:MFIS ProjectF'!T41) -> 7500 | U41: =SUM('MFIS ProjectA:MFIS ProjectF'!U41) -> 0 | V41: ='MFIS ProjectA'!V41 -> 2013 | W41: =SUM('MFIS ProjectA:MFIS ProjectF'!W41) -> 7500 | X41: =SUM('MFIS ProjectA:MFIS ProjectF'!X41) -> 8342 | Y41: ='MFIS ProjectA'!Y41 -> 2012 | Z41: =SUM('MFIS ProjectA:MFIS ProjectF'!Z41) -> 7500 | AA41: =SUM('MFIS ProjectA:MFIS ProjectF'!AA41) -> 7948 | AE41: =R34 -> 26256 | AF41: =IF(MFIS!U34<1, AVERAGE(MFIS!X34,MFIS!AA34),AVERAGE(MFIS!U34,MFIS!X34,MFIS!AA34)) -> 21780 | AG41: 10201 | AH41: 8674.5
P42: 8. Services | Q42: ='MFIS ProjectA'!Q42 -> 2015 | R42: =SUM('MFIS ProjectA:MFIS ProjectF'!R42) -> 1665 | S42: ='MFIS ProjectA'!S42 -> 2014 | T42: =SUM('MFIS ProjectA:MFIS ProjectF'!T42) -> 1665 | U42: =SUM('MFIS ProjectA:MFIS ProjectF'!U42) -> 0 | V42: ='MFIS ProjectA'!V42 -> 2013 | W42: =SUM('MFIS ProjectA:MFIS ProjectF'!W42) -> 1665 | X42: =SUM('MFIS ProjectA:MFIS ProjectF'!X42) -> 1632 | Y42: ='MFIS ProjectA'!Y42 -> 2012 | Z42: =SUM('MFIS ProjectA:MFIS ProjectF'!Z42) -> 1693 | AA42: =SUM('MFIS ProjectA:MFIS ProjectF'!AA42) -> 1706 | AG42: 191 | AH42: 0
P43: 9. Cptl Bgt(Part V operating) | Q43: ='MFIS ProjectA'!Q43 -> 2015 | R43: =SUM('MFIS ProjectA:MFIS ProjectF'!R43) -> 0 | S43: ='MFIS ProjectA'!S43 -> 2014 | T43: =SUM('MFIS ProjectA:MFIS ProjectF'!T43) -> 0 | U43: =SUM('MFIS ProjectA:MFIS ProjectF'!U43) -> 0 | V43: ='MFIS ProjectA'!V43 -> 2013 | W43: =SUM('MFIS ProjectA:MFIS ProjectF'!W43) -> 0 | X43: =SUM('MFIS ProjectA:MFIS ProjectF'!X43) -> 0 | Y43: ='MFIS ProjectA'!Y43 -> 2012 | Z43: =SUM('MFIS ProjectA:MFIS ProjectF'!Z43) -> 2230 | AA43: =SUM('MFIS ProjectA:MFIS ProjectF'!AA43) -> 0 | AG43: 0 | AH43: 0
P44: 10. Other Operating Expenses | Q44: ='MFIS ProjectA'!Q44 -> 2015 | R44: =SUM('MFIS ProjectA:MFIS ProjectF'!R44) -> 1090 | S44: ='MFIS ProjectA'!S44 -> 2014 | T44: =SUM('MFIS ProjectA:MFIS ProjectF'!T44) -> 1090 | U44: =SUM('MFIS ProjectA:MFIS ProjectF'!U44) -> 0 | V44: ='MFIS ProjectA'!V44 -> 2013 | W44: =SUM('MFIS ProjectA:MFIS ProjectF'!W44) -> 1041 | X44: =SUM('MFIS ProjectA:MFIS ProjectF'!X44) -> 1072 | Y44: ='MFIS ProjectA'!Y44 -> 2012 | Z44: =SUM('MFIS ProjectA:MFIS ProjectF'!Z44) -> 1329 | AA44: =SUM('MFIS ProjectA:MFIS ProjectF'!AA44) -> 1509 | AG44: =SUM(AG38:AG43) -> 31002 | AH44: =SUM(AH38:AH43) -> 27359
P45: 11. Sub-Ttl O@M (1 thru 10) | Q45: ='MFIS ProjectA'!Q45 -> 2015 | R45: =SUM('MFIS ProjectA:MFIS ProjectF'!R45) -> 42805 | S45: ='MFIS ProjectA'!S45 -> 2014 | T45: =SUM('MFIS ProjectA:MFIS ProjectF'!T45) -> 40205 | U45: =SUM('MFIS ProjectA:MFIS ProjectF'!U45) -> 0 | V45: ='MFIS ProjectA'!V45 -> 2013 | W45: =SUM('MFIS ProjectA:MFIS ProjectF'!W45) -> 40656 | X45: =SUM('MFIS ProjectA:MFIS ProjectF'!X45) -> 46707 | Y45: ='MFIS ProjectA'!Y45 -> 2012 | Z45: =SUM('MFIS ProjectA:MFIS ProjectF'!Z45) -> 43202 | AA45: =SUM('MFIS ProjectA:MFIS ProjectF'!AA45) -> 48480
P46: 12. Electricity | Q46: ='MFIS ProjectA'!Q46 -> 2015 | R46: =SUM('MFIS ProjectA:MFIS ProjectF'!R46) -> 10061 | S46: ='MFIS ProjectA'!S46 -> 2014 | T46: =SUM('MFIS ProjectA:MFIS ProjectF'!T46) -> 10061 | U46: =SUM('MFIS ProjectA:MFIS ProjectF'!U46) -> 0 | V46: ='MFIS ProjectA'!V46 -> 2013 | W46: =SUM('MFIS ProjectA:MFIS ProjectF'!W46) -> 10061 | X46: =SUM('MFIS ProjectA:MFIS ProjectF'!X46) -> 9479 | Y46: ='MFIS ProjectA'!Y46 -> 2012 | Z46: =SUM('MFIS ProjectA:MFIS ProjectF'!Z46) -> 10061 | AA46: =SUM('MFIS ProjectA:MFIS ProjectF'!AA46) -> 9416 | AG46: =SUM(AG12,AG20,AG36,AG44) -> 157877 | AH46: =SUM(AH12,AH20,AH36,AH44) -> 153583
P47: 13. Water | Q47: ='MFIS ProjectA'!Q47 -> 2015 | R47: =SUM('MFIS ProjectA:MFIS ProjectF'!R47) -> 979 | S47: ='MFIS ProjectA'!S47 -> 2014 | T47: =SUM('MFIS ProjectA:MFIS ProjectF'!T47) -> 979 | U47: =SUM('MFIS ProjectA:MFIS ProjectF'!U47) -> 0 | V47: ='MFIS ProjectA'!V47 -> 2013 | W47: =SUM('MFIS ProjectA:MFIS ProjectF'!W47) -> 957 | X47: =SUM('MFIS ProjectA:MFIS ProjectF'!X47) -> 904 | Y47: ='MFIS ProjectA'!Y47 -> 2012 | Z47: =SUM('MFIS ProjectA:MFIS ProjectF'!Z47) -> 888 | AA47: =SUM('MFIS ProjectA:MFIS ProjectF'!AA47) -> 910
P48: 14. Sewer | Q48: ='MFIS ProjectA'!Q48 -> 2015 | R48: =SUM('MFIS ProjectA:MFIS ProjectF'!R48) -> 878 | S48: ='MFIS ProjectA'!S48 -> 2014 | T48: =SUM('MFIS ProjectA:MFIS ProjectF'!T48) -> 878 | U48: =SUM('MFIS ProjectA:MFIS ProjectF'!U48) -> 0 | V48: ='MFIS ProjectA'!V48 -> 2013 | W48: =SUM('MFIS ProjectA:MFIS ProjectF'!W48) -> 840 | X48: =SUM('MFIS ProjectA:MFIS ProjectF'!X48) -> 809 | Y48: ='MFIS ProjectA'!Y48 -> 2012 | Z48: =SUM('MFIS ProjectA:MFIS ProjectF'!Z48) -> 826 | AA48: =SUM('MFIS ProjectA:MFIS ProjectF'!AA48) -> 862
P49: 15. Fuel (Oil/Coal/Gas) | Q49: ='MFIS ProjectA'!Q49 -> 2015 | R49: =SUM('MFIS ProjectA:MFIS ProjectF'!R49) -> 0 | S49: ='MFIS ProjectA'!S49 -> 2014 | T49: =SUM('MFIS ProjectA:MFIS ProjectF'!T49) -> 0 | U49: =SUM('MFIS ProjectA:MFIS ProjectF'!U49) -> 0 | V49: ='MFIS ProjectA'!V49 -> 2013 | W49: =SUM('MFIS ProjectA:MFIS ProjectF'!W49) -> 0 | X49: =SUM('MFIS ProjectA:MFIS ProjectF'!X49) -> 0 | Y49: ='MFIS ProjectA'!Y49 -> 2012 | Z49: =SUM('MFIS ProjectA:MFIS ProjectF'!Z49) -> 0 | AA49: =SUM('MFIS ProjectA:MFIS ProjectF'!AA49) -> 0
P50: 16. Garbage @ Trash Removal | Q50: ='MFIS ProjectA'!Q50 -> 2015 | R50: =SUM('MFIS ProjectA:MFIS ProjectF'!R50) -> 2734 | S50: ='MFIS ProjectA'!S50 -> 2014 | T50: =SUM('MFIS ProjectA:MFIS ProjectF'!T50) -> 2673 | U50: =SUM('MFIS ProjectA:MFIS ProjectF'!U50) -> 0 | V50: ='MFIS ProjectA'!V50 -> 2013 | W50: =SUM('MFIS ProjectA:MFIS ProjectF'!W50) -> 2621 | X50: =SUM('MFIS ProjectA:MFIS ProjectF'!X50) -> 2555 | Y50: ='MFIS ProjectA'!Y50 -> 2012 | Z50: =SUM('MFIS ProjectA:MFIS ProjectF'!Z50) -> 2621 | AA50: =SUM('MFIS ProjectA:MFIS ProjectF'!AA50) -> 2507
P51: 17. Other Utilities | Q51: ='MFIS ProjectA'!Q51 -> 2015 | R51: =SUM('MFIS ProjectA:MFIS ProjectF'!R51) -> 0 | S51: ='MFIS ProjectA'!S51 -> 2014 | T51: =SUM('MFIS ProjectA:MFIS ProjectF'!T51) -> 0 | U51: =SUM('MFIS ProjectA:MFIS ProjectF'!U51) -> 0 | V51: ='MFIS ProjectA'!V51 -> 2013 | W51: =SUM('MFIS ProjectA:MFIS ProjectF'!W51) -> 0 | X51: =SUM('MFIS ProjectA:MFIS ProjectF'!X51) -> 0 | Y51: ='MFIS ProjectA'!Y51 -> 2012 | Z51: =SUM('MFIS ProjectA:MFIS ProjectF'!Z51) -> 0 | AA51: =SUM('MFIS ProjectA:MFIS ProjectF'!AA51) -> 0
P52: 18. Sub-Ttl Util. (12 thru 17) | Q52: ='MFIS ProjectA'!Q52 -> 2015 | R52: =SUM('MFIS ProjectA:MFIS ProjectF'!R52) -> 14652 | S52: ='MFIS ProjectA'!S52 -> 2014 | T52: =SUM('MFIS ProjectA:MFIS ProjectF'!T52) -> 14591 | U52: =SUM('MFIS ProjectA:MFIS ProjectF'!U52) -> 0 | V52: ='MFIS ProjectA'!V52 -> 2013 | W52: =SUM('MFIS ProjectA:MFIS ProjectF'!W52) -> 14479 | X52: =SUM('MFIS ProjectA:MFIS ProjectF'!X52) -> 13747 | Y52: ='MFIS ProjectA'!Y52 -> 2012 | Z52: =SUM('MFIS ProjectA:MFIS ProjectF'!Z52) -> 14396 | AA52: =SUM('MFIS ProjectA:MFIS ProjectF'!AA52) -> 13695
P53: 19. Site Management Payroll | Q53: ='MFIS ProjectA'!Q53 -> 2015 | R53: =SUM('MFIS ProjectA:MFIS ProjectF'!R53) -> 20080 | S53: ='MFIS ProjectA'!S53 -> 2014 | T53: =SUM('MFIS ProjectA:MFIS ProjectF'!T53) -> 20080 | U53: =SUM('MFIS ProjectA:MFIS ProjectF'!U53) -> 0 | V53: ='MFIS ProjectA'!V53 -> 2013 | W53: =SUM('MFIS ProjectA:MFIS ProjectF'!W53) -> 20080 | X53: =SUM('MFIS ProjectA:MFIS ProjectF'!X53) -> 17944 | Y53: ='MFIS ProjectA'!Y53 -> 2012 | Z53: =SUM('MFIS ProjectA:MFIS ProjectF'!Z53) -> 20410 | AA53: =SUM('MFIS ProjectA:MFIS ProjectF'!AA53) -> 18148
P54: 20. Management Fee | Q54: ='MFIS ProjectA'!Q54 -> 2015 | R54: =SUM('MFIS ProjectA:MFIS ProjectF'!R54) -> 19320 | S54: ='MFIS ProjectA'!S54 -> 2014 | T54: =SUM('MFIS ProjectA:MFIS ProjectF'!T54) -> 18690 | U54: =SUM('MFIS ProjectA:MFIS ProjectF'!U54) -> 0 | V54: ='MFIS ProjectA'!V54 -> 2013 | W54: =SUM('MFIS ProjectA:MFIS ProjectF'!W54) -> 18690 | X54: =SUM('MFIS ProjectA:MFIS ProjectF'!X54) -> 18245 | Y54: ='MFIS ProjectA'!Y54 -> 2012 | Z54: =SUM('MFIS ProjectA:MFIS ProjectF'!Z54) -> 18690 | AA54: =SUM('MFIS ProjectA:MFIS ProjectF'!AA54) -> 18379
P55: 21. Project Auditing Expense | Q55: ='MFIS ProjectA'!Q55 -> 2015 | R55: =SUM('MFIS ProjectA:MFIS ProjectF'!R55) -> 4374 | S55: ='MFIS ProjectA'!S55 -> 2014 | T55: =SUM('MFIS ProjectA:MFIS ProjectF'!T55) -> 4374 | U55: =SUM('MFIS ProjectA:MFIS ProjectF'!U55) -> 0 | V55: ='MFIS ProjectA'!V55 -> 2013 | W55: =SUM('MFIS ProjectA:MFIS ProjectF'!W55) -> 4374 | X55: =SUM('MFIS ProjectA:MFIS ProjectF'!X55) -> 4374 | Y55: ='MFIS ProjectA'!Y55 -> 2012 | Z55: =SUM('MFIS ProjectA:MFIS ProjectF'!Z55) -> 4374 | AA55: =SUM('MFIS ProjectA:MFIS ProjectF'!AA55) -> 4374
P56: 22. Proj. Bookkeeping/Accnting | Q56: ='MFIS ProjectA'!Q56 -> 2015 | R56: =SUM('MFIS ProjectA:MFIS ProjectF'!R56) -> 0 | S56: ='MFIS ProjectA'!S56 -> 2014 | T56: =SUM('MFIS ProjectA:MFIS ProjectF'!T56) -> 0 | U56: =SUM('MFIS ProjectA:MFIS ProjectF'!U56) -> 0 | V56: ='MFIS ProjectA'!V56 -> 2013 | W56: =SUM('MFIS ProjectA:MFIS ProjectF'!W56) -> 0 | X56: =SUM('MFIS ProjectA:MFIS ProjectF'!X56) -> 0 | Y56: ='MFIS ProjectA'!Y56 -> 2012 | Z56: =SUM('MFIS ProjectA:MFIS ProjectF'!Z56) -> 0 | AA56: =SUM('MFIS ProjectA:MFIS ProjectF'!AA56) -> 0
P57: 23. Legal Expenses | Q57: ='MFIS ProjectA'!Q57 -> 2015 | R57: =SUM('MFIS ProjectA:MFIS ProjectF'!R57) -> 500 | S57: ='MFIS ProjectA'!S57 -> 2014 | T57: =SUM('MFIS ProjectA:MFIS ProjectF'!T57) -> 500 | U57: =SUM('MFIS ProjectA:MFIS ProjectF'!U57) -> 0 | V57: ='MFIS ProjectA'!V57 -> 2013 | W57: =SUM('MFIS ProjectA:MFIS ProjectF'!W57) -> 500 | X57: =SUM('MFIS ProjectA:MFIS ProjectF'!X57) -> 51 | Y57: ='MFIS ProjectA'!Y57 -> 2012 | Z57: =SUM('MFIS ProjectA:MFIS ProjectF'!Z57) -> 500 | AA57: =SUM('MFIS ProjectA:MFIS ProjectF'!AA57) -> 301
P58: 24. Advertising | Q58: ='MFIS ProjectA'!Q58 -> 2015 | R58: =SUM('MFIS ProjectA:MFIS ProjectF'!R58) -> 500 | S58: ='MFIS ProjectA'!S58 -> 2014 | T58: =SUM('MFIS ProjectA:MFIS ProjectF'!T58) -> 500 | U58: =SUM('MFIS ProjectA:MFIS ProjectF'!U58) -> 0 | V58: ='MFIS ProjectA'!V58 -> 2013 | W58: =SUM('MFIS ProjectA:MFIS ProjectF'!W58) -> 500 | X58: =SUM('MFIS ProjectA:MFIS ProjectF'!X58) -> 203 | Y58: ='MFIS ProjectA'!Y58 -> 2012 | Z58: =SUM('MFIS ProjectA:MFIS ProjectF'!Z58) -> 250 | AA58: =SUM('MFIS ProjectA:MFIS ProjectF'!AA58) -> 202
P59: 25. Phone @ Answering Service | Q59: ='MFIS ProjectA'!Q59 -> 2015 | R59: =SUM('MFIS ProjectA:MFIS ProjectF'!R59) -> 2300 | S59: ='MFIS ProjectA'!S59 -> 2014 | T59: =SUM('MFIS ProjectA:MFIS ProjectF'!T59) -> 2300 | U59: =SUM('MFIS ProjectA:MFIS ProjectF'!U59) -> 0 | V59: ='MFIS ProjectA'!V59 -> 2013 | W59: =SUM('MFIS ProjectA:MFIS ProjectF'!W59) -> 2300 | X59: =SUM('MFIS ProjectA:MFIS ProjectF'!X59) -> 2202 | Y59: ='MFIS ProjectA'!Y59 -> 2012 | Z59: =SUM('MFIS ProjectA:MFIS ProjectF'!Z59) -> 2300 | AA59: =SUM('MFIS ProjectA:MFIS ProjectF'!AA59) -> 2443
P60: 26. Office Supplies | Q60: ='MFIS ProjectA'!Q60 -> 2015 | R60: =SUM('MFIS ProjectA:MFIS ProjectF'!R60) -> 2000 | S60: ='MFIS ProjectA'!S60 -> 2014 | T60: =SUM('MFIS ProjectA:MFIS ProjectF'!T60) -> 2000 | U60: =SUM('MFIS ProjectA:MFIS ProjectF'!U60) -> 0 | V60: ='MFIS ProjectA'!V60 -> 2013 | W60: =SUM('MFIS ProjectA:MFIS ProjectF'!W60) -> 2000 | X60: =SUM('MFIS ProjectA:MFIS ProjectF'!X60) -> 1871 | Y60: ='MFIS ProjectA'!Y60 -> 2012 | Z60: =SUM('MFIS ProjectA:MFIS ProjectF'!Z60) -> 2000 | AA60: =SUM('MFIS ProjectA:MFIS ProjectF'!AA60) -> 1931
P61: 27. Office Furniture @ Equip. | Q61: ='MFIS ProjectA'!Q61 -> 2015 | R61: =SUM('MFIS ProjectA:MFIS ProjectF'!R61) -> 0 | S61: ='MFIS ProjectA'!S61 -> 2014 | T61: =SUM('MFIS ProjectA:MFIS ProjectF'!T61) -> 0 | U61: =SUM('MFIS ProjectA:MFIS ProjectF'!U61) -> 0 | V61: ='MFIS ProjectA'!V61 -> 2013 | W61: =SUM('MFIS ProjectA:MFIS ProjectF'!W61) -> 0 | X61: =SUM('MFIS ProjectA:MFIS ProjectF'!X61) -> 0 | Y61: ='MFIS ProjectA'!Y61 -> 2012 | Z61: =SUM('MFIS ProjectA:MFIS ProjectF'!Z61) -> 0 | AA61: =SUM('MFIS ProjectA:MFIS ProjectF'!AA61) -> 0
P62: 28. Training Expense | Q62: ='MFIS ProjectA'!Q62 -> 2015 | R62: =SUM('MFIS ProjectA:MFIS ProjectF'!R62) -> 2000 | S62: ='MFIS ProjectA'!S62 -> 2014 | T62: =SUM('MFIS ProjectA:MFIS ProjectF'!T62) -> 1800 | U62: =SUM('MFIS ProjectA:MFIS ProjectF'!U62) -> 0 | V62: ='MFIS ProjectA'!V62 -> 2013 | W62: =SUM('MFIS ProjectA:MFIS ProjectF'!W62) -> 1800 | X62: =SUM('MFIS ProjectA:MFIS ProjectF'!X62) -> 1933 | Y62: ='MFIS ProjectA'!Y62 -> 2012 | Z62: =SUM('MFIS ProjectA:MFIS ProjectF'!Z62) -> 1800 | AA62: =SUM('MFIS ProjectA:MFIS ProjectF'!AA62) -> 1863
P63: 29. Hlth Ins. @ Other Benefits | Q63: ='MFIS ProjectA'!Q63 -> 2015 | R63: =SUM('MFIS ProjectA:MFIS ProjectF'!R63) -> 12336 | S63: ='MFIS ProjectA'!S63 -> 2014 | T63: =SUM('MFIS ProjectA:MFIS ProjectF'!T63) -> 12336 | U63: =SUM('MFIS ProjectA:MFIS ProjectF'!U63) -> 0 | V63: ='MFIS ProjectA'!V63 -> 2013 | W63: =SUM('MFIS ProjectA:MFIS ProjectF'!W63) -> 11976 | X63: =SUM('MFIS ProjectA:MFIS ProjectF'!X63) -> 13057 | Y63: ='MFIS ProjectA'!Y63 -> 2012 | Z63: =SUM('MFIS ProjectA:MFIS ProjectF'!Z63) -> 11976 | AA63: =SUM('MFIS ProjectA:MFIS ProjectF'!AA63) -> 10982
P64: 30. Payroll Taxes | Q64: ='MFIS ProjectA'!Q64 -> 2015 | R64: =SUM('MFIS ProjectA:MFIS ProjectF'!R64) -> 3612 | S64: ='MFIS ProjectA'!S64 -> 2014 | T64: =SUM('MFIS ProjectA:MFIS ProjectF'!T64) -> 3558 | U64: =SUM('MFIS ProjectA:MFIS ProjectF'!U64) -> 0 | V64: ='MFIS ProjectA'!V64 -> 2013 | W64: =SUM('MFIS ProjectA:MFIS ProjectF'!W64) -> 3337 | X64: =SUM('MFIS ProjectA:MFIS ProjectF'!X64) -> 3115 | Y64: ='MFIS ProjectA'!Y64 -> 2012 | Z64: =SUM('MFIS ProjectA:MFIS ProjectF'!Z64) -> 3587 | AA64: =SUM('MFIS ProjectA:MFIS ProjectF'!AA64) -> 3120
P65: 31. Workmans Compensation | Q65: ='MFIS ProjectA'!Q65 -> 2015 | R65: =SUM('MFIS ProjectA:MFIS ProjectF'!R65) -> 1283 | S65: ='MFIS ProjectA'!S65 -> 2014 | T65: =SUM('MFIS ProjectA:MFIS ProjectF'!T65) -> 2085 | U65: =SUM('MFIS ProjectA:MFIS ProjectF'!U65) -> 0 | V65: ='MFIS ProjectA'!V65 -> 2013 | W65: =SUM('MFIS ProjectA:MFIS ProjectF'!W65) -> 1240 | X65: =SUM('MFIS ProjectA:MFIS ProjectF'!X65) -> 2126 | Y65: ='MFIS ProjectA'!Y65 -> 2012 | Z65: =SUM('MFIS ProjectA:MFIS ProjectF'!Z65) -> 1975 | AA65: =SUM('MFIS ProjectA:MFIS ProjectF'!AA65) -> 1138
P66: 32. Other Admin.Expenses | Q66: ='MFIS ProjectA'!Q66 -> 2015 | R66: =SUM('MFIS ProjectA:MFIS ProjectF'!R66) -> 1113 | S66: ='MFIS ProjectA'!S66 -> 2014 | T66: =SUM('MFIS ProjectA:MFIS ProjectF'!T66) -> 1045 | U66: =SUM('MFIS ProjectA:MFIS ProjectF'!U66) -> 0 | V66: ='MFIS ProjectA'!V66 -> 2013 | W66: =SUM('MFIS ProjectA:MFIS ProjectF'!W66) -> 604 | X66: =SUM('MFIS ProjectA:MFIS ProjectF'!X66) -> 1023 | Y66: ='MFIS ProjectA'!Y66 -> 2012 | Z66: =SUM('MFIS ProjectA:MFIS ProjectF'!Z66) -> 499 | AA66: =SUM('MFIS ProjectA:MFIS ProjectF'!AA66) -> 794
P67: 33. Sub-Ttl Admin (19 thru 32) | Q67: ='MFIS ProjectA'!Q67 -> 2015 | R67: =SUM('MFIS ProjectA:MFIS ProjectF'!R67) -> 69418 | S67: ='MFIS ProjectA'!S67 -> 2014 | T67: =SUM('MFIS ProjectA:MFIS ProjectF'!T67) -> 69268 | U67: =SUM('MFIS ProjectA:MFIS ProjectF'!U67) -> 0 | V67: ='MFIS ProjectA'!V67 -> 2013 | W67: =SUM('MFIS ProjectA:MFIS ProjectF'!W67) -> 67401 | X67: =SUM('MFIS ProjectA:MFIS ProjectF'!X67) -> 66144 | Y67: ='MFIS ProjectA'!Y67 -> 2012 | Z67: =SUM('MFIS ProjectA:MFIS ProjectF'!Z67) -> 68361 | AA67: =SUM('MFIS ProjectA:MFIS ProjectF'!AA67) -> 63675
P68: 34. Real Estate Taxes | Q68: ='MFIS ProjectA'!Q68 -> 2015 | R68: =SUM('MFIS ProjectA:MFIS ProjectF'!R68) -> 20310 | S68: ='MFIS ProjectA'!S68 -> 2014 | T68: =SUM('MFIS ProjectA:MFIS ProjectF'!T68) -> 19257 | U68: =SUM('MFIS ProjectA:MFIS ProjectF'!U68) -> 0 | V68: ='MFIS ProjectA'!V68 -> 2013 | W68: =SUM('MFIS ProjectA:MFIS ProjectF'!W68) -> 19257 | X68: =SUM('MFIS ProjectA:MFIS ProjectF'!X68) -> 17765 | Y68: ='MFIS ProjectA'!Y68 -> 2012 | Z68: =SUM('MFIS ProjectA:MFIS ProjectF'!Z68) -> 18274 | AA68: =SUM('MFIS ProjectA:MFIS ProjectF'!AA68) -> 19154
P69: 35. Special Assessments | Q69: ='MFIS ProjectA'!Q69 -> 2015 | R69: =SUM('MFIS ProjectA:MFIS ProjectF'!R69) -> 300 | S69: ='MFIS ProjectA'!S69 -> 2014 | T69: =SUM('MFIS ProjectA:MFIS ProjectF'!T69) -> 250 | U69: =SUM('MFIS ProjectA:MFIS ProjectF'!U69) -> 0 | V69: ='MFIS ProjectA'!V69 -> 2013 | W69: =SUM('MFIS ProjectA:MFIS ProjectF'!W69) -> 100 | X69: =SUM('MFIS ProjectA:MFIS ProjectF'!X69) -> 250 | Y69: ='MFIS ProjectA'!Y69 -> 2012 | Z69: =SUM('MFIS ProjectA:MFIS ProjectF'!Z69) -> 200 | AA69: =SUM('MFIS ProjectA:MFIS ProjectF'!AA69) -> 200
P70: 36. Othr Taxes, Lcnses, Permts | Q70: ='MFIS ProjectA'!Q70 -> 2015 | R70: =SUM('MFIS ProjectA:MFIS ProjectF'!R70) -> 0 | S70: ='MFIS ProjectA'!S70 -> 2014 | T70: =SUM('MFIS ProjectA:MFIS ProjectF'!T70) -> 0 | U70: =SUM('MFIS ProjectA:MFIS ProjectF'!U70) -> 0 | V70: ='MFIS ProjectA'!V70 -> 2013 | W70: =SUM('MFIS ProjectA:MFIS ProjectF'!W70) -> 0 | X70: =SUM('MFIS ProjectA:MFIS ProjectF'!X70) -> 0 | Y70: ='MFIS ProjectA'!Y70 -> 2012 | Z70: =SUM('MFIS ProjectA:MFIS ProjectF'!Z70) -> 0 | AA70: =SUM('MFIS ProjectA:MFIS ProjectF'!AA70) -> 0
P71: 37. Property @ Liability Ins. | Q71: ='MFIS ProjectA'!Q71 -> 2015 | R71: =SUM('MFIS ProjectA:MFIS ProjectF'!R71) -> 10201 | S71: ='MFIS ProjectA'!S71 -> 2014 | T71: =SUM('MFIS ProjectA:MFIS ProjectF'!T71) -> 12256 | U71: =SUM('MFIS ProjectA:MFIS ProjectF'!U71) -> 0 | V71: ='MFIS ProjectA'!V71 -> 2013 | W71: =SUM('MFIS ProjectA:MFIS ProjectF'!W71) -> 8816 | X71: =SUM('MFIS ProjectA:MFIS ProjectF'!X71) -> 9952 | Y71: ='MFIS ProjectA'!Y71 -> 2012 | Z71: =SUM('MFIS ProjectA:MFIS ProjectF'!Z71) -> 6961 | AA71: =SUM('MFIS ProjectA:MFIS ProjectF'!AA71) -> 7397
P72: 38. Fidelity Coverage Ins. | Q72: ='MFIS ProjectA'!Q72 -> 2015 | R72: =SUM('MFIS ProjectA:MFIS ProjectF'!R72) -> 191 | S72: ='MFIS ProjectA'!S72 -> 2014 | T72: =SUM('MFIS ProjectA:MFIS ProjectF'!T72) -> 191 | U72: =SUM('MFIS ProjectA:MFIS ProjectF'!U72) -> 0 | V72: ='MFIS ProjectA'!V72 -> 2013 | W72: =SUM('MFIS ProjectA:MFIS ProjectF'!W72) -> 191 | X72: =SUM('MFIS ProjectA:MFIS ProjectF'!X72) -> 0 | Y72: ='MFIS ProjectA'!Y72 -> 2012 | Z72: =SUM('MFIS ProjectA:MFIS ProjectF'!Z72) -> 191 | AA72: =SUM('MFIS ProjectA:MFIS ProjectF'!AA72) -> 0
P73: 39. Other Insurance | Q73: ='MFIS ProjectA'!Q73 -> 2015 | R73: =SUM('MFIS ProjectA:MFIS ProjectF'!R73) -> 0 | S73: ='MFIS ProjectA'!S73 -> 2014 | T73: =SUM('MFIS ProjectA:MFIS ProjectF'!T73) -> 0 | U73: =SUM('MFIS ProjectA:MFIS ProjectF'!U73) -> 0 | V73: ='MFIS ProjectA'!V73 -> 2013 | W73: =SUM('MFIS ProjectA:MFIS ProjectF'!W73) -> 0 | X73: =SUM('MFIS ProjectA:MFIS ProjectF'!X73) -> 0 | Y73: ='MFIS ProjectA'!Y73 -> 2012 | Z73: =SUM('MFIS ProjectA:MFIS ProjectF'!Z73) -> 0 | AA73: =SUM('MFIS ProjectA:MFIS ProjectF'!AA73) -> 0
P74: 40. Sub-Ttl Tx/In (34 thru 39) | Q74: ='MFIS ProjectA'!Q74 -> 2015 | R74: =SUM('MFIS ProjectA:MFIS ProjectF'!R74) -> 31002 | S74: ='MFIS ProjectA'!S74 -> 2014 | T74: =SUM('MFIS ProjectA:MFIS ProjectF'!T74) -> 31954 | U74: =SUM('MFIS ProjectA:MFIS ProjectF'!U74) -> 0 | V74: ='MFIS ProjectA'!V74 -> 2013 | W74: =SUM('MFIS ProjectA:MFIS ProjectF'!W74) -> 28364 | X74: =SUM('MFIS ProjectA:MFIS ProjectF'!X74) -> 27967 | Y74: ='MFIS ProjectA'!Y74 -> 2012 | Z74: =SUM('MFIS ProjectA:MFIS ProjectF'!Z74) -> 25626 | AA74: =SUM('MFIS ProjectA:MFIS ProjectF'!AA74) -> 26751
P75: 41. Ttl O@M Exps (11+18+33+40) | Q75: ='MFIS ProjectA'!Q75 -> 2015 | R75: =SUM('MFIS ProjectA:MFIS ProjectF'!R75) -> 157877 | S75: ='MFIS ProjectA'!S75 -> 2014 | T75: =SUM('MFIS ProjectA:MFIS ProjectF'!T75) -> 156018 | U75: =SUM('MFIS ProjectA:MFIS ProjectF'!U75) -> 0 | V75: ='MFIS ProjectA'!V75 -> 2013 | W75: =SUM('MFIS ProjectA:MFIS ProjectF'!W75) -> 150900 | X75: =SUM('MFIS ProjectA:MFIS ProjectF'!X75) -> 154565 | Y75: ='MFIS ProjectA'!Y75 -> 2012 | Z75: =SUM('MFIS ProjectA:MFIS ProjectF'!Z75) -> 151585 | AA75: =SUM('MFIS ProjectA:MFIS ProjectF'!AA75) -> 152601
P76: 1.Beginning Balance | Q76: ='MFIS ProjectA'!Q76 -> 2015 | R76: =SUM('MFIS ProjectA:MFIS ProjectF'!R76) -> 44204 | S76: ='MFIS ProjectA'!S76 -> 2014 | T76: =SUM('MFIS ProjectA:MFIS ProjectF'!T76) -> 57116 | U76: =SUM('MFIS ProjectA:MFIS ProjectF'!U76) -> 0 | V76: ='MFIS ProjectA'!V76 -> 2013 | W76: =SUM('MFIS ProjectA:MFIS ProjectF'!W76) -> 95048 | X76: =SUM('MFIS ProjectA:MFIS ProjectF'!X76) -> 68419 | Y76: ='MFIS ProjectA'!Y76 -> 2012 | Z76: =SUM('MFIS ProjectA:MFIS ProjectF'!Z76) -> 72102 | AA76: =SUM('MFIS ProjectA:MFIS ProjectF'!AA76) -> 60981
P77: 2. Transfer to Reserve | Q77: ='MFIS ProjectA'!Q77 -> 2015 | R77: =SUM('MFIS ProjectA:MFIS ProjectF'!R77) -> 11970 | S77: ='MFIS ProjectA'!S77 -> 2014 | T77: =SUM('MFIS ProjectA:MFIS ProjectF'!T77) -> 11970 | U77: =SUM('MFIS ProjectA:MFIS ProjectF'!U77) -> 0 | V77: ='MFIS ProjectA'!V77 -> 2013 | W77: =SUM('MFIS ProjectA:MFIS ProjectF'!W77) -> 11970 | X77: =SUM('MFIS ProjectA:MFIS ProjectF'!X77) -> 12008 | Y77: ='MFIS ProjectA'!Y77 -> 2012 | Z77: =SUM('MFIS ProjectA:MFIS ProjectF'!Z77) -> 11970 | AA77: =SUM('MFIS ProjectA:MFIS ProjectF'!AA77) -> 32539
P78: 3. Operating Deficit | Q78: ='MFIS ProjectA'!Q78 -> 2015 | R78: =SUM('MFIS ProjectA:MFIS ProjectF'!R78) -> 0 | S78: ='MFIS ProjectA'!S78 -> 2014 | T78: =SUM('MFIS ProjectA:MFIS ProjectF'!T78) -> 0 | U78: =SUM('MFIS ProjectA:MFIS ProjectF'!U78) -> 0 | V78: ='MFIS ProjectA'!V78 -> 2013 | W78: =SUM('MFIS ProjectA:MFIS ProjectF'!W78) -> 0 | X78: =SUM('MFIS ProjectA:MFIS ProjectF'!X78) -> 0 | Y78: ='MFIS ProjectA'!Y78 -> 2012 | Z78: =SUM('MFIS ProjectA:MFIS ProjectF'!Z78) -> 0 | AA78: =SUM('MFIS ProjectA:MFIS ProjectF'!AA78) -> 0
P79: 4. Cptl Bgt (Part V reserve) | Q79: ='MFIS ProjectA'!Q79 -> 2015 | R79: =SUM('MFIS ProjectA:MFIS ProjectF'!R79) -> 41200 | S79: ='MFIS ProjectA'!S79 -> 2014 | T79: =SUM('MFIS ProjectA:MFIS ProjectF'!T79) -> 58950 | U79: =SUM('MFIS ProjectA:MFIS ProjectF'!U79) -> 0 | V79: ='MFIS ProjectA'!V79 -> 2013 | W79: =SUM('MFIS ProjectA:MFIS ProjectF'!W79) -> 51900 | X79: =SUM('MFIS ProjectA:MFIS ProjectF'!X79) -> 0 | Y79: ='MFIS ProjectA'!Y79 -> 2012 | Z79: =SUM('MFIS ProjectA:MFIS ProjectF'!Z79) -> 30250 | AA79: =SUM('MFIS ProjectA:MFIS ProjectF'!AA79) -> 0
P80: 5. Building @ Equip Repair | Q80: ='MFIS ProjectA'!Q80 -> 2015 | R80: =SUM('MFIS ProjectA:MFIS ProjectF'!R80) -> 0 | S80: ='MFIS ProjectA'!S80 -> 2014 | T80: =SUM('MFIS ProjectA:MFIS ProjectF'!T80) -> 0 | U80: =SUM('MFIS ProjectA:MFIS ProjectF'!U80) -> 0 | V80: ='MFIS ProjectA'!V80 -> 2013 | W80: =SUM('MFIS ProjectA:MFIS ProjectF'!W80) -> 0 | X80: =SUM('MFIS ProjectA:MFIS ProjectF'!X80) -> 44693 | Y80: ='MFIS ProjectA'!Y80 -> 2012 | Z80: =SUM('MFIS ProjectA:MFIS ProjectF'!Z80) -> 0 | AA80: =SUM('MFIS ProjectA:MFIS ProjectF'!AA80) -> 25101
P81: 6. Othr Non-Operating Expenses | Q81: ='MFIS ProjectA'!Q81 -> 2015 | R81: =SUM('MFIS ProjectA:MFIS ProjectF'!R81) -> 0 | S81: ='MFIS ProjectA'!S81 -> 2014 | T81: =SUM('MFIS ProjectA:MFIS ProjectF'!T81) -> 0 | U81: =SUM('MFIS ProjectA:MFIS ProjectF'!U81) -> 0 | V81: ='MFIS ProjectA'!V81 -> 2013 | W81: =SUM('MFIS ProjectA:MFIS ProjectF'!W81) -> 0 | X81: =SUM('MFIS ProjectA:MFIS ProjectF'!X81) -> 0 | Y81: ='MFIS ProjectA'!Y81 -> 2012 | Z81: =SUM('MFIS ProjectA:MFIS ProjectF'!Z81) -> 0 | AA81: =SUM('MFIS ProjectA:MFIS ProjectF'!AA81) -> 0
P82: 7. Total (3 thru 6) | Q82: ='MFIS ProjectA'!Q82 -> 2015 | R82: =SUM('MFIS ProjectA:MFIS ProjectF'!R82) -> 41200 | S82: ='MFIS ProjectA'!S82 -> 2014 | T82: =SUM('MFIS ProjectA:MFIS ProjectF'!T82) -> 58950 | U82: =SUM('MFIS ProjectA:MFIS ProjectF'!U82) -> 0 | V82: ='MFIS ProjectA'!V82 -> 2013 | W82: =SUM('MFIS ProjectA:MFIS ProjectF'!W82) -> 51900 | X82: =SUM('MFIS ProjectA:MFIS ProjectF'!X82) -> 44693 | Y82: ='MFIS ProjectA'!Y82 -> 2012 | Z82: =SUM('MFIS ProjectA:MFIS ProjectF'!Z82) -> 30250 | AA82: =SUM('MFIS ProjectA:MFIS ProjectF'!AA82) -> 25101
P83: 8. Ending Balance [(1+2)-7)] | Q83: ='MFIS ProjectA'!Q83 -> 2015 | R83: =SUM('MFIS ProjectA:MFIS ProjectF'!R83) -> 14974 | S83: ='MFIS ProjectA'!S83 -> 2014 | T83: =SUM('MFIS ProjectA:MFIS ProjectF'!T83) -> 10136 | U83: =SUM('MFIS ProjectA:MFIS ProjectF'!U83) -> 0 | V83: ='MFIS ProjectA'!V83 -> 2013 | W83: =SUM('MFIS ProjectA:MFIS ProjectF'!W83) -> 55118 | X83: =SUM('MFIS ProjectA:MFIS ProjectF'!X83) -> 35734 | Y83: ='MFIS ProjectA'!Y83 -> 2012 | Z83: =SUM('MFIS ProjectA:MFIS ProjectF'!Z83) -> 53822 | AA83: =SUM('MFIS ProjectA:MFIS ProjectF'!AA83) -> 68419
P84: Beginning Balance | Q84: ='MFIS ProjectA'!Q84 -> 2015 | R84: =SUM('MFIS ProjectA:MFIS ProjectF'!R84) -> 0 | S84: ='MFIS ProjectA'!S84 -> 2014 | T84: =SUM('MFIS ProjectA:MFIS ProjectF'!T84) -> 0 | U84: =SUM('MFIS ProjectA:MFIS ProjectF'!U84) -> 0 | V84: ='MFIS ProjectA'!V84 -> 2013 | W84: =SUM('MFIS ProjectA:MFIS ProjectF'!W84) -> 0 | X84: =SUM('MFIS ProjectA:MFIS ProjectF'!X84) -> 15533 | Y84: ='MFIS ProjectA'!Y84 -> 2012 | Z84: =SUM('MFIS ProjectA:MFIS ProjectF'!Z84) -> 0 | AA84: =SUM('MFIS ProjectA:MFIS ProjectF'!AA84) -> 42317
P85: Ending Balance | Q85: ='MFIS ProjectA'!Q85 -> 2015 | R85: =SUM('MFIS ProjectA:MFIS ProjectF'!R85) -> 0 | S85: ='MFIS ProjectA'!S85 -> 2014 | T85: =SUM('MFIS ProjectA:MFIS ProjectF'!T85) -> 0 | U85: =SUM('MFIS ProjectA:MFIS ProjectF'!U85) -> 0 | V85: ='MFIS ProjectA'!V85 -> 2013 | W85: =SUM('MFIS ProjectA:MFIS ProjectF'!W85) -> 0 | X85: =SUM('MFIS ProjectA:MFIS ProjectF'!X85) -> 14086 | Y85: ='MFIS ProjectA'!Y85 -> 2012 | Z85: =SUM('MFIS ProjectA:MFIS ProjectF'!Z85) -> 0 | AA85: =SUM('MFIS ProjectA:MFIS ProjectF'!AA85) -> 20932
P86: Beginning Balance | Q86: ='MFIS ProjectA'!Q86 -> 2015 | R86: =SUM('MFIS ProjectA:MFIS ProjectF'!R86) -> 0 | S86: ='MFIS ProjectA'!S86 -> 2014 | T86: =SUM('MFIS ProjectA:MFIS ProjectF'!T86) -> 0 | U86: =SUM('MFIS ProjectA:MFIS ProjectF'!U86) -> 0 | V86: ='MFIS ProjectA'!V86 -> 2013 | W86: =SUM('MFIS ProjectA:MFIS ProjectF'!W86) -> 0 | X86: =SUM('MFIS ProjectA:MFIS ProjectF'!X86) -> 5399 | Y86: ='MFIS ProjectA'!Y86 -> 2012 | Z86: =SUM('MFIS ProjectA:MFIS ProjectF'!Z86) -> 0 | AA86: =SUM('MFIS ProjectA:MFIS ProjectF'!AA86) -> 4204
P87: Ending Balance | Q87: ='MFIS ProjectA'!Q87 -> 2015 | R87: =SUM('MFIS ProjectA:MFIS ProjectF'!R87) -> 0 | S87: ='MFIS ProjectA'!S87 -> 2014 | T87: =SUM('MFIS ProjectA:MFIS ProjectF'!T87) -> 0 | U87: =SUM('MFIS ProjectA:MFIS ProjectF'!U87) -> 0 | V87: ='MFIS ProjectA'!V87 -> 2013 | W87: =SUM('MFIS ProjectA:MFIS ProjectF'!W87) -> 0 | X87: =SUM('MFIS ProjectA:MFIS ProjectF'!X87) -> 8542 | Y87: ='MFIS ProjectA'!Y87 -> 2012 | Z87: =SUM('MFIS ProjectA:MFIS ProjectF'!Z87) -> 0 | AA87: =SUM('MFIS ProjectA:MFIS ProjectF'!AA87) -> 0
P88: Beginning Balance | Q88: ='MFIS ProjectA'!Q88 -> 2015 | R88: =SUM('MFIS ProjectA:MFIS ProjectF'!R88) -> 0 | S88: ='MFIS ProjectA'!S88 -> 2014 | T88: =SUM('MFIS ProjectA:MFIS ProjectF'!T88) -> 0 | U88: =SUM('MFIS ProjectA:MFIS ProjectF'!U88) -> 0 | V88: ='MFIS ProjectA'!V88 -> 2013 | W88: =SUM('MFIS ProjectA:MFIS ProjectF'!W88) -> 0 | X88: =SUM('MFIS ProjectA:MFIS ProjectF'!X88) -> 6600 | Y88: ='MFIS ProjectA'!Y88 -> 2012 | Z88: =SUM('MFIS ProjectA:MFIS ProjectF'!Z88) -> 0 | AA88: =SUM('MFIS ProjectA:MFIS ProjectF'!AA88) -> 5800
P89: Ending Balance | Q89: ='MFIS ProjectA'!Q89 -> 2015 | R89: =SUM('MFIS ProjectA:MFIS ProjectF'!R89) -> 0 | S89: ='MFIS ProjectA'!S89 -> 2014 | T89: =SUM('MFIS ProjectA:MFIS ProjectF'!T89) -> 0 | U89: =SUM('MFIS ProjectA:MFIS ProjectF'!U89) -> 0 | V89: ='MFIS ProjectA'!V89 -> 2013 | W89: =SUM('MFIS ProjectA:MFIS ProjectF'!W89) -> 0 | X89: =SUM('MFIS ProjectA:MFIS ProjectF'!X89) -> 7550 | Y89: ='MFIS ProjectA'!Y89 -> 2012 | Z89: =SUM('MFIS ProjectA:MFIS ProjectF'!Z89) -> 0 | AA89: =SUM('MFIS ProjectA:MFIS ProjectF'!AA89) -> 6600
P90: Appliances - Range | Q90: ='MFIS ProjectA'!Q90 -> 2015 | R90: =SUM('MFIS ProjectA:MFIS ProjectF'!R90) -> 900 | S90: ='MFIS ProjectA'!S90 -> 2014 | T90: =SUM('MFIS ProjectA:MFIS ProjectF'!T90) -> 900 | U90: =SUM('MFIS ProjectA:MFIS ProjectF'!U90) -> 0 | V90: ='MFIS ProjectA'!V90 -> 2013 | W90: =SUM('MFIS ProjectA:MFIS ProjectF'!W90) -> 650 | X90: =SUM('MFIS ProjectA:MFIS ProjectF'!X90) -> 0 | Y90: ='MFIS ProjectA'!Y90 -> 2012 | Z90: =SUM('MFIS ProjectA:MFIS ProjectF'!Z90) -> 650 | AA90: =SUM('MFIS ProjectA:MFIS ProjectF'!AA90) -> 0
P91: Appliances - Refrigerator | Q91: ='MFIS ProjectA'!Q91 -> 2015 | R91: =SUM('MFIS ProjectA:MFIS ProjectF'!R91) -> 1100 | S91: ='MFIS ProjectA'!S91 -> 2014 | T91: =SUM('MFIS ProjectA:MFIS ProjectF'!T91) -> 1100 | U91: =SUM('MFIS ProjectA:MFIS ProjectF'!U91) -> 0 | V91: ='MFIS ProjectA'!V91 -> 2013 | W91: =SUM('MFIS ProjectA:MFIS ProjectF'!W91) -> 1100 | X91: =SUM('MFIS ProjectA:MFIS ProjectF'!X91) -> 0 | Y91: ='MFIS ProjectA'!Y91 -> 2012 | Z91: =SUM('MFIS ProjectA:MFIS ProjectF'!Z91) -> 1000 | AA91: =SUM('MFIS ProjectA:MFIS ProjectF'!AA91) -> 0
P92: Appliances - Range Hood | Q92: ='MFIS ProjectA'!Q92 -> 2015 | R92: =SUM('MFIS ProjectA:MFIS ProjectF'!R92) -> 0 | S92: ='MFIS ProjectA'!S92 -> 2014 | T92: =SUM('MFIS ProjectA:MFIS ProjectF'!T92) -> 0 | U92: =SUM('MFIS ProjectA:MFIS ProjectF'!U92) -> 0 | V92: ='MFIS ProjectA'!V92 -> 2013 | W92: =SUM('MFIS ProjectA:MFIS ProjectF'!W92) -> 0 | X92: =SUM('MFIS ProjectA:MFIS ProjectF'!X92) -> 0 | Y92: ='MFIS ProjectA'!Y92 -> 2012 | Z92: =SUM('MFIS ProjectA:MFIS ProjectF'!Z92) -> 0 | AA92: =SUM('MFIS ProjectA:MFIS ProjectF'!AA92) -> 0
P93: Appliances - Washers @ Dryers | Q93: ='MFIS ProjectA'!Q93 -> 2015 | R93: =SUM('MFIS ProjectA:MFIS ProjectF'!R93) -> 0 | S93: ='MFIS ProjectA'!S93 -> 2014 | T93: =SUM('MFIS ProjectA:MFIS ProjectF'!T93) -> 0 | U93: =SUM('MFIS ProjectA:MFIS ProjectF'!U93) -> 0 | V93: ='MFIS ProjectA'!V93 -> 2013 | W93: =SUM('MFIS ProjectA:MFIS ProjectF'!W93) -> 0 | X93: =SUM('MFIS ProjectA:MFIS ProjectF'!X93) -> 0 | Y93: ='MFIS ProjectA'!Y93 -> 2012 | Z93: =SUM('MFIS ProjectA:MFIS ProjectF'!Z93) -> 0 | AA93: =SUM('MFIS ProjectA:MFIS ProjectF'!AA93) -> 0
P94: Appliances - Other | Q94: ='MFIS ProjectA'!Q94 -> 2015 | R94: =SUM('MFIS ProjectA:MFIS ProjectF'!R94) -> 0 | S94: ='MFIS ProjectA'!S94 -> 2014 | T94: =SUM('MFIS ProjectA:MFIS ProjectF'!T94) -> 0 | U94: =SUM('MFIS ProjectA:MFIS ProjectF'!U94) -> 0 | V94: ='MFIS ProjectA'!V94 -> 2013 | W94: =SUM('MFIS ProjectA:MFIS ProjectF'!W94) -> 0 | X94: =SUM('MFIS ProjectA:MFIS ProjectF'!X94) -> 0 | Y94: ='MFIS ProjectA'!Y94 -> 2012 | Z94: =SUM('MFIS ProjectA:MFIS ProjectF'!Z94) -> 0 | AA94: =SUM('MFIS ProjectA:MFIS ProjectF'!AA94) -> 0
P95: Carpet @ Vinyl - 1 Br. | Q95: ='MFIS ProjectA'!Q95 -> 2015 | R95: =SUM('MFIS ProjectA:MFIS ProjectF'!R95) -> 1400 | S95: ='MFIS ProjectA'!S95 -> 2014 | T95: =SUM('MFIS ProjectA:MFIS ProjectF'!T95) -> 2800 | U95: =SUM('MFIS ProjectA:MFIS ProjectF'!U95) -> 0 | V95: ='MFIS ProjectA'!V95 -> 2013 | W95: =SUM('MFIS ProjectA:MFIS ProjectF'!W95) -> 2800 | X95: =SUM('MFIS ProjectA:MFIS ProjectF'!X95) -> 0 | Y95: ='MFIS ProjectA'!Y95 -> 2012 | Z95: =SUM('MFIS ProjectA:MFIS ProjectF'!Z95) -> 1400 | AA95: =SUM('MFIS ProjectA:MFIS ProjectF'!AA95) -> 0
P96: Carpet @ Vinyl - 2 Br. | Q96: ='MFIS ProjectA'!Q96 -> 2015 | R96: =SUM('MFIS ProjectA:MFIS ProjectF'!R96) -> 3200 | S96: ='MFIS ProjectA'!S96 -> 2014 | T96: =SUM('MFIS ProjectA:MFIS ProjectF'!T96) -> 3100 | U96: =SUM('MFIS ProjectA:MFIS ProjectF'!U96) -> 0 | V96: ='MFIS ProjectA'!V96 -> 2013 | W96: =SUM('MFIS ProjectA:MFIS ProjectF'!W96) -> 3100 | X96: =SUM('MFIS ProjectA:MFIS ProjectF'!X96) -> 0 | Y96: ='MFIS ProjectA'!Y96 -> 2012 | Z96: =SUM('MFIS ProjectA:MFIS ProjectF'!Z96) -> 4650 | AA96: =SUM('MFIS ProjectA:MFIS ProjectF'!AA96) -> 0
P97: Carpet @ Vinyl - 3 Br. | Q97: ='MFIS ProjectA'!Q97 -> 2015 | R97: =SUM('MFIS ProjectA:MFIS ProjectF'!R97) -> 4800 | S97: ='MFIS ProjectA'!S97 -> 2014 | T97: =SUM('MFIS ProjectA:MFIS ProjectF'!T97) -> 4400 | U97: =SUM('MFIS ProjectA:MFIS ProjectF'!U97) -> 0 | V97: ='MFIS ProjectA'!V97 -> 2013 | W97: =SUM('MFIS ProjectA:MFIS ProjectF'!W97) -> 4400 | X97: =SUM('MFIS ProjectA:MFIS ProjectF'!X97) -> 0 | Y97: ='MFIS ProjectA'!Y97 -> 2012 | Z97: =SUM('MFIS ProjectA:MFIS ProjectF'!Z97) -> 4400 | AA97: =SUM('MFIS ProjectA:MFIS ProjectF'!AA97) -> 0
P98: Carpet @ Vinyl - 4 Br. | Q98: ='MFIS ProjectA'!Q98 -> 2015 | R98: =SUM('MFIS ProjectA:MFIS ProjectF'!R98) -> 0 | S98: ='MFIS ProjectA'!S98 -> 2014 | T98: =SUM('MFIS ProjectA:MFIS ProjectF'!T98) -> 0 | U98: =SUM('MFIS ProjectA:MFIS ProjectF'!U98) -> 0 | V98: ='MFIS ProjectA'!V98 -> 2013 | W98: =SUM('MFIS ProjectA:MFIS ProjectF'!W98) -> 0 | X98: =SUM('MFIS ProjectA:MFIS ProjectF'!X98) -> 0 | Y98: ='MFIS ProjectA'!Y98 -> 2012 | Z98: =SUM('MFIS ProjectA:MFIS ProjectF'!Z98) -> 0 | AA98: =SUM('MFIS ProjectA:MFIS ProjectF'!AA98) -> 0
P99: Carpet @ Vinyl - Other | Q99: ='MFIS ProjectA'!Q99 -> 2015 | R99: =SUM('MFIS ProjectA:MFIS ProjectF'!R99) -> 0 | S99: ='MFIS ProjectA'!S99 -> 2014 | T99: =SUM('MFIS ProjectA:MFIS ProjectF'!T99) -> 0 | U99: =SUM('MFIS ProjectA:MFIS ProjectF'!U99) -> 0 | V99: ='MFIS ProjectA'!V99 -> 2013 | W99: =SUM('MFIS ProjectA:MFIS ProjectF'!W99) -> 0 | X99: =SUM('MFIS ProjectA:MFIS ProjectF'!X99) -> 0 | Y99: ='MFIS ProjectA'!Y99 -> 2012 | Z99: =SUM('MFIS ProjectA:MFIS ProjectF'!Z99) -> 0 | AA99: =SUM('MFIS ProjectA:MFIS ProjectF'!AA99) -> 0
P100: Cabinets - Kitchens | Q100: ='MFIS ProjectA'!Q100 -> 2015 | R100: =SUM('MFIS ProjectA:MFIS ProjectF'!R100) -> 8800 | S100: ='MFIS ProjectA'!S100 -> 2014 | T100: =SUM('MFIS ProjectA:MFIS ProjectF'!T100) -> 17600 | U100: =SUM('MFIS ProjectA:MFIS ProjectF'!U100) -> 0 | V100: ='MFIS ProjectA'!V100 -> 2013 | W100: =SUM('MFIS ProjectA:MFIS ProjectF'!W100) -> 17600 | X100: =SUM('MFIS ProjectA:MFIS ProjectF'!X100) -> 0 | Y100: ='MFIS ProjectA'!Y100 -> 2012 | Z100: =SUM('MFIS ProjectA:MFIS ProjectF'!Z100) -> 4400 | AA100: =SUM('MFIS ProjectA:MFIS ProjectF'!AA100) -> 0
P101: Cabinets - Bathroom | Q101: ='MFIS ProjectA'!Q101 -> 2015 | R101: =SUM('MFIS ProjectA:MFIS ProjectF'!R101) -> 2500 | S101: ='MFIS ProjectA'!S101 -> 2014 | T101: =SUM('MFIS ProjectA:MFIS ProjectF'!T101) -> 0 | U101: =SUM('MFIS ProjectA:MFIS ProjectF'!U101) -> 0 | V101: ='MFIS ProjectA'!V101 -> 2013 | W101: =SUM('MFIS ProjectA:MFIS ProjectF'!W101) -> 4000 | X101: =SUM('MFIS ProjectA:MFIS ProjectF'!X101) -> 0 | Y101: ='MFIS ProjectA'!Y101 -> 2012 | Z101: =SUM('MFIS ProjectA:MFIS ProjectF'!Z101) -> 2000 | AA101: =SUM('MFIS ProjectA:MFIS ProjectF'!AA101) -> 0
P102: Cabinets - Other | Q102: ='MFIS ProjectA'!Q102 -> 2015 | R102: =SUM('MFIS ProjectA:MFIS ProjectF'!R102) -> 0 | S102: ='MFIS ProjectA'!S102 -> 2014 | T102: =SUM('MFIS ProjectA:MFIS ProjectF'!T102) -> 2800 | U102: =SUM('MFIS ProjectA:MFIS ProjectF'!U102) -> 0 | V102: ='MFIS ProjectA'!V102 -> 2013 | W102: =SUM('MFIS ProjectA:MFIS ProjectF'!W102) -> 0 | X102: =SUM('MFIS ProjectA:MFIS ProjectF'!X102) -> 0 | Y102: ='MFIS ProjectA'!Y102 -> 2012 | Z102: =SUM('MFIS ProjectA:MFIS ProjectF'!Z102) -> 0 | AA102: =SUM('MFIS ProjectA:MFIS ProjectF'!AA102) -> 0
P103: Doors - Exterior | Q103: ='MFIS ProjectA'!Q103 -> 2015 | R103: =SUM('MFIS ProjectA:MFIS ProjectF'!R103) -> 0 | S103: ='MFIS ProjectA'!S103 -> 2014 | T103: =SUM('MFIS ProjectA:MFIS ProjectF'!T103) -> 0 | U103: =SUM('MFIS ProjectA:MFIS ProjectF'!U103) -> 0 | V103: ='MFIS ProjectA'!V103 -> 2013 | W103: =SUM('MFIS ProjectA:MFIS ProjectF'!W103) -> 0 | X103: =SUM('MFIS ProjectA:MFIS ProjectF'!X103) -> 0 | Y103: ='MFIS ProjectA'!Y103 -> 2012 | Z103: =SUM('MFIS ProjectA:MFIS ProjectF'!Z103) -> 0 | AA103: =SUM('MFIS ProjectA:MFIS ProjectF'!AA103) -> 0
P104: Doors - Interior | Q104: ='MFIS ProjectA'!Q104 -> 2015 | R104: =SUM('MFIS ProjectA:MFIS ProjectF'!R104) -> 0 | S104: ='MFIS ProjectA'!S104 -> 2014 | T104: =SUM('MFIS ProjectA:MFIS ProjectF'!T104) -> 0 | U104: =SUM('MFIS ProjectA:MFIS ProjectF'!U104) -> 0 | V104: ='MFIS ProjectA'!V104 -> 2013 | W104: =SUM('MFIS ProjectA:MFIS ProjectF'!W104) -> 0 | X104: =SUM('MFIS ProjectA:MFIS ProjectF'!X104) -> 0 | Y104: ='MFIS ProjectA'!Y104 -> 2012 | Z104: =SUM('MFIS ProjectA:MFIS ProjectF'!Z104) -> 0 | AA104: =SUM('MFIS ProjectA:MFIS ProjectF'!AA104) -> 0
P105: Doors - Other | Q105: ='MFIS ProjectA'!Q105 -> 2015 | R105: =SUM('MFIS ProjectA:MFIS ProjectF'!R105) -> 0 | S105: ='MFIS ProjectA'!S105 -> 2014 | T105: =SUM('MFIS ProjectA:MFIS ProjectF'!T105) -> 0 | U105: =SUM('MFIS ProjectA:MFIS ProjectF'!U105) -> 0 | V105: ='MFIS ProjectA'!V105 -> 2013 | W105: =SUM('MFIS ProjectA:MFIS ProjectF'!W105) -> 0 | X105: =SUM('MFIS ProjectA:MFIS ProjectF'!X105) -> 0 | Y105: ='MFIS ProjectA'!Y105 -> 2012 | Z105: =SUM('MFIS ProjectA:MFIS ProjectF'!Z105) -> 0 | AA105: =SUM('MFIS ProjectA:MFIS ProjectF'!AA105) -> 0
P106: Window Coverings - Detail | Q106: ='MFIS ProjectA'!Q106 -> 2015 | R106: =SUM('MFIS ProjectA:MFIS ProjectF'!R106) -> 0 | S106: ='MFIS ProjectA'!S106 -> 2014 | T106: =SUM('MFIS ProjectA:MFIS ProjectF'!T106) -> 0 | U106: =SUM('MFIS ProjectA:MFIS ProjectF'!U106) -> 0 | V106: ='MFIS ProjectA'!V106 -> 2013 | W106: =SUM('MFIS ProjectA:MFIS ProjectF'!W106) -> 0 | X106: =SUM('MFIS ProjectA:MFIS ProjectF'!X106) -> 0 | Y106: ='MFIS ProjectA'!Y106 -> 2012 | Z106: =SUM('MFIS ProjectA:MFIS ProjectF'!Z106) -> 0 | AA106: =SUM('MFIS ProjectA:MFIS ProjectF'!AA106) -> 0
P107: Window Coverings - Other | Q107: ='MFIS ProjectA'!Q107 -> 2015 | R107: =SUM('MFIS ProjectA:MFIS ProjectF'!R107) -> 0 | S107: ='MFIS ProjectA'!S107 -> 2014 | T107: =SUM('MFIS ProjectA:MFIS ProjectF'!T107) -> 0 | U107: =SUM('MFIS ProjectA:MFIS ProjectF'!U107) -> 0 | V107: ='MFIS ProjectA'!V107 -> 2013 | W107: =SUM('MFIS ProjectA:MFIS ProjectF'!W107) -> 0 | X107: =SUM('MFIS ProjectA:MFIS ProjectF'!X107) -> 0 | Y107: ='MFIS ProjectA'!Y107 -> 2012 | Z107: =SUM('MFIS ProjectA:MFIS ProjectF'!Z107) -> 0 | AA107: =SUM('MFIS ProjectA:MFIS ProjectF'!AA107) -> 0
P108: Heat @ Air - Heating | Q108: ='MFIS ProjectA'!Q108 -> 2015 | R108: =SUM('MFIS ProjectA:MFIS ProjectF'!R108) -> 0 | S108: ='MFIS ProjectA'!S108 -> 2014 | T108: =SUM('MFIS ProjectA:MFIS ProjectF'!T108) -> 0 | U108: =SUM('MFIS ProjectA:MFIS ProjectF'!U108) -> 0 | V108: ='MFIS ProjectA'!V108 -> 2013 | W108: =SUM('MFIS ProjectA:MFIS ProjectF'!W108) -> 0 | X108: =SUM('MFIS ProjectA:MFIS ProjectF'!X108) -> 0 | Y108: ='MFIS ProjectA'!Y108 -> 2012 | Z108: =SUM('MFIS ProjectA:MFIS ProjectF'!Z108) -> 0 | AA108: =SUM('MFIS ProjectA:MFIS ProjectF'!AA108) -> 0
P109: Heat @ Air - Air Conditioning | Q109: ='MFIS ProjectA'!Q109 -> 2015 | R109: =SUM('MFIS ProjectA:MFIS ProjectF'!R109) -> 16800 | S109: ='MFIS ProjectA'!S109 -> 2014 | T109: =SUM('MFIS ProjectA:MFIS ProjectF'!T109) -> 7200 | U109: =SUM('MFIS ProjectA:MFIS ProjectF'!U109) -> 0 | V109: ='MFIS ProjectA'!V109 -> 2013 | W109: =SUM('MFIS ProjectA:MFIS ProjectF'!W109) -> 7200 | X109: =SUM('MFIS ProjectA:MFIS ProjectF'!X109) -> 0 | Y109: ='MFIS ProjectA'!Y109 -> 2012 | Z109: =SUM('MFIS ProjectA:MFIS ProjectF'!Z109) -> 7200 | AA109: =SUM('MFIS ProjectA:MFIS ProjectF'!AA109) -> 0
P110: Heat @ Air - Other | Q110: ='MFIS ProjectA'!Q110 -> 2015 | R110: =SUM('MFIS ProjectA:MFIS ProjectF'!R110) -> 0 | S110: ='MFIS ProjectA'!S110 -> 2014 | T110: =SUM('MFIS ProjectA:MFIS ProjectF'!T110) -> 0 | U110: =SUM('MFIS ProjectA:MFIS ProjectF'!U110) -> 0 | V110: ='MFIS ProjectA'!V110 -> 2013 | W110: =SUM('MFIS ProjectA:MFIS ProjectF'!W110) -> 0 | X110: =SUM('MFIS ProjectA:MFIS ProjectF'!X110) -> 0 | Y110: ='MFIS ProjectA'!Y110 -> 2012 | Z110: =SUM('MFIS ProjectA:MFIS ProjectF'!Z110) -> 0 | AA110: =SUM('MFIS ProjectA:MFIS ProjectF'!AA110) -> 0
P111: Plumbing - Water Heater | Q111: ='MFIS ProjectA'!Q111 -> 2015 | R111: =SUM('MFIS ProjectA:MFIS ProjectF'!R111) -> 1200 | S111: ='MFIS ProjectA'!S111 -> 2014 | T111: =SUM('MFIS ProjectA:MFIS ProjectF'!T111) -> 1050 | U111: =SUM('MFIS ProjectA:MFIS ProjectF'!U111) -> 0 | V111: ='MFIS ProjectA'!V111 -> 2013 | W111: =SUM('MFIS ProjectA:MFIS ProjectF'!W111) -> 1050 | X111: =SUM('MFIS ProjectA:MFIS ProjectF'!X111) -> 0 | Y111: ='MFIS ProjectA'!Y111 -> 2012 | Z111: =SUM('MFIS ProjectA:MFIS ProjectF'!Z111) -> 780 | AA111: =SUM('MFIS ProjectA:MFIS ProjectF'!AA111) -> 0
P112: Plumbing - Bath Sinks | Q112: ='MFIS ProjectA'!Q112 -> 2015 | R112: =SUM('MFIS ProjectA:MFIS ProjectF'!R112) -> 0 | S112: ='MFIS ProjectA'!S112 -> 2014 | T112: =SUM('MFIS ProjectA:MFIS ProjectF'!T112) -> 0 | U112: =SUM('MFIS ProjectA:MFIS ProjectF'!U112) -> 0 | V112: ='MFIS ProjectA'!V112 -> 2013 | W112: =SUM('MFIS ProjectA:MFIS ProjectF'!W112) -> 0 | X112: =SUM('MFIS ProjectA:MFIS ProjectF'!X112) -> 0 | Y112: ='MFIS ProjectA'!Y112 -> 2012 | Z112: =SUM('MFIS ProjectA:MFIS ProjectF'!Z112) -> 0 | AA112: =SUM('MFIS ProjectA:MFIS ProjectF'!AA112) -> 0
P113: Plumbing - Kitchen Sinks | Q113: ='MFIS ProjectA'!Q113 -> 2015 | R113: =SUM('MFIS ProjectA:MFIS ProjectF'!R113) -> 0 | S113: ='MFIS ProjectA'!S113 -> 2014 | T113: =SUM('MFIS ProjectA:MFIS ProjectF'!T113) -> 0 | U113: =SUM('MFIS ProjectA:MFIS ProjectF'!U113) -> 0 | V113: ='MFIS ProjectA'!V113 -> 2013 | W113: =SUM('MFIS ProjectA:MFIS ProjectF'!W113) -> 0 | X113: =SUM('MFIS ProjectA:MFIS ProjectF'!X113) -> 0 | Y113: ='MFIS ProjectA'!Y113 -> 2012 | Z113: =SUM('MFIS ProjectA:MFIS ProjectF'!Z113) -> 0 | AA113: =SUM('MFIS ProjectA:MFIS ProjectF'!AA113) -> 0
P114: Plumbing - Faucets | Q114: ='MFIS ProjectA'!Q114 -> 2015 | R114: =SUM('MFIS ProjectA:MFIS ProjectF'!R114) -> 0 | S114: ='MFIS ProjectA'!S114 -> 2014 | T114: =SUM('MFIS ProjectA:MFIS ProjectF'!T114) -> 0 | U114: =SUM('MFIS ProjectA:MFIS ProjectF'!U114) -> 0 | V114: ='MFIS ProjectA'!V114 -> 2013 | W114: =SUM('MFIS ProjectA:MFIS ProjectF'!W114) -> 0 | X114: =SUM('MFIS ProjectA:MFIS ProjectF'!X114) -> 0 | Y114: ='MFIS ProjectA'!Y114 -> 2012 | Z114: =SUM('MFIS ProjectA:MFIS ProjectF'!Z114) -> 0 | AA114: =SUM('MFIS ProjectA:MFIS ProjectF'!AA114) -> 0
P115: Plumbing - Toilets | Q115: ='MFIS ProjectA'!Q115 -> 2015 | R115: =SUM('MFIS ProjectA:MFIS ProjectF'!R115) -> 0 | S115: ='MFIS ProjectA'!S115 -> 2014 | T115: =SUM('MFIS ProjectA:MFIS ProjectF'!T115) -> 0 | U115: =SUM('MFIS ProjectA:MFIS ProjectF'!U115) -> 0 | V115: ='MFIS ProjectA'!V115 -> 2013 | W115: =SUM('MFIS ProjectA:MFIS ProjectF'!W115) -> 0 | X115: =SUM('MFIS ProjectA:MFIS ProjectF'!X115) -> 0 | Y115: ='MFIS ProjectA'!Y115 -> 2012 | Z115: =SUM('MFIS ProjectA:MFIS ProjectF'!Z115) -> 0 | AA115: =SUM('MFIS ProjectA:MFIS ProjectF'!AA115) -> 0
P116: Plumbing - Other | Q116: ='MFIS ProjectA'!Q116 -> 2015 | R116: =SUM('MFIS ProjectA:MFIS ProjectF'!R116) -> 0 | S116: ='MFIS ProjectA'!S116 -> 2014 | T116: =SUM('MFIS ProjectA:MFIS ProjectF'!T116) -> 0 | U116: =SUM('MFIS ProjectA:MFIS ProjectF'!U116) -> 0 | V116: ='MFIS ProjectA'!V116 -> 2013 | W116: =SUM('MFIS ProjectA:MFIS ProjectF'!W116) -> 0 | X116: =SUM('MFIS ProjectA:MFIS ProjectF'!X116) -> 0 | Y116: ='MFIS ProjectA'!Y116 -> 2012 | Z116: =SUM('MFIS ProjectA:MFIS ProjectF'!Z116) -> 0 | AA116: =SUM('MFIS ProjectA:MFIS ProjectF'!AA116) -> 0
P117: Major Electrical - Detail | Q117: ='MFIS ProjectA'!Q117 -> 2015 | R117: =SUM('MFIS ProjectA:MFIS ProjectF'!R117) -> 0 | S117: ='MFIS ProjectA'!S117 -> 2014 | T117: =SUM('MFIS ProjectA:MFIS ProjectF'!T117) -> 0 | U117: =SUM('MFIS ProjectA:MFIS ProjectF'!U117) -> 0 | V117: ='MFIS ProjectA'!V117 -> 2013 | W117: =SUM('MFIS ProjectA:MFIS ProjectF'!W117) -> 0 | X117: =SUM('MFIS ProjectA:MFIS ProjectF'!X117) -> 0 | Y117: ='MFIS ProjectA'!Y117 -> 2012 | Z117: =SUM('MFIS ProjectA:MFIS ProjectF'!Z117) -> 0 | AA117: =SUM('MFIS ProjectA:MFIS ProjectF'!AA117) -> 0
P118: Major Electrical - Other | Q118: ='MFIS ProjectA'!Q118 -> 2015 | R118: =SUM('MFIS ProjectA:MFIS ProjectF'!R118) -> 0 | S118: ='MFIS ProjectA'!S118 -> 2014 | T118: =SUM('MFIS ProjectA:MFIS ProjectF'!T118) -> 0 | U118: =SUM('MFIS ProjectA:MFIS ProjectF'!U118) -> 0 | V118: ='MFIS ProjectA'!V118 -> 2013 | W118: =SUM('MFIS ProjectA:MFIS ProjectF'!W118) -> 0 | X118: =SUM('MFIS ProjectA:MFIS ProjectF'!X118) -> 0 | Y118: ='MFIS ProjectA'!Y118 -> 2012 | Z118: =SUM('MFIS ProjectA:MFIS ProjectF'!Z118) -> 0 | AA118: =SUM('MFIS ProjectA:MFIS ProjectF'!AA118) -> 0
P119: Structures - Windows | Q119: ='MFIS ProjectA'!Q119 -> 2015 | R119: =SUM('MFIS ProjectA:MFIS ProjectF'!R119) -> 0 | S119: ='MFIS ProjectA'!S119 -> 2014 | T119: =SUM('MFIS ProjectA:MFIS ProjectF'!T119) -> 0 | U119: =SUM('MFIS ProjectA:MFIS ProjectF'!U119) -> 0 | V119: ='MFIS ProjectA'!V119 -> 2013 | W119: =SUM('MFIS ProjectA:MFIS ProjectF'!W119) -> 2000 | X119: =SUM('MFIS ProjectA:MFIS ProjectF'!X119) -> 0 | Y119: ='MFIS ProjectA'!Y119 -> 2012 | Z119: =SUM('MFIS ProjectA:MFIS ProjectF'!Z119) -> 800 | AA119: =SUM('MFIS ProjectA:MFIS ProjectF'!AA119) -> 0
P120: Structures - Screens | Q120: ='MFIS ProjectA'!Q120 -> 2015 | R120: =SUM('MFIS ProjectA:MFIS ProjectF'!R120) -> 0 | S120: ='MFIS ProjectA'!S120 -> 2014 | T120: =SUM('MFIS ProjectA:MFIS ProjectF'!T120) -> 0 | U120: =SUM('MFIS ProjectA:MFIS ProjectF'!U120) -> 0 | V120: ='MFIS ProjectA'!V120 -> 2013 | W120: =SUM('MFIS ProjectA:MFIS ProjectF'!W120) -> 0 | X120: =SUM('MFIS ProjectA:MFIS ProjectF'!X120) -> 0 | Y120: ='MFIS ProjectA'!Y120 -> 2012 | Z120: =SUM('MFIS ProjectA:MFIS ProjectF'!Z120) -> 0 | AA120: =SUM('MFIS ProjectA:MFIS ProjectF'!AA120) -> 0
P121: Structures - Walls | Q121: ='MFIS ProjectA'!Q121 -> 2015 | R121: =SUM('MFIS ProjectA:MFIS ProjectF'!R121) -> 0 | S121: ='MFIS ProjectA'!S121 -> 2014 | T121: =SUM('MFIS ProjectA:MFIS ProjectF'!T121) -> 0 | U121: =SUM('MFIS ProjectA:MFIS ProjectF'!U121) -> 0 | V121: ='MFIS ProjectA'!V121 -> 2013 | W121: =SUM('MFIS ProjectA:MFIS ProjectF'!W121) -> 0 | X121: =SUM('MFIS ProjectA:MFIS ProjectF'!X121) -> 0 | Y121: ='MFIS ProjectA'!Y121 -> 2012 | Z121: =SUM('MFIS ProjectA:MFIS ProjectF'!Z121) -> 0 | AA121: =SUM('MFIS ProjectA:MFIS ProjectF'!AA121) -> 0
P122: Structures - Roofing | Q122: ='MFIS ProjectA'!Q122 -> 2015 | R122: =SUM('MFIS ProjectA:MFIS ProjectF'!R122) -> 0 | S122: ='MFIS ProjectA'!S122 -> 2014 | T122: =SUM('MFIS ProjectA:MFIS ProjectF'!T122) -> 0 | U122: =SUM('MFIS ProjectA:MFIS ProjectF'!U122) -> 0 | V122: ='MFIS ProjectA'!V122 -> 2013 | W122: =SUM('MFIS ProjectA:MFIS ProjectF'!W122) -> 0 | X122: =SUM('MFIS ProjectA:MFIS ProjectF'!X122) -> 0 | Y122: ='MFIS ProjectA'!Y122 -> 2012 | Z122: =SUM('MFIS ProjectA:MFIS ProjectF'!Z122) -> 0 | AA122: =SUM('MFIS ProjectA:MFIS ProjectF'!AA122) -> 0
P123: Structures - Siding | Q123: ='MFIS ProjectA'!Q123 -> 2015 | R123: =SUM('MFIS ProjectA:MFIS ProjectF'!R123) -> 0 | S123: ='MFIS ProjectA'!S123 -> 2014 | T123: =SUM('MFIS ProjectA:MFIS ProjectF'!T123) -> 0 | U123: =SUM('MFIS ProjectA:MFIS ProjectF'!U123) -> 0 | V123: ='MFIS ProjectA'!V123 -> 2013 | W123: =SUM('MFIS ProjectA:MFIS ProjectF'!W123) -> 0 | X123: =SUM('MFIS ProjectA:MFIS ProjectF'!X123) -> 0 | Y123: ='MFIS ProjectA'!Y123 -> 2012 | Z123: =SUM('MFIS ProjectA:MFIS ProjectF'!Z123) -> 0 | AA123: =SUM('MFIS ProjectA:MFIS ProjectF'!AA123) -> 0
P124: Structures - Exterior Painting | Q124: ='MFIS ProjectA'!Q124 -> 2015 | R124: =SUM('MFIS ProjectA:MFIS ProjectF'!R124) -> 0 | S124: ='MFIS ProjectA'!S124 -> 2014 | T124: =SUM('MFIS ProjectA:MFIS ProjectF'!T124) -> 0 | U124: =SUM('MFIS ProjectA:MFIS ProjectF'!U124) -> 0 | V124: ='MFIS ProjectA'!V124 -> 2013 | W124: =SUM('MFIS ProjectA:MFIS ProjectF'!W124) -> 8000 | X124: =SUM('MFIS ProjectA:MFIS ProjectF'!X124) -> 0 | Y124: ='MFIS ProjectA'!Y124 -> 2012 | Z124: =SUM('MFIS ProjectA:MFIS ProjectF'!Z124) -> 0 | AA124: =SUM('MFIS ProjectA:MFIS ProjectF'!AA124) -> 0
P125: Structures - Other | Q125: ='MFIS ProjectA'!Q125 -> 2015 | R125: =SUM('MFIS ProjectA:MFIS ProjectF'!R125) -> 0 | S125: ='MFIS ProjectA'!S125 -> 2014 | T125: =SUM('MFIS ProjectA:MFIS ProjectF'!T125) -> 0 | U125: =SUM('MFIS ProjectA:MFIS ProjectF'!U125) -> 0 | V125: ='MFIS ProjectA'!V125 -> 2013 | W125: =SUM('MFIS ProjectA:MFIS ProjectF'!W125) -> 0 | X125: =SUM('MFIS ProjectA:MFIS ProjectF'!X125) -> 0 | Y125: ='MFIS ProjectA'!Y125 -> 2012 | Z125: =SUM('MFIS ProjectA:MFIS ProjectF'!Z125) -> 0 | AA125: =SUM('MFIS ProjectA:MFIS ProjectF'!AA125) -> 0
P126: Paving - Asphalt | Q126: ='MFIS ProjectA'!Q126 -> 2015 | R126: =SUM('MFIS ProjectA:MFIS ProjectF'!R126) -> 0 | S126: ='MFIS ProjectA'!S126 -> 2014 | T126: =SUM('MFIS ProjectA:MFIS ProjectF'!T126) -> 15000 | U126: =SUM('MFIS ProjectA:MFIS ProjectF'!U126) -> 0 | V126: ='MFIS ProjectA'!V126 -> 2013 | W126: =SUM('MFIS ProjectA:MFIS ProjectF'!W126) -> 0 | X126: =SUM('MFIS ProjectA:MFIS ProjectF'!X126) -> 0 | Y126: ='MFIS ProjectA'!Y126 -> 2012 | Z126: =SUM('MFIS ProjectA:MFIS ProjectF'!Z126) -> 0 | AA126: =SUM('MFIS ProjectA:MFIS ProjectF'!AA126) -> 0
P127: Paving - Concrete | Q127: ='MFIS ProjectA'!Q127 -> 2015 | R127: =SUM('MFIS ProjectA:MFIS ProjectF'!R127) -> 0 | S127: ='MFIS ProjectA'!S127 -> 2014 | T127: =SUM('MFIS ProjectA:MFIS ProjectF'!T127) -> 0 | U127: =SUM('MFIS ProjectA:MFIS ProjectF'!U127) -> 0 | V127: ='MFIS ProjectA'!V127 -> 2013 | W127: =SUM('MFIS ProjectA:MFIS ProjectF'!W127) -> 0 | X127: =SUM('MFIS ProjectA:MFIS ProjectF'!X127) -> 0 | Y127: ='MFIS ProjectA'!Y127 -> 2012 | Z127: =SUM('MFIS ProjectA:MFIS ProjectF'!Z127) -> 0 | AA127: =SUM('MFIS ProjectA:MFIS ProjectF'!AA127) -> 0
P128: Paving - Seal and Stripe | Q128: ='MFIS ProjectA'!Q128 -> 2015 | R128: =SUM('MFIS ProjectA:MFIS ProjectF'!R128) -> 0 | S128: ='MFIS ProjectA'!S128 -> 2014 | T128: =SUM('MFIS ProjectA:MFIS ProjectF'!T128) -> 0 | U128: =SUM('MFIS ProjectA:MFIS ProjectF'!U128) -> 0 | V128: ='MFIS ProjectA'!V128 -> 2013 | W128: =SUM('MFIS ProjectA:MFIS ProjectF'!W128) -> 0 | X128: =SUM('MFIS ProjectA:MFIS ProjectF'!X128) -> 0 | Y128: ='MFIS ProjectA'!Y128 -> 2012 | Z128: =SUM('MFIS ProjectA:MFIS ProjectF'!Z128) -> 0 | AA128: =SUM('MFIS ProjectA:MFIS ProjectF'!AA128) -> 0
P129: Paving - Other | Q129: ='MFIS ProjectA'!Q129 -> 2015 | R129: =SUM('MFIS ProjectA:MFIS ProjectF'!R129) -> 0 | S129: ='MFIS ProjectA'!S129 -> 2014 | T129: =SUM('MFIS ProjectA:MFIS ProjectF'!T129) -> 0 | U129: =SUM('MFIS ProjectA:MFIS ProjectF'!U129) -> 0 | V129: ='MFIS ProjectA'!V129 -> 2013 | W129: =SUM('MFIS ProjectA:MFIS ProjectF'!W129) -> 0 | X129: =SUM('MFIS ProjectA:MFIS ProjectF'!X129) -> 0 | Y129: ='MFIS ProjectA'!Y129 -> 2012 | Z129: =SUM('MFIS ProjectA:MFIS ProjectF'!Z129) -> 0 | AA129: =SUM('MFIS ProjectA:MFIS ProjectF'!AA129) -> 0
P130: Lndscp@Grnds - Landscaping | Q130: ='MFIS ProjectA'!Q130 -> 2015 | R130: =SUM('MFIS ProjectA:MFIS ProjectF'!R130) -> 0 | S130: ='MFIS ProjectA'!S130 -> 2014 | T130: =SUM('MFIS ProjectA:MFIS ProjectF'!T130) -> 0 | U130: =SUM('MFIS ProjectA:MFIS ProjectF'!U130) -> 0 | V130: ='MFIS ProjectA'!V130 -> 2013 | W130: =SUM('MFIS ProjectA:MFIS ProjectF'!W130) -> 0 | X130: =SUM('MFIS ProjectA:MFIS ProjectF'!X130) -> 0 | Y130: ='MFIS ProjectA'!Y130 -> 2012 | Z130: =SUM('MFIS ProjectA:MFIS ProjectF'!Z130) -> 3000 | AA130: =SUM('MFIS ProjectA:MFIS ProjectF'!AA130) -> 0
P131: Lndscp@Grnds - Lawn Equipment | Q131: ='MFIS ProjectA'!Q131 -> 2015 | R131: =SUM('MFIS ProjectA:MFIS ProjectF'!R131) -> 0 | S131: ='MFIS ProjectA'!S131 -> 2014 | T131: =SUM('MFIS ProjectA:MFIS ProjectF'!T131) -> 0 | U131: =SUM('MFIS ProjectA:MFIS ProjectF'!U131) -> 0 | V131: ='MFIS ProjectA'!V131 -> 2013 | W131: =SUM('MFIS ProjectA:MFIS ProjectF'!W131) -> 0 | X131: =SUM('MFIS ProjectA:MFIS ProjectF'!X131) -> 0 | Y131: ='MFIS ProjectA'!Y131 -> 2012 | Z131: =SUM('MFIS ProjectA:MFIS ProjectF'!Z131) -> 0 | AA131: =SUM('MFIS ProjectA:MFIS ProjectF'!AA131) -> 0
P132: Lndscp@Grnds - Fencin | Q132: ='MFIS ProjectA'!Q132 -> 2015 | R132: =SUM('MFIS ProjectA:MFIS ProjectF'!R132) -> 0 | S132: ='MFIS ProjectA'!S132 -> 2014 | T132: =SUM('MFIS ProjectA:MFIS ProjectF'!T132) -> 0 | U132: =SUM('MFIS ProjectA:MFIS ProjectF'!U132) -> 0 | V132: ='MFIS ProjectA'!V132 -> 2013 | W132: =SUM('MFIS ProjectA:MFIS ProjectF'!W132) -> 0 | X132: =SUM('MFIS ProjectA:MFIS ProjectF'!X132) -> 0 | Y132: ='MFIS ProjectA'!Y132 -> 2012 | Z132: =SUM('MFIS ProjectA:MFIS ProjectF'!Z132) -> 0 | AA132: =SUM('MFIS ProjectA:MFIS ProjectF'!AA132) -> 0
P133: Lndscp@Grnds - Recreation Area | Q133: ='MFIS ProjectA'!Q133 -> 2015 | R133: =SUM('MFIS ProjectA:MFIS ProjectF'!R133) -> 0 | S133: ='MFIS ProjectA'!S133 -> 2014 | T133: =SUM('MFIS ProjectA:MFIS ProjectF'!T133) -> 0 | U133: =SUM('MFIS ProjectA:MFIS ProjectF'!U133) -> 0 | V133: ='MFIS ProjectA'!V133 -> 2013 | W133: =SUM('MFIS ProjectA:MFIS ProjectF'!W133) -> 0 | X133: =SUM('MFIS ProjectA:MFIS ProjectF'!X133) -> 0 | Y133: ='MFIS ProjectA'!Y133 -> 2012 | Z133: =SUM('MFIS ProjectA:MFIS ProjectF'!Z133) -> 0 | AA133: =SUM('MFIS ProjectA:MFIS ProjectF'!AA133) -> 0
P134: Lndscp@Grnds - Signs | Q134: ='MFIS ProjectA'!Q134 -> 2015 | R134: =SUM('MFIS ProjectA:MFIS ProjectF'!R134) -> 0 | S134: ='MFIS ProjectA'!S134 -> 2014 | T134: =SUM('MFIS ProjectA:MFIS ProjectF'!T134) -> 0 | U134: =SUM('MFIS ProjectA:MFIS ProjectF'!U134) -> 0 | V134: ='MFIS ProjectA'!V134 -> 2013 | W134: =SUM('MFIS ProjectA:MFIS ProjectF'!W134) -> 0 | X134: =SUM('MFIS ProjectA:MFIS ProjectF'!X134) -> 0 | Y134: ='MFIS ProjectA'!Y134 -> 2012 | Z134: =SUM('MFIS ProjectA:MFIS ProjectF'!Z134) -> 0 | AA134: =SUM('MFIS ProjectA:MFIS ProjectF'!AA134) -> 0
P135: Lndscp@Grnds - Other | Q135: ='MFIS ProjectA'!Q135 -> 2015 | R135: =SUM('MFIS ProjectA:MFIS ProjectF'!R135) -> 0 | S135: ='MFIS ProjectA'!S135 -> 2014 | T135: =SUM('MFIS ProjectA:MFIS ProjectF'!T135) -> 0 | U135: =SUM('MFIS ProjectA:MFIS ProjectF'!U135) -> 0 | V135: ='MFIS ProjectA'!V135 -> 2013 | W135: =SUM('MFIS ProjectA:MFIS ProjectF'!W135) -> 0 | X135: =SUM('MFIS ProjectA:MFIS ProjectF'!X135) -> 0 | Y135: ='MFIS ProjectA'!Y135 -> 2012 | Z135: =SUM('MFIS ProjectA:MFIS ProjectF'!Z135) -> 0 | AA135: =SUM('MFIS ProjectA:MFIS ProjectF'!AA135) -> 0
P136: Accessibility Features -Detail | Q136: ='MFIS ProjectA'!Q136 -> 2015 | R136: =SUM('MFIS ProjectA:MFIS ProjectF'!R136) -> 0 | S136: ='MFIS ProjectA'!S136 -> 2014 | T136: =SUM('MFIS ProjectA:MFIS ProjectF'!T136) -> 0 | U136: =SUM('MFIS ProjectA:MFIS ProjectF'!U136) -> 0 | V136: ='MFIS ProjectA'!V136 -> 2013 | W136: =SUM('MFIS ProjectA:MFIS ProjectF'!W136) -> 0 | X136: =SUM('MFIS ProjectA:MFIS ProjectF'!X136) -> 0 | Y136: ='MFIS ProjectA'!Y136 -> 2012 | Z136: =SUM('MFIS ProjectA:MFIS ProjectF'!Z136) -> 0 | AA136: =SUM('MFIS ProjectA:MFIS ProjectF'!AA136) -> 0
P137: Accessibility Features -Other | Q137: ='MFIS ProjectA'!Q137 -> 2015 | R137: =SUM('MFIS ProjectA:MFIS ProjectF'!R137) -> 500 | S137: ='MFIS ProjectA'!S137 -> 2014 | T137: =SUM('MFIS ProjectA:MFIS ProjectF'!T137) -> 3000 | U137: =SUM('MFIS ProjectA:MFIS ProjectF'!U137) -> 0 | V137: ='MFIS ProjectA'!V137 -> 2013 | W137: =SUM('MFIS ProjectA:MFIS ProjectF'!W137) -> 0 | X137: =SUM('MFIS ProjectA:MFIS ProjectF'!X137) -> 0 | Y137: ='MFIS ProjectA'!Y137 -> 2012 | Z137: =SUM('MFIS ProjectA:MFIS ProjectF'!Z137) -> 0 | AA137: =SUM('MFIS ProjectA:MFIS ProjectF'!AA137) -> 0
P138: Automation Equip. -Site Mngt. | Q138: ='MFIS ProjectA'!Q138 -> 2015 | R138: =SUM('MFIS ProjectA:MFIS ProjectF'!R138) -> 0 | S138: ='MFIS ProjectA'!S138 -> 2014 | T138: =SUM('MFIS ProjectA:MFIS ProjectF'!T138) -> 0 | U138: =SUM('MFIS ProjectA:MFIS ProjectF'!U138) -> 0 | V138: ='MFIS ProjectA'!V138 -> 2013 | W138: =SUM('MFIS ProjectA:MFIS ProjectF'!W138) -> 0 | X138: =SUM('MFIS ProjectA:MFIS ProjectF'!X138) -> 0 | Y138: ='MFIS ProjectA'!Y138 -> 2012 | Z138: =SUM('MFIS ProjectA:MFIS ProjectF'!Z138) -> 0 | AA138: =SUM('MFIS ProjectA:MFIS ProjectF'!AA138) -> 0
P139: Automation Equip. -Common Area | Q139: ='MFIS ProjectA'!Q139 -> 2015 | R139: =SUM('MFIS ProjectA:MFIS ProjectF'!R139) -> 0 | S139: ='MFIS ProjectA'!S139 -> 2014 | T139: =SUM('MFIS ProjectA:MFIS ProjectF'!T139) -> 0 | U139: =SUM('MFIS ProjectA:MFIS ProjectF'!U139) -> 0 | V139: ='MFIS ProjectA'!V139 -> 2013 | W139: =SUM('MFIS ProjectA:MFIS ProjectF'!W139) -> 0 | X139: =SUM('MFIS ProjectA:MFIS ProjectF'!X139) -> 0 | Y139: ='MFIS ProjectA'!Y139 -> 2012 | Z139: =SUM('MFIS ProjectA:MFIS ProjectF'!Z139) -> 0 | AA139: =SUM('MFIS ProjectA:MFIS ProjectF'!AA139) -> 0
P140: Automation Equip. -Other | Q140: ='MFIS ProjectA'!Q140 -> 2015 | R140: =SUM('MFIS ProjectA:MFIS ProjectF'!R140) -> 0 | S140: ='MFIS ProjectA'!S140 -> 2014 | T140: =SUM('MFIS ProjectA:MFIS ProjectF'!T140) -> 0 | U140: =SUM('MFIS ProjectA:MFIS ProjectF'!U140) -> 0 | V140: ='MFIS ProjectA'!V140 -> 2013 | W140: =SUM('MFIS ProjectA:MFIS ProjectF'!W140) -> 0 | X140: =SUM('MFIS ProjectA:MFIS ProjectF'!X140) -> 0 | Y140: ='MFIS ProjectA'!Y140 -> 2012 | Z140: =SUM('MFIS ProjectA:MFIS ProjectF'!Z140) -> 0 | AA140: =SUM('MFIS ProjectA:MFIS ProjectF'!AA140) -> 0
P141: List: ? | Q141: ='MFIS ProjectA'!Q141 -> 2015 | R141: =SUM('MFIS ProjectA:MFIS ProjectF'!R141) -> 0 | S141: ='MFIS ProjectA'!S141 -> 2014 | T141: =SUM('MFIS ProjectA:MFIS ProjectF'!T141) -> 0 | U141: =SUM('MFIS ProjectA:MFIS ProjectF'!U141) -> 0 | V141: ='MFIS ProjectA'!V141 -> 2013 | W141: =SUM('MFIS ProjectA:MFIS ProjectF'!W141) -> 0 | X141: =SUM('MFIS ProjectA:MFIS ProjectF'!X141) -> 0 | Y141: ='MFIS ProjectA'!Y141 -> 2012 | Z141: =SUM('MFIS ProjectA:MFIS ProjectF'!Z141) -> 2200 | AA141: =SUM('MFIS ProjectA:MFIS ProjectF'!AA141) -> 0
P142: List: ? | Q142: ='MFIS ProjectA'!Q142 -> 2015 | R142: =SUM('MFIS ProjectA:MFIS ProjectF'!R142) -> 0 | S142: ='MFIS ProjectA'!S142 -> 2014 | T142: =SUM('MFIS ProjectA:MFIS ProjectF'!T142) -> 0 | U142: =SUM('MFIS ProjectA:MFIS ProjectF'!U142) -> 0 | V142: ='MFIS ProjectA'!V142 -> 2013 | W142: =SUM('MFIS ProjectA:MFIS ProjectF'!W142) -> 0 | X142: =SUM('MFIS ProjectA:MFIS ProjectF'!X142) -> 0 | Y142: ='MFIS ProjectA'!Y142 -> 2012 | Z142: =SUM('MFIS ProjectA:MFIS ProjectF'!Z142) -> 0 | AA142: =SUM('MFIS ProjectA:MFIS ProjectF'!AA142) -> 0
P143: List: ? | Q143: ='MFIS ProjectA'!Q143 -> 2015 | R143: =SUM('MFIS ProjectA:MFIS ProjectF'!R143) -> 0 | S143: ='MFIS ProjectA'!S143 -> 2014 | T143: =SUM('MFIS ProjectA:MFIS ProjectF'!T143) -> 0 | U143: =SUM('MFIS ProjectA:MFIS ProjectF'!U143) -> 0 | V143: ='MFIS ProjectA'!V143 -> 2013 | W143: =SUM('MFIS ProjectA:MFIS ProjectF'!W143) -> 0 | X143: =SUM('MFIS ProjectA:MFIS ProjectF'!X143) -> 0 | Y143: ='MFIS ProjectA'!Y143 -> 2012 | Z143: =SUM('MFIS ProjectA:MFIS ProjectF'!Z143) -> 0 | AA143: =SUM('MFIS ProjectA:MFIS ProjectF'!AA143) -> 0
P144: Total Capital Expenses | Q144: ='MFIS ProjectA'!Q144 -> 2015 | R144: =SUM('MFIS ProjectA:MFIS ProjectF'!R144) -> 41200 | S144: ='MFIS ProjectA'!S144 -> 2014 | T144: =SUM('MFIS ProjectA:MFIS ProjectF'!T144) -> 58950 | U144: =SUM('MFIS ProjectA:MFIS ProjectF'!U144) -> 0 | V144: ='MFIS ProjectA'!V144 -> 2013 | W144: =SUM('MFIS ProjectA:MFIS ProjectF'!W144) -> 51900 | X144: =SUM('MFIS ProjectA:MFIS ProjectF'!X144) -> 0 | Y144: ='MFIS ProjectA'!Y144 -> 2012 | Z144: =SUM('MFIS ProjectA:MFIS ProjectF'!Z144) -> 32480 | AA144: =SUM('MFIS ProjectA:MFIS ProjectF'!AA144) -> 0
P200: Summary of Annual Capital Needs
P201: Year | Q201: 0 | R201: =Q201+1 -> 1 | S201: 2 | T201: 3 | U201: 4 | V201: 5 | W201: 6 | X201: 7 | Y201: 8 | Z201: 9 | AA201: 10 | AB201: 11 | AC201: 12 | AD201: 13 | AE201: =#REF!+1 -> 
P202: Item | AK202: Total
P203: Site | Q203: =SUM('MFIS ProjectA:MFIS ProjectF'!Q203) -> 0 | R203: =SUM('MFIS ProjectA:MFIS ProjectF'!R203) -> 0 | S203: =SUM('MFIS ProjectA:MFIS ProjectF'!S203) -> 0 | T203: =SUM('MFIS ProjectA:MFIS ProjectF'!T203) -> 0 | U203: =SUM('MFIS ProjectA:MFIS ProjectF'!U203) -> 0 | V203: =SUM('MFIS ProjectA:MFIS ProjectF'!V203) -> 0 | W203: =SUM('MFIS ProjectA:MFIS ProjectF'!W203) -> 0 | X203: =SUM('MFIS ProjectA:MFIS ProjectF'!X203) -> 0 | Y203: =SUM('MFIS ProjectA:MFIS ProjectF'!Y203) -> 0 | Z203: =SUM('MFIS ProjectA:MFIS ProjectF'!Z203) -> 0 | AA203: =SUM('MFIS ProjectA:MFIS ProjectF'!AA203) -> 0 | AB203: =SUM('MFIS ProjectA:MFIS ProjectF'!AB203) -> 0 | AC203: =SUM('MFIS ProjectA:MFIS ProjectF'!AC203) -> 0 | AD203: =SUM('MFIS ProjectA:MFIS ProjectF'!AD203) -> 0 | AE203: =SUM('MFIS ProjectA:MFIS ProjectF'!AF203) -> 0 | AF203: =SUM('MFIS ProjectA:MFIS ProjectF'!AG203) -> 0 | AG203: =SUM('MFIS ProjectA:MFIS ProjectF'!AH203) -> 0 | AH203: =SUM('MFIS ProjectA:MFIS ProjectF'!AI203) -> 0 | AI203: =SUM('MFIS ProjectA:MFIS ProjectF'!AJ203) -> 0 | AJ203: =SUM('MFIS ProjectA:MFIS ProjectF'!AK203) -> 0
P204: Architecture | Q204: =SUM('MFIS ProjectA:MFIS ProjectF'!Q204) -> 0 | R204: =SUM('MFIS ProjectA:MFIS ProjectF'!R204) -> 0 | S204: =SUM('MFIS ProjectA:MFIS ProjectF'!S204) -> 0 | T204: =SUM('MFIS ProjectA:MFIS ProjectF'!T204) -> 0 | U204: =SUM('MFIS ProjectA:MFIS ProjectF'!U204) -> 0 | V204: =SUM('MFIS ProjectA:MFIS ProjectF'!V204) -> 0 | W204: =SUM('MFIS ProjectA:MFIS ProjectF'!W204) -> 0 | X204: =SUM('MFIS ProjectA:MFIS ProjectF'!X204) -> 0 | Y204: =SUM('MFIS ProjectA:MFIS ProjectF'!Y204) -> 0 | Z204: =SUM('MFIS ProjectA:MFIS ProjectF'!Z204) -> 0 | AA204: =SUM('MFIS ProjectA:MFIS ProjectF'!AA204) -> 0 | AB204: =SUM('MFIS ProjectA:MFIS ProjectF'!AB204) -> 0 | AC204: =SUM('MFIS ProjectA:MFIS ProjectF'!AC204) -> 0 | AD204: =SUM('MFIS ProjectA:MFIS ProjectF'!AD204) -> 0 | AE204: =SUM('MFIS ProjectA:MFIS ProjectF'!AF204) -> 0 | AF204: =SUM('MFIS ProjectA:MFIS ProjectF'!AG204) -> 0 | AG204: =SUM('MFIS ProjectA:MFIS ProjectF'!AH204) -> 0 | AH204: =SUM('MFIS ProjectA:MFIS ProjectF'!AI204) -> 0 | AI204: =SUM('MFIS ProjectA:MFIS ProjectF'!AJ204) -> 0 | AJ204: =SUM('MFIS ProjectA:MFIS ProjectF'!AK204) -> 0
P205: Mech & Electric | Q205: =SUM('MFIS ProjectA:MFIS ProjectF'!Q205) -> 0 | R205: =SUM('MFIS ProjectA:MFIS ProjectF'!R205) -> 0 | S205: =SUM('MFIS ProjectA:MFIS ProjectF'!S205) -> 0 | T205: =SUM('MFIS ProjectA:MFIS ProjectF'!T205) -> 0 | U205: =SUM('MFIS ProjectA:MFIS ProjectF'!U205) -> 0 | V205: =SUM('MFIS ProjectA:MFIS ProjectF'!V205) -> 0 | W205: =SUM('MFIS ProjectA:MFIS ProjectF'!W205) -> 0 | X205: =SUM('MFIS ProjectA:MFIS ProjectF'!X205) -> 0 | Y205: =SUM('MFIS ProjectA:MFIS ProjectF'!Y205) -> 0 | Z205: =SUM('MFIS ProjectA:MFIS ProjectF'!Z205) -> 0 | AA205: =SUM('MFIS ProjectA:MFIS ProjectF'!AA205) -> 0 | AB205: =SUM('MFIS ProjectA:MFIS ProjectF'!AB205) -> 0 | AC205: =SUM('MFIS ProjectA:MFIS ProjectF'!AC205) -> 0 | AD205: =SUM('MFIS ProjectA:MFIS ProjectF'!AD205) -> 0 | AE205: =SUM('MFIS ProjectA:MFIS ProjectF'!AF205) -> 0 | AF205: =SUM('MFIS ProjectA:MFIS ProjectF'!AG205) -> 0 | AG205: =SUM('MFIS ProjectA:MFIS ProjectF'!AH205) -> 0 | AH205: =SUM('MFIS ProjectA:MFIS ProjectF'!AI205) -> 0 | AI205: =SUM('MFIS ProjectA:MFIS ProjectF'!AJ205) -> 0 | AJ205: =SUM('MFIS ProjectA:MFIS ProjectF'!AK205) -> 0
P206: Dwelling Units | Q206: =SUM('MFIS ProjectA:MFIS ProjectF'!Q206) -> 0 | R206: =SUM('MFIS ProjectA:MFIS ProjectF'!R206) -> 0 | S206: =SUM('MFIS ProjectA:MFIS ProjectF'!S206) -> 0 | T206: =SUM('MFIS ProjectA:MFIS ProjectF'!T206) -> 0 | U206: =SUM('MFIS ProjectA:MFIS ProjectF'!U206) -> 0 | V206: =SUM('MFIS ProjectA:MFIS ProjectF'!V206) -> 0 | W206: =SUM('MFIS ProjectA:MFIS ProjectF'!W206) -> 0 | X206: =SUM('MFIS ProjectA:MFIS ProjectF'!X206) -> 0 | Y206: =SUM('MFIS ProjectA:MFIS ProjectF'!Y206) -> 0 | Z206: =SUM('MFIS ProjectA:MFIS ProjectF'!Z206) -> 0 | AA206: =SUM('MFIS ProjectA:MFIS ProjectF'!AA206) -> 0 | AB206: =SUM('MFIS ProjectA:MFIS ProjectF'!AB206) -> 0 | AC206: =SUM('MFIS ProjectA:MFIS ProjectF'!AC206) -> 0 | AD206: =SUM('MFIS ProjectA:MFIS ProjectF'!AD206) -> 0 | AE206: =SUM('MFIS ProjectA:MFIS ProjectF'!AF206) -> 0 | AF206: =SUM('MFIS ProjectA:MFIS ProjectF'!AG206) -> 0 | AG206: =SUM('MFIS ProjectA:MFIS ProjectF'!AH206) -> 0 | AH206: =SUM('MFIS ProjectA:MFIS ProjectF'!AI206) -> 0 | AI206: =SUM('MFIS ProjectA:MFIS ProjectF'!AJ206) -> 0 | AJ206: =SUM('MFIS ProjectA:MFIS ProjectF'!AK206) -> 0
P207: Uninflated Totals | Q207: =SUM('MFIS ProjectA:MFIS ProjectF'!Q207) -> 0 | R207: =SUM('MFIS ProjectA:MFIS ProjectF'!R207) -> 0 | S207: =SUM('MFIS ProjectA:MFIS ProjectF'!S207) -> 0 | T207: =SUM('MFIS ProjectA:MFIS ProjectF'!T207) -> 0 | U207: =SUM('MFIS ProjectA:MFIS ProjectF'!U207) -> 0 | V207: =SUM('MFIS ProjectA:MFIS ProjectF'!V207) -> 0 | W207: =SUM('MFIS ProjectA:MFIS ProjectF'!W207) -> 0 | X207: =SUM('MFIS ProjectA:MFIS ProjectF'!X207) -> 0 | Y207: =SUM('MFIS ProjectA:MFIS ProjectF'!Y207) -> 0 | Z207: =SUM('MFIS ProjectA:MFIS ProjectF'!Z207) -> 0 | AA207: =SUM('MFIS ProjectA:MFIS ProjectF'!AA207) -> 0 | AB207: =SUM('MFIS ProjectA:MFIS ProjectF'!AB207) -> 0 | AC207: =SUM('MFIS ProjectA:MFIS ProjectF'!AC207) -> 0 | AD207: =SUM('MFIS ProjectA:MFIS ProjectF'!AD207) -> 0 | AE207: =SUM('MFIS ProjectA:MFIS ProjectF'!AF207) -> 0 | AF207: =SUM('MFIS ProjectA:MFIS ProjectF'!AG207) -> 0 | AG207: =SUM('MFIS ProjectA:MFIS ProjectF'!AH207) -> 0 | AH207: =SUM('MFIS ProjectA:MFIS ProjectF'!AI207) -> 0 | AI207: =SUM('MFIS ProjectA:MFIS ProjectF'!AJ207) -> 0 | AJ207: =SUM('MFIS ProjectA:MFIS ProjectF'!AK207) -> 0
P208: Inflation at 0.00% | Q208: =SUM('MFIS ProjectA:MFIS ProjectF'!Q208) -> 0 | R208: =SUM('MFIS ProjectA:MFIS ProjectF'!R208) -> 0 | S208: =SUM('MFIS ProjectA:MFIS ProjectF'!S208) -> 0 | T208: =SUM('MFIS ProjectA:MFIS ProjectF'!T208) -> 0 | U208: =SUM('MFIS ProjectA:MFIS ProjectF'!U208) -> 0 | V208: =SUM('MFIS ProjectA:MFIS ProjectF'!V208) -> 0 | W208: =SUM('MFIS ProjectA:MFIS ProjectF'!W208) -> 0 | X208: =SUM('MFIS ProjectA:MFIS ProjectF'!X208) -> 0 | Y208: =SUM('MFIS ProjectA:MFIS ProjectF'!Y208) -> 0 | Z208: =SUM('MFIS ProjectA:MFIS ProjectF'!Z208) -> 0 | AA208: =SUM('MFIS ProjectA:MFIS ProjectF'!AA208) -> 0 | AB208: =SUM('MFIS ProjectA:MFIS ProjectF'!AB208) -> 0 | AC208: =SUM('MFIS ProjectA:MFIS ProjectF'!AC208) -> 0 | AD208: =SUM('MFIS ProjectA:MFIS ProjectF'!AD208) -> 0 | AE208: =SUM('MFIS ProjectA:MFIS ProjectF'!AF208) -> 0 | AF208: =SUM('MFIS ProjectA:MFIS ProjectF'!AG208) -> 0 | AG208: =SUM('MFIS ProjectA:MFIS ProjectF'!AH208) -> 0 | AH208: =SUM('MFIS ProjectA:MFIS ProjectF'!AI208) -> 0 | AI208: =SUM('MFIS ProjectA:MFIS ProjectF'!AJ208) -> 0 | AJ208: =SUM('MFIS ProjectA:MFIS ProjectF'!AK208) -> 0
P209: Inflated Totals | Q209: =SUM('MFIS ProjectA:MFIS ProjectF'!Q209) -> 0 | R209: =SUM('MFIS ProjectA:MFIS ProjectF'!R209) -> 0 | S209: =SUM('MFIS ProjectA:MFIS ProjectF'!S209) -> 0 | T209: =SUM('MFIS ProjectA:MFIS ProjectF'!T209) -> 0 | U209: =SUM('MFIS ProjectA:MFIS ProjectF'!U209) -> 0 | V209: =SUM('MFIS ProjectA:MFIS ProjectF'!V209) -> 0 | W209: =SUM('MFIS ProjectA:MFIS ProjectF'!W209) -> 0 | X209: =SUM('MFIS ProjectA:MFIS ProjectF'!X209) -> 0 | Y209: =SUM('MFIS ProjectA:MFIS ProjectF'!Y209) -> 0 | Z209: =SUM('MFIS ProjectA:MFIS ProjectF'!Z209) -> 0 | AA209: =SUM('MFIS ProjectA:MFIS ProjectF'!AA209) -> 0 | AB209: =SUM('MFIS ProjectA:MFIS ProjectF'!AB209) -> 0 | AC209: =SUM('MFIS ProjectA:MFIS ProjectF'!AC209) -> 0 | AD209: =SUM('MFIS ProjectA:MFIS ProjectF'!AD209) -> 0 | AE209: =SUM('MFIS ProjectA:MFIS ProjectF'!AF209) -> 0 | AF209: =SUM('MFIS ProjectA:MFIS ProjectF'!AG209) -> 0 | AG209: =SUM('MFIS ProjectA:MFIS ProjectF'!AH209) -> 0 | AH209: =SUM('MFIS ProjectA:MFIS ProjectF'!AI209) -> 0 | AI209: =SUM('MFIS ProjectA:MFIS ProjectF'!AJ209) -> 0 | AJ209: =SUM('MFIS ProjectA:MFIS ProjectF'!AK209) -> 0

Sheet CNAArchive (hidden)
B5: Site - Sum of all CNAs with Changes by Underwriter - Site | AB5: Architectural - Sum of all CNAs with Changes by Underwriter - Architectural | BB5: Mech & Electric - Sum of all CNAs with Changes by Underwriter - Mech & Electric | CB5: Dwelling - Sum of all CNAs with Changes by Underwriter - Dwelling
B6: Year | C6: 0 | D6: 1 | E6: 2 | F6: 3 | G6: 4 | H6: 5 | I6: 6 | J6: 7 | K6: 8 | L6: 9 | M6: 10 | N6: 11 | O6: 12 | P6: 13 | Q6: 14 | R6: 15 | S6: 16 | T6: 17 | U6: 18 | V6: 19 | W6: 20 | AB6: Year | AC6: 0 | AD6: 1 | AE6: 2 | AF6: 3 | AG6: 4 | AH6: 5 | AI6: 6 | AJ6: 7 | AK6: 8 | AL6: 9 | AM6: 10 | AN6: 11 | AO6: 12 | AP6: 13 | AQ6: 14 | AR6: 15 | AS6: 16 | AT6: 17 | AU6: 18 | AV6: 19 | AW6: 20 | BB6: Year | BC6: 0 | BD6: 1 | BE6: 2 | BF6: 3 | BG6: 4 | BH6: 5 | BI6: 6 | BJ6: 7 | BK6: 8 | BL6: 9 | BM6: 10 | BN6: 11 | BO6: 12 | BP6: 13 | BQ6: 14 | BR6: 15 | BS6: 16 | BT6: 17 | BU6: 18 | BV6: 19 | BW6: 20 | CB6: Year | CC6: 0 | CD6: 1 | CE6: 2 | CF6: 3 | CG6: 4 | CH6: 5 | CI6: 6 | CJ6: 7 | CK6: 8 | CL6: 9 | CM6: 10 | CN6: 11 | CO6: 12 | CP6: 13 | CQ6: 14 | CR6: 15 | CS6: 16 | CT6: 17 | CU6: 18 | CV6: 19 | CW6: 20
B7: Item | C7: H & S | D7: 2015 | E7: 2016 | F7: 2017 | G7: 2018 | H7: 2019 | I7: 2020 | J7: 2021 | K7: 2022 | L7: 2023 | M7: 2024 | N7: 2025 | O7: 2026 | P7: 2027 | Q7: 2028 | R7: 2029 | S7: 2030 | T7: 2031 | U7: 2032 | V7: 2033 | W7: 2034 | X7: Total | AB7: Item | AC7: H & S | AD7: 2015 | AE7: 2016 | AF7: 2017 | AG7: 2018 | AH7: 2019 | AI7: 2020 | AJ7: 2021 | AK7: 2022 | AL7: 2023 | AM7: 2024 | AN7: 2025 | AO7: 2026 | AP7: 2027 | AQ7: 2028 | AR7: 2029 | AS7: 2030 | AT7: 2031 | AU7: 2032 | AV7: 2033 | AW7: 2034 | AX7: 0 | BB7: Item | BC7: H & S | BD7: 2015 | BE7: 2016 | BF7: 2017 | BG7: 2018 | BH7: 2019 | BI7: 2020 | BJ7: 2021 | BK7: 2022 | BL7: 2023 | BM7: 2024 | BN7: 2025 | BO7: 2026 | BP7: 2027 | BQ7: 2028 | BR7: 2029 | BS7: 2030 | BT7: 2031 | BU7: 2032 | BV7: 2033 | BW7: 2034 | BX7: 0 | CB7: Item | CC7: H & S | CD7: 2013 | CE7: 2014 | CF7: 2015 | CG7: 2016 | CH7: 2017 | CI7: 2018 | CJ7: 2019 | CK7: 2020 | CL7: 2021 | CM7: 2022 | CN7: 2023 | CO7: 2024 | CP7: 2025 | CQ7: 2026 | CR7: 2027 | CS7: 2028 | CT7: 2029 | CU7: 2030 | CV7: 2031 | CW7: 2032 | CX7: Total
B8: Uninflated Totals | C8: 0 | D8: 0 | E8: 0 | F8: 0 | G8: 0 | H8: 0 | I8: 0 | J8: 3750 | K8: 0 | L8: 0 | M8: 0 | N8: 6000 | O8: 2000 | P8: 0 | Q8: 3750 | R8: 0 | S8: 0 | T8: 0 | U8: 0 | V8: 0 | W8: 5000 | X8: 20500 | AB8: Uninflated Totals | AC8: 0 | AD8: 0 | AE8: 0 | AF8: 0 | AG8: 0 | AH8: 0 | AI8: 0 | AJ8: 0 | AK8: 0 | AL8: 0 | AM8: 0 | AN8: 0 | AO8: 0 | AP8: 0 | AQ8: 0 | AR8: 16000 | AS8: 0 | AT8: 0 | AU8: 0 | AV8: 0 | AW8: 0 | AX8: 16000 | BB8: Uninflated Totals | BC8: 1 | BD8: 1 | BE8: 1.03 | BF8: 1.06 | BG8: 1.09 | BH8: 1.13 | BI8: 1.16 | BJ8: 1.19 | BK8: 1.23 | BL8: 1.27 | BM8: 1.3 | BN8: 1.34 | BO8: 1.38 | BP8: 1.43 | BQ8: 1.47 | BR8: 1.51 | BS8: 1.56 | BT8: 1.6 | BU8: 1.65 | BV8: 1.7 | BW8: 1.75 | BX8: 27.87 | CB8: Uninflated Totals | CC8: 0 | CD8: 0 | CE8: 0 | CF8: 0 | CG8: 0 | CH8: 0 | CI8: 0 | CJ8: 11400 | CK8: 11400 | CL8: 11400 | CM8: 9000 | CN8: 13800 | CO8: 13800 | CP8: 10200 | CQ8: 11400 | CR8: 55873 | CS8: 55873 | CT8: 44473 | CU8: 25200 | CV8: 25200 | CW8: 5400 | CX8: 304419
B9: Inflation Factor (3%) | C9: 1 | D9: 1 | E9: 1.03 | F9: 1.0609 | G9: 1.092727 | H9: 1.12550881 | I9: 1.159274074 | J9: 1.194052297 | K9: 1.229873865 | L9: 1.266770081 | M9: 1.304773184 | N9: 1.343916379 | O9: 1.384233871 | P9: 1.425760887 | Q9: 1.468533713 | R9: 1.512589725 | S9: 1.557967417 | T9: 1.604706439 | U9: 1.652847632 | V9: 1.702433061 | W9: 1.753506053 | AB9: Inflation Factor (3%) | AC9: 1 | AD9: 1 | AE9: 1.03 | AF9: 1.0609 | AG9: 1.092727 | AH9: 1.12550881 | AI9: 1.159274074 | AJ9: 1.194052297 | AK9: 1.229873865 | AL9: 1.266770081 | AM9: 1.304773184 | AN9: 1.343916379 | AO9: 1.384233871 | AP9: 1.425760887 | AQ9: 1.468533713 | AR9: 1.512589725 | AS9: 1.557967417 | AT9: 1.604706439 | AU9: 1.652847632 | AV9: 1.702433061 | AW9: 1.753506053 | BB9: Inflation Factor (3%) | BC9: 1 | BD9: 1 | BE9: 1.03 | BF9: 1.0609 | BG9: 1.092727 | BH9: 1.12550881 | BI9: 1.159274074 | BJ9: 1.194052297 | BK9: 1.229873865 | BL9: 1.266770081 | BM9: 1.304773184 | BN9: 1.343916379 | BO9: 1.384233871 | BP9: 1.425760887 | BQ9: 1.468533713 | BR9: 1.512589725 | BS9: 1.557967417 | BT9: 1.604706439 | BU9: 1.652847632 | BV9: 1.702433061 | BW9: 1.753506053 | CB9: Inflation Factor (3%) | CC9: 1 | CD9: 1 | CE9: 1.03 | CF9: 1.0609 | CG9: 1.092727 | CH9: 1.12550881 | CI9: 1.159274074 | CJ9: 1.194052297 | CK9: 1.229873865 | CL9: 1.266770081 | CM9: 1.304773184 | CN9: 1.343916379 | CO9: 1.384233871 | CP9: 1.425760887 | CQ9: 1.468533713 | CR9: 1.512589725 | CS9: 1.557967417 | CT9: 1.604706439 | CU9: 1.652847632 | CV9: 1.702433061 | CW9: 1.753506053
B10: Inflated Totals | C10: 0 | D10: 0 | E10: 0 | F10: 0 | G10: 0 | H10: 0 | I10: 0 | J10: 4477.7 | K10: 0 | L10: 0 | M10: 0 | N10: 8063.5 | O10: 2768.47 | P10: 0 | Q10: 5507 | R10: 0 | S10: 0 | T10: 0 | U10: 0 | V10: 0 | W10: 8767.53 | X10: 29584.19 | AB10: Inflated Totals | AC10: 0 | AD10: 0 | AE10: 0 | AF10: 0 | AG10: 0 | AH10: 0 | AI10: 0 | AJ10: 0 | AK10: 0 | AL10: 0 | AM10: 0 | AN10: 0 | AO10: 0 | AP10: 0 | AQ10: 0 | AR10: 24201.44 | AS10: 0 | AT10: 0 | AU10: 0 | AV10: 0 | AW10: 0 | AX10: 24201.44 | BB10: Inflated Totals | BC10: 1 | BD10: 1 | BE10: 1.06 | BF10: 1.13 | BG10: 1.19 | BH10: 1.27 | BI10: 1.34 | BJ10: 1.43 | BK10: 1.51 | BL10: 1.6 | BM10: 1.7 | BN10: 1.81 | BO10: 1.92 | BP10: 2.03 | BQ10: 2.16 | BR10: 2.29 | BS10: 2.43 | BT10: 2.58 | BU10: 2.73 | BV10: 2.9 | BW10: 3.07 | BX10: 38.14 | CB10: Inflated Totals | CC10: 0 | CD10: 0 | CE10: 0 | CF10: 0 | CG10: 0 | CH10: 0 | CI10: 0 | CJ10: 13612.2 | CK10: 14020.56 | CL10: 14441.18 | CM10: 11742.96 | CN10: 18546.05 | CO10: 19102.43 | CP10: 14542.76 | CQ10: 16741.28 | CR10: 84512.93 | CS10: 87048.31 | CT10: 71366.11 | CU10: 41651.76 | CV10: 42901.31 | CW10: 9468.93 | CX10: 459698.77
A12: Comments | B12: Item | C12: H & S | D12: 2015 | E12: 2016 | F12: 2017 | G12: 2018 | H12: 2019 | I12: 2020 | J12: 2021 | K12: 2022 | L12: 2023 | M12: 2024 | N12: 2025 | O12: 2026 | P12: 2027 | Q12: 2028 | R12: 2029 | S12: 2030 | T12: 2031 | U12: 2032 | V12: 2033 | W12: 2034 | AA12: Comments | AB12: Item | AC12: H & S | AD12: 2015 | AE12: 2016 | AF12: 2017 | AG12: 2018 | AH12: 2019 | AI12: 2020 | AJ12: 2021 | AK12: 2022 | AL12: 2023 | AM12: 2024 | AN12: 2025 | AO12: 2026 | AP12: 2027 | AQ12: 2028 | AR12: 2029 | AS12: 2030 | AT12: 2031 | AU12: 2032 | AV12: 2033 | AW12: 2034 | BA12: Comments | BB12: Item | BC12: H & S | BD12: 2015 | BE12: 2016 | BF12: 2017 | BG12: 2018 | BH12: 2019 | BI12: 2020 | BJ12: 2021 | BK12: 2022 | BL12: 2023 | BM12: 2024 | BN12: 2025 | BO12: 2026 | BP12: 2027 | BQ12: 2028 | BR12: 2029 | BS12: 2030 | BT12: 2031 | BU12: 2032 | BV12: 2033 | BW12: 2034 | BX12: 0 | CA12: Comments | CB12: Item | CC12: H & S | CD12: 2015 | CE12: 2016 | CF12: 2017 | CG12: 2018 | CH12: 2019 | CI12: 2020 | CJ12: 2021 | CK12: 2022 | CL12: 2023 | CM12: 2024 | CN12: 2025 | CO12: 2026 | CP12: 2027 | CQ12: 2028 | CR12: 2029 | CS12: 2030 | CT12: 2031 | CU12: 2032 | CV12: 2033 | CW12: 2034
A13: No issues with the mail center were noted | B13: Mail Facilities | C13: 0 | E13: 0 | F13: 0 | G13: 0 | H13: 0 | I13: 0 | J13: 0 | K13: 0 | L13: 0 | N13: 0 | O13: 0 | P13: 0 | Q13: 0 | R13: 0 | S13: 0 | T13: 0 | U13: 0 | V13: 0 | W13: 0 | X13: 0 | AA13: Roofing shingles were reportedly replaced 1 year prior to our site visit | AB13: Roof Covering: Asphalt Shingles | AC13: 0 | AD13: 0 | AE13: 0 | AF13: 0 | AG13: 0 | AH13: 0 | AI13: 0 | AJ13: 0 | AK13: 0 | AL13: 0 | AM13: 0 | AN13: 0 | AO13: 0 | AP13: 0 | AQ13: 0 | AR13: 0 | AS13: 0 | AT13: 0 | AU13: 0 | AV13: 0 | AW13: 0 | AX13: 0 | BC13: 0 | BD13: 0 | BE13: 0 | BF13: 0 | BG13: 0 | BH13: 0 | BI13: 0 | BJ13: 0 | BK13: 0 | BL13: 0 | BM13: 0 | BN13: 0 | BO13: 0 | BP13: 0 | BQ13: 0 | BR13: 0 | BS13: 0 | BT13: 0 | BU13: 0 | BV13: 0 | BW13: 0 | BX13: 0 | CA13: Bath accessories replacement is a part of the planned renovation | CB13: Bath Accessories | CC13: 0 | CG13: 0 | CH13: 0 | CI13: 0 | CJ13: 0 | CK13: 0 | CL13: 0 | CN13: 3300 | CO13: 3300 | CP13: 3300 | CQ13: 0 | CR13: 0 | CS13: 0 | CT13: 0 | CU13: 0 | CV13: 0 | CW13: 0 | CX13: 9900
A14: Seal, stripe | B14: Roadways: Asphalt (Sealing) | C14: 0 | E14: 0 | F14: 0 | G14: 0 | H14: 0 | J14: 3750 | K14: 0 | L14: 0 | M14: 0 | O14: 0 | P14: 0 | Q14: 3750 | R14: 0 | U14: 0 | V14: 0 | W14: 0 | X14: 7500 | AA14: Installation of gutters and downspouts are a part of the planned renovation | AB14: Roof Drainage Exterior (gutter and downspout) | AC14: 0 | AE14: 0 | AF14: 0 | AG14: 0 | AH14: 0 | AI14: 0 | AJ14: 0 | AK14: 0 | AL14: 0 | AM14: 0 | AN14: 0 | AO14: 0 | AP14: 0 | AQ14: 0 | AR14: 0 | AS14: 0 | AT14: 0 | AU14: 0 | AV14: 0 | AW14: 0 | AX14: 0 | BC14: 0 | BD14: 0 | BE14: 0 | BF14: 0 | BG14: 0 | BH14: 0 | BI14: 0 | BJ14: 0 | BK14: 0 | BL14: 0 | BM14: 0 | BN14: 0 | BO14: 0 | BP14: 0 | BQ14: 0 | BR14: 0 | BS14: 0 | BT14: 0 | BU14: 0 | BV14: 0 | BW14: 0 | CA14: Replacement of fixtures including tubs are a part of the planned renovation | CB14: Bath Fixtures (sink, toilet, tub) | CC14: 0 | CG14: 0 | CH14: 0 | CI14: 0 | CJ14: 0 | CK14: 0 | CL14: 0 | CM14: 0 | CN14: 0 | CO14: 0 | CP14: 0 | CQ14: 0 | CR14: 0 | CS14: 0 | CT14: 0 | CU14: 0 | CV14: 0 | CW14: 0 | CX14: 0
A15: Overlay is a part of the planned renovation | B15: Parking: Asphalt | C15: 0 | E15: 0 | F15: 0 | G15: 0 | H15: 0 | I15: 0 | J15: 0 | K15: 0 | M15: 0 | N15: 0 | O15: 0 | P15: 0 | Q15: 0 | R15: 0 | S15: 0 | T15: 0 | U15: 0 | V15: 0 | W15: 0 | X15: 0 | AA15: Soffits and fascia replaclement are a part of the planned renovation | AB15: Soffits: Aluminum or Vinyl | AC15: 0 | AE15: 0 | AF15: 0 | AG15: 0 | AH15: 0 | AI15: 0 | AJ15: 0 | AK15: 0 | AM15: 0 | AN15: 0 | AO15: 0 | AP15: 0 | AQ15: 0 | AR15: 0 | AS15: 0 | AT15: 0 | AU15: 0 | AV15: 0 | AW15: 0 | AX15: 0 | BB15: Uninflated Totals | BC15: 0 | BD15: 0 | BE15: 0 | BF15: 0 | BG15: 0 | BH15: 0 | BI15: 0 | BJ15: 0 | BK15: 0 | BL15: 0 | BM15: 0 | BN15: 0 | BO15: 0 | BP15: 0 | BQ15: 0 | BR15: 0 | BS15: 0 | BT15: 0 | BU15: 0 | BV15: 0 | BW15: 0 | CA15: Countertop replacment is a part of the planned renovation - age related replacement will occur during the term | CB15: Countertop and Sink | CC15: 0 | CG15: 0 | CH15: 0 | CI15: 0 | CJ15: 0 | CK15: 0 | CL15: 0 | CM15: 0 | CN15: 0 | CO15: 0 | CP15: 0 | CQ15: 0 | CR15: 0 | CS15: 0 | CT15: 0 | CU15: 0 | CV15: 0 | CW15: 0 | CX15: 0
A16: Handicapped parking was a part of the planned renovation | B16: HC Parking | C16: 0 | E16: 0 | F16: 0 | G16: 0 | H16: 0 | I16: 0 | J16: 0 | K16: 0 | L16: 0 | M16: 0 | N16: 0 | O16: 0 | P16: 0 | Q16: 0 | R16: 0 | S16: 0 | T16: 0 | U16: 0 | V16: 0 | W16: 0 | X16: 0 | AA16: The masonry/brick is in good overall condition and will exceed the EUL - no required repairs noted | AB16: Exterior Walls: Brick or Block | AC16: 0 | AE16: 0 | AF16: 0 | AG16: 0 | AH16: 0 | AI16: 0 | AJ16: 0 | AK16: 0 | AL16: 0 | AM16: 0 | AN16: 0 | AO16: 0 | AP16: 0 | AQ16: 0 | AR16: 0 | AS16: 0 | AT16: 0 | AU16: 0 | AV16: 0 | AW16: 0 | AX16: 0 | BB16: Inflation Factor (3%) | BC16: 1 | BD16: 1 | BE16: 1.03 | BF16: 1.06 | BG16: 1.09 | BH16: 1.13 | BI16: 1.16 | BJ16: 1.19 | BK16: 1.23 | BL16: 1.27 | BM16: 1.3 | BN16: 1.34 | BO16: 1.38 | BP16: 1.43 | BQ16: 1.47 | BR16: 1.51 | BS16: 1.56 | BT16: 1.6 | BU16: 1.65 | BV16: 1.7 | BW16: 1.75 | CA16: Fixture replacement is a part of the planned renovation | CB16: Electric Fixtures | CC16: 0 | CG16: 0 | CH16: 0 | CI16: 0 | CJ16: 0 | CK16: 0 | CL16: 0 | CM16: 0 | CN16: 0 | CO16: 0 | CP16: 0 | CQ16: 0 | CR16: 0 | CS16: 0 | CT16: 0 | CU16: 0 | CV16: 0 | CW16: 0 | CX16: 0
A17: Re-working of ramps is a part of the planned renovation | B17: Curb Ramps | C17: 0 | E17: 0 | F17: 0 | G17: 0 | H17: 0 | I17: 0 | J17: 0 | K17: 0 | L17: 0 | M17: 0 | N17: 0 | O17: 0 | P17: 0 | Q17: 0 | R17: 0 | S17: 0 | T17: 0 | U17: 0 | V17: 0 | W17: 0 | X17: 0 | AA17: Cementious siding was installation is a part of the planned renovation. Painting will be required throughout the term | AB17: Exterior Walls: Cementious Siding | AC17: 0 | AE17: 0 | AF17: 0 | AG17: 0 | AH17: 0 | AI17: 0 | AJ17: 0 | AK17: 0 | AL17: 0 | AN17: 0 | AO17: 0 | AP17: 0 | AQ17: 0 | AR17: 10000 | AT17: 0 | AU17: 0 | AV17: 0 | AW17: 0 | AX17: 10000 | BB17: Inflated Totals | BC17: 0 | BD17: 0 | BE17: 0 | BF17: 0 | BG17: 0 | BH17: 0 | BI17: 0 | BJ17: 0 | BK17: 0 | BL17: 0 | BM17: 0 | BN17: 0 | BO17: 0 | BP17: 0 | BQ17: 0 | BR17: 0 | BS17: 0 | BT17: 0 | BU17: 0 | BV17: 0 | BW17: 0 | CA17: GFI outlets are in place in the kitchen and bath areas | CB17: GFI | CC17: 0 | CE17: 0 | CF17: 0 | CG17: 0 | CH17: 0 | CI17: 0 | CJ17: 0 | CK17: 0 | CL17: 0 | CM17: 0 | CN17: 0 | CO17: 0 | CP17: 0 | CQ17: 0 | CR17: 0 | CS17: 0 | CT17: 0 | CU17: 0 | CV17: 0 | CW17: 0 | CX17: 0
A18: Concrete sidewalks are in good overall condition. Grinding activities have been completed at previous trip hazard areas. We included some costs during the term for future repairs | B18: Pedestrian Paving: Concrete | C18: 0 | E18: 0 | F18: 0 | G18: 0 | H18: 0 | I18: 0 | J18: 0 | K18: 0 | L18: 0 | M18: 0 | N18: 0 | O18: 2000 | P18: 0 | Q18: 0 | R18: 0 | S18: 0 | T18: 0 | U18: 0 | V18: 0 | W18: 0 | X18: 2000 | AA18: Wholesale replacement of all exterior doors including Leasing Office is a part of the planned renovation | AB18: Exterior Unit Doors | AC18: 0 | AG18: 0 | AH18: 0 | AI18: 0 | AJ18: 0 | AK18: 0 | AO18: 0 | AP18: 0 | AQ18: 0 | AR18: 0 | AS18: 0 | AT18: 0 | AU18: 0 | AV18: 0 | AW18: 0 | AX18: 0 | CA18: Replacement of smoke detectors are a part of the planned renovation - additional replacment will occur during the term | CB18: Smoke/Fire Detectors | CC18: 0 | CE18: 0 | CF18: 0 | CG18: 0 | CH18: 0 | CI18: 0 | CJ18: 0 | CK18: 0 | CL18: 0 | CM18: 5400 | CO18: 0 | CP18: 0 | CQ18: 0 | CR18: 0 | CS18: 0 | CT18: 0 | CU18: 0 | CV18: 0 | CW18: 5400 | CX18: 10800
A19: Repair dumpster enclosures | B19: Dumpster Enclosure | C19: 0 | E19: 0 | F19: 0 | G19: 0 | H19: 0 | I19: 0 | J19: 0 | K19: 0 | L19: 0 | M19: 0 | N19: 1000 | O19: 0 | P19: 0 | Q19: 0 | R19: 0 | S19: 0 | T19: 0 | U19: 0 | V19: 0 | W19: 0 | X19: 1000 | AA19: Window replacement is a part of the planned renovation | AB19: Windows (Frames and Glazing) | AC19: 0 | AG19: 0 | AH19: 0 | AI19: 0 | AJ19: 0 | AN19: 0 | AO19: 0 | AP19: 0 | AT19: 0 | AU19: 0 | AV19: 0 | AW19: 0 | AX19: 0 | CC19: 0 | CF19: 0 | CG19: 0 | CH19: 0 | CI19: 0 | CJ19: 0 | CK19: 0 | CL19: 0 | CM19: 0 | CO19: 0 | CP19: 0 | CQ19: 0 | CR19: 0 | CS19: 0 | CT19: 0 | CU19: 0 | CV19: 0 | CW19: 0 | CX19: 0
A20: No drainage or erosion problems were noted | B20: Earthwork | C20: 0 | E20: 0 | F20: 0 | G20: 0 | H20: 0 | I20: 0 | J20: 0 | K20: 0 | L20: 0 | M20: 0 | N20: 0 | O20: 0 | P20: 0 | Q20: 0 | R20: 0 | S20: 0 | T20: 0 | U20: 0 | V20: 0 | W20: 0 | X20: 0 | AA20: Metal stairs are in good condition - additions to current code are a part of the planned renovation | AB20: Stair Structure | AC20: 0 | AE20: 0 | AF20: 0 | AG20: 0 | AH20: 0 | AI20: 0 | AJ20: 0 | AK20: 0 | AL20: 0 | AM20: 0 | AN20: 0 | AO20: 0 | AP20: 0 | AQ20: 0 | AR20: 0 | AS20: 0 | AT20: 0 | AU20: 0 | AV20: 0 | AW20: 0 | AX20: 0 | CA20: Replacement of interior doors is a part of the planned renovation | CB20: Interior Door | CC20: 0 | CE20: 0 | CF20: 0 | CG20: 0 | CH20: 0 | CI20: 0 | CJ20: 0 | CK20: 0 | CL20: 0 | CM20: 0 | CN20: 0 | CO20: 0 | CP20: 0 | CT20: 0 | CU20: 0 | CV20: 0 | CW20: 0 | CX20: 0
A21: Prune trees & cover bare yard areas | B21: Landscaping | C21: 0 | E21: 0 | F21: 0 | G21: 0 | I21: 0 | J21: 0 | K21: 0 | L21: 0 | M21: 0 | N21: 5000 | O21: 0 | P21: 0 | Q21: 0 | R21: 0 | S21: 0 | T21: 0 | U21: 0 | V21: 0 | W21: 5000 | X21: 10000 | AA21: Lighting upgrade and replacement is a part of the planned renovation | AB21: Building Mounted Exterior Lighting | AC21: 0 | AE21: 0 | AF21: 0 | AG21: 0 | AH21: 0 | AI21: 0 | AJ21: 0 | AK21: 0 | AL21: 0 | AM21: 0 | AN21: 0 | AO21: 0 | AP21: 0 | AQ21: 0 | AR21: 6000 | AS21: 0 | AT21: 0 | AU21: 0 | AV21: 0 | AW21: 0 | AX21: 6000 | CA21: Replacement of all kitchen and bath cabinets are a part of the proposed renovation | CB21: Kitchen Cabinets | CC21: 0 | CG21: 0 | CH21: 0 | CI21: 0 | CJ21: 0 | CK21: 0 | CL21: 0 | CM21: 0 | CN21: 0 | CO21: 0 | CP21: 0 | CQ21: 0 | CR21: 0 | CS21: 0 | CT21: 0 | CU21: 0 | CV21: 0 | CW21: 0 | CX21: 0
A22: Replace existing lighting fixtures | B22: Site Lighting | C22: 0 | D22: 0 | E22: 0 | F22: 0 | G22: 0 | H22: 0 | I22: 0 | J22: 0 | K22: 0 | L22: 0 | M22: 0 | N22: 0 | O22: 0 | P22: 0 | Q22: 0 | R22: 0 | S22: 0 | T22: 0 | U22: 0 | V22: 0 | W22: 0 | X22: 0 | CA22: Carpets have exceeded the EUL and will be replaced as a part of the planned renovation with additional replacments over the term | CB22: Living Area Floors: Carpet | CC22: 0 | CG22: 0 | CH22: 0 | CI22: 0 | CJ22: 11400 | CK22: 11400 | CL22: 11400 | CP22: 0 | CQ22: 11400 | CR22: 11400 | CS22: 11400 | CT22: 0 | CU22: 0 | CV22: 0 | CW22: 0 | CX22: 68400
CC23: 0 | CD23: 0 | CE23: 0 | CF23: 0 | CG23: 0 | CH23: 0 | CI23: 0 | CX23: 0
CC24: 0 | CE24: 0 | CF24: 0 | CG24: 0 | CH24: 0 | CI24: 0 | CJ24: 0 | CK24: 0 | CL24: 0 | CM24: 0 | CN24: 0 | CO24: 0 | CP24: 0 | CQ24: 0 | CR24: 0 | CS24: 0 | CT24: 0 | CU24: 0 | CV24: 0 | CW24: 0 | CX24: 0
CA25: Anticipated replacements spread over the term following initial replacement | CB25: Living Area Floors: Resilient Flooring (tile or sheet) | CC25: 0 | CG25: 0 | CH25: 0 | CI25: 0 | CJ25: 0 | CK25: 0 | CL25: 0 | CP25: 0 | CQ25: 0 | CR25: 6000 | CS25: 6000 | CT25: 6000 | CX25: 18000
CA26: Replacement of HVAC systems are a part of the planned renovation | CB26: Local HVAC: Heat Pump w/ Supplementary Electric | CC26: 0 | CG26: 0 | CH26: 0 | CI26: 0 | CJ26: 0 | CK26: 0 | CL26: 0 | CM26: 0 | CN26: 0 | CO26: 0 | CP26: 0 | CQ26: 0 | CR26: 25200 | CS26: 25200 | CT26: 25200 | CU26: 25200 | CV26: 25200 | CW26: 0 | CX26: 126000
CC27: 0 | CD27: 0 | CE27: 0 | CF27: 0 | CG27: 0 | CH27: 0 | CI27: 0 | CJ27: 0 | CK27: 0 | CL27: 0 | CR27: 0 | CS27: 0 | CT27: 0 | CU27: 0 | CV27: 0 | CW27: 0 | CX27: 0
CA28: Replacment of all ranges are a part of the planned renovation | CB28: Range | CC28: 0 | CG28: 0 | CH28: 0 | CI28: 0 | CJ28: 0 | CK28: 0 | CL28: 0 | CM28: 0 | CN28: 0 | CO28: 0 | CP28: 0 | CQ28: 0 | CR28: 4813 | CS28: 4813 | CT28: 4813 | CU28: 0 | CV28: 0 | CW28: 0 | CX28: 14439
CA29: Most range hoods are original and replacment is a part of the planned renovation | CB29: Rangehood | CC29: 0 | CG29: 0 | CH29: 0 | CI29: 0 | CJ29: 0 | CK29: 0 | CL29: 0 | CM29: 0 | CN29: 0 | CO29: 0 | CP29: 0 | CQ29: 0 | CR29: 1440 | CS29: 1440 | CT29: 1440 | CU29: 0 | CV29: 0 | CW29: 0 | CX29: 4320
